Workbook

Sheet Intro
C2: Gestion Rallye | K2: =TODAY() -> 2018-12-16 | L2: Mode Protégé
C3: =Rallye!E10 -> 16ème Rallye du PAYS de St-YRIEX | K3: =NOW() -> 43450.39398
C4: =Rallye!E11 -> 3ème Rallye VHC du PAYS de St-YRIEX | K4: En Course : | L4: =Etap3!G62 -> 45
C6: Préparation | E6: Suivi Rallye et Rapports | I6: Editions Préparatoires
K29: 2018-10
A32: Directeur de Course : | D32: =Officiels!K15 -> LORRE Joseph | J32: Auteur : Joseph LORRE
C33: Fichier : | D33: =nomclasseur() -> DC_Rallye_2018.xlsm | J33: 2018-10-01

Sheet Rallye
C2: PARAMETRES EPREUVE
D8: DESCRIPTIF de L'EPREUVE
I9: Nom du Fichier : | J9: =nomclasseur() -> DC_Rallye_2018.xlsm
B10: GENERAL | D10: Nom Epreuve : | E10: 16ème Rallye du PAYS de St-YRIEX
D11: Si DoublureVHC Nom: | E11: 3ème Rallye VHC du PAYS de St-YRIEX
D12: Dates de l'Epreuve : | E12: 15 et 16 Septembre 2018
D14: Ligue : | E14: LRSA Nouvelle Aquitaine Sud
D15: Permis d'Organisation : | E15: N 511 du 3/07/2018
D17: Lieu : | E17: 87500 St-YRIEX La PERCHE
D19: ASA Organisatrice : | E19: ASA Saint Martial
D20: Code ASA :
C21: Championnat/Ecurie Organisatrice : | E21: Championnat de France 2ème Div
D23: Date Vérifs Adminstratives le : | E23: 2018-09-15 | F23: de : | G23: 08:00:00 | H23: à : | I23: 11:15:00 | J23: et de : | L23: à :
D24: et le : | F24: de : | H24: à : | J24: et de : | L24: à :
D25: Date Vérifs Techniques le : | E25: 2018-09-15 | F25: de : | G25: 08:30:00 | H25: à : | I25: 11:30:00 | J25: et de : | L25: à :
D26: et le : | F26: de : | H26: à : | J26: et de : | L26: à :
D28: Dates de Reconnaissances : | E28: 2018-08-08 | F28: de : | G28: 09:00:00 | H28: à : | I28: 11:30:00 | J28: et de : | K28: 14:00:00 | L28: à : | M28: 19:00:00
E29: 2018-09-09 | F29: de : | G29: 09:00:00 | H29: à : | I29: 11:30:00 | J29: et de : | K29: 14:00:00 | L29: à : | M29: 19:00:00
E30: 2018-09-13 | F30: de : | G30: 09:00:00 | H30: à : | I30: 12:00:00 | J30: et de : | K30: 14:00:00 | L30: à : | M30: 21:15:00
E31: 2018-09-14 | F31: de : | G31: 09:00:00 | H31: à : | I31: 12:00:00 | J31: et de : | K31: 14:00:00 | L31: à : | M31: 21:15:00
D33: Date Arrivée : | E33: 2018-09-16
D35: N° Téléphone PC : | E35: 555004997
I36: INFORMATIONS pour ATTESTATION CONFORMITE
D37: Vérifications Finales : | E37: Garage VERSAVEAU | I37: Org. Technique : | J37: MAZAUD Laurent
E38: Avenue de Coussac | I38: N° Arrèté : | J38: 2018/28
E39: 87500 St-YRIEX La PERCHE | I39: De : | J39: Préfecture de la Haute Vienne
E40: Se munir de moyens pour vider les réservoirs | I40: Du : | J40: 2018-09-10
B42: Date Affichage classement FINAL : | E42: 2018-09-16 | F42: à:
D44: Pénalités pour Avance : | E44: 1 mnt | F44: Départ : | G44: 10 s
D45: pour Retard : | E45: 10 s
D48: Etape 1 | E48: 1ère Etape Sections 1 - 2
D50: Date 1ère Etape : | E50: 2018-09-15 | F50: à : | G50: 14:40:00
D51: Affichage Classement de l'Etape : | F51: à :
B52: Points de Contrôle
D53: Nom | E53: Heure Th. | F53: Temps Imparti | G53: Kms Partiel | H53: Kms Total
C54: 1ère | D54: Section
B55: C.H. : | C55: 0 | D55: Sortie Parc Départ | E55: =G50 -> 14:40:00 | F55: 00:05:00 | H55: =H54+G55 -> 0
B56: C.H. : | C56: 0A | D56: Entrée Assist (Stade St Yriex) | E56: =E55+F55 -> 14:45:00 | F56: 00:15:00 | H56: =H55+G56 -> 0
B57: C.H. : | C57: 0B | D57: Sortie Assistance | E57: =E56+F56 -> 15:00:00 | F57: 00:12:00 | H57: 0
B58: C.H. : | C58: 1 | D58: Avant Départ ES 1 | E58: 15:12:00 | F58: 00:03:00 | H58: 0
B59: Départ E.S. : | C59: 1 | D59: Le BOCAGE 1 (11,5 Kms) | E59: 15:15:00 | H59: 0
B60: Arriv. E.S. : | C60: 1 | E60: 15:15:00 | F60: 00:40:00 | H60: 0
B61: C.H. : | C61: 2 | D61: Avant Départ ES 2 | E61: 15:55:00 | F61: 00:03:00 | H61: 0
B62: Départ E.S. : | C62: 2 | D62: Le TINDEIX 1 (8,75 Kms) | E62: 15:58:00 | H62: 0
B63: Arriv. E.S. : | C63: 2 | E63: 15:58:00 | F63: 00:40:00 | H63: =H62+G63 -> 0
B64: C.H. : | C64: 3 | D64: Avant Départ ES 3 | E64: 16:38:00 | F64: 00:03:00 | H64: 0
B65: Départ E.S. : | C65: 3 | D65: Les PALLOUX 1 (10,80 Kms) | E65: 16:41:00 | H65: 0
B66: Arriv. E.S. : | C66: 3 | E66: 16:41:00 | F66: 00:30:00 | H66: 0
B67: C.H. : | C67: 3A | D67: Entrée Parc Regroup | E67: 17:11:00 | H67: 0
C68: 2ème | D68: Section | E68: 17:11:00 | F68: 01:10:00 | H68: 0
B69: C.H. : | C69: 3B | D69: Sortie Parc Regroup | E69: 18:21:00 | F69: 00:05:00 | H69: 0
B70: C.H. : | C70: 3C | D70: Entrée Assist (Stade St Yriex) | E70: 18:26:00 | F70: 00:30:00 | H70: 0
B71: C.H. : | C71: 3D | D71: Sortie Assistance | E71: 18:56:00 | F71: 00:12:00 | H71: 0
B72: C.H. : | C72: 4 | D72: Avant Départ ES 4 | E72: 19:08:00 | F72: 00:03:00 | H72: 0
B73: Départ E.S. : | C73: 4 | D73: Le BOCAGE 2 (11,5 Kms) | E73: 19:11:00 | H73: 0
B74: Arriv. E.S. : | C74: 4 | E74: 19:11:00 | F74: 00:40:00 | H74: 0
B75: C.H. : | C75: 5 | D75: Avant Départ ES 5 | E75: 19:51:00 | F75: 00:03:00 | H75: 0
B76: Départ E.S. : | C76: 5 | D76: Le TINDEIX 2 (8,75 Kms) | E76: 19:54:00 | H76: 0
B77: Arriv. E.S. : | C77: 5 | E77: 19:54:00 | F77: 00:40:00 | H77: 0
B78: C.H. : | C78: 6 | D78: Avant Départ ES 6 | E78: 20:34:00 | F78: 00:03:00 | H78: 0
B79: Départ E.S. : | C79: 6 | D79: Les PALLOUX 2 (10,80 Kms) | E79: 20:37:00 | H79: 0
B80: Arriv. E.S. : | C80: 6 | E80: 20:37:00 | F80: 00:30:00 | H80: 0
B81: C.H. : | C81: 6A | D81: Entrée Parc Fermé Fin Etape | E81: 21:07:00 | H81: 0
E82: 21:07:00 | H82: 0
E83: 21:07:00 | H83: 0
E84: 21:07:00 | H84: 0
E85: 21:07:00 | H85: 0
E86: 21:07:00 | H86: 0
E87: 21:07:00 | H87: 0
E88: 21:07:00 | H88: 0
E89: 21:07:00 | H89: 0
E90: 21:07:00 | H90: 0
E91: 21:07:00 | H91: 0
E92: 21:07:00 | H92: 0
E93: 21:07:00 | H93: 0
E94: 21:07:00 | H94: 0
E95: 21:07:00 | H95: 0
E96: 21:07:00 | H96: 0
E97: 21:07:00 | H97: 0
D99: Etape 2 | E99: 2ème Etape Sections 3 - 4 - 5
D101: Date 2ème Etape : | E101: 2018-09-16 | F101: à : | G101: 07:30:00
D102: Affichage Classement de l'Etape : | F102: à :
B103: Points de Contrôle
D104: Nom | E104: Heure Th. | F104: Temps Imparti | G104: Kms Partiel | H104: Kms Total
C105: 3ème | D105: Section
B106: C.H. : | C106: 6B | D106: Sortie Parc Départ | E106: =G101 -> 07:30:00 | F106: 00:05:00 | H106: =G106 -> 0
B107: C.H. : | C107: 6C | D107: Entrée Assist (Stade St Yriex) | E107: =E106+F106 -> 07:35:00 | F107: 00:20:00 | H107: =H106+G107 -> 0
B108: C.H. : | C108: 6D | D108: Sortie Assistance | E108: =E107+F107 -> 07:55:00 | F108: 00:25:00 | H108: =H107+G108 -> 0
B109: C.H. : | C109: 7 | D109: Avant Départ ES 7 | E109: =E108+F108 -> 08:20:00 | F109: 00:03:00 | H109: 0
B110: Départ E.S. : | C110: 7 | D110: La GABIE de la POULE 1 (9 Kms) | E110: =E109+F109 -> 08:23:00 | H110: 0
B111: Arriv. E.S. : | C111: 7 | E111: 08:23:00 | F111: 00:20:00 | H111: 0
B112: C.H. : | C112: 8 | D112: Avant Départ ES 8 | E112: 08:43:00 | F112: 00:03:00 | H112: 0
B113: Départ E.S. : | C113: 8 | D113: GLANDON 1 (17,810 Kms) | E113: 08:46:00 | H113: 0
B114: Arriv. E.S. : | C114: 8 | E114: 08:46:00 | F114: 00:35:00 | H114: 0
B115: C.H. : | C115: 8A | D115: Entrée Parc Regroup | E115: 09:21:00 | H115: 0
C116: 4ème | D116: Section | E116: 09:21:00 | F116: 00:45:00 | H116: 0
B117: C.H. : | C117: 8B | D117: Sortie Parc Regroup | E117: =E116+F116 -> 10:06:00 | F117: 00:05:00 | H117: 0
B118: C.H. : | C118: 8C | D118: Entrée Assist (Stade St Yriex) | E118: 10:11:00 | F118: 00:40:00 | H118: 0
B119: C.H. : | C119: 8D | D119: Sortie Assistance | E119: 10:51:00 | F119: 00:25:00 | H119: 0
B120: C.H. : | C120: 9 | D120: Avant Départ ES 9 | E120: 11:16:00 | F120: 00:03:00 | H120: 0
B121: Départ E.S. : | C121: 9 | D121: La GABIE de la POULE 2 (9 Kms) | E121: 11:19:00 | H121: 0
B122: Arriv. E.S. : | C122: 9 | E122: 11:19:00 | F122: 00:20:00 | H122: 0
B123: C.H. : | C123: 10 | D123: Avant Départ ES 10 | E123: 11:39:00 | F123: 00:03:00 | H123: 0
B124: Départ E.S. : | C124: 10 | D124: GLANDON 2 (17,810 Kms) | E124: 11:42:00 | H124: 0
B125: Arriv. E.S. : | C125: 10 | E125: 11:42:00 | F125: 00:35:00 | H125: 0
B126: C.H. : | C126: 10A | D126: Entrée Parc Regroup | E126: 12:17:00 | H126: 0
C127: 5ème | D127: Section | E127: 12:17:00 | F127: 00:45:00 | H127: 0
B128: C.H. : | C128: 10B | D128: Sortie Parc Regroup | E128: 13:02:00 | F128: 00:05:00 | H128: 0
B129: C.H. : | C129: 10C | D129: Entrée Assist (Stade St Yriex) | E129: 13:07:00 | F129: 00:40:00 | H129: 0
B130: C.H. : | C130: 10 D | D130: Sortie Assistance | E130: 13:47:00 | F130: 00:25:00 | H130: 0
B131: C.H. : | C131: 11 | D131: Avant Départ ES 11 | E131: 14:12:00 | F131: 00:03:00 | H131: 0
B132: Départ E.S. : | C132: 11 | D132: La GABIE de la POULE 3 (9 Kms) | E132: 14:15:00 | H132: 0
B133: Arriv. E.S. : | C133: 11 | E133: 14:15:00 | F133: 00:20:00 | H133: 0
B134: C.H. : | C134: 12 | D134: Avant Départ ES 12 | E134: 14:35:00 | F134: 00:03:00 | H134: 0
B135: Départ E.S. : | C135: 12 | D135: GLANDON 3 (17,810 Kms) | E135: 14:38:00 | H135: 0
B136: Arriv. E.S. : | C136: 12 | E136: 14:38:00 | F136: 00:35:00 | H136: 0
B137: C.H. : | C137: 12A | D137: Entrée Assist (Stade St Yriex) | E137: 15:13:00 | F137: 00:10:00 | H137: 0
B138: C.H. : | C138: 12B | D138: Sortie Assistance | E138: 15:23:00 | F138: 00:05:00 | H138: 0
B139: C.H. : | C139: 12C | D139: Entrée Parc Fermé d'Arrivée | E139: 15:28:00 | H139: 0
E140: 15:28:00 | H140: 0
E141: 15:28:00 | H141: 0
E142: 15:28:00 | H142: 0
E143: 15:28:00 | H143: 0
E144: 15:28:00 | H144: 0
E145: 15:28:00 | H145: 0
E146: 15:28:00 | H146: 0
E147: 15:28:00 | H147: 0
E148: 15:28:00 | H148: 0
E149: 15:28:00 | H149: 0
E150: 15:28:00 | H150: 0
E151: 15:28:00 | H151: 0
E152: 15:28:00 | H152: 0
E153: 15:28:00 | H153: 0
E154: 15:28:00 | H154: 0
D156: Etape 3
D158: Date 3ème Etape : | F158: à :
D159: Affichage Classement de l'Etape : | F159: à :
B160: Points de Contrôle
D161: Nom | E161: Heure Th. | F161: Temps Imparti | G161: Kms Partiel | H161: Kms Total
C162: 5ème | D162: Section
E163: =G158 -> 00:00:00
E164: =E163+F163 -> 00:00:00
E165: =E164+F164 -> 00:00:00
E166: =E165+F165 -> 00:00:00
E167: =E166+F166 -> 00:00:00
E168: 00:00:00
E169: 00:00:00
E170: 00:00:00
E171: 00:00:00
E172: 00:00:00
E173: 00:00:00
E174: =E173+F173 -> 00:00:00
E175: =E174+F174 -> 00:00:00
E176: 00:00:00
E177: 00:00:00
E178: 00:00:00
E179: 00:00:00
E180: 00:00:00
E181: 00:00:00
E182: 00:00:00
E183: 00:00:00
E184: 00:00:00
E185: 00:00:00
E186: 00:00:00
E187: 00:00:00
E188: 00:00:00
E189: 00:00:00
E190: 00:00:00
E191: 00:00:00
E192: 00:00:00
E193: 00:00:00
E194: 00:00:00
E195: 00:00:00
E196: 00:00:00
E197: 00:00:00
E198: 00:00:00
E199: 00:00:00
E200: 00:00:00
E201: 00:00:00
E202: 00:00:00
E203: 00:00:00
E204: 00:00:00
E205: 00:00:00
E206: 00:00:00
E207: 00:00:00
E208: 00:00:00
E209: 00:00:00
E210: 00:00:00
E211: 00:00:00

Sheet Verifs_mod
H2: Document n° :
B5: =Rallye!E10 -> 16ème Rallye du PAYS de St-YRIEX
B6: =Rallye!E12 -> 15 et 16 Septembre 2018 | F6: RAPPORT n° 1 du Directeur de Course
B7: =Rallye!E14 -> LRSA Nouvelle Aquitaine Sud
B8: =Rallye!E19 -> ASA Saint Martial
B9: =Rallye!E21 -> Championnat de France 2ème Div
B10: HORAIRES | E10: Date | F10: Ouverture | G10: Fermeture | I10: Ouverture | J10: Fermeture
B11: Vérifications Administratives le : | E11: =Rallye!E23 -> 2018-09-15 | F11: =Rallye!G23 -> 08:00:00 | G11: =Rallye!I23 -> 11:15:00 | H11: et de | I11: =Rallye!K23 -> 00:00:00 | J11: =Rallye!M23 -> 00:00:00
D12: et le : | E12: =Rallye!E24 -> 00:00:00 | F12: =Rallye!G24 -> 00:00:00 | G12: =Rallye!I24 -> 00:00:00 | H12: et de | I12: =Rallye!K24 -> 00:00:00 | J12: =Rallye!M24 -> 00:00:00
B13: Vérifications Techniques le : | E13: =Rallye!E25 -> 2018-09-15 | F13: =Rallye!G25 -> 08:30:00 | G13: =Rallye!I25 -> 11:30:00 | H13: et de | I13: =Rallye!K25 -> 00:00:00 | J13: =Rallye!M25 -> 00:00:00
D14: et le : | E14: =Rallye!E26 -> 00:00:00 | F14: =Rallye!G26 -> 00:00:00 | G14: =Rallye!I26 -> 00:00:00 | H14: et de | I14: =Rallye!K26 -> 00:00:00 | J14: =Rallye!M26 -> 00:00:00
B16: GROUPE | D16: CYLINDREE | E16: ENGAGES | F16: FORFAITS | G16: ABSENTS | H16: VERIF. ADM | I16: VERIF. TECH. | J16: NON CONF. | K16: ADMIS au DEPART
J17: ABSENT
B18: GROUPE N - FN | E18: =SUM(E19:E28) -> 16 | F18: =SUM(F19:F28) -> 4 | G18: 0 | H18: 12 | I18: 12 | J18: 0 | K18: 12
B19: Classe 1 | C19: N 1 | D19: 0 - 1400 | E19: 1 | F19: 1 | H19: =(E19-(F19+G19)) -> 0 | I19: =H19 -> 0 | K19: =(I19-J19) -> 0 | L19: =K19+K20 -> 1
C20: FN 1 | E20: 1 | H20: 1 | I20: =H20 -> 1 | K20: 1
B21: Classe 2 | C21: N 2 | D21: 1401 - 1600 | E21: 3 | H21: 3 | I21: 3 | K21: 3 | L21: =K21+K22+K23+K24 -> 6
C22: N 2 Série | E22: 4 | F22: 2 | H22: 2 | I22: 2 | K22: 2
C23: FN 2 | E23: 2 | F23: 1 | H23: 1 | I23: 1 | K23: 1
C24: FN 2 Série | H24: 0 | I24: 0 | K24: 0
B25: Classe 3 | C25: N 3 | D25: 1601 - 2000 | H25: 0 | I25: 0 | K25: 0 | L25: =K25+K26 -> 2
C26: FN 3 | E26: 2 | H26: 2 | I26: 2 | K26: 2
B27: Classe 4 | C27: N 4 | D27: 2001 - 2500 | E27: 1 | H27: 1 | I27: 1 | K27: 1 | L27: =K27+K28 -> 3
C28: FN 4 | E28: 2 | H28: 2 | I28: 2 | K28: 2
AC29: =H:(I) -> 
B30: GROUPE A - FA | E30: =SUM(E31:E43) -> 11 | F30: 0 | G30: 0 | H30: 11 | I30: 11 | J30: 0 | K30: 11
B31: Classe 5 | C31: A 5 | E31: 1 | H31: =(E31-(F31+G31)) -> 1 | I31: =H31 -> 1 | K31: =(I31-J31) -> 1 | L31: =K31+K32 -> 1
C32: FA 5 | D32: 0 - 1400 | H32: 0 | I32: 0 | K32: 0
C33: A/FA 5 K | H33: =(E33-(F33+G33)) -> 0 | I33: 0 | K33: =(I33-J33) -> 0 | L33: =K33 -> 0
B34: Classe 6 | C34: A 6 | H34: 0 | I34: 0 | K34: 0 | L34: =K34+K35 -> 1
C35: FA 6 | D35: 1401 - 1600 | E35: 1 | H35: =(E35-(F35+G35)) -> 1 | I35: 1 | K35: =(I35-J35) -> 1
C36: A/FA 6 K | D36: Super 1600 | E36: 3 | H36: 3 | I36: 3 | K36: 3 | L36: =K36 -> 3
B37: Classe 7 | C37: A 7 | E37: 1 | H37: 1 | I37: 1 | K37: 1 | L37: =K37+K38 -> 2
C38: FA 7 | D38: 1601 - 2000 | E38: 1 | H38: 1 | I38: 1 | K38: 1
C39: A/FA 7 K | E39: 1 | H39: 1 | I39: 1 | K39: 1 | L39: =K39 -> 1
C40: A/FA 7 S | D40: Super 2000 | E40: 1 | H40: 1 | I40: 1 | K40: 1 | L40: =K40 -> 1
B41: Classe 8 | C41: A 8 | H41: 0 | I41: 0 | K41: 0 | L41: =K41+K42 -> 1
C42: FA 8 | E42: 1 | H42: 1 | I42: 1 | K42: 1
C43: A/FA 8 W | D43: WRC | E43: 1 | H43: 1 | I43: 1 | K43: 1 | L43: =K43 -> 1
B45: GROUPE R | E45: =SUM(E46:E55) -> 20 | F45: 0 | G45: 0 | H45: 20 | I45: 20 | J45: 0 | K45: 20
B46: Classe R 1 | C46: R1 A | D46: 0 - 1400 | E46: 3 | H46: =(E46-(F46+G46)) -> 3 | I46: =H46 -> 3 | K46: =I46-J46 -> 3 | L46: =K46+K47 -> 3
C47: R1 B | D47: 1401 - 1600 | H47: 0 | I47: 0 | K47: =(I47-J47) -> 0
B48: Classe R 2 | C48: R2 B | D48: 1401 - 1600 | E48: 2 | H48: 2 | I48: 2 | K48: 2 | L48: =K48+K49 -> 2
C49: R2 C | D49: 1601 - 2000 | H49: 0 | I49: 0 | K49: 0
B50: Classe R 2 J | C50: R2 J | D50: 1601 - 2000 | H50: 0 | I50: 0 | K50: 0 | L50: =K50 -> 0
B51: Classe R 3 | C51: R3 C | D51: 0 - 2000 | E51: 4 | H51: 4 | I51: 4 | K51: 4 | L51: =K51+K52+K53 -> 7
C52: R3 D | D52: D T - 2000 | H52: 0 | I52: 0 | K52: 0
C53: R3 T | D53: T - 1600 | E53: 3 | H53: 3 | I53: 3 | K53: 3
B54: Classe R 4 | C54: R 4 | D54: (+) 2000 | E54: 1 | H54: 1 | I54: 1 | K54: 1 | L54: =K54 -> 1
B55: Classe R 5 | C55: R 5 | E55: 7 | H55: 7 | I55: 7 | K55: 7 | L55: =K55 -> 7
B57: GROUPE GT | E57: =SUM(E58:E60) -> 5 | F57: 1 | G57: 0 | H57: 4 | I57: 4 | J57: 0 | K57: 4
B58: Classe 9 | C58: GT 9 | D58: 0 - 2000 | H58: =(E58-(F58+G58)) -> 0 | I58: =H58 -> 0 | K58: =(I58-J58) -> 0 | L58: =K58+K59 -> 3
B59: Classe 10 | C59: GT 10 | D59: + 2000 | E59: 4 | F59: 1 | H59: =(E59-(F59+G59)) -> 3 | I59: =H59 -> 3 | K59: =(I59-J59) -> 3
B60: Classe GT+15 | C60: GT+15 | E60: 1 | H60: =(E60-(F60+G60)) -> 1 | I60: =H60 -> 1 | K60: =(I60-J60) -> 1
E61: 4
B62: GROUPE F2000 | E62: =SUM(E63:E66) -> 22 | F62: 0 | G62: 0 | H62: 22 | I62: 22 | J62: 0 | K62: 22
B63: Classe 11 | C63: F2000-11 | D63: 0 - 1150 | H63: =(E63-(F63+G63)) -> 0 | I63: =H63 -> 0 | K63: =(I63-J63) -> 0
B64: Classe 12 | C64: F2000-12 | D64: 1151 - 1400 | E64: 4 | H64: =(E64-(F64+G64)) -> 4 | I64: =H64 -> 4 | K64: =(I64-J64) -> 4
B65: Classe 13 | C65: F2000-13 | D65: 1401 - 1600 | E65: 5 | H65: =(E65-(F65+G65)) -> 5 | I65: =H65 -> 5 | K65: =(I65-J65) -> 5
B66: Classe 14 | C66: F2000-14 | D66: 1601 - 2000 | E66: 13 | H66: =(E66-(F66+G66)) -> 13 | I66: =H66 -> 13 | K66: =(I66-J66) -> 13
B71: TOTAL | E71: =E18+E30+E45+E57+E62+E68 -> 74 | F71: 5 | G71: 0 | H71: 69 | I71: 69 | J71: 0 | K71: =K18+K30+K45+K57+K62+K69 -> 69
B73: Forfaits avant Vérifications | F73: Non Présentés | J73: Non Conformes Techniquement
B75: N° | C75: Groupe | D75: Classe | F75: N° | G75: Groupe | H75: Classe | J75: N° | K75: Grp/Clas
A76: 1 | B76: 61 | C76: FN | D76: 2
A77: 2 | B77: 73 | C77: N | D77: 2S
A78: 3 | B78: 74 | C78: N | D78: 1
A79: 4 | B79: 71 | C79: N | D79: 2S
A80: 5 | B80: 14 | C80: GT | D80: 10
A81: 6 | J81: Divers
A82: 7
A83: 8
A84: 9
A85: 10
A86: 11
A87: 12
A88: 13
A89: 14 | F89: Pris sur Liste d'Attente | J89: Fait à : | K89: =Rallye!E17 -> 87500 St-YRIEX La PERCHE
A90: 15 | F90: N° | G90: Groupe | H90: Classe | J90: le : | K90: =TODAY() -> 2018-12-16
A91: 16 | J91: à : | K91: =NOW() -> 43450.39398
A92: 17 | J92: Le Directeur de Course
A93: 18 | J93: =Officiels!K15 -> LORRE Joseph
A94: 19 | J94: Lic : | K94: =Officiels!E15 -> 10395
A97: VERIFICATIONS ADMINISTRATIVES
B99: Nombre de concurrents engagés | I99: =E71 -> 74
B100: dont :
B102: Nombre de concurrents Non Présentés | E102: (forfaits pendant les vérificatons) | I102: =G71 -> 0
B103: N° : | C103: =CONCATENATE(F76," ",F77," ",F78," ",F79," ",F80," ",F81," ",F82," ",F83," ",F84," ",F85," ",F86," ",F87) -> 
B105: Nombre de concurrents forfaits | E105: (Avant l'ouverture & forfait pendant vérifications) | I105: =F71 -> 5
B106: N° : | C106: =CONCATENATE(B76," ",B77," ",B78," ",B79," ",B80," ",B81," ",B82," ",B83," ",B84," ",B85," ",B86," ",B87," ",B88," ",B89," ",B90,) -> 61 73 74 71 14
B107: N° : | C107: =CONCATENATE(B91," ",B92," ",B93," ",B94,) -> 
B109: Nombre de concurrents pris sur la liste d'attente | I109: =COUNT(F91:F94) -> 0
B110: N° : | C110: =CONCATENATE(F91," ",F92," ",F93," ",F94) -> 
B111: Nombre de concurrents vérifiés administrativement | I111: =H71 -> 69
B113: Commentaires :
A121: VERIFICATIONS TECHNIQUES
B123: Nombre de véhicules attendus | I123: =I71 -> 69
B125: Nombre de véhicules présentant une/des anomalie(s) ou absent | I125: =J71 -> 0
B126: N° : | C126: =CONCATENATE(J76," ",J77," ",J78," ",J79," ") -> 
B128: Nombre de véhicules sans anomalies apparentes | I128: =K71 -> 69
B130: Commentaires :
B136: Nombre de concurrents autorisés à prendre le départ | I136: =K71 -> 69
C138: Répartition par groupe : | D138: Gr N/FN | E138: Gr A/FA | F138: Gr R | G138: Gr GT | H138: Gr F2000 | I138: Gr GT + 15
D139: =K18 -> 12 | E139: =K30 -> 11 | F139: =K45 -> 20 | G139: =K58+K59 -> 3 | H139: =K62 -> 22 | I139: =K60 -> 1
B140: Pièces Jointes :
B142: Liste des Engagés | G142: Fait à : | H142: =Rallye!E17 -> 87500 St-YRIEX La PERCHE
B143: Liste des Partants | G143: le : | H143: =TODAY() -> 2018-12-16
B144: Rapport Vérifs Administratives | G144: à : | H144: =NOW() -> 43450.39398
B145: Rapport Commissaires Techniques
B146: Ordres et Heures de Départ Etape | H146: Le Directeur de Course
G147: =Officiels!K15 -> LORRE Joseph
G148: Lic : | H148: =Officiels!E15 -> 10395

Sheet Verifs_VHC
H2: Document n° :
B5: =IF(Rallye!E11<>"",Rallye!E11,Rallye!E10) -> 3ème Rallye VHC du PAYS de St-YRIEX
B6: =Rallye!E12 -> 15 et 16 Septembre 2018 | F6: RAPPORT n° 1 du Directeur de Course
B7: =Rallye!E14 -> LRSA Nouvelle Aquitaine Sud
B8: =Rallye!E19 -> ASA Saint Martial
B9: =Rallye!E21 -> Championnat de France 2ème Div
B10: HORAIRES | E10: Date | F10: Ouverture | G10: Fermeture | I10: Ouverture | J10: Fermeture
B11: Vérifications Administratives le : | E11: =Rallye!E23 -> 2018-09-15 | F11: =Rallye!G23 -> 08:00:00 | G11: =Rallye!I23 -> 11:15:00 | H11: et de | I11: =Rallye!K23 -> 00:00:00 | J11: =Rallye!M23 -> 00:00:00
D12: et le : | E12: =Rallye!E24 -> 00:00:00 | F12: =Rallye!G24 -> 00:00:00 | G12: =Rallye!I24 -> 00:00:00 | H12: et de | I12: =Rallye!K24 -> 00:00:00 | J12: =Rallye!M24 -> 00:00:00
B13: Vérifications Techniques le : | E13: =Rallye!E25 -> 2018-09-15 | F13: =Rallye!G25 -> 08:30:00 | G13: =Rallye!I25 -> 11:30:00 | H13: et de | I13: =Rallye!K25 -> 00:00:00 | J13: =Rallye!M25 -> 00:00:00
D14: et le : | E14: =Rallye!E26 -> 00:00:00 | F14: =Rallye!G26 -> 00:00:00 | G14: =Rallye!I26 -> 00:00:00 | H14: et de | I14: =Rallye!K26 -> 00:00:00 | J14: =Rallye!M26 -> 00:00:00
C16: ENGAGES | D16: FORFAITS | E16: ABSENTS | F16: VERIF. ADM | G16: VERIF. TECHN | H16: NON CONF. | I16: ADMIS au DEPART
B17: Groupe 1 | F17: =C17-D17-E17 -> 0 | G17: =F17 -> 0 | I17: =G17-H17 -> 0
B19: Groupe 2 | F19: =C19-D19-E19 -> 0 | G19: =F19 -> 0 | I19: =G19-H19 -> 0
B21: Groupe 3 | F21: =C21-D21-E21 -> 0 | G21: =F21 -> 0 | I21: =G21-H21 -> 0
B23: Groupe 4 | F23: =C23-D23-E23 -> 0 | G23: =F23 -> 0 | I23: =G23-H23 -> 0
B25: Groupe 5 | F25: =C25-D25-E25 -> 0 | G25: =F25 -> 0 | I25: =G25-H25 -> 0
B27: Gr N VHC J1 | F27: =C27-D27-E27 -> 0 | G27: =F27 -> 0 | I27: =G27-H27 -> 0
B29: Gr A VHC J1 | F29: =C29-D29-E29 -> 0 | G29: =F29 -> 0 | I29: =G29-H29 -> 0
B31: Gr B VHC J1 | F31: =C31-D31-E31 -> 0 | G31: =F31 -> 0 | I31: =G31-H31 -> 0
B33: Gr N VHC J2 | F33: =C33-D33-E33 -> 0 | G33: =F33 -> 0 | I33: =G33-H33 -> 0
F34: =C34-D34-E34 -> 0
B35: Gr A VHC J2 | F35: =C35-D35-E35 -> 0 | G35: =F35 -> 0 | I35: =G35-H35 -> 0
B36: Gr B VHC J2 | F36: =C36-D36-E36 -> 0 | G36: =F36 -> 0 | I36: =G36-H36 -> 0
B37: Classics | F37: =C37-D37-E37 -> 0 | G37: =F37 -> 0 | I37: =G37-H37 -> 0
B38: Total : | C38: =SUM(C17:C37) -> 0 | D38: 0 | E38: 0 | F38: 0 | G38: 0 | H38: 0 | I38: 0
B40: Forfaits avant vérifications | E40: Non Présentés | H40: Refusés/Non Conformes Tech
B42: Numéro | C42: Groupe | E42: Numéro | F42: Groupe | H42: Numéro | I42: Groupe
B50: Concurrents Pris sur Liste d'attente
H51: Fait à : | I51: =Rallye!E17 -> 87500 St-YRIEX La PERCHE
B52: Numéro | C52: Groupe | E52: Numéro | F52: Groupe | H52: le : | I52: =TODAY() -> 2018-12-16
H53: à : | I53: =NOW() -> 43450.39398
H54: Le Directeur de Course
H55: =Officiels!K15 -> LORRE Joseph
H56: Lic : | I56: =Officiels!E15 -> 10395
A59: VERIFICATIONS ADMINISTRATIVES
B62: Nombre de concurrents engagés | H62: =C38 -> 0
B63: dont :
B65: Nombre de concurrents forfaits | H65: =D38 -> 0
B66: N° : | C66: =CONCATENATE(B43," ",B44," ",B45," ",B46," ",B47," ",B48) -> 
B68: Nombre de concurrents non présentés | H68: =E38 -> 0
B69: N° : | C69: =CONCATENATE(E43," ",E44," ",E45," ",E46," ",E47," ",E48) -> 
B71: Nombre de concurrents pris sur la liste d'attente | H71: =COUNT(B53:B55) -> 0
B72: N° : | C72: =CONCATENATE(B53," ",B54," ",B55," ",E53," ",E54," ",E55) -> 
B74: Nombre de concurrents vérifiés | H74: =I38 -> 0
B76: Commentaires :
A81: VERIFICATIONS TECHNIQUES
B83: Nombre de véhicules attendus | H83: =H74 -> 0
B85: Nombre de véhicules vérifiés | H85: =G38 -> 0
B87: Nombre de véhicules présentant une/des anomalie(s) ou absent | H87: =H38 -> 0
B88: N° : | C88: =CONCATENATE(H43," ",H44," ",H45," ",H46," ",H47," ",H48) -> 
B90: Nombre de véhicules sans anomalies apparentes | H90: =I38 -> 0
B93: Commentaires :
B99: NOMBRE DE CONCURRENTS | D99: VHC | E99: AUTORISES A PRENDRE LE DEPART | H99: =I38 -> 0 | I99: Classics | J99: VHRS
I100: =I37 -> 0
B101: Répartition par Catégorie :
C102: Groupe 1 | D102: Groupe 2 | E102: Groupe 3 | F102: Groupe 4 | G102: Groupe 5
C103: =I17 -> 0 | D103: =I19 -> 0 | E103: =I21 -> 0 | F103: =I23 -> 0 | G103: =I25 -> 0
C105: Gr N VHC J1 | D105: Gr A VHC J1 | E105: Gr B VHC J1 | F105: Gr N VHC J2 | G105: Gr A VHC J2 | H105: Gr B VHC J2
C106: =I27 -> 0 | D106: =I29 -> 0 | E106: =I31 -> 0 | F106: =I33 -> 0 | G106: =I35 -> 0 | H106: =I36 -> 0
B108: Réserves :
B110: Pièces Jointes :
C111: Liste des autorisés au départ
B117: Fait à : | C117: =Rallye!E17 -> 87500 St-YRIEX La PERCHE
B118: le : | C118: =TODAY() -> 2018-12-16 | G118: Le Directeur de Course
B119: à : | C119: =NOW() -> 43450.39398 | F119: =Officiels!K15 -> LORRE Joseph | I119: Lic : | J119: =Officiels!E15 -> 10395

Sheet Verifs_TT
H2: Document n° :
B5: =Rallye!E10 -> 16ème Rallye du PAYS de St-YRIEX
B6: =Rallye!E12 -> 15 et 16 Septembre 2018 | F6: RAPPORT n° 1 du Directeur de Course
B7: =Rallye!E14 -> LRSA Nouvelle Aquitaine Sud
B8: =Rallye!E19 -> ASA Saint Martial
B9: =Rallye!E21 -> Championnat de France 2ème Div
B10: HORAIRES | E10: Date | F10: Ouverture | G10: Fermeture | I10: Ouverture | J10: Fermeture
B11: Vérifications Administratives le : | E11: =Rallye!E23 -> 2018-09-15 | F11: =Rallye!G23 -> 08:00:00 | G11: =Rallye!I23 -> 11:15:00 | H11: et de | I11: =Rallye!K23 -> 00:00:00 | J11: =Rallye!M23 -> 00:00:00
D12: et le : | E12: =Rallye!E24 -> 00:00:00 | F12: =Rallye!G24 -> 00:00:00 | G12: =Rallye!I24 -> 00:00:00 | H12: et de | I12: =Rallye!K24 -> 00:00:00 | J12: =Rallye!M24 -> 00:00:00
B13: Vérifications Techniques le : | E13: =Rallye!E25 -> 2018-09-15 | F13: =Rallye!G25 -> 08:30:00 | G13: =Rallye!I25 -> 11:30:00 | H13: et de | I13: =Rallye!K25 -> 00:00:00 | J13: =Rallye!M25 -> 00:00:00
D14: et le : | E14: =Rallye!E26 -> 00:00:00 | F14: =Rallye!G26 -> 00:00:00 | G14: =Rallye!I26 -> 00:00:00 | H14: et de | I14: =Rallye!K26 -> 00:00:00 | J14: =Rallye!M26 -> 00:00:00
B16: GROUPE | D16: CYLINDREE | E16: ENGAGES | F16: FORFAITS | G16: ABSENTS | H16: VERIF. ADM | I16: VERIF. TECH. | J16: NON CONF. | K16: ADMIS au DEPART
J17: ABSENT
B18: GROUPE T1 A (Essence et Diesel) | E18: =SUM(E19:E22) -> 0 | F18: 0 | G18: 0 | H18: 0 | I18: 0 | J18: 0 | K18: 0 | L18: =K18+K23 -> 0
B19: Classe | C19: T1 A 1 | D19: 0 - 2000 | H19: =(E19-(F19+G19)) -> 0 | I19: =H19 -> 0 | K19: =(I19-J19) -> 0
B20: Classe | C20: T1 A 2 | D20: 2001 - 3000 | H20: =(E20-(F20+G20)) -> 0 | I20: =H20 -> 0 | K20: =(I20-J20) -> 0
B21: Classe | C21: T1 A 3 | D21: 3001 - 3600 | H21: =(E21-(F21+G21)) -> 0 | I21: =H21 -> 0 | K21: =(I21-J21) -> 0
B22: Classe | C22: T1 A 4 | D22: + 3600 / T1 FIA / T1 RR | H22: =(E22-(F22+G22)) -> 0 | I22: =H22 -> 0 | K22: =(I22-J22) -> 0
B23: GROUPR T1B (Essence et Diesel) | E23: =SUM(E24:E25) -> 0 | F23: 0 | G23: 0 | H23: 0 | I23: 0 | J23: 0 | K23: 0
B24: Classe | C24: T1 B 1 | D24: 0 - 1600 | H24: =(E24-(F24+G24)) -> 0 | I24: =H24 -> 0 | K24: =(I24-J24) -> 0
B25: Classe | C25: T1 B 2 | D25: 1601 - 2000 | H25: =(E25-(F25+G25)) -> 0 | I25: =H25 -> 0 | K25: =(I25-J25) -> 0
B26: GROUPE T2 | E26: =SUM(E27:E29) -> 0 | F26: 0 | G26: 0 | H26: 0 | I26: 0 | J26: 0 | K26: 0 | L26: =K26+K30+K34 -> 0
B27: Classe | C27: T2 1 | D27: 0 - 2500 E | H27: =(E27-(F27+G27)) -> 0 | I27: =H27 -> 0 | K27: =(I27-J27) -> 0
B28: Classe | C28: T2 2 | D28: + 2500 E | H28: =(E28-(F28+G28)) -> 0 | I28: =H28 -> 0 | K28: =(I28-J28) -> 0
B29: Classe | C29: T2 D | D29: Diesel | H29: =(E29-(F29+G29)) -> 0 | I29: =H29 -> 0 | K29: =(I29-J29) -> 0
B30: GROUPE T2 B | E30: =SUM(E31:E33) -> 0 | F30: =SUM(F31:F33) -> 0 | G30: 0 | H30: 0 | I30: 0 | J30: 0 | K30: 0
B31: Classe | C31: T2 B 1 | D31: 0 -2500 | H31: =(E31-(F31+G31)) -> 0 | I31: =H31 -> 0 | K31: =(I31-J31) -> 0
B32: Classe | C32: T2 B 2 | D32: 2501 - 5000 | H32: =(E32-(F32+G32)) -> 0 | I32: =H32 -> 0 | K32: =(I32-J32) -> 0
B33: Classe | C33: T2 B 3 | D33: + 5000 | H33: =(E33-(F33+G33)) -> 0 | I33: =H33 -> 0 | K33: =(I33-J33) -> 0
B34: GROUPE T2 B + | E34: =SUM(E35:E36) -> 0 | F34: =SUM(F35:F36) -> 0 | G34: 0 | H34: 0 | I34: 0 | J34: 0 | K34: 0
B35: Classe | C35: T2 B + 1 | D35: 0 - 2500 | H35: =(E35-(F35+G35)) -> 0 | I35: =H35 -> 0 | K35: =(I35-J35) -> 0
B36: Classe | C36: T2 B + 2 | D36: 2501 - 3000 | H36: =(E36-(F36+G36)) -> 0 | I36: =H36 -> 0 | K36: =(I36-J36) -> 0
B37: GROUPE T3 | E37: =E38+E39 -> 0 | F37: =F38+F39 -> 0 | G37: =G38+G39 -> 0 | H37: =SUM(H38:H39) -> 0 | I37: =SUM(I38:I39) -> 0 | J37: =SUM(J38:J39) -> 0 | K37: =SUM(K38:K39) -> 0
B38: Classe | C38: T3 - 2 RM | H38: =(E38-(F38+G38)) -> 0 | I38: =H38 -> 0 | K38: =(I38-J38) -> 0
B39: Classe | C39: T3 - 4 RM | H39: =(E39-(F39+G39)) -> 0 | I39: =H39 -> 0 | K39: =(I39-J39) -> 0
B40: GROUPE SSV | E40: =SUM(E41:E47) -> 0 | F40: 0 | G40: 0 | H40: 0 | I40: 0 | J40: 0 | K40: 0
B41: Classe | C41: 2 | D41: 0 - 880 | H41: =(E41-(F41+G41)) -> 0 | I41: =H41 -> 0 | K41: =(I41-J41) -> 0
B42: Classe | C42: 3 | D42: 0 - 880 | H42: 0 | I42: 0 | K42: 0
B43: Classe | C43: 4 | D43: + 880 - 1050 | H43: 0 | I43: 0 | K43: 0
B44: Classe | C44: 5 | D44: + 880 - 1050 | H44: 0 | I44: 0 | K44: 0
B45: Classe | C45: 6 | D45: 0 - 1000 | H45: 0 | I45: 0 | K45: 0
B46: Classe | C46: 7 | D46: 0 - 1000 | H46: 0 | I46: 0 | K46: 0
H47: 0 | I47: 0 | K47: 0
B49: TOTAL : | E49: =E18+E23+E26+E30+E34+E40 -> 0 | F49: 0 | G49: 0 | H49: 0 | I49: 0 | J49: 0 | K49: 0
B51: Forfaits avant vérifications | F51: Non Présentés | J51: Refusés/Non Conformes Tech
B53: N° | C53: Groupe | D53: Classe | F53: N° | G53: Groupe | H53: Classe | J53: N° | K53: Grp/Clas
J59: Divers
B65: Concurrents Pris sur Liste d'attente
B66: Numéro | C66: Groupe | D66: Classe
B73: Fait à : | C73: =Rallye!E17 -> 87500 St-YRIEX La PERCHE | G73: Le Directeur de Course
B74: le : | C74: =TODAY() -> 2018-12-16 | G74: =Officiels!K15 -> LORRE Joseph
B75: à : | C75: =NOW() -> 43450.39398 | G75: Lic : | H75: =Officiels!E15 -> 10395
A77: VERIFICATIONS ADMINISTRATIVES
B79: Nombre de concurrents engagés | I79: =E49 -> 0
B80: dont :
B83: Nombre de concurrents forfaits | E83: (avant l'ouverture des vérificatons) | I83: =F49 -> 0
B84: N° : | C84: =CONCATENATE(B54," ",B55," ",B56," ",B57," ",B58," ",B59," ",B60," ",B61," ",B62," ",B63) -> 
B86: Nombre de concurrents non présentés | E86: (& forfait pendant vérifications) | I86: =G49 -> 0
C87: =CONCATENATE(F54," ",F55," ",F56," ",F57," ",F58," ",F59," ",F60," ",F61," ",F62," ",F63," ",F64," ",F65," ",F66," ",F67) -> 
B89: Nombre de concurrents pris sur la liste d'attente | I89: =COUNT(B67:B71) -> 0
C90: =CONCATENATE(B67," ",B68," ",B69," ",B70," ",B71) -> 
B92: Nombre de concurrents vérifiés administrativement | I92: =H49 -> 0
B93: Commentaires :
A101: VERIFICATIONS TECHNIQUES
B103: Nombre de véhicules attendus | I103: =I49 -> 0
B105: Nombre de véhicules vérifiés | I105: =I49 -> 0
B107: Nombre de véhicules présentant une/des anomalie(s) ou absent | I107: =J49 -> 0
B108: N° : | C108: =CONCATENATE(J54," ",J55," ",J56," ",J57," ",J58," ",J60," ",J61," ",J62," ",J63," ",J64) -> 
B110: Nombre de véhicules sans anomalies apparentes | I110: =K49 -> 0
B112: Commentaires :
B117: Nombre de concurrents autorisés à prendre le départ | I117: =K49 -> 0
C119: Répartition par groupe : | D119: Gr T1 A | E119: Gr T1 B | F119: Gr T2 | G119: Gr T2 B | H119: Gr T2 B+ | I119: Gr T3 | J119: SSV
D120: =K18 -> 0 | E120: =K23 -> 0 | F120: =K26 -> 0 | G120: =K30 -> 0 | H120: =K34 -> 0 | I120: =K37 -> 0 | J120: =K41 -> 0
B122: Pièces Jointes :
F124: Fait à : | G124: =Rallye!E17 -> 87500 St-YRIEX La PERCHE
F125: le : | G125: =TODAY() -> 2018-12-16
F126: à : | G126: =NOW() -> 43450.39398
A128: =A75 -> 0 | H128: Le Directeur de Course
H129: =Officiels!K15 -> LORRE Joseph
G130: Lic : | H130: =Officiels!E15 -> 10395

Sheet SOFT
A1: DOCUMENT A RETOURNER AVEC LES CLASSEMENTS ( Rapport de clôture avec numéro de licence)
A2: Sté Patrick Soft, Service Classement F . F . S . A . FAX : 04 66 04 82 68
D3: EPREUVE : RALLYE
A4: REPARTITION DES CONCURENTS
A5: AUTORISES A PRENDRE LE DEPART
D7: NOM DE L'EPREUVE : | E7: =Rallye!E10 -> 16ème Rallye du PAYS de St-YRIEX
D9: DATE : | E9: =Rallye!E12 -> 15 et 16 Septembre 2018 | H9: =Rallye!E15 -> N 511 du 3/07/2018
D11: ASA ORGANISATRICE : | E11: =Rallye!E19 -> ASA Saint Martial
D13: CONTACT (classement) :
D15: Tél / Fax - Horaires :
B17: N / FN | D17: N FN/1 | E17: N FN/2 | F17: N2 Série | G17: N FN/3 | H17: N FN/4
B18: =SUM(D18:H18) -> 12 | D18: =Verifs_mod!L19 -> 1 | E18: =Verifs_mod!K21+Verifs_mod!K23 -> 4 | F18: =Verifs_mod!K22+Verifs_mod!K24 -> 2 | G18: =Verifs_mod!L25 -> 2 | H18: =Verifs_mod!L27 -> 3
B21: A / FA | D21: A FA/5 | E21: A FA/6 | F21: A FA/7 | G21: A FA/8
B22: =D22+E22+F22+G22+H22+D26+E26+F26+G26+H26 -> 11 | D22: =Verifs_mod!L31 -> 1 | E22: =Verifs_mod!L34 -> 1 | F22: =Verifs_mod!L37 -> 2 | G22: =Verifs_mod!L41 -> 1
D25: A FA/5K | E25: A FA/6K | F25: A FA/7K | G25: A/7S | H25: A FA/8W
D26: =Verifs_mod!L33 -> 0 | E26: =Verifs_mod!L36 -> 3 | F26: =Verifs_mod!L39 -> 1 | G26: =Verifs_mod!L40 -> 1 | H26: =Verifs_mod!L43 -> 1
B28: R | D28: R/1 | E28: R/2 | F28: R/2J | G28: R/3 | H28: R/4 | I28: R/5
B29: =SUM(D29:I29) -> 20 | D29: =Verifs_mod!L46 -> 3 | E29: =Verifs_mod!L48 -> 2 | F29: =Verifs_mod!L50 -> 0 | G29: =Verifs_mod!L51 -> 7 | H29: =Verifs_mod!L54 -> 1 | I29: =Verifs_mod!L55 -> 7
B31: F2000 | D31: F2000/11 | E31: F2000/12 | F31: F2000/13 | G31: F2000/14
B32: =SUM(D32:G32) -> 22 | D32: =Verifs_mod!K63 -> 0 | E32: =Verifs_mod!K64 -> 4 | F32: =Verifs_mod!K65 -> 5 | G32: =Verifs_mod!K66 -> 13
B34: GT | D34: GT/9 | E34: GT/10
B35: =SUM(D35:E35) -> 3 | D35: =Verifs_mod!K58 -> 0 | E35: =Verifs_mod!K59 -> 3
B37: GT+ | D37: GT+/15
B38: =D38 -> 1 | D38: =Verifs_mod!K60 -> 1
A40: NOMBRE DE CONCURRENTS ADMIS A PRENDRE LE DEPART : | H40: =B18+B22+B29+B32+B35+B38 -> 69
A42: Patrick Soft - BP 98217 - 115 Av , Amédée Bollée - 30942 NIMES Cedex 9
A43: TEL : 04 66 04 82 71 - Fax : 04 66 04 82 68 - htp://www.patricksoft.fr

Sheet Horaires Etap1
B3: =Rallye!E10 -> 16ème Rallye du PAYS de St-YRIEX
B4: =Rallye!E11 -> 3ème Rallye VHC du PAYS de St-YRIEX | I4: HORAIRES | L4: =Rallye!E48 -> 1ère Etape Sections 1 - 2 | P4: Durée Prévue Etape = | V4: =((SUM(P11:P53)+(TIME(0,ABS(Q5+V5+V7+V9+R10+S10+T10+T5+(Q7*2)-1),0)))) -> 07:56:00
B5: =Rallye!E19 -> ASA Saint Martial | P5: En course = | Q5: =Etap1!G10 -> 69 | S5: nb VHC : | T5: 5
I6: =Rallye!E50 -> 2018-09-15 | P6: Durée ES = | Q6: =V11-Q11+$U$10 -> 03:09:00
B7: =Rallye!E14 -> LRSA Nouvelle Aquitaine Sud | P7: nb 2' = | Q7: 2 | T7: =IF(T5>0,TIME(0,ABS(T5)-1,0)) -> 00:04:00 | U7: Tps ajouté = | V7: 10
E8: Orga | F8: TRICO | G8: Autorité | H8: Promo 1 | I8: Promo 2 | J8: Promo 3 | K8: Observ | L8: Info-Sono | M8: 000 | N8: 00 | O8: 0 Mod | P8: TEMPS | Q8: 1ère Voiture | R8: Dern VHC | S8: 0 Mod | T8: 1ère Voiture | U8: Dern Voiture | V8: BALAI
E9: -90 | F9: -75 | G9: -60 | H9: -40 | I9: -39 | J9: -38 | K9: -37 | L9: -30 | M9: -25 | N9: -15 | O9: -10 | P9: Imparti | Q9: VHC | S9: 5 | T9: Modernes | U9: Théorique | V9: 2
C10: =Rallye!C54 -> 1ère | D10: =Rallye!D54 -> Section | E10: =TIME(0,ABS(E9),0) -> 01:30:00 | F10: 01:15:00 | G10: 01:00:00 | H10: 00:40:00 | I10: 00:39:00 | J10: 00:38:00 | K10: 00:37:00 | L10: 00:30:00 | M10: 00:25:00 | N10: 00:15:00 | O10: 00:10:00 | R10: =TIME(0,ABS(R9),0) -> 00:00:00 | S10: =TIME(0,ABS(S9),0) -> 00:05:00 | T10: 00:10:00 | U10: =TIME(0,ABS((T5-1)+(Q5-1)+(Q7)+(V7)),0) -> 01:24:00 | V10: =TIME(0,ABS(V9),0) -> 00:02:00
B11: =Rallye!B55 -> C.H. : | C11: =Rallye!C55 -> 0 | D11: =Rallye!D55 -> Sortie Parc Départ | E11: =$Q11-E$10 -> 13:10:00 | F11: =$Q11-F$10 -> 13:25:00 | G11: =$Q11-G$10 -> 13:40:00 | H11: =$Q11-H$10 -> 14:00:00 | I11: =IF(AND(H11<>"",Q11>0),($Q11-I$10),) -> 14:01:00 | J11: =IF(AND(H11<>"",Q11>0),($Q11-J$10),) -> 14:02:00 | K11: =IF(AND(J11<>"",Q11>0),($Q11-K$10),) -> 14:03:00 | L11: =IF(AND(J11<>"",Q11>0),($Q11-L$10),) -> 14:10:00 | M11: =IF(AND(K11<>"",Q11>0),($Q11-M$10),) -> 14:15:00 | N11: =IF(AND(M11<>"",Q11>0),($Q11-N$10),) -> 14:25:00 | O11: =IF(AND(N11<>"",Q11>0),($Q11-O$10),) -> 14:30:00 | P11: =Rallye!F54 -> 00:00:00 | Q11: =Rallye!G50 -> 14:40:00 | R11: =Q11+T_inf_Mod+T_Etp1_VHC -> 14:44:00 | S11: =R11+T_0_Mod -> 14:49:00 | T11: =S11+T_1_Mod -> 14:59:00 | U11: =IF(D11<>"",T11+$U$10,) -> 16:23:00 | V11: =IF(D11>0,U11+$V$10,) -> 16:25:00
B12: =Rallye!B56 -> C.H. : | C12: =Rallye!C56 -> 0A | D12: =Rallye!D56 -> Entrée Assist (Stade St Yriex) | E12: =IF(AND(Rallye!D56<>"",Rallye!D56<>"Section"),($Q12-E$10),) -> 13:15:00 | F12: =IF(AND(Rallye!D56<>"",Rallye!D56<>"Section"),($Q12-F$10),) -> 13:30:00 | G12: =IF(AND(Rallye!D56<>"",Rallye!D56<>"Section"),($Q12-G$10),) -> 13:45:00 | H12: =IF(AND(Rallye!D56<>"",Rallye!D56<>"Section"),($Q12-H$10),) -> 14:05:00 | I12: =IF(AND(H12<>"",Q12>0),($Q12-I$10),) -> 14:06:00 | J12: =IF(AND(H12<>"",Q12>0),($Q12-J$10),) -> 14:07:00 | K12: =IF(AND(Rallye!D56<>"",Rallye!D56<>"Section"),($Q12-K$10),) -> 14:08:00 | L12: =IF(AND(Rallye!D56<>"",Rallye!D56<>"Section"),($Q12-L$10),) -> 14:15:00 | M12: =IF(AND(Rallye!D56<>"",Rallye!D56<>"Section"),($Q12-M$10),) -> 14:20:00 | N12: =IF(AND(Rallye!D56<>"",Rallye!D56<>"Section"),($Q12-N$10),) -> 14:30:00 | O12: =IF(AND(Rallye!D56<>"",Rallye!D56<>"Section"),($Q12-O$10),) -> 14:35:00 | P12: =Rallye!F55 -> 00:05:00 | Q12: =IF(P12>0,IF(OR(Rallye!D56<>"",Rallye!D56<>"Section"),Q11+P12,),Q11) -> 14:45:00 | R12: =IF(Q12>0,IF(AND(Rallye!D56<>"",Rallye!D56<>"Section"),Q12+T_Etp1_VHC+T_inf_Mod,),0) -> 14:49:00 | S12: =IF(Q12>0,IF(AND(Rallye!D56<>"",Rallye!D56<>"Section"),R12+T_0_Mod,),0) -> 14:54:00 | T12: =IF(P12>0,IF(AND(Rallye!D56<>"",Rallye!D56<>"Section"),T11+P12,),T11) -> 15:04:00 | U12: =IF(AND(Rallye!D56<>"",Rallye!D56<>"Section"),T12+$U$10,) -> 16:28:00 | V12: =IF(AND(Rallye!D56<>"",Rallye!D56<>"Section"),U12+$V$10,) -> 16:30:00
B13: =Rallye!B57 -> C.H. : | C13: =Rallye!C57 -> 0B | D13: =Rallye!D57 -> Sortie Assistance | E13: =IF(AND(Rallye!D57<>"",Rallye!D57<>"Section"),($Q13-E$10),) -> 13:30:00 | F13: =IF(AND(Rallye!D57<>"",Rallye!D57<>"Section"),($Q13-F$10),) -> 13:45:00 | G13: =IF(AND(Rallye!D57<>"",Rallye!D57<>"Section"),($Q13-G$10),) -> 14:00:00 | H13: =IF(AND(Rallye!D57<>"",Rallye!D57<>"Section"),($Q13-H$10),) -> 14:20:00 | I13: =IF(AND(H13<>"",Q13>0),($Q13-I$10),) -> 14:21:00 | J13: =IF(AND(H13<>"",Q13>0),($Q13-J$10),) -> 14:22:00 | K13: =IF(AND(Rallye!D57<>"",Rallye!D57<>"Section"),($Q13-K$10),) -> 14:23:00 | L13: =IF(AND(Rallye!D57<>"",Rallye!D57<>"Section"),($Q13-L$10),) -> 14:30:00 | M13: =IF(AND(Rallye!D57<>"",Rallye!D57<>"Section"),($Q13-M$10),) -> 14:35:00 | N13: =IF(AND(Rallye!D57<>"",Rallye!D57<>"Section"),($Q13-N$10),) -> 14:45:00 | O13: =IF(AND(Rallye!D57<>"",Rallye!D57<>"Section"),($Q13-O$10),) -> 14:50:00 | P13: =Rallye!F56 -> 00:15:00 | Q13: =IF(P13>0,IF(OR(Rallye!D57<>"",Rallye!D57<>"Section"),Q12+P13,),Q12) -> 15:00:00 | R13: =IF(Q13>0,IF(AND(Rallye!D57<>"",Rallye!D57<>"Section"),Q13+T_Etp1_VHC+T_inf_Mod,),0) -> 15:04:00 | S13: =IF(Q13>0,IF(AND(Rallye!D57<>"",Rallye!D57<>"Section"),R13+T_0_Mod,),0) -> 15:09:00 | T13: =IF(P13>0,IF(AND(Rallye!D57<>"",Rallye!D57<>"Section"),T12+P13,),T12) -> 15:19:00 | U13: =IF(AND(Rallye!D57<>"",Rallye!D57<>"Section"),T13+$U$10,) -> 16:43:00 | V13: =IF(AND(Rallye!D57<>"",Rallye!D57<>"Section"),U13+$V$10,) -> 16:45:00
B14: =Rallye!B58 -> C.H. : | C14: =Rallye!C58 -> 1 | D14: =Rallye!D58 -> Avant Départ ES 1 | E14: =IF(AND(Rallye!D58<>"",Rallye!D58<>"Section"),($Q14-E$10),) -> 13:42:00 | F14: =IF(AND(Rallye!D58<>"",Rallye!D58<>"Section"),($Q14-F$10),) -> 13:57:00 | G14: =IF(AND(Rallye!D58<>"",Rallye!D58<>"Section"),($Q14-G$10),) -> 14:12:00 | H14: =IF(AND(Rallye!D58<>"",Rallye!D58<>"Section"),($Q14-H$10),) -> 14:32:00 | I14: =IF(AND(Rallye!D58<>"",Rallye!D58<>"Section"),($Q14-I$10),) -> 14:33:00 | J14: =IF(AND(Rallye!D58<>"",Rallye!D58<>"Section"),($Q14-J$10),) -> 14:34:00 | K14: =IF(AND(Rallye!D58<>"",Rallye!D58<>"Section"),($Q14-K$10),) -> 14:35:00 | L14: =IF(AND(Rallye!D58<>"",Rallye!D58<>"Section"),($Q14-L$10),) -> 14:42:00 | M14: =IF(AND(Rallye!D58<>"",Rallye!D58<>"Section"),($Q14-M$10),) -> 14:47:00 | N14: =IF(AND(Rallye!D58<>"",Rallye!D58<>"Section"),($Q14-N$10),) -> 14:57:00 | O14: =IF(AND(Rallye!D58<>"",Rallye!D58<>"Section"),($Q14-O$10),) -> 15:02:00 | P14: =Rallye!F57 -> 00:12:00 | Q14: =IF(P14>0,IF(OR(Rallye!D58<>"",Rallye!D58<>"Section"),Q13+P14,),Q13) -> 15:12:00 | R14: =IF(Q14>0,IF(AND(Rallye!D58<>"",Rallye!D58<>"Section"),Q14+T_Etp1_VHC+T_inf_Mod,),0) -> 15:16:00 | S14: =IF(Q14>0,IF(AND(Rallye!D58<>"",Rallye!D58<>"Section"),R14+T_0_Mod,),0) -> 15:21:00 | T14: =IF(P14>0,IF(AND(Rallye!D58<>"",Rallye!D58<>"Section"),T13+P14,),T13) -> 15:31:00 | U14: =IF(AND(Rallye!D58<>"",Rallye!D58<>"Section"),T14+$U$10,) -> 16:55:00 | V14: =IF(AND(Rallye!D58<>"",Rallye!D58<>"Section"),U14+$V$10,) -> 16:57:00
B15: =Rallye!B59 -> Départ E.S. : | C15: =Rallye!C59 -> 1 | D15: =Rallye!D59 -> Le BOCAGE 1 (11,5 Kms) | E15: =IF(AND(Rallye!D59<>"",Rallye!D59<>"Section"),($Q15-E$10),) -> 13:45:00 | F15: =IF(AND(Rallye!D59<>"",Rallye!D59<>"Section"),($Q15-F$10),) -> 14:00:00 | G15: =IF(AND(Rallye!D59<>"",Rallye!D59<>"Section"),($Q15-G$10),) -> 14:15:00 | H15: =IF(AND(Rallye!D59<>"",Rallye!D59<>"Section"),($Q15-H$10),) -> 14:35:00 | I15: =IF(AND(Rallye!D59<>"",Rallye!D59<>"Section"),($Q15-I$10),) -> 14:36:00 | J15: =IF(AND(Rallye!D59<>"",Rallye!D59<>"Section"),($Q15-J$10),) -> 14:37:00 | K15: =IF(AND(Rallye!D59<>"",Rallye!D59<>"Section"),($Q15-K$10),) -> 14:38:00 | L15: =IF(AND(Rallye!D59<>"",Rallye!D59<>"Section"),($Q15-L$10),) -> 14:45:00 | M15: =IF(AND(Rallye!D59<>"",Rallye!D59<>"Section"),($Q15-M$10),) -> 14:50:00 | N15: =IF(AND(Rallye!D59<>"",Rallye!D59<>"Section"),($Q15-N$10),) -> 15:00:00 | O15: =IF(AND(Rallye!D59<>"",Rallye!D59<>"Section"),($Q15-O$10),) -> 15:05:00 | P15: =Rallye!F58 -> 00:03:00 | Q15: =IF(P15>0,IF(OR(Rallye!D59<>"",Rallye!D59<>"Section"),Q14+P15,),Q14) -> 15:15:00 | R15: =IF(Q15>0,IF(AND(Rallye!D59<>"",Rallye!D59<>"Section"),Q15+T_Etp1_VHC+T_inf_Mod,),0) -> 15:19:00 | S15: =IF(Q15>0,IF(AND(Rallye!D59<>"",Rallye!D59<>"Section"),R15+T_0_Mod,),0) -> 15:24:00 | T15: =IF(P15>0,IF(AND(Rallye!D59<>"",Rallye!D59<>"Section"),T14+P15,),T14) -> 15:34:00 | U15: =IF(AND(Rallye!D59<>"",Rallye!D59<>"Section"),T15+$U$10,) -> 16:58:00 | V15: =IF(AND(Rallye!D59<>"",Rallye!D59<>"Section"),U15+$V$10,) -> 17:00:00
B16: =Rallye!B60 -> Arriv. E.S. : | C16: =Rallye!C60 -> 1 | D16: =Rallye!D60 -> 0 | E16: =IF(AND(Rallye!D60<>"",Rallye!D60<>"Section"),($Q16-E$10),) -> 00:00:00 | F16: =IF(AND(Rallye!D60<>"",Rallye!D60<>"Section"),($Q16-F$10),) -> 00:00:00 | G16: =IF(AND(Rallye!D60<>"",Rallye!D60<>"Section"),($Q16-G$10),) -> 00:00:00 | H16: =IF(AND(Rallye!D60<>"",Rallye!D60<>"Section"),($Q16-H$10),) -> 00:00:00 | I16: =IF(AND(Rallye!D60<>"",Rallye!D60<>"Section"),($Q16-I$10),) -> 00:00:00 | J16: =IF(AND(Rallye!D60<>"",Rallye!D60<>"Section"),($Q16-J$10),) -> 00:00:00 | K16: =IF(AND(Rallye!D60<>"",Rallye!D60<>"Section"),($Q16-K$10),) -> 00:00:00 | L16: =IF(AND(Rallye!D60<>"",Rallye!D60<>"Section"),($Q16-L$10),) -> 00:00:00 | M16: =IF(AND(Rallye!D60<>"",Rallye!D60<>"Section"),($Q16-M$10),) -> 00:00:00 | N16: =IF(AND(Rallye!D60<>"",Rallye!D60<>"Section"),($Q16-N$10),) -> 00:00:00 | O16: =IF(AND(Rallye!D60<>"",Rallye!D60<>"Section"),($Q16-O$10),) -> 00:00:00 | P16: =Rallye!F59 -> 00:00:00 | Q16: =IF(P16>0,IF(OR(Rallye!D60<>"",Rallye!D60<>"Section"),Q15+P16,),Q15) -> 15:15:00 | R16: =IF(Q16>0,IF(AND(Rallye!D60<>"",Rallye!D60<>"Section"),Q16+T_Etp1_VHC+T_inf_Mod,),0) -> 00:00:00 | S16: =IF(Q16>0,IF(AND(Rallye!D60<>"",Rallye!D60<>"Section"),R16+T_0_Mod,),0) -> 00:00:00 | T16: =IF(P16>0,IF(AND(Rallye!D60<>"",Rallye!D60<>"Section"),T15+P16,),T15) -> 15:34:00 | U16: =IF(AND(Rallye!D60<>"",Rallye!D60<>"Section"),T16+$U$10,) -> 00:00:00 | V16: =IF(AND(Rallye!D60<>"",Rallye!D60<>"Section"),U16+$V$10,) -> 00:00:00
B17: =Rallye!B61 -> C.H. : | C17: =Rallye!C61 -> 2 | D17: =Rallye!D61 -> Avant Départ ES 2 | E17: =IF(AND(Rallye!D61<>"",Rallye!D61<>"Section"),($Q17-E$10),) -> 14:25:00 | F17: =IF(AND(Rallye!D61<>"",Rallye!D61<>"Section"),($Q17-F$10),) -> 14:40:00 | G17: =IF(AND(Rallye!D61<>"",Rallye!D61<>"Section"),($Q17-G$10),) -> 14:55:00 | H17: =IF(AND(Rallye!D61<>"",Rallye!D61<>"Section"),($Q17-H$10),) -> 15:15:00 | I17: =IF(AND(Rallye!D61<>"",Rallye!D61<>"Section"),($Q17-I$10),) -> 15:16:00 | J17: =IF(AND(Rallye!D61<>"",Rallye!D61<>"Section"),($Q17-J$10),) -> 15:17:00 | K17: =IF(AND(Rallye!D61<>"",Rallye!D61<>"Section"),($Q17-K$10),) -> 15:18:00 | L17: =IF(AND(Rallye!D61<>"",Rallye!D61<>"Section"),($Q17-L$10),) -> 15:25:00 | M17: =IF(AND(Rallye!D61<>"",Rallye!D61<>"Section"),($Q17-M$10),) -> 15:30:00 | N17: =IF(AND(Rallye!D61<>"",Rallye!D61<>"Section"),($Q17-N$10),) -> 15:40:00 | O17: =IF(AND(Rallye!D61<>"",Rallye!D61<>"Section"),($Q17-O$10),) -> 15:45:00 | P17: =Rallye!F60 -> 00:40:00 | Q17: =IF(P17>0,IF(OR(Rallye!D61<>"",Rallye!D61<>"Section"),Q16+P17,),Q16) -> 15:55:00 | R17: =IF(Q17>0,IF(AND(Rallye!D61<>"",Rallye!D61<>"Section"),Q17+T_Etp1_VHC+T_inf_Mod,),0) -> 15:59:00 | S17: =IF(Q17>0,IF(AND(Rallye!D61<>"",Rallye!D61<>"Section"),R17+T_0_Mod,),0) -> 16:04:00 | T17: =IF(P17>0,IF(AND(Rallye!D61<>"",Rallye!D61<>"Section"),T16+P17,),T16) -> 16:14:00 | U17: =IF(AND(Rallye!D61<>"",Rallye!D61<>"Section"),T17+$U$10,) -> 17:38:00 | V17: =IF(AND(Rallye!D61<>"",Rallye!D61<>"Section"),U17+$V$10,) -> 17:40:00
B18: =Rallye!B62 -> Départ E.S. : | C18: =Rallye!C62 -> 2 | D18: =Rallye!D62 -> Le TINDEIX 1 (8,75 Kms) | E18: =IF(AND(Rallye!D62<>"",Rallye!D62<>"Section"),($Q18-E$10),) -> 14:28:00 | F18: =IF(AND(Rallye!D62<>"",Rallye!D62<>"Section"),($Q18-F$10),) -> 14:43:00 | G18: =IF(AND(Rallye!D62<>"",Rallye!D62<>"Section"),($Q18-G$10),) -> 14:58:00 | H18: =IF(AND(Rallye!D62<>"",Rallye!D62<>"Section"),($Q18-H$10),) -> 15:18:00 | I18: =IF(AND(Rallye!D62<>"",Rallye!D62<>"Section"),($Q18-I$10),) -> 15:19:00 | J18: =IF(AND(Rallye!D62<>"",Rallye!D62<>"Section"),($Q18-J$10),) -> 15:20:00 | K18: =IF(AND(Rallye!D62<>"",Rallye!D62<>"Section"),($Q18-K$10),) -> 15:21:00 | L18: =IF(AND(Rallye!D62<>"",Rallye!D62<>"Section"),($Q18-L$10),) -> 15:28:00 | M18: =IF(AND(Rallye!D62<>"",Rallye!D62<>"Section"),($Q18-M$10),) -> 15:33:00 | N18: =IF(AND(Rallye!D62<>"",Rallye!D62<>"Section"),($Q18-N$10),) -> 15:43:00 | O18: =IF(AND(Rallye!D62<>"",Rallye!D62<>"Section"),($Q18-O$10),) -> 15:48:00 | P18: =Rallye!F61 -> 00:03:00 | Q18: =IF(P18>0,IF(OR(Rallye!D62<>"",Rallye!D62<>"Section"),Q17+P18,),Q17) -> 15:58:00 | R18: =IF(Q18>0,IF(AND(Rallye!D62<>"",Rallye!D62<>"Section"),Q18+T_Etp1_VHC+T_inf_Mod,),0) -> 16:02:00 | S18: =IF(Q18>0,IF(AND(Rallye!D62<>"",Rallye!D62<>"Section"),R18+T_0_Mod,),0) -> 16:07:00 | T18: =IF(P18>0,IF(AND(Rallye!D62<>"",Rallye!D62<>"Section"),T17+P18,),T17) -> 16:17:00 | U18: =IF(AND(Rallye!D62<>"",Rallye!D62<>"Section"),T18+$U$10,) -> 17:41:00 | V18: =IF(AND(Rallye!D62<>"",Rallye!D62<>"Section"),U18+$V$10,) -> 17:43:00
B19: =Rallye!B63 -> Arriv. E.S. : | C19: =Rallye!C63 -> 2 | D19: =Rallye!D63 -> 0 | E19: =IF(AND(Rallye!D63<>"",Rallye!D63<>"Section"),($Q19-E$10),) -> 00:00:00 | F19: =IF(AND(Rallye!D63<>"",Rallye!D63<>"Section"),($Q19-F$10),) -> 00:00:00 | G19: =IF(AND(Rallye!D63<>"",Rallye!D63<>"Section"),($Q19-G$10),) -> 00:00:00 | H19: =IF(AND(Rallye!D63<>"",Rallye!D63<>"Section"),($Q19-H$10),) -> 00:00:00 | I19: =IF(AND(Rallye!D63<>"",Rallye!D63<>"Section"),($Q19-I$10),) -> 00:00:00 | J19: =IF(AND(Rallye!D63<>"",Rallye!D63<>"Section"),($Q19-J$10),) -> 00:00:00 | K19: =IF(AND(Rallye!D63<>"",Rallye!D63<>"Section"),($Q19-K$10),) -> 00:00:00 | L19: =IF(AND(Rallye!D63<>"",Rallye!D63<>"Section"),($Q19-L$10),) -> 00:00:00 | M19: =IF(AND(Rallye!D63<>"",Rallye!D63<>"Section"),($Q19-M$10),) -> 00:00:00 | N19: =IF(AND(Rallye!D63<>"",Rallye!D63<>"Section"),($Q19-N$10),) -> 00:00:00 | O19: =IF(AND(Rallye!D63<>"",Rallye!D63<>"Section"),($Q19-O$10),) -> 00:00:00 | P19: =Rallye!F62 -> 00:00:00 | Q19: =IF(P19>0,IF(AND(Rallye!D63<>"",Rallye!D63<>"Section"),Q18+P19,),Q18) -> 15:58:00 | R19: =IF(Q19>0,IF(AND(Rallye!D63<>"",Rallye!D63<>"Section"),Q19+T_Etp1_VHC+T_inf_Mod,),0) -> 00:00:00 | S19: =IF(Q19>0,IF(AND(Rallye!D63<>"",Rallye!D63<>"Section"),R19+T_0_Mod,),0) -> 00:00:00 | T19: =IF(P19>0,IF(AND(Rallye!D63<>"",Rallye!D63<>"Section"),T18+P19,),T18) -> 16:17:00 | U19: =IF(AND(Rallye!D63<>"",Rallye!D63<>"Section"),T19+$U$10,) -> 00:00:00 | V19: =IF(AND(Rallye!D63<>"",Rallye!D63<>"Section"),U19+$V$10,) -> 00:00:00
B20: =Rallye!B64 -> C.H. : | C20: =Rallye!C64 -> 3 | D20: =Rallye!D64 -> Avant Départ ES 3 | E20: =IF(AND(Rallye!D64<>"",Rallye!D64<>"Section"),($Q20-E$10),) -> 15:08:00 | F20: =IF(AND(Rallye!D64<>"",Rallye!D64<>"Section"),($Q20-F$10),) -> 15:23:00 | G20: =IF(AND(Rallye!D64<>"",Rallye!D64<>"Section"),($Q20-G$10),) -> 15:38:00 | H20: =IF(AND(Rallye!D64<>"",Rallye!D64<>"Section"),($Q20-H$10),) -> 15:58:00 | I20: =IF(AND(Rallye!D64<>"",Rallye!D64<>"Section"),($Q20-I$10),) -> 15:59:00 | J20: =IF(AND(Rallye!D64<>"",Rallye!D64<>"Section"),($Q20-J$10),) -> 16:00:00 | K20: =IF(AND(Rallye!D64<>"",Rallye!D64<>"Section"),($Q20-K$10),) -> 16:01:00 | L20: =IF(AND(Rallye!D64<>"",Rallye!D64<>"Section"),($Q20-L$10),) -> 16:08:00 | M20: =IF(AND(Rallye!D64<>"",Rallye!D64<>"Section"),($Q20-M$10),) -> 16:13:00 | N20: =IF(AND(Rallye!D64<>"",Rallye!D64<>"Section"),($Q20-N$10),) -> 16:23:00 | O20: =IF(AND(Rallye!D64<>"",Rallye!D64<>"Section"),($Q20-O$10),) -> 16:28:00 | P20: =Rallye!F63 -> 00:40:00 | Q20: =IF(P20>0,IF(OR(Rallye!D64<>"",Rallye!D64<>"Section"),Q19+P20,),Q19) -> 16:38:00 | R20: =IF(Q20>0,IF(AND(Rallye!D64<>"",Rallye!D64<>"Section"),Q20+T_Etp1_VHC+T_inf_Mod,),0) -> 16:42:00 | S20: =IF(Q20>0,IF(AND(Rallye!D64<>"",Rallye!D64<>"Section"),R20+T_0_Mod,),0) -> 16:47:00 | T20: =IF(P20>0,IF(AND(Rallye!D64<>"",Rallye!D64<>"Section"),T19+P20,),T19) -> 16:57:00 | U20: =IF(AND(Rallye!D64<>"",Rallye!D64<>"Section"),T20+$U$10,) -> 18:21:00 | V20: =IF(AND(Rallye!D64<>"",Rallye!D64<>"Section"),U20+$V$10,) -> 18:23:00
B21: =Rallye!B65 -> Départ E.S. : | C21: =Rallye!C65 -> 3 | D21: =Rallye!D65 -> Les PALLOUX 1 (10,80 Kms) | E21: =IF(AND(Rallye!D65<>"",Rallye!D65<>"Section"),($Q21-E$10),) -> 15:11:00 | F21: =IF(AND(Rallye!D65<>"",Rallye!D65<>"Section"),($Q21-F$10),) -> 15:26:00 | G21: =IF(AND(Rallye!D65<>"",Rallye!D65<>"Section"),($Q21-G$10),) -> 15:41:00 | H21: =IF(AND(Rallye!D65<>"",Rallye!D65<>"Section"),($Q21-H$10),) -> 16:01:00 | I21: =IF(AND(Rallye!D65<>"",Rallye!D65<>"Section"),($Q21-I$10),) -> 16:02:00 | J21: =IF(AND(Rallye!D65<>"",Rallye!D65<>"Section"),($Q21-J$10),) -> 16:03:00 | K21: =IF(AND(Rallye!D65<>"",Rallye!D65<>"Section"),($Q21-K$10),) -> 16:04:00 | L21: =IF(AND(Rallye!D65<>"",Rallye!D65<>"Section"),($Q21-L$10),) -> 16:11:00 | M21: =IF(AND(Rallye!D65<>"",Rallye!D65<>"Section"),($Q21-M$10),) -> 16:16:00 | N21: =IF(AND(Rallye!D65<>"",Rallye!D65<>"Section"),($Q21-N$10),) -> 16:26:00 | O21: =IF(AND(Rallye!D65<>"",Rallye!D65<>"Section"),($Q21-O$10),) -> 16:31:00 | P21: =Rallye!F64 -> 00:03:00 | Q21: =IF(P21>0,IF(OR(Rallye!D65<>"",Rallye!D65<>"Section"),Q20+P21,),Q20) -> 16:41:00 | R21: =IF(Q21>0,IF(AND(Rallye!D65<>"",Rallye!D65<>"Section"),Q21+T_Etp1_VHC+T_inf_Mod,),0) -> 16:45:00 | S21: =IF(Q21>0,IF(AND(Rallye!D65<>"",Rallye!D65<>"Section"),R21+T_0_Mod,),0) -> 16:50:00 | T21: =IF(P21>0,IF(AND(Rallye!D65<>"",Rallye!D65<>"Section"),T20+P21,),T20) -> 17:00:00 | U21: =IF(AND(Rallye!D65<>"",Rallye!D65<>"Section"),T21+$U$10,) -> 18:24:00 | V21: =IF(AND(Rallye!D65<>"",Rallye!D65<>"Section"),U21+$V$10,) -> 18:26:00
B22: =Rallye!B66 -> Arriv. E.S. : | C22: =Rallye!C66 -> 3 | D22: =Rallye!D66 -> 0 | E22: =IF(AND(Rallye!D66<>"",Rallye!D66<>"Section"),($Q22-E$10),) -> 00:00:00 | F22: =IF(AND(Rallye!D66<>"",Rallye!D66<>"Section"),($Q22-F$10),) -> 00:00:00 | G22: =IF(AND(Rallye!D66<>"",Rallye!D66<>"Section"),($Q22-G$10),) -> 00:00:00 | H22: =IF(AND(Rallye!D66<>"",Rallye!D66<>"Section"),($Q22-H$10),) -> 00:00:00 | I22: =IF(AND(Rallye!D66<>"",Rallye!D66<>"Section"),($Q22-I$10),) -> 00:00:00 | J22: =IF(AND(Rallye!D66<>"",Rallye!D66<>"Section"),($Q22-J$10),) -> 00:00:00 | K22: =IF(AND(Rallye!D66<>"",Rallye!D66<>"Section"),($Q22-K$10),) -> 00:00:00 | L22: =IF(AND(Rallye!D66<>"",Rallye!D66<>"Section"),($Q22-L$10),) -> 00:00:00 | M22: =IF(AND(Rallye!D66<>"",Rallye!D66<>"Section"),($Q22-M$10),) -> 00:00:00 | N22: =IF(AND(Rallye!D66<>"",Rallye!D66<>"Section"),($Q22-N$10),) -> 00:00:00 | O22: =IF(AND(Rallye!D66<>"",Rallye!D66<>"Section"),($Q22-O$10),) -> 00:00:00 | P22: =Rallye!F65 -> 00:00:00 | Q22: =IF(P22>0,IF(OR(Rallye!D66<>"",Rallye!D66<>"Section"),Q21+P22,),Q21) -> 16:41:00 | R22: =IF(Q22>0,IF(AND(Rallye!D66<>"",Rallye!D66<>"Section"),Q22+T_Etp1_VHC+T_inf_Mod,),0) -> 00:00:00 | S22: =IF(Q22>0,IF(AND(Rallye!D66<>"",Rallye!D66<>"Section"),R22+T_0_Mod,),0) -> 00:00:00 | T22: =IF(P22>0,IF(AND(Rallye!D66<>"",Rallye!D66<>"Section"),T21+P22,),T21) -> 17:00:00 | U22: =IF(AND(Rallye!D66<>"",Rallye!D66<>"Section"),T22+$U$10,) -> 00:00:00 | V22: =IF(AND(Rallye!D66<>"",Rallye!D66<>"Section"),U22+$V$10,) -> 00:00:00
B23: =Rallye!B67 -> C.H. : | C23: =Rallye!C67 -> 3A | D23: =Rallye!D67 -> Entrée Parc Regroup | E23: =IF(AND(Rallye!D67<>"",Rallye!D67<>"Section"),($Q23-E$10),) -> 15:41:00 | F23: =IF(AND(Rallye!D67<>"",Rallye!D67<>"Section"),($Q23-F$10),) -> 15:56:00 | G23: =IF(AND(Rallye!D67<>"",Rallye!D67<>"Section"),($Q23-G$10),) -> 16:11:00 | H23: =IF(AND(Rallye!D67<>"",Rallye!D67<>"Section"),($Q23-H$10),) -> 16:31:00 | I23: =IF(AND(Rallye!D67<>"",Rallye!D67<>"Section"),($Q23-I$10),) -> 16:32:00 | J23: =IF(AND(Rallye!D67<>"",Rallye!D67<>"Section"),($Q23-J$10),) -> 16:33:00 | K23: =IF(AND(Rallye!D67<>"",Rallye!D67<>"Section"),($Q23-K$10),) -> 16:34:00 | L23: =IF(AND(Rallye!D67<>"",Rallye!D67<>"Section"),($Q23-L$10),) -> 16:41:00 | M23: =IF(AND(Rallye!D67<>"",Rallye!D67<>"Section"),($Q23-M$10),) -> 16:46:00 | N23: =IF(AND(Rallye!D67<>"",Rallye!D67<>"Section"),($Q23-N$10),) -> 16:56:00 | O23: =IF(AND(Rallye!D67<>"",Rallye!D67<>"Section"),($Q23-O$10),) -> 17:01:00 | P23: =Rallye!F66 -> 00:30:00 | Q23: =IF(P23>0,IF(OR(Rallye!D67<>"",Rallye!D67<>"Section"),Q22+P23,),Q22) -> 17:11:00 | R23: =IF(Q23>0,IF(AND(Rallye!D67<>"",Rallye!D67<>"Section"),Q23+T_Etp1_VHC+T_inf_Mod,),0) -> 17:15:00 | S23: =IF(Q23>0,IF(AND(Rallye!D67<>"",Rallye!D67<>"Section"),R23+T_0_Mod,),0) -> 17:20:00 | T23: =IF(P23>0,IF(AND(Rallye!D67<>"",Rallye!D67<>"Section"),T22+P23,),T22) -> 17:30:00 | U23: =IF(AND(Rallye!D67<>"",Rallye!D67<>"Section"),T23+$U$10,) -> 18:54:00 | V23: =IF(AND(Rallye!D67<>"",Rallye!D67<>"Section"),U23+$V$10,) -> 18:56:00
B24: =Rallye!B68 -> 0 | C24: =Rallye!C68 -> 2ème | D24: =Rallye!D68 -> Section | E24: =IF(AND(Rallye!D68<>"",Rallye!D68<>"Section"),($Q24-E$10),) -> 00:00:00 | F24: =IF(AND(Rallye!D68<>"",Rallye!D68<>"Section"),($Q24-F$10),) -> 00:00:00 | G24: =IF(AND(Rallye!D68<>"",Rallye!D68<>"Section"),($Q24-G$10),) -> 00:00:00 | H24: =IF(AND(Rallye!D68<>"",Rallye!D68<>"Section"),($Q24-H$10),) -> 00:00:00 | I24: =IF(AND(Rallye!D68<>"",Rallye!D68<>"Section"),($Q24-I$10),) -> 00:00:00 | J24: =IF(AND(Rallye!D68<>"",Rallye!D68<>"Section"),($Q24-J$10),) -> 00:00:00 | K24: =IF(AND(Rallye!D68<>"",Rallye!D68<>"Section"),($Q24-K$10),) -> 00:00:00 | L24: =IF(AND(Rallye!D68<>"",Rallye!D68<>"Section"),($Q24-L$10),) -> 00:00:00 | M24: =IF(AND(Rallye!D68<>"",Rallye!D68<>"Section"),($Q24-M$10),) -> 00:00:00 | N24: =IF(AND(Rallye!D68<>"",Rallye!D68<>"Section"),($Q24-N$10),) -> 00:00:00 | O24: =IF(AND(Rallye!D68<>"",Rallye!D68<>"Section"),($Q24-O$10),) -> 00:00:00 | P24: =Rallye!F67 -> 00:00:00 | Q24: =IF(P24>0,IF(OR(Rallye!D68<>"",Rallye!D68<>"Section"),Q23+P24,),Q23) -> 17:11:00 | R24: =IF(Q24>0,IF(AND(Rallye!D68<>"",Rallye!D68<>"Section"),Q24+T_Etp1_VHC+T_inf_Mod,),0) -> 00:00:00 | S24: =IF(Q24>0,IF(AND(Rallye!D68<>"",Rallye!D68<>"Section"),R24+T_0_Mod,),0) -> 00:00:00 | T24: =IF(P24>0,IF(AND(Rallye!D68<>"",Rallye!D68<>"Section"),T23+P24,),T23) -> 17:30:00 | U24: =IF(AND(Rallye!D68<>"",Rallye!D68<>"Section"),T24+$U$10,) -> 00:00:00 | V24: =IF(AND(Rallye!D68<>"",Rallye!D68<>"Section"),U24+$V$10,) -> 00:00:00
B25: =Rallye!B69 -> C.H. : | C25: =Rallye!C69 -> 3B | D25: =Rallye!D69 -> Sortie Parc Regroup | E25: =IF(AND(Rallye!D69<>"",Rallye!D69<>"Section"),($Q25-E$10),) -> 16:51:00 | F25: =IF(AND(Rallye!D69<>"",Rallye!D69<>"Section"),($Q25-F$10),) -> 17:06:00 | G25: =IF(AND(Rallye!D69<>"",Rallye!D69<>"Section"),($Q25-G$10),) -> 17:21:00 | H25: =IF(AND(Rallye!D69<>"",Rallye!D69<>"Section"),($Q25-H$10),) -> 17:41:00 | I25: =IF(AND(Rallye!D69<>"",Rallye!D69<>"Section"),($Q25-I$10),) -> 17:42:00 | J25: =IF(AND(Rallye!D69<>"",Rallye!D69<>"Section"),($Q25-J$10),) -> 17:43:00 | K25: =IF(AND(Rallye!D69<>"",Rallye!D69<>"Section"),($Q25-K$10),) -> 17:44:00 | L25: =IF(AND(Rallye!D69<>"",Rallye!D69<>"Section"),($Q25-L$10),) -> 17:51:00 | M25: =IF(AND(Rallye!D69<>"",Rallye!D69<>"Section"),($Q25-M$10),) -> 17:56:00 | N25: =IF(AND(Rallye!D69<>"",Rallye!D69<>"Section"),($Q25-N$10),) -> 18:06:00 | O25: =IF(AND(Rallye!D69<>"",Rallye!D69<>"Section"),($Q25-O$10),) -> 18:11:00 | P25: =Rallye!F68 -> 01:10:00 | Q25: =IF(P25>0,IF(OR(Rallye!D69<>"",Rallye!D69<>"Section"),Q24+P25,),Q24) -> 18:21:00 | R25: =IF(Q25>0,IF(AND(Rallye!D69<>"",Rallye!D69<>"Section"),Q25+T_Etp1_VHC+T_inf_Mod,),0) -> 18:25:00 | S25: =IF(Q25>0,IF(AND(Rallye!D69<>"",Rallye!D69<>"Section"),R25+T_0_Mod,),0) -> 18:30:00 | T25: =IF(P25>0,IF(AND(Rallye!D69<>"",Rallye!D69<>"Section"),T24+P25,),T24) -> 18:40:00 | U25: =IF(AND(Rallye!D69<>"",Rallye!D69<>"Section"),T25+$U$10,) -> 20:04:00 | V25: =IF(AND(Rallye!D69<>"",Rallye!D69<>"Section"),U25+$V$10,) -> 20:06:00
B26: =Rallye!B70 -> C.H. : | C26: =Rallye!C70 -> 3C | D26: =Rallye!D70 -> Entrée Assist (Stade St Yriex) | E26: =IF(AND(Rallye!D70<>"",Rallye!D70<>"Section"),($Q26-E$10),) -> 16:56:00 | F26: =IF(AND(Rallye!D70<>"",Rallye!D70<>"Section"),($Q26-F$10),) -> 17:11:00 | G26: =IF(AND(Rallye!D70<>"",Rallye!D70<>"Section"),($Q26-G$10),) -> 17:26:00 | H26: =IF(AND(Rallye!D70<>"",Rallye!D70<>"Section"),($Q26-H$10),) -> 17:46:00 | I26: =IF(AND(Rallye!D70<>"",Rallye!D70<>"Section"),($Q26-I$10),) -> 17:47:00 | J26: =IF(AND(Rallye!D70<>"",Rallye!D70<>"Section"),($Q26-J$10),) -> 17:48:00 | K26: =IF(AND(Rallye!D70<>"",Rallye!D70<>"Section"),($Q26-K$10),) -> 17:49:00 | L26: =IF(AND(Rallye!D70<>"",Rallye!D70<>"Section"),($Q26-L$10),) -> 17:56:00 | M26: =IF(AND(Rallye!D70<>"",Rallye!D70<>"Section"),($Q26-M$10),) -> 18:01:00 | N26: =IF(AND(Rallye!D70<>"",Rallye!D70<>"Section"),($Q26-N$10),) -> 18:11:00 | O26: =IF(AND(Rallye!D70<>"",Rallye!D70<>"Section"),($Q26-O$10),) -> 18:16:00 | P26: =Rallye!F69 -> 00:05:00 | Q26: =IF(P26>0,IF(OR(Rallye!D70<>"",Rallye!D70<>"Section"),Q25+P26,),Q25) -> 18:26:00 | R26: =IF(Q26>0,IF(AND(Rallye!D70<>"",Rallye!D70<>"Section"),Q26+T_Etp1_VHC+T_inf_Mod,),0) -> 18:30:00 | S26: =IF(Q26>0,IF(AND(Rallye!D70<>"",Rallye!D70<>"Section"),R26+T_0_Mod,),0) -> 18:35:00 | T26: =IF(P26>0,IF(AND(Rallye!D70<>"",Rallye!D70<>"Section"),T25+P26,),T25) -> 18:45:00 | U26: =IF(AND(Rallye!D70<>"",Rallye!D70<>"Section"),T26+$U$10,) -> 20:09:00 | V26: =IF(AND(Rallye!D70<>"",Rallye!D70<>"Section"),U26+$V$10,) -> 20:11:00
B27: =Rallye!B71 -> C.H. : | C27: =Rallye!C71 -> 3D | D27: =Rallye!D71 -> Sortie Assistance | E27: =IF(AND(Rallye!D71<>"",Rallye!D71<>"Section"),($Q27-E$10),) -> 17:26:00 | F27: =IF(AND(Rallye!D71<>"",Rallye!D71<>"Section"),($Q27-F$10),) -> 17:41:00 | G27: =IF(AND(Rallye!D71<>"",Rallye!D71<>"Section"),($Q27-G$10),) -> 17:56:00 | H27: =IF(AND(Rallye!D71<>"",Rallye!D71<>"Section"),($Q27-H$10),) -> 18:16:00 | I27: =IF(AND(Rallye!D71<>"",Rallye!D71<>"Section"),($Q27-I$10),) -> 18:17:00 | J27: =IF(AND(Rallye!D71<>"",Rallye!D71<>"Section"),($Q27-J$10),) -> 18:18:00 | K27: =IF(AND(Rallye!D71<>"",Rallye!D71<>"Section"),($Q27-K$10),) -> 18:19:00 | L27: =IF(AND(Rallye!D71<>"",Rallye!D71<>"Section"),($Q27-L$10),) -> 18:26:00 | M27: =IF(AND(Rallye!D71<>"",Rallye!D71<>"Section"),($Q27-M$10),) -> 18:31:00 | N27: =IF(AND(Rallye!D71<>"",Rallye!D71<>"Section"),($Q27-N$10),) -> 18:41:00 | O27: =IF(AND(Rallye!D71<>"",Rallye!D71<>"Section"),($Q27-O$10),) -> 18:46:00 | P27: =Rallye!F70 -> 00:30:00 | Q27: =IF(P27>0,IF(OR(Rallye!D71<>"",Rallye!D71<>"Section"),Q26+P27,),Q26) -> 18:56:00 | R27: =IF(Q27>0,IF(AND(Rallye!D71<>"",Rallye!D71<>"Section"),Q27+T_Etp1_VHC+T_inf_Mod,),0) -> 19:00:00 | S27: =IF(Q27>0,IF(AND(Rallye!D71<>"",Rallye!D71<>"Section"),R27+T_0_Mod,),0) -> 19:05:00 | T27: =IF(P27>0,IF(AND(Rallye!D71<>"",Rallye!D71<>"Section"),T26+P27,),T26) -> 19:15:00 | U27: =IF(AND(Rallye!D71<>"",Rallye!D71<>"Section"),T27+$U$10,) -> 20:39:00 | V27: =IF(AND(Rallye!D71<>"",Rallye!D71<>"Section"),U27+$V$10,) -> 20:41:00
B28: =Rallye!B72 -> C.H. : | C28: =Rallye!C72 -> 4 | D28: =Rallye!D72 -> Avant Départ ES 4 | E28: =IF(AND(Rallye!D72<>"",Rallye!D72<>"Section"),($Q28-E$10),) -> 17:38:00 | F28: =IF(AND(Rallye!D72<>"",Rallye!D72<>"Section"),($Q28-F$10),) -> 17:53:00 | G28: =IF(AND(Rallye!D72<>"",Rallye!D72<>"Section"),($Q28-G$10),) -> 18:08:00 | H28: =IF(AND(Rallye!D72<>"",Rallye!D72<>"Section"),($Q28-H$10),) -> 18:28:00 | I28: =IF(AND(Rallye!D72<>"",Rallye!D72<>"Section"),($Q28-I$10),) -> 18:29:00 | J28: =IF(AND(Rallye!D72<>"",Rallye!D72<>"Section"),($Q28-J$10),) -> 18:30:00 | K28: =IF(AND(Rallye!D72<>"",Rallye!D72<>"Section"),($Q28-K$10),) -> 18:31:00 | L28: =IF(AND(Rallye!D72<>"",Rallye!D72<>"Section"),($Q28-L$10),) -> 18:38:00 | M28: =IF(AND(Rallye!D72<>"",Rallye!D72<>"Section"),($Q28-M$10),) -> 18:43:00 | N28: =IF(AND(Rallye!D72<>"",Rallye!D72<>"Section"),($Q28-N$10),) -> 18:53:00 | O28: =IF(AND(Rallye!D72<>"",Rallye!D72<>"Section"),($Q28-O$10),) -> 18:58:00 | P28: =Rallye!F71 -> 00:12:00 | Q28: =IF(P28>0,IF(OR(Rallye!D72<>"",Rallye!D72<>"Section"),Q27+P28,),Q27) -> 19:08:00 | R28: =IF(Q28>0,IF(AND(Rallye!D72<>"",Rallye!D72<>"Section"),Q28+T_Etp1_VHC+T_inf_Mod,),0) -> 19:12:00 | S28: =IF(Q28>0,IF(AND(Rallye!D72<>"",Rallye!D72<>"Section"),R28+T_0_Mod,),0) -> 19:17:00 | T28: =IF(P28>0,IF(AND(Rallye!D72<>"",Rallye!D72<>"Section"),T27+P28,),T27) -> 19:27:00 | U28: =IF(AND(Rallye!D72<>"",Rallye!D72<>"Section"),T28+$U$10,) -> 20:51:00 | V28: =IF(AND(Rallye!D72<>"",Rallye!D72<>"Section"),U28+$V$10,) -> 20:53:00
B29: =Rallye!B73 -> Départ E.S. : | C29: =Rallye!C73 -> 4 | D29: =Rallye!D73 -> Le BOCAGE 2 (11,5 Kms) | E29: =IF(AND(Rallye!D73<>"",Rallye!D73<>"Section"),($Q29-E$10),) -> 17:41:00 | F29: =IF(AND(Rallye!D73<>"",Rallye!D73<>"Section"),($Q29-F$10),) -> 17:56:00 | G29: =IF(AND(Rallye!D73<>"",Rallye!D73<>"Section"),($Q29-G$10),) -> 18:11:00 | H29: =IF(AND(Rallye!D73<>"",Rallye!D73<>"Section"),($Q29-H$10),) -> 18:31:00 | I29: =IF(AND(Rallye!D73<>"",Rallye!D73<>"Section"),($Q29-I$10),) -> 18:32:00 | J29: =IF(AND(Rallye!D73<>"",Rallye!D73<>"Section"),($Q29-J$10),) -> 18:33:00 | K29: =IF(AND(Rallye!D73<>"",Rallye!D73<>"Section"),($Q29-K$10),) -> 18:34:00 | L29: =IF(AND(Rallye!D73<>"",Rallye!D73<>"Section"),($Q29-L$10),) -> 18:41:00 | M29: =IF(AND(Rallye!D73<>"",Rallye!D73<>"Section"),($Q29-M$10),) -> 18:46:00 | N29: =IF(AND(Rallye!D73<>"",Rallye!D73<>"Section"),($Q29-N$10),) -> 18:56:00 | O29: =IF(AND(Rallye!D73<>"",Rallye!D73<>"Section"),($Q29-O$10),) -> 19:01:00 | P29: =Rallye!F72 -> 00:03:00 | Q29: =IF(P29>0,IF(OR(Rallye!D73<>"",Rallye!D73<>"Section"),Q28+P29,),Q28) -> 19:11:00 | R29: =IF(Q29>0,IF(AND(Rallye!D73<>"",Rallye!D73<>"Section"),Q29+T_Etp1_VHC+T_inf_Mod,),0) -> 19:15:00 | S29: =IF(Q29>0,IF(AND(Rallye!D73<>"",Rallye!D73<>"Section"),R29+T_0_Mod,),0) -> 19:20:00 | T29: =IF(P29>0,IF(AND(Rallye!D73<>"",Rallye!D73<>"Section"),T28+P29,),T28) -> 19:30:00 | U29: =IF(AND(Rallye!D73<>"",Rallye!D73<>"Section"),T29+$U$10,) -> 20:54:00 | V29: =IF(AND(Rallye!D73<>"",Rallye!D73<>"Section"),U29+$V$10,) -> 20:56:00
B30: =Rallye!B74 -> Arriv. E.S. : | C30: =Rallye!C74 -> 4 | D30: =Rallye!D74 -> 0 | E30: =IF(AND(Rallye!D74<>"",Rallye!D74<>"Section"),($Q30-E$10),) -> 00:00:00 | F30: =IF(AND(Rallye!D74<>"",Rallye!D74<>"Section"),($Q30-F$10),) -> 00:00:00 | G30: =IF(AND(Rallye!D74<>"",Rallye!D74<>"Section"),($Q30-G$10),) -> 00:00:00 | H30: =IF(AND(Rallye!D74<>"",Rallye!D74<>"Section"),($Q30-H$10),) -> 00:00:00 | I30: =IF(AND(Rallye!D74<>"",Rallye!D74<>"Section"),($Q30-I$10),) -> 00:00:00 | J30: =IF(AND(Rallye!D74<>"",Rallye!D74<>"Section"),($Q30-J$10),) -> 00:00:00 | K30: =IF(AND(Rallye!D74<>"",Rallye!D74<>"Section"),($Q30-K$10),) -> 00:00:00 | L30: =IF(AND(Rallye!D74<>"",Rallye!D74<>"Section"),($Q30-L$10),) -> 00:00:00 | M30: =IF(AND(Rallye!D74<>"",Rallye!D74<>"Section"),($Q30-M$10),) -> 00:00:00 | N30: =IF(AND(Rallye!D74<>"",Rallye!D74<>"Section"),($Q30-N$10),) -> 00:00:00 | O30: =IF(AND(Rallye!D74<>"",Rallye!D74<>"Section"),($Q30-O$10),) -> 00:00:00 | P30: =Rallye!F73 -> 00:00:00 | Q30: =IF(P30>0,IF(OR(Rallye!D74<>"",Rallye!D74<>"Section"),Q29+P30,),Q29) -> 19:11:00 | R30: =IF(Q30>0,IF(AND(Rallye!D74<>"",Rallye!D74<>"Section"),Q30+T_Etp1_VHC+T_inf_Mod,),0) -> 00:00:00 | S30: =IF(Q30>0,IF(AND(Rallye!D74<>"",Rallye!D74<>"Section"),R30+T_0_Mod,),0) -> 00:00:00 | T30: =IF(P30>0,IF(AND(Rallye!D74<>"",Rallye!D74<>"Section"),T29+P30,),T29) -> 19:30:00 | U30: =IF(AND(Rallye!D74<>"",Rallye!D74<>"Section"),T30+$U$10,) -> 00:00:00 | V30: =IF(AND(Rallye!D74<>"",Rallye!D74<>"Section"),U30+$V$10,) -> 00:00:00
B31: =Rallye!B75 -> C.H. : | C31: =Rallye!C75 -> 5 | D31: =Rallye!D75 -> Avant Départ ES 5 | E31: =IF(AND(Rallye!D75<>"",Rallye!D75<>"Section"),($Q31-E$10),) -> 18:21:00 | F31: =IF(AND(Rallye!D75<>"",Rallye!D75<>"Section"),($Q31-F$10),) -> 18:36:00 | G31: =IF(AND(Rallye!D75<>"",Rallye!D75<>"Section"),($Q31-G$10),) -> 18:51:00 | H31: =IF(AND(Rallye!D75<>"",Rallye!D75<>"Section"),($Q31-H$10),) -> 19:11:00 | I31: =IF(AND(Rallye!D75<>"",Rallye!D75<>"Section"),($Q31-I$10),) -> 19:12:00 | J31: =IF(AND(Rallye!D75<>"",Rallye!D75<>"Section"),($Q31-J$10),) -> 19:13:00 | K31: =IF(AND(Rallye!D75<>"",Rallye!D75<>"Section"),($Q31-K$10),) -> 19:14:00 | L31: =IF(AND(Rallye!D75<>"",Rallye!D75<>"Section"),($Q31-L$10),) -> 19:21:00 | M31: =IF(AND(Rallye!D75<>"",Rallye!D75<>"Section"),($Q31-M$10),) -> 19:26:00 | N31: =IF(AND(Rallye!D75<>"",Rallye!D75<>"Section"),($Q31-N$10),) -> 19:36:00 | O31: =IF(AND(Rallye!D75<>"",Rallye!D75<>"Section"),($Q31-O$10),) -> 19:41:00 | P31: =Rallye!F74 -> 00:40:00 | Q31: =IF(P31>0,IF(OR(Rallye!D75<>"",Rallye!D75<>"Section"),Q30+P31,),Q30) -> 19:51:00 | R31: =IF(Q31>0,IF(AND(Rallye!D75<>"",Rallye!D75<>"Section"),Q31+T_Etp1_VHC+T_inf_Mod,),0) -> 19:55:00 | S31: =IF(Q31>0,IF(AND(Rallye!D75<>"",Rallye!D75<>"Section"),R31+T_0_Mod,),0) -> 20:00:00 | T31: =IF(P31>0,IF(AND(Rallye!D75<>"",Rallye!D75<>"Section"),T30+P31,),T30) -> 20:10:00 | U31: =IF(AND(Rallye!D75<>"",Rallye!D75<>"Section"),T31+$U$10,) -> 21:34:00 | V31: =IF(AND(Rallye!D75<>"",Rallye!D75<>"Section"),U31+$V$10,) -> 21:36:00
B32: =Rallye!B76 -> Départ E.S. : | C32: =Rallye!C76 -> 5 | D32: =Rallye!D76 -> Le TINDEIX 2 (8,75 Kms) | E32: =IF(AND(Rallye!D76<>"",Rallye!D76<>"Section"),($Q32-E$10),) -> 18:24:00 | F32: =IF(AND(Rallye!D76<>"",Rallye!D76<>"Section"),($Q32-F$10),) -> 18:39:00 | G32: =IF(AND(Rallye!D76<>"",Rallye!D76<>"Section"),($Q32-G$10),) -> 18:54:00 | H32: =IF(AND(Rallye!D76<>"",Rallye!D76<>"Section"),($Q32-H$10),) -> 19:14:00 | I32: =IF(AND(Rallye!D76<>"",Rallye!D76<>"Section"),($Q32-I$10),) -> 19:15:00 | J32: =IF(AND(Rallye!D76<>"",Rallye!D76<>"Section"),($Q32-J$10),) -> 19:16:00 | K32: =IF(AND(Rallye!D76<>"",Rallye!D76<>"Section"),($Q32-K$10),) -> 19:17:00 | L32: =IF(AND(Rallye!D76<>"",Rallye!D76<>"Section"),($Q32-L$10),) -> 19:24:00 | M32: =IF(AND(Rallye!D76<>"",Rallye!D76<>"Section"),($Q32-M$10),) -> 19:29:00 | N32: =IF(AND(Rallye!D76<>"",Rallye!D76<>"Section"),($Q32-N$10),) -> 19:39:00 | O32: =IF(AND(Rallye!D76<>"",Rallye!D76<>"Section"),($Q32-O$10),) -> 19:44:00 | P32: =Rallye!F75 -> 00:03:00 | Q32: =IF(P32>0,IF(OR(Rallye!D76<>"",Rallye!D76<>"Section"),Q31+P32,),Q31) -> 19:54:00 | R32: =IF(Q32>0,IF(AND(Rallye!D76<>"",Rallye!D76<>"Section"),Q32+T_Etp1_VHC+T_inf_Mod,),0) -> 19:58:00 | S32: =IF(Q32>0,IF(AND(Rallye!D76<>"",Rallye!D76<>"Section"),R32+T_0_Mod,),0) -> 20:03:00 | T32: =IF(P32>0,IF(AND(Rallye!D76<>"",Rallye!D76<>"Section"),T31+P32,),T31) -> 20:13:00 | U32: =IF(AND(Rallye!D76<>"",Rallye!D76<>"Section"),T32+$U$10,) -> 21:37:00 | V32: =IF(AND(Rallye!D76<>"",Rallye!D76<>"Section"),U32+$V$10,) -> 21:39:00
B33: =Rallye!B77 -> Arriv. E.S. : | C33: =Rallye!C77 -> 5 | D33: =Rallye!D77 -> 0 | E33: =IF(AND(Rallye!D77<>"",Rallye!D77<>"Section"),($Q33-E$10),) -> 00:00:00 | F33: =IF(AND(Rallye!D77<>"",Rallye!D77<>"Section"),($Q33-F$10),) -> 00:00:00 | G33: =IF(AND(Rallye!D77<>"",Rallye!D77<>"Section"),($Q33-G$10),) -> 00:00:00 | H33: =IF(AND(Rallye!D77<>"",Rallye!D77<>"Section"),($Q33-H$10),) -> 00:00:00 | I33: =IF(AND(Rallye!D77<>"",Rallye!D77<>"Section"),($Q33-I$10),) -> 00:00:00 | J33: =IF(AND(Rallye!D77<>"",Rallye!D77<>"Section"),($Q33-J$10),) -> 00:00:00 | K33: =IF(AND(Rallye!D77<>"",Rallye!D77<>"Section"),($Q33-K$10),) -> 00:00:00 | L33: =IF(AND(Rallye!D77<>"",Rallye!D77<>"Section"),($Q33-L$10),) -> 00:00:00 | M33: =IF(AND(Rallye!D77<>"",Rallye!D77<>"Section"),($Q33-M$10),) -> 00:00:00 | N33: =IF(AND(Rallye!D77<>"",Rallye!D77<>"Section"),($Q33-N$10),) -> 00:00:00 | O33: =IF(AND(Rallye!D77<>"",Rallye!D77<>"Section"),($Q33-O$10),) -> 00:00:00 | P33: =Rallye!F76 -> 00:00:00 | Q33: =IF(P33>0,IF(OR(Rallye!D77<>"",Rallye!D77<>"Section"),Q32+P33,),Q32) -> 19:54:00 | R33: =IF(Q33>0,IF(AND(Rallye!D77<>"",Rallye!D77<>"Section"),Q33+T_Etp1_VHC+T_inf_Mod,),0) -> 00:00:00 | S33: =IF(Q33>0,IF(AND(Rallye!D77<>"",Rallye!D77<>"Section"),R33+T_0_Mod,),0) -> 00:00:00 | T33: =IF(P33>0,IF(AND(Rallye!D77<>"",Rallye!D77<>"Section"),T32+P33,),T32) -> 20:13:00 | U33: =IF(AND(Rallye!D77<>"",Rallye!D77<>"Section"),T33+$U$10,) -> 00:00:00 | V33: =IF(AND(Rallye!D77<>"",Rallye!D77<>"Section"),U33+$V$10,) -> 00:00:00
B34: =Rallye!B78 -> C.H. : | C34: =Rallye!C78 -> 6 | D34: =Rallye!D78 -> Avant Départ ES 6 | E34: =IF(AND(Rallye!D78<>"",Rallye!D78<>"Section"),($Q34-E$10),) -> 19:04:00 | F34: =IF(AND(Rallye!D78<>"",Rallye!D78<>"Section"),($Q34-F$10),) -> 19:19:00 | G34: =IF(AND(Rallye!D78<>"",Rallye!D78<>"Section"),($Q34-G$10),) -> 19:34:00 | H34: =IF(AND(Rallye!D78<>"",Rallye!D78<>"Section"),($Q34-H$10),) -> 19:54:00 | I34: =IF(AND(Rallye!D78<>"",Rallye!D78<>"Section"),($Q34-I$10),) -> 19:55:00 | J34: =IF(AND(Rallye!D78<>"",Rallye!D78<>"Section"),($Q34-J$10),) -> 19:56:00 | K34: =IF(AND(Rallye!D78<>"",Rallye!D78<>"Section"),($Q34-K$10),) -> 19:57:00 | L34: =IF(AND(Rallye!D78<>"",Rallye!D78<>"Section"),($Q34-L$10),) -> 20:04:00 | M34: =IF(AND(Rallye!D78<>"",Rallye!D78<>"Section"),($Q34-M$10),) -> 20:09:00 | N34: =IF(AND(Rallye!D78<>"",Rallye!D78<>"Section"),($Q34-N$10),) -> 20:19:00 | O34: =IF(AND(Rallye!D78<>"",Rallye!D78<>"Section"),($Q34-O$10),) -> 20:24:00 | P34: =Rallye!F77 -> 00:40:00 | Q34: =IF(P34>0,IF(OR(Rallye!D78<>"",Rallye!D78<>"Section"),Q33+P34,),Q33) -> 20:34:00 | R34: =IF(Q34>0,IF(AND(Rallye!D78<>"",Rallye!D78<>"Section"),Q34+T_Etp1_VHC+T_inf_Mod,),0) -> 20:38:00 | S34: =IF(Q34>0,IF(AND(Rallye!D78<>"",Rallye!D78<>"Section"),R34+T_0_Mod,),0) -> 20:43:00 | T34: =IF(P34>0,IF(AND(Rallye!D78<>"",Rallye!D78<>"Section"),T33+P34,),T33) -> 20:53:00 | U34: =IF(AND(Rallye!D78<>"",Rallye!D78<>"Section"),T34+$U$10,) -> 22:17:00 | V34: =IF(AND(Rallye!D78<>"",Rallye!D78<>"Section"),U34+$V$10,) -> 22:19:00
B35: =Rallye!B79 -> Départ E.S. : | C35: =Rallye!C79 -> 6 | D35: =Rallye!D79 -> Les PALLOUX 2 (10,80 Kms) | E35: =IF(AND(Rallye!D79<>"",Rallye!D79<>"Section"),($Q35-E$10),) -> 19:07:00 | F35: =IF(AND(Rallye!D79<>"",Rallye!D79<>"Section"),($Q35-F$10),) -> 19:22:00 | G35: =IF(AND(Rallye!D79<>"",Rallye!D79<>"Section"),($Q35-G$10),) -> 19:37:00 | H35: =IF(AND(Rallye!D79<>"",Rallye!D79<>"Section"),($Q35-H$10),) -> 19:57:00 | I35: =IF(AND(Rallye!D79<>"",Rallye!D79<>"Section"),($Q35-I$10),) -> 19:58:00 | J35: =IF(AND(Rallye!D79<>"",Rallye!D79<>"Section"),($Q35-J$10),) -> 19:59:00 | K35: =IF(AND(Rallye!D79<>"",Rallye!D79<>"Section"),($Q35-K$10),) -> 20:00:00 | L35: =IF(AND(Rallye!D79<>"",Rallye!D79<>"Section"),($Q35-L$10),) -> 20:07:00 | M35: =IF(AND(Rallye!D79<>"",Rallye!D79<>"Section"),($Q35-M$10),) -> 20:12:00 | N35: =IF(AND(Rallye!D79<>"",Rallye!D79<>"Section"),($Q35-N$10),) -> 20:22:00 | O35: =IF(AND(Rallye!D79<>"",Rallye!D79<>"Section"),($Q35-O$10),) -> 20:27:00 | P35: =Rallye!F78 -> 00:03:00 | Q35: =IF(P35>0,IF(OR(Rallye!D79<>"",Rallye!D79<>"Section"),Q34+P35,),Q34) -> 20:37:00 | R35: =IF(Q35>0,IF(AND(Rallye!D79<>"",Rallye!D79<>"Section"),Q35+T_Etp1_VHC+T_inf_Mod,),0) -> 20:41:00 | S35: =IF(Q35>0,IF(AND(Rallye!D79<>"",Rallye!D79<>"Section"),R35+T_0_Mod,),0) -> 20:46:00 | T35: =IF(P35>0,IF(AND(Rallye!D79<>"",Rallye!D79<>"Section"),T34+P35,),T34) -> 20:56:00 | U35: =IF(AND(Rallye!D79<>"",Rallye!D79<>"Section"),T35+$U$10,) -> 22:20:00 | V35: =IF(AND(Rallye!D79<>"",Rallye!D79<>"Section"),U35+$V$10,) -> 22:22:00
B36: =Rallye!B80 -> Arriv. E.S. : | C36: =Rallye!C80 -> 6 | D36: =Rallye!D80 -> 0 | E36: =IF(AND(Rallye!D80<>"",Rallye!D80<>"Section"),($Q36-E$10),) -> 00:00:00 | F36: =IF(AND(Rallye!D80<>"",Rallye!D80<>"Section"),($Q36-F$10),) -> 00:00:00 | G36: =IF(AND(Rallye!D80<>"",Rallye!D80<>"Section"),($Q36-G$10),) -> 00:00:00 | H36: =IF(AND(Rallye!D80<>"",Rallye!D80<>"Section"),($Q36-H$10),) -> 00:00:00 | I36: =IF(AND(Rallye!D80<>"",Rallye!D80<>"Section"),($Q36-I$10),) -> 00:00:00 | J36: =IF(AND(Rallye!D80<>"",Rallye!D80<>"Section"),($Q36-J$10),) -> 00:00:00 | K36: =IF(AND(Rallye!D80<>"",Rallye!D80<>"Section"),($Q36-K$10),) -> 00:00:00 | L36: =IF(AND(Rallye!D80<>"",Rallye!D80<>"Section"),($Q36-L$10),) -> 00:00:00 | M36: =IF(AND(Rallye!D80<>"",Rallye!D80<>"Section"),($Q36-M$10),) -> 00:00:00 | N36: =IF(AND(Rallye!D80<>"",Rallye!D80<>"Section"),($Q36-N$10),) -> 00:00:00 | O36: =IF(AND(Rallye!D80<>"",Rallye!D80<>"Section"),($Q36-O$10),) -> 00:00:00 | P36: =Rallye!F79 -> 00:00:00 | Q36: =IF(P36>0,IF(OR(Rallye!D80<>"",Rallye!D80<>"Section"),Q35+P36,),Q35) -> 20:37:00 | R36: =IF(Q36>0,IF(AND(Rallye!D80<>"",Rallye!D80<>"Section"),Q36+T_Etp1_VHC+T_inf_Mod,),0) -> 00:00:00 | S36: =IF(Q36>0,IF(AND(Rallye!D80<>"",Rallye!D80<>"Section"),R36+T_0_Mod,),0) -> 00:00:00 | T36: =IF(P36>0,IF(AND(Rallye!D80<>"",Rallye!D80<>"Section"),T35+P36,),T35) -> 20:56:00 | U36: =IF(AND(Rallye!D80<>"",Rallye!D80<>"Section"),T36+$U$10,) -> 00:00:00 | V36: =IF(AND(Rallye!D80<>"",Rallye!D80<>"Section"),U36+$V$10,) -> 00:00:00
B37: =Rallye!B81 -> C.H. : | C37: =Rallye!C81 -> 6A | D37: =Rallye!D81 -> Entrée Parc Fermé Fin Etape | E37: =IF(AND(Rallye!D81<>"",Rallye!D81<>"Section"),($Q37-E$10),) -> 19:37:00 | F37: =IF(AND(Rallye!D81<>"",Rallye!D81<>"Section"),($Q37-F$10),) -> 19:52:00 | G37: =IF(AND(Rallye!D81<>"",Rallye!D81<>"Section"),($Q37-G$10),) -> 20:07:00 | H37: =IF(AND(Rallye!D81<>"",Rallye!D81<>"Section"),($Q37-H$10),) -> 20:27:00 | I37: =IF(AND(Rallye!D81<>"",Rallye!D81<>"Section"),($Q37-I$10),) -> 20:28:00 | J37: =IF(AND(Rallye!D81<>"",Rallye!D81<>"Section"),($Q37-J$10),) -> 20:29:00 | K37: =IF(AND(Rallye!D81<>"",Rallye!D81<>"Section"),($Q37-K$10),) -> 20:30:00 | L37: =IF(AND(Rallye!D81<>"",Rallye!D81<>"Section"),($Q37-L$10),) -> 20:37:00 | M37: =IF(AND(Rallye!D81<>"",Rallye!D81<>"Section"),($Q37-M$10),) -> 20:42:00 | N37: =IF(AND(Rallye!D81<>"",Rallye!D81<>"Section"),($Q37-N$10),) -> 20:52:00 | O37: =IF(AND(Rallye!D81<>"",Rallye!D81<>"Section"),($Q37-O$10),) -> 20:57:00 | P37: =Rallye!F80 -> 00:30:00 | Q37: =IF(P37>0,IF(OR(Rallye!D81<>"",Rallye!D81<>"Section"),Q36+P37,),Q36) -> 21:07:00 | R37: =IF(Q37>0,IF(AND(Rallye!D81<>"",Rallye!D81<>"Section"),Q37+T_Etp1_VHC+T_inf_Mod,),0) -> 21:11:00 | S37: =IF(Q37>0,IF(AND(Rallye!D81<>"",Rallye!D81<>"Section"),R37+T_0_Mod,),0) -> 21:16:00 | T37: =IF(P37>0,IF(AND(Rallye!D81<>"",Rallye!D81<>"Section"),T36+P37,),T36) -> 21:26:00 | U37: =IF(AND(Rallye!D81<>"",Rallye!D81<>"Section"),T37+$U$10,) -> 22:50:00 | V37: =IF(AND(Rallye!D81<>"",Rallye!D81<>"Section"),U37+$V$10,) -> 22:52:00
B38: =Rallye!B82 -> 0 | C38: =Rallye!C82 -> 0 | D38: =Rallye!D82 -> 0 | E38: =IF(AND(Rallye!D82<>"",Rallye!D82<>"Section"),($Q38-E$10),) -> 00:00:00 | F38: =IF(AND(Rallye!D82<>"",Rallye!D82<>"Section"),($Q38-F$10),) -> 00:00:00 | G38: =IF(AND(Rallye!D82<>"",Rallye!D82<>"Section"),($Q38-G$10),) -> 00:00:00 | H38: =IF(AND(Rallye!D82<>"",Rallye!D82<>"Section"),($Q38-H$10),) -> 00:00:00 | I38: =IF(AND(Rallye!D82<>"",Rallye!D82<>"Section"),($Q38-I$10),) -> 00:00:00 | J38: =IF(AND(Rallye!D82<>"",Rallye!D82<>"Section"),($Q38-J$10),) -> 00:00:00 | K38: =IF(AND(Rallye!D82<>"",Rallye!D82<>"Section"),($Q38-K$10),) -> 00:00:00 | L38: =IF(AND(Rallye!D82<>"",Rallye!D82<>"Section"),($Q38-L$10),) -> 00:00:00 | M38: =IF(AND(Rallye!D82<>"",Rallye!D82<>"Section"),($Q38-M$10),) -> 00:00:00 | N38: =IF(AND(Rallye!D82<>"",Rallye!D82<>"Section"),($Q38-N$10),) -> 00:00:00 | O38: =IF(AND(Rallye!D82<>"",Rallye!D82<>"Section"),($Q38-O$10),) -> 00:00:00 | P38: =Rallye!F81 -> 00:00:00 | Q38: =IF(P38>0,IF(OR(Rallye!D82<>"",Rallye!D82<>"Section"),Q37+P38,),Q37) -> 21:07:00 | R38: =IF(Q38>0,IF(AND(Rallye!D82<>"",Rallye!D82<>"Section"),Q38+T_Etp1_VHC+T_inf_Mod,),0) -> 00:00:00 | S38: =IF(Q38>0,IF(AND(Rallye!D82<>"",Rallye!D82<>"Section"),R38+T_0_Mod,),0) -> 00:00:00 | T38: =IF(P38>0,IF(AND(Rallye!D82<>"",Rallye!D82<>"Section"),T37+P38,),T37) -> 21:26:00 | U38: =IF(AND(Rallye!D82<>"",Rallye!D82<>"Section"),T38+$U$10,) -> 00:00:00 | V38: =IF(AND(Rallye!D82<>"",Rallye!D82<>"Section"),U38+$V$10,) -> 00:00:00
B39: =Rallye!B83 -> 0 | C39: =Rallye!C83 -> 0 | D39: =Rallye!D83 -> 0 | E39: =IF(AND(Rallye!D83<>"",Rallye!D83<>"Section"),($Q39-E$10),) -> 00:00:00 | F39: =IF(AND(Rallye!D83<>"",Rallye!D83<>"Section"),($Q39-F$10),) -> 00:00:00 | G39: =IF(AND(Rallye!D83<>"",Rallye!D83<>"Section"),($Q39-G$10),) -> 00:00:00 | H39: =IF(AND(Rallye!D83<>"",Rallye!D83<>"Section"),($Q39-H$10),) -> 00:00:00 | I39: =IF(AND(Rallye!D83<>"",Rallye!D83<>"Section"),($Q39-I$10),) -> 00:00:00 | J39: =IF(AND(Rallye!D83<>"",Rallye!D83<>"Section"),($Q39-J$10),) -> 00:00:00 | K39: =IF(AND(Rallye!D83<>"",Rallye!D83<>"Section"),($Q39-K$10),) -> 00:00:00 | L39: =IF(AND(Rallye!D83<>"",Rallye!D83<>"Section"),($Q39-L$10),) -> 00:00:00 | M39: =IF(AND(Rallye!D83<>"",Rallye!D83<>"Section"),($Q39-M$10),) -> 00:00:00 | N39: =IF(AND(Rallye!D83<>"",Rallye!D83<>"Section"),($Q39-N$10),) -> 00:00:00 | O39: =IF(AND(Rallye!D83<>"",Rallye!D83<>"Section"),($Q39-O$10),) -> 00:00:00 | P39: =Rallye!F82 -> 00:00:00 | Q39: =IF(P39>0,IF(OR(Rallye!D83<>"",Rallye!D83<>"Section"),Q38+P39,),Q38) -> 21:07:00 | R39: =IF(Q39>0,IF(AND(Rallye!D83<>"",Rallye!D83<>"Section"),Q39+T_Etp1_VHC+T_inf_Mod,),0) -> 00:00:00 | S39: =IF(Q39>0,IF(AND(Rallye!D83<>"",Rallye!D83<>"Section"),R39+T_0_Mod,),0) -> 00:00:00 | T39: =IF(P39>0,IF(AND(Rallye!D83<>"",Rallye!D83<>"Section"),T38+P39,),T38) -> 21:26:00 | U39: =IF(AND(Rallye!D83<>"",Rallye!D83<>"Section"),T39+$U$10,) -> 00:00:00 | V39: =IF(AND(Rallye!D83<>"",Rallye!D83<>"Section"),U39+$V$10,) -> 00:00:00
B40: =Rallye!B84 -> 0 | C40: =Rallye!C84 -> 0 | D40: =Rallye!D84 -> 0 | E40: =IF(AND(Rallye!D84<>"",Rallye!D84<>"Section"),($Q40-E$10),) -> 00:00:00 | F40: =IF(AND(Rallye!D84<>"",Rallye!D84<>"Section"),($Q40-F$10),) -> 00:00:00 | G40: =IF(AND(Rallye!D84<>"",Rallye!D84<>"Section"),($Q40-G$10),) -> 00:00:00 | H40: =IF(AND(Rallye!D84<>"",Rallye!D84<>"Section"),($Q40-H$10),) -> 00:00:00 | I40: =IF(AND(Rallye!D84<>"",Rallye!D84<>"Section"),($Q40-I$10),) -> 00:00:00 | J40: =IF(AND(Rallye!D84<>"",Rallye!D84<>"Section"),($Q40-J$10),) -> 00:00:00 | K40: =IF(AND(Rallye!D84<>"",Rallye!D84<>"Section"),($Q40-K$10),) -> 00:00:00 | L40: =IF(AND(Rallye!D84<>"",Rallye!D84<>"Section"),($Q40-L$10),) -> 00:00:00 | M40: =IF(AND(Rallye!D84<>"",Rallye!D84<>"Section"),($Q40-M$10),) -> 00:00:00 | N40: =IF(AND(Rallye!D84<>"",Rallye!D84<>"Section"),($Q40-N$10),) -> 00:00:00 | O40: =IF(AND(Rallye!D84<>"",Rallye!D84<>"Section"),($Q40-O$10),) -> 00:00:00 | P40: =Rallye!F83 -> 00:00:00 | Q40: =IF(P40>0,IF(OR(Rallye!D84<>"",Rallye!D84<>"Section"),Q39+P40,),Q39) -> 21:07:00 | R40: =IF(Q40>0,IF(AND(Rallye!D84<>"",Rallye!D84<>"Section"),Q40+T_Etp1_VHC+T_inf_Mod,),0) -> 00:00:00 | S40: =IF(Q40>0,IF(AND(Rallye!D84<>"",Rallye!D84<>"Section"),R40+T_0_Mod,),0) -> 00:00:00 | T40: =IF(P40>0,IF(AND(Rallye!D84<>"",Rallye!D84<>"Section"),T39+P40,),T39) -> 21:26:00 | U40: =IF(AND(Rallye!D84<>"",Rallye!D84<>"Section"),T40+$U$10,) -> 00:00:00 | V40: =IF(AND(Rallye!D84<>"",Rallye!D84<>"Section"),U40+$V$10,) -> 00:00:00
B41: =Rallye!B85 -> 0 | C41: =Rallye!C85 -> 0 | D41: =Rallye!D85 -> 0 | E41: =IF(AND(Rallye!D85<>"",Rallye!D85<>"Section"),($Q41-E$10),) -> 00:00:00 | F41: =IF(AND(Rallye!D85<>"",Rallye!D85<>"Section"),($Q41-F$10),) -> 00:00:00 | G41: =IF(AND(Rallye!D85<>"",Rallye!D85<>"Section"),($Q41-G$10),) -> 00:00:00 | H41: =IF(AND(Rallye!D85<>"",Rallye!D85<>"Section"),($Q41-H$10),) -> 00:00:00 | I41: =IF(AND(Rallye!D85<>"",Rallye!D85<>"Section"),($Q41-I$10),) -> 00:00:00 | J41: =IF(AND(Rallye!D85<>"",Rallye!D85<>"Section"),($Q41-J$10),) -> 00:00:00 | K41: =IF(AND(Rallye!D85<>"",Rallye!D85<>"Section"),($Q41-K$10),) -> 00:00:00 | L41: =IF(AND(Rallye!D85<>"",Rallye!D85<>"Section"),($Q41-L$10),) -> 00:00:00 | M41: =IF(AND(Rallye!D85<>"",Rallye!D85<>"Section"),($Q41-M$10),) -> 00:00:00 | N41: =IF(AND(Rallye!D85<>"",Rallye!D85<>"Section"),($Q41-N$10),) -> 00:00:00 | O41: =IF(AND(Rallye!D85<>"",Rallye!D85<>"Section"),($Q41-O$10),) -> 00:00:00 | P41: =Rallye!F84 -> 00:00:00 | Q41: =IF(P41>0,IF(OR(Rallye!D85<>"",Rallye!D85<>"Section"),Q40+P41,),Q40) -> 21:07:00 | R41: =IF(Q41>0,IF(AND(Rallye!D85<>"",Rallye!D85<>"Section"),Q41+T_Etp1_VHC+T_inf_Mod,),0) -> 00:00:00 | S41: =IF(Q41>0,IF(AND(Rallye!D85<>"",Rallye!D85<>"Section"),R41+T_0_Mod,),0) -> 00:00:00 | T41: =IF(P41>0,IF(AND(Rallye!D85<>"",Rallye!D85<>"Section"),T40+P41,),T40) -> 21:26:00 | U41: =IF(AND(Rallye!D85<>"",Rallye!D85<>"Section"),T41+$U$10,) -> 00:00:00 | V41: =IF(AND(Rallye!D85<>"",Rallye!D85<>"Section"),U41+$V$10,) -> 00:00:00
B42: =Rallye!B86 -> 0 | C42: =Rallye!C86 -> 0 | D42: =Rallye!D86 -> 0 | E42: =IF(AND(Rallye!D86<>"",Rallye!D86<>"Section"),($Q42-E$10),) -> 00:00:00 | F42: =IF(AND(Rallye!D86<>"",Rallye!D86<>"Section"),($Q42-F$10),) -> 00:00:00 | G42: =IF(AND(Rallye!D86<>"",Rallye!D86<>"Section"),($Q42-G$10),) -> 00:00:00 | H42: =IF(AND(Rallye!D86<>"",Rallye!D86<>"Section"),($Q42-H$10),) -> 00:00:00 | I42: =IF(AND(Rallye!D86<>"",Rallye!D86<>"Section"),($Q42-I$10),) -> 00:00:00 | J42: =IF(AND(Rallye!D86<>"",Rallye!D86<>"Section"),($Q42-J$10),) -> 00:00:00 | K42: =IF(AND(Rallye!D86<>"",Rallye!D86<>"Section"),($Q42-K$10),) -> 00:00:00 | L42: =IF(AND(Rallye!D86<>"",Rallye!D86<>"Section"),($Q42-L$10),) -> 00:00:00 | M42: =IF(AND(Rallye!D86<>"",Rallye!D86<>"Section"),($Q42-M$10),) -> 00:00:00 | N42: =IF(AND(Rallye!D86<>"",Rallye!D86<>"Section"),($Q42-N$10),) -> 00:00:00 | O42: =IF(AND(Rallye!D86<>"",Rallye!D86<>"Section"),($Q42-O$10),) -> 00:00:00 | P42: =Rallye!F85 -> 00:00:00 | Q42: =IF(P42>0,IF(OR(Rallye!D86<>"",Rallye!D86<>"Section"),Q41+P42,),Q41) -> 21:07:00 | R42: =IF(Q42>0,IF(AND(Rallye!D86<>"",Rallye!D86<>"Section"),Q42+T_Etp1_VHC+T_inf_Mod,),0) -> 00:00:00 | S42: =IF(Q42>0,IF(AND(Rallye!D86<>"",Rallye!D86<>"Section"),R42+T_0_Mod,),0) -> 00:00:00 | T42: =IF(P42>0,IF(AND(Rallye!D86<>"",Rallye!D86<>"Section"),T41+P42,),T41) -> 21:26:00 | U42: =IF(AND(Rallye!D86<>"",Rallye!D86<>"Section"),T42+$U$10,) -> 00:00:00 | V42: =IF(AND(Rallye!D86<>"",Rallye!D86<>"Section"),U42+$V$10,) -> 00:00:00
B43: =Rallye!B87 -> 0 | C43: =Rallye!C87 -> 0 | D43: =Rallye!D87 -> 0 | E43: =IF(AND(Rallye!D87<>"",Rallye!D87<>"Section"),($Q43-E$10),) -> 00:00:00 | F43: =IF(AND(Rallye!D87<>"",Rallye!D87<>"Section"),($Q43-F$10),) -> 00:00:00 | G43: =IF(AND(Rallye!D87<>"",Rallye!D87<>"Section"),($Q43-G$10),) -> 00:00:00 | H43: =IF(AND(Rallye!D87<>"",Rallye!D87<>"Section"),($Q43-H$10),) -> 00:00:00 | I43: =IF(AND(Rallye!D87<>"",Rallye!D87<>"Section"),($Q43-I$10),) -> 00:00:00 | J43: =IF(AND(Rallye!D87<>"",Rallye!D87<>"Section"),($Q43-J$10),) -> 00:00:00 | K43: =IF(AND(Rallye!D87<>"",Rallye!D87<>"Section"),($Q43-K$10),) -> 00:00:00 | L43: =IF(AND(Rallye!D87<>"",Rallye!D87<>"Section"),($Q43-L$10),) -> 00:00:00 | M43: =IF(AND(Rallye!D87<>"",Rallye!D87<>"Section"),($Q43-M$10),) -> 00:00:00 | N43: =IF(AND(Rallye!D87<>"",Rallye!D87<>"Section"),($Q43-N$10),) -> 00:00:00 | O43: =IF(AND(Rallye!D87<>"",Rallye!D87<>"Section"),($Q43-O$10),) -> 00:00:00 | P43: =Rallye!F86 -> 00:00:00 | Q43: =IF(P43>0,IF(OR(Rallye!D87<>"",Rallye!D87<>"Section"),Q42+P43,),Q42) -> 21:07:00 | R43: =IF(Q43>0,IF(AND(Rallye!D87<>"",Rallye!D87<>"Section"),Q43+T_Etp1_VHC+T_inf_Mod,),0) -> 00:00:00 | S43: =IF(Q43>0,IF(AND(Rallye!D87<>"",Rallye!D87<>"Section"),R43+T_0_Mod,),0) -> 00:00:00 | T43: =IF(P43>0,IF(AND(Rallye!D87<>"",Rallye!D87<>"Section"),T42+P43,),T42) -> 21:26:00 | U43: =IF(AND(Rallye!D87<>"",Rallye!D87<>"Section"),T43+$U$10,) -> 00:00:00 | V43: =IF(AND(Rallye!D87<>"",Rallye!D87<>"Section"),U43+$V$10,) -> 00:00:00
B44: =Rallye!B88 -> 0 | C44: =Rallye!C88 -> 0 | D44: =Rallye!D88 -> 0 | E44: =IF(AND(Rallye!D88<>"",Rallye!D88<>"Section"),($Q44-E$10),) -> 00:00:00 | F44: =IF(AND(Rallye!D88<>"",Rallye!D88<>"Section"),($Q44-F$10),) -> 00:00:00 | G44: =IF(AND(Rallye!D88<>"",Rallye!D88<>"Section"),($Q44-G$10),) -> 00:00:00 | H44: =IF(AND(Rallye!D88<>"",Rallye!D88<>"Section"),($Q44-H$10),) -> 00:00:00 | I44: =IF(AND(Rallye!D88<>"",Rallye!D88<>"Section"),($Q44-I$10),) -> 00:00:00 | J44: =IF(AND(Rallye!D88<>"",Rallye!D88<>"Section"),($Q44-J$10),) -> 00:00:00 | K44: =IF(AND(Rallye!D88<>"",Rallye!D88<>"Section"),($Q44-K$10),) -> 00:00:00 | L44: =IF(AND(Rallye!D88<>"",Rallye!D88<>"Section"),($Q44-L$10),) -> 00:00:00 | M44: =IF(AND(Rallye!D88<>"",Rallye!D88<>"Section"),($Q44-M$10),) -> 00:00:00 | N44: =IF(AND(Rallye!D88<>"",Rallye!D88<>"Section"),($Q44-N$10),) -> 00:00:00 | O44: =IF(AND(Rallye!D88<>"",Rallye!D88<>"Section"),($Q44-O$10),) -> 00:00:00 | P44: =Rallye!F87 -> 00:00:00 | Q44: =IF(P44>0,IF(OR(Rallye!D88<>"",Rallye!D88<>"Section"),Q43+P44,),Q43) -> 21:07:00 | R44: =IF(Q44>0,IF(AND(Rallye!D88<>"",Rallye!D88<>"Section"),Q44+T_Etp1_VHC+T_inf_Mod,),0) -> 00:00:00 | S44: =IF(Q44>0,IF(AND(Rallye!D88<>"",Rallye!D88<>"Section"),R44+T_0_Mod,),0) -> 00:00:00 | T44: =IF(P44>0,IF(AND(Rallye!D88<>"",Rallye!D88<>"Section"),T43+P44,),T43) -> 21:26:00 | U44: =IF(AND(Rallye!D88<>"",Rallye!D88<>"Section"),T44+$U$10,) -> 00:00:00 | V44: =IF(AND(Rallye!D88<>"",Rallye!D88<>"Section"),U44+$V$10,) -> 00:00:00
B45: =Rallye!B89 -> 0 | C45: =Rallye!C89 -> 0 | D45: =Rallye!D89 -> 0 | E45: =IF(AND(Rallye!D89<>"",Rallye!D89<>"Section"),($Q45-E$10),) -> 00:00:00 | F45: =IF(AND(Rallye!D89<>"",Rallye!D89<>"Section"),($Q45-F$10),) -> 00:00:00 | G45: =IF(AND(Rallye!D89<>"",Rallye!D89<>"Section"),($Q45-G$10),) -> 00:00:00 | H45: =IF(AND(Rallye!D89<>"",Rallye!D89<>"Section"),($Q45-H$10),) -> 00:00:00 | I45: =IF(AND(Rallye!D89<>"",Rallye!D89<>"Section"),($Q45-I$10),) -> 00:00:00 | J45: =IF(AND(Rallye!D89<>"",Rallye!D89<>"Section"),($Q45-J$10),) -> 00:00:00 | K45: =IF(AND(Rallye!D89<>"",Rallye!D89<>"Section"),($Q45-K$10),) -> 00:00:00 | L45: =IF(AND(Rallye!D89<>"",Rallye!D89<>"Section"),($Q45-L$10),) -> 00:00:00 | M45: =IF(AND(Rallye!D89<>"",Rallye!D89<>"Section"),($Q45-M$10),) -> 00:00:00 | N45: =IF(AND(Rallye!D89<>"",Rallye!D89<>"Section"),($Q45-N$10),) -> 00:00:00 | O45: =IF(AND(Rallye!D89<>"",Rallye!D89<>"Section"),($Q45-O$10),) -> 00:00:00 | P45: =Rallye!F88 -> 00:00:00 | Q45: =IF(P45>0,IF(OR(Rallye!D89<>"",Rallye!D89<>"Section"),Q44+P45,),Q44) -> 21:07:00 | R45: =IF(Q45>0,IF(AND(Rallye!D89<>"",Rallye!D89<>"Section"),Q45+T_Etp1_VHC+T_inf_Mod,),0) -> 00:00:00 | S45: =IF(Q45>0,IF(AND(Rallye!D89<>"",Rallye!D89<>"Section"),R45+T_0_Mod,),0) -> 00:00:00 | T45: =IF(P45>0,IF(AND(Rallye!D89<>"",Rallye!D89<>"Section"),T44+P45,),T44) -> 21:26:00 | U45: =IF(AND(Rallye!D89<>"",Rallye!D89<>"Section"),T45+$U$10,) -> 00:00:00 | V45: =IF(AND(Rallye!D89<>"",Rallye!D89<>"Section"),U45+$V$10,) -> 00:00:00
B46: =Rallye!B90 -> 0 | C46: =Rallye!C90 -> 0 | D46: =Rallye!D90 -> 0 | E46: =IF(AND(Rallye!D90<>"",Rallye!D90<>"Section"),($Q46-E$10),) -> 00:00:00 | F46: =IF(AND(Rallye!D90<>"",Rallye!D90<>"Section"),($Q46-F$10),) -> 00:00:00 | G46: =IF(AND(Rallye!D90<>"",Rallye!D90<>"Section"),($Q46-G$10),) -> 00:00:00 | H46: =IF(AND(Rallye!D90<>"",Rallye!D90<>"Section"),($Q46-H$10),) -> 00:00:00 | I46: =IF(AND(Rallye!D90<>"",Rallye!D90<>"Section"),($Q46-I$10),) -> 00:00:00 | J46: =IF(AND(Rallye!D90<>"",Rallye!D90<>"Section"),($Q46-J$10),) -> 00:00:00 | K46: =IF(AND(Rallye!D90<>"",Rallye!D90<>"Section"),($Q46-K$10),) -> 00:00:00 | L46: =IF(AND(Rallye!D90<>"",Rallye!D90<>"Section"),($Q46-L$10),) -> 00:00:00 | M46: =IF(AND(Rallye!D90<>"",Rallye!D90<>"Section"),($Q46-M$10),) -> 00:00:00 | N46: =IF(AND(Rallye!D90<>"",Rallye!D90<>"Section"),($Q46-N$10),) -> 00:00:00 | O46: =IF(AND(Rallye!D90<>"",Rallye!D90<>"Section"),($Q46-O$10),) -> 00:00:00 | P46: =Rallye!F89 -> 00:00:00 | Q46: =IF(P46>0,IF(OR(Rallye!D90<>"",Rallye!D90<>"Section"),Q45+P46,),Q45) -> 21:07:00 | R46: =IF(Q46>0,IF(AND(Rallye!D90<>"",Rallye!D90<>"Section"),Q46+T_Etp1_VHC+T_inf_Mod,),0) -> 00:00:00 | S46: =IF(Q46>0,IF(AND(Rallye!D90<>"",Rallye!D90<>"Section"),R46+T_0_Mod,),0) -> 00:00:00 | T46: =IF(P46>0,IF(AND(Rallye!D90<>"",Rallye!D90<>"Section"),T45+P46,),T45) -> 21:26:00 | U46: =IF(AND(Rallye!D90<>"",Rallye!D90<>"Section"),T46+$U$10,) -> 00:00:00 | V46: =IF(AND(Rallye!D90<>"",Rallye!D90<>"Section"),U46+$V$10,) -> 00:00:00
B47: =Rallye!B91 -> 0 | C47: =Rallye!C91 -> 0 | D47: =Rallye!D91 -> 0 | E47: =IF(AND(Rallye!D91<>"",Rallye!D91<>"Section"),($Q47-E$10),) -> 00:00:00 | F47: =IF(AND(Rallye!D91<>"",Rallye!D91<>"Section"),($Q47-F$10),) -> 00:00:00 | G47: =IF(AND(Rallye!D91<>"",Rallye!D91<>"Section"),($Q47-G$10),) -> 00:00:00 | H47: =IF(AND(Rallye!D91<>"",Rallye!D91<>"Section"),($Q47-H$10),) -> 00:00:00 | I47: =IF(AND(Rallye!D91<>"",Rallye!D91<>"Section"),($Q47-I$10),) -> 00:00:00 | J47: =IF(AND(Rallye!D91<>"",Rallye!D91<>"Section"),($Q47-J$10),) -> 00:00:00 | K47: =IF(AND(Rallye!D91<>"",Rallye!D91<>"Section"),($Q47-K$10),) -> 00:00:00 | L47: =IF(AND(Rallye!D91<>"",Rallye!D91<>"Section"),($Q47-L$10),) -> 00:00:00 | M47: =IF(AND(Rallye!D91<>"",Rallye!D91<>"Section"),($Q47-M$10),) -> 00:00:00 | N47: =IF(AND(Rallye!D91<>"",Rallye!D91<>"Section"),($Q47-N$10),) -> 00:00:00 | O47: =IF(AND(Rallye!D91<>"",Rallye!D91<>"Section"),($Q47-O$10),) -> 00:00:00 | P47: =Rallye!F90 -> 00:00:00 | Q47: =IF(P47>0,IF(OR(Rallye!D91<>"",Rallye!D91<>"Section"),Q46+P47,),Q46) -> 21:07:00 | R47: =IF(Q47>0,IF(AND(Rallye!D91<>"",Rallye!D91<>"Section"),Q47+T_Etp1_VHC+T_inf_Mod,),0) -> 00:00:00 | S47: =IF(Q47>0,IF(AND(Rallye!D91<>"",Rallye!D91<>"Section"),R47+T_0_Mod,),0) -> 00:00:00 | T47: =IF(P47>0,IF(AND(Rallye!D91<>"",Rallye!D91<>"Section"),T46+P47,),T46) -> 21:26:00 | U47: =IF(AND(Rallye!D91<>"",Rallye!D91<>"Section"),T47+$U$10,) -> 00:00:00 | V47: =IF(AND(Rallye!D91<>"",Rallye!D91<>"Section"),U47+$V$10,) -> 00:00:00
B48: =Rallye!B92 -> 0 | C48: =Rallye!C92 -> 0 | D48: =Rallye!D92 -> 0 | E48: =IF(AND(Rallye!D92<>"",Rallye!D92<>"Section"),($Q48-E$10),) -> 00:00:00 | F48: =IF(AND(Rallye!D92<>"",Rallye!D92<>"Section"),($Q48-F$10),) -> 00:00:00 | G48: =IF(AND(Rallye!D92<>"",Rallye!D92<>"Section"),($Q48-G$10),) -> 00:00:00 | H48: =IF(AND(Rallye!D92<>"",Rallye!D92<>"Section"),($Q48-H$10),) -> 00:00:00 | I48: =IF(AND(Rallye!D92<>"",Rallye!D92<>"Section"),($Q48-I$10),) -> 00:00:00 | J48: =IF(AND(Rallye!D92<>"",Rallye!D92<>"Section"),($Q48-J$10),) -> 00:00:00 | K48: =IF(AND(Rallye!D92<>"",Rallye!D92<>"Section"),($Q48-K$10),) -> 00:00:00 | L48: =IF(AND(Rallye!D92<>"",Rallye!D92<>"Section"),($Q48-L$10),) -> 00:00:00 | M48: =IF(AND(Rallye!D92<>"",Rallye!D92<>"Section"),($Q48-M$10),) -> 00:00:00 | N48: =IF(AND(Rallye!D92<>"",Rallye!D92<>"Section"),($Q48-N$10),) -> 00:00:00 | O48: =IF(AND(Rallye!D92<>"",Rallye!D92<>"Section"),($Q48-O$10),) -> 00:00:00 | P48: =Rallye!F91 -> 00:00:00 | Q48: =IF(P48>0,IF(OR(Rallye!D92<>"",Rallye!D92<>"Section"),Q47+P48,),Q47) -> 21:07:00 | R48: =IF(Q48>0,IF(AND(Rallye!D92<>"",Rallye!D92<>"Section"),Q48+T_Etp1_VHC+T_inf_Mod,),0) -> 00:00:00 | S48: =IF(Q48>0,IF(AND(Rallye!D92<>"",Rallye!D92<>"Section"),R48+T_0_Mod,),0) -> 00:00:00 | T48: =IF(P48>0,IF(AND(Rallye!D92<>"",Rallye!D92<>"Section"),T47+P48,),T47) -> 21:26:00 | U48: =IF(AND(Rallye!D92<>"",Rallye!D92<>"Section"),T48+$U$10,) -> 00:00:00 | V48: =IF(AND(Rallye!D92<>"",Rallye!D92<>"Section"),U48+$V$10,) -> 00:00:00
B49: =Rallye!B93 -> 0 | C49: =Rallye!C93 -> 0 | D49: =Rallye!D93 -> 0 | E49: =IF(AND(Rallye!D93<>"",Rallye!D93<>"Section"),($Q49-E$10),) -> 00:00:00 | F49: =IF(AND(Rallye!D93<>"",Rallye!D93<>"Section"),($Q49-F$10),) -> 00:00:00 | G49: =IF(AND(Rallye!D93<>"",Rallye!D93<>"Section"),($Q49-G$10),) -> 00:00:00 | H49: =IF(AND(Rallye!D93<>"",Rallye!D93<>"Section"),($Q49-H$10),) -> 00:00:00 | I49: =IF(AND(Rallye!D93<>"",Rallye!D93<>"Section"),($Q49-I$10),) -> 00:00:00 | J49: =IF(AND(Rallye!D93<>"",Rallye!D93<>"Section"),($Q49-J$10),) -> 00:00:00 | K49: =IF(AND(Rallye!D93<>"",Rallye!D93<>"Section"),($Q49-K$10),) -> 00:00:00 | L49: =IF(AND(Rallye!D93<>"",Rallye!D93<>"Section"),($Q49-L$10),) -> 00:00:00 | M49: =IF(AND(Rallye!D93<>"",Rallye!D93<>"Section"),($Q49-M$10),) -> 00:00:00 | N49: =IF(AND(Rallye!D93<>"",Rallye!D93<>"Section"),($Q49-N$10),) -> 00:00:00 | O49: =IF(AND(Rallye!D93<>"",Rallye!D93<>"Section"),($Q49-O$10),) -> 00:00:00 | P49: =Rallye!F92 -> 00:00:00 | Q49: =IF(P49>0,IF(OR(Rallye!D93<>"",Rallye!D93<>"Section"),Q48+P49,),Q48) -> 21:07:00 | R49: =IF(Q49>0,IF(AND(Rallye!D93<>"",Rallye!D93<>"Section"),Q49+T_Etp1_VHC+T_inf_Mod,),0) -> 00:00:00 | S49: =IF(Q49>0,IF(AND(Rallye!D93<>"",Rallye!D93<>"Section"),R49+T_0_Mod,),0) -> 00:00:00 | T49: =IF(P49>0,IF(AND(Rallye!D93<>"",Rallye!D93<>"Section"),T48+P49,),T48) -> 21:26:00 | U49: =IF(AND(Rallye!D93<>"",Rallye!D93<>"Section"),T49+$U$10,) -> 00:00:00 | V49: =IF(AND(Rallye!D93<>"",Rallye!D93<>"Section"),U49+$V$10,) -> 00:00:00
B50: =Rallye!B94 -> 0 | C50: =Rallye!C94 -> 0 | D50: =Rallye!D94 -> 0 | E50: =IF(AND(Rallye!D94<>"",Rallye!D94<>"Section"),($Q50-E$10),) -> 00:00:00 | F50: =IF(AND(Rallye!D94<>"",Rallye!D94<>"Section"),($Q50-F$10),) -> 00:00:00 | G50: =IF(AND(Rallye!D94<>"",Rallye!D94<>"Section"),($Q50-G$10),) -> 00:00:00 | H50: =IF(AND(Rallye!D94<>"",Rallye!D94<>"Section"),($Q50-H$10),) -> 00:00:00 | I50: =IF(AND(Rallye!D94<>"",Rallye!D94<>"Section"),($Q50-I$10),) -> 00:00:00 | J50: =IF(AND(Rallye!D94<>"",Rallye!D94<>"Section"),($Q50-J$10),) -> 00:00:00 | K50: =IF(AND(Rallye!D94<>"",Rallye!D94<>"Section"),($Q50-K$10),) -> 00:00:00 | L50: =IF(AND(Rallye!D94<>"",Rallye!D94<>"Section"),($Q50-L$10),) -> 00:00:00 | M50: =IF(AND(Rallye!D94<>"",Rallye!D94<>"Section"),($Q50-M$10),) -> 00:00:00 | N50: =IF(AND(Rallye!D94<>"",Rallye!D94<>"Section"),($Q50-N$10),) -> 00:00:00 | O50: =IF(AND(Rallye!D94<>"",Rallye!D94<>"Section"),($Q50-O$10),) -> 00:00:00 | P50: =Rallye!F93 -> 00:00:00 | Q50: =IF(P50>0,IF(OR(Rallye!D94<>"",Rallye!D94<>"Section"),Q49+P50,),Q49) -> 21:07:00 | R50: =IF(Q50>0,IF(AND(Rallye!D94<>"",Rallye!D94<>"Section"),Q50+T_Etp1_VHC+T_inf_Mod,),0) -> 00:00:00 | S50: =IF(Q50>0,IF(AND(Rallye!D94<>"",Rallye!D94<>"Section"),R50+T_0_Mod,),0) -> 00:00:00 | T50: =IF(P50>0,IF(AND(Rallye!D94<>"",Rallye!D94<>"Section"),T49+P50,),T49) -> 21:26:00 | U50: =IF(AND(Rallye!D94<>"",Rallye!D94<>"Section"),T50+$U$10,) -> 00:00:00 | V50: =IF(AND(Rallye!D94<>"",Rallye!D94<>"Section"),U50+$V$10,) -> 00:00:00
B51: =Rallye!B95 -> 0 | C51: =Rallye!C95 -> 0 | D51: =Rallye!D95 -> 0 | E51: =IF(AND(Rallye!D95<>"",Rallye!D95<>"Section"),($Q51-E$10),) -> 00:00:00 | F51: =IF(AND(Rallye!D95<>"",Rallye!D95<>"Section"),($Q51-F$10),) -> 00:00:00 | G51: =IF(AND(Rallye!D95<>"",Rallye!D95<>"Section"),($Q51-G$10),) -> 00:00:00 | H51: =IF(AND(Rallye!D95<>"",Rallye!D95<>"Section"),($Q51-H$10),) -> 00:00:00 | I51: =IF(AND(Rallye!D95<>"",Rallye!D95<>"Section"),($Q51-I$10),) -> 00:00:00 | J51: =IF(AND(Rallye!D95<>"",Rallye!D95<>"Section"),($Q51-J$10),) -> 00:00:00 | K51: =IF(AND(Rallye!D95<>"",Rallye!D95<>"Section"),($Q51-K$10),) -> 00:00:00 | L51: =IF(AND(Rallye!D95<>"",Rallye!D95<>"Section"),($Q51-L$10),) -> 00:00:00 | M51: =IF(AND(Rallye!D95<>"",Rallye!D95<>"Section"),($Q51-M$10),) -> 00:00:00 | N51: =IF(AND(Rallye!D95<>"",Rallye!D95<>"Section"),($Q51-N$10),) -> 00:00:00 | O51: =IF(AND(Rallye!D95<>"",Rallye!D95<>"Section"),($Q51-O$10),) -> 00:00:00 | P51: =Rallye!F94 -> 00:00:00 | Q51: =IF(P51>0,IF(OR(Rallye!D95<>"",Rallye!D95<>"Section"),Q50+P51,),Q50) -> 21:07:00 | R51: =IF(Q51>0,IF(AND(Rallye!D95<>"",Rallye!D95<>"Section"),Q51+T_Etp1_VHC+T_inf_Mod,),0) -> 00:00:00 | S51: =IF(Q51>0,IF(AND(Rallye!D95<>"",Rallye!D95<>"Section"),R51+T_0_Mod,),0) -> 00:00:00 | T51: =IF(P51>0,IF(AND(Rallye!D95<>"",Rallye!D95<>"Section"),T50+P51,),T50) -> 21:26:00 | U51: =IF(AND(Rallye!D95<>"",Rallye!D95<>"Section"),T51+$U$10,) -> 00:00:00 | V51: =IF(AND(Rallye!D95<>"",Rallye!D95<>"Section"),U51+$V$10,) -> 00:00:00
B52: =Rallye!B96 -> 0 | C52: =Rallye!C96 -> 0 | D52: =Rallye!D96 -> 0 | E52: =IF(AND(Rallye!D96<>"",Rallye!D96<>"Section"),($Q52-E$10),) -> 00:00:00 | F52: =IF(AND(Rallye!D96<>"",Rallye!D96<>"Section"),($Q52-F$10),) -> 00:00:00 | G52: =IF(AND(Rallye!D96<>"",Rallye!D96<>"Section"),($Q52-G$10),) -> 00:00:00 | H52: =IF(AND(Rallye!D96<>"",Rallye!D96<>"Section"),($Q52-H$10),) -> 00:00:00 | I52: =IF(AND(Rallye!D96<>"",Rallye!D96<>"Section"),($Q52-I$10),) -> 00:00:00 | J52: =IF(AND(Rallye!D96<>"",Rallye!D96<>"Section"),($Q52-J$10),) -> 00:00:00 | K52: =IF(AND(Rallye!D96<>"",Rallye!D96<>"Section"),($Q52-K$10),) -> 00:00:00 | L52: =IF(AND(Rallye!D96<>"",Rallye!D96<>"Section"),($Q52-L$10),) -> 00:00:00 | M52: =IF(AND(Rallye!D96<>"",Rallye!D96<>"Section"),($Q52-M$10),) -> 00:00:00 | N52: =IF(AND(Rallye!D96<>"",Rallye!D96<>"Section"),($Q52-N$10),) -> 00:00:00 | O52: =IF(AND(Rallye!D96<>"",Rallye!D96<>"Section"),($Q52-O$10),) -> 00:00:00 | P52: =Rallye!F95 -> 00:00:00 | Q52: =IF(P52>0,IF(OR(Rallye!D96<>"",Rallye!D96<>"Section"),Q51+P52,),Q51) -> 21:07:00 | R52: =IF(Q52>0,IF(AND(Rallye!D96<>"",Rallye!D96<>"Section"),Q52+T_Etp1_VHC+T_inf_Mod,),0) -> 00:00:00 | S52: =IF(Q52>0,IF(AND(Rallye!D96<>"",Rallye!D96<>"Section"),R52+T_0_Mod,),0) -> 00:00:00 | T52: =IF(P52>0,IF(AND(Rallye!D96<>"",Rallye!D96<>"Section"),T51+P52,),T51) -> 21:26:00 | U52: =IF(AND(Rallye!D96<>"",Rallye!D96<>"Section"),T52+$U$10,) -> 00:00:00 | V52: =IF(AND(Rallye!D96<>"",Rallye!D96<>"Section"),U52+$V$10,) -> 00:00:00
B53: =Rallye!B97 -> 0 | C53: =Rallye!C97 -> 0 | D53: =Rallye!D97 -> 0 | E53: =IF(AND(Rallye!D97<>"",Rallye!D97<>"Section"),($Q53-E$10),) -> 00:00:00 | F53: =IF(AND(Rallye!D97<>"",Rallye!D97<>"Section"),($Q53-F$10),) -> 00:00:00 | G53: =IF(AND(Rallye!D97<>"",Rallye!D97<>"Section"),($Q53-G$10),) -> 00:00:00 | H53: =IF(AND(Rallye!D97<>"",Rallye!D97<>"Section"),($Q53-H$10),) -> 00:00:00 | I53: =IF(AND(Rallye!D97<>"",Rallye!D97<>"Section"),($Q53-I$10),) -> 00:00:00 | J53: =IF(AND(Rallye!D97<>"",Rallye!D97<>"Section"),($Q53-J$10),) -> 00:00:00 | K53: =IF(AND(Rallye!D97<>"",Rallye!D97<>"Section"),($Q53-K$10),) -> 00:00:00 | L53: =IF(AND(Rallye!D97<>"",Rallye!D97<>"Section"),($Q53-L$10),) -> 00:00:00 | M53: =IF(AND(Rallye!D97<>"",Rallye!D97<>"Section"),($Q53-M$10),) -> 00:00:00 | N53: =IF(AND(Rallye!D97<>"",Rallye!D97<>"Section"),($Q53-N$10),) -> 00:00:00 | O53: =IF(AND(Rallye!D97<>"",Rallye!D97<>"Section"),($Q53-O$10),) -> 00:00:00 | P53: =Rallye!F96 -> 00:00:00 | Q53: =IF(P53>0,IF(OR(Rallye!D97<>"",Rallye!D97<>"Section"),Q52+P53,),Q52) -> 21:07:00 | R53: =IF(Q53>0,IF(AND(Rallye!D97<>"",Rallye!D97<>"Section"),Q53+T_Etp1_VHC+T_inf_Mod,),0) -> 00:00:00 | S53: =IF(Q53>0,IF(AND(Rallye!D97<>"",Rallye!D97<>"Section"),R53+T_0_Mod,),0) -> 00:00:00 | T53: =IF(P53>0,IF(AND(Rallye!D97<>"",Rallye!D97<>"Section"),T52+P53,),T52) -> 21:26:00 | U53: =IF(AND(Rallye!D97<>"",Rallye!D97<>"Section"),T53+$U$10,) -> 00:00:00 | V53: =IF(AND(Rallye!D97<>"",Rallye!D97<>"Section"),U53+$V$10,) -> 00:00:00

Sheet Horaires Etap2
B4: =Rallye!E10 -> 16ème Rallye du PAYS de St-YRIEX | P4: Durée Prévue Etape = | V4: =(SUM(P10:P58)+(TIME(0,ABS(V9+V6+T6+(Q7*2)-1),0))) -> 08:14:00
B5: =Rallye!E11 -> 3ème Rallye VHC du PAYS de St-YRIEX | H5: HORAIRES | K5: =Rallye!E99 -> 2ème Etape Sections 3 - 4 - 5 | P5: Réintégration = | V5: =Etap1!H59 -> 6
B6: =Rallye!E19 -> ASA Saint Martial | P6: En Course = | Q6: =Etap2!G62 -> 45 | S6: nb VHC= | T6: 5 | U6: Tps ajouté = | V6: 10
B7: =Rallye!E14 -> LRSA Nouvelle Aquitaine Sud | H7: =Rallye!E101 -> 2018-09-16 | P7: nb 2' = | T7: =IF(T6>0,(TIME(0,ABS(T6)-1,0))) -> 00:04:00 | U7: Durée E.S. = | V7: =V11-Q11+V6 -> 10.05208333
E8: Orga | F8: Sécurité | G8: TRICO | H8: Autorité | I8: Promo 1 | J8: Promo 2 | K8: Observ | L8: Info-Sono | M8: 000 | N8: 00 | O8: 0 VH | P8: TEMPS | Q8: 1ère Voiture | R8: Dern VHC | S8: 0 Mod | T8: 1ère Voiture | U8: Dern Voiture | V8: BALAI
E9: -90 | F9: -75 | G9: -60 | H9: -40 | I9: -39 | J9: -38 | K9: -37 | L9: -30 | M9: -25 | N9: -15 | O9: -10 | P9: Imparti | Q9: VHC | S9: 5 | T9: Modernes | U9: Théorique | V9: 2
B10: =Rallye!B105 -> 0 | C10: =Rallye!C105 -> 3ème | D10: =Rallye!D105 -> Section | E10: =TIME(0,ABS(E9),0) -> 01:30:00 | F10: 01:15:00 | G10: 01:00:00 | H10: 00:40:00 | I10: 00:39:00 | J10: 00:38:00 | K10: 00:37:00 | L10: 00:30:00 | M10: 00:25:00 | N10: 00:15:00 | O10: 00:10:00 | R10: =TIME(0,ABS(R9),0) -> 00:00:00 | S10: =TIME(0,ABS(S9),0) -> 00:05:00 | T10: 00:10:00 | U10: =TIME(0,ABS((Q6-1)+(Q7*2)+(V6)),0) -> 00:54:00 | V10: =TIME(0,ABS(V9),0) -> 00:02:00
B11: =Rallye!B106 -> C.H. : | C11: =Rallye!C106 -> 6B | D11: =Rallye!D106 -> Sortie Parc Départ | E11: =$Q11-E$10 -> 06:00:00 | F11: =$Q11-F$10 -> 06:15:00 | G11: =$Q11-G$10 -> 06:30:00 | H11: =$Q11-H$10 -> 06:50:00 | I11: =$Q11-I$10 -> 06:51:00 | J11: =IF(AND(H11<>"",Q11>0),($Q11-J$10),) -> 06:52:00 | K11: =IF(AND(J11<>"",Q11>0),($Q11-K$10),) -> 06:53:00 | L11: =IF(AND(J11<>"",Q11>0),($Q11-L$10),) -> 07:00:00 | M11: =IF(AND(K11<>"",Q11>0),($Q11-M$10),) -> 07:05:00 | N11: =IF(AND(M11<>"",Q11>0),($Q11-N$10),) -> 07:15:00 | O11: =IF(AND(N11<>"",Q11>0),($Q11-O$10),) -> 07:20:00 | P11: =Rallye!F105 -> 00:00:00 | Q11: =Rallye!G101 -> 07:30:00 | R11: =Q11+T_Etp2_VHC+R10 -> 07:34:00 | S11: =R11+VHCT1 -> 07:39:00 | T11: =S11+T10 -> 07:49:00 | U11: =IF(D11<>"",T11+$U$10,) -> 08:43:00 | V11: =IF(D11>0,U11+$V$10,) -> 08:45:00
B12: =Rallye!B107 -> C.H. : | C12: =Rallye!C107 -> 6C | D12: =Rallye!D107 -> Entrée Assist (Stade St Yriex) | E12: =IF(AND(Rallye!D107<>"",Rallye!D107<>"Section"),($Q12-E$10),) -> 06:05:00 | F12: =IF(AND(Rallye!D107<>"",Rallye!D107<>"Section"),($Q12-F$10),) -> 06:20:00 | G12: =IF(AND(Rallye!D107<>"",Rallye!D107<>"Section"),($Q12-G$10),) -> 06:35:00 | H12: =IF(AND(Rallye!D107<>"",Rallye!D107<>"Section"),($Q12-H$10),) -> 06:55:00 | I12: =IF(AND(Rallye!D107<>"",Rallye!D107<>"Section"),($Q12-I$10),) -> 06:56:00 | J12: =IF(AND(Rallye!D107<>"",Rallye!D107<>"Section"),($Q12-J$10),) -> 06:57:00 | K12: =IF(AND(Rallye!D107<>"",Rallye!D107<>"Section"),($Q12-K$10),) -> 06:58:00 | L12: =IF(AND(Rallye!D107<>"",Rallye!D107<>"Section"),($Q12-L$10),) -> 07:05:00 | M12: =IF(AND(Rallye!D107<>"",Rallye!D107<>"Section"),($Q12-M$10),) -> 07:10:00 | N12: =IF(AND(Rallye!D107<>"",Rallye!D107<>"Section"),($Q12-N$10),) -> 07:20:00 | O12: =IF(AND(Rallye!D107<>"",Rallye!D107<>"Section"),($Q12-O$10),) -> 07:25:00 | P12: =Rallye!F106 -> 00:05:00 | Q12: =IF(P12>0,IF(OR(Rallye!D107<>"",Rallye!D107<>"Section"),Q11+P12,),Q11) -> 07:35:00 | R12: =IF(Q12>0,IF(AND(Rallye!D107<>"",Rallye!D107<>"Section"),Q12+T_Etp2_VHC+T_inf_Mod,),0) -> 07:39:00 | S12: =IF(Q12>0,IF(AND(Rallye!D107<>"",Rallye!D107<>"Section"),R12+T_0_Mod,),0) -> 07:44:00 | T12: =IF(P12>0,IF(AND(Rallye!D107<>"",Rallye!D107<>"Section"),T11+P12,),T11) -> 07:54:00 | U12: =IF(AND(Rallye!D107<>"",Rallye!D107<>"Section"),T12+$U$10,) -> 08:48:00 | V12: =IF(AND(Rallye!D107<>"",Rallye!D107<>"Section"),U12+$V$10,) -> 08:50:00
B13: =Rallye!B108 -> C.H. : | C13: =Rallye!C108 -> 6D | D13: =Rallye!D108 -> Sortie Assistance | E13: =IF(AND(Rallye!D108<>"",Rallye!D108<>"Section"),($Q13-E$10),) -> 06:25:00 | F13: =IF(AND(Rallye!D108<>"",Rallye!D108<>"Section"),($Q13-F$10),) -> 06:40:00 | G13: =IF(AND(Rallye!D108<>"",Rallye!D108<>"Section"),($Q13-G$10),) -> 06:55:00 | H13: =IF(AND(Rallye!D108<>"",Rallye!D108<>"Section"),($Q13-H$10),) -> 07:15:00 | I13: =IF(AND(Rallye!D108<>"",Rallye!D108<>"Section"),($Q13-I$10),) -> 07:16:00 | J13: =IF(AND(Rallye!D108<>"",Rallye!D108<>"Section"),($Q13-J$10),) -> 07:17:00 | K13: =IF(AND(Rallye!D108<>"",Rallye!D108<>"Section"),($Q13-K$10),) -> 07:18:00 | L13: =IF(AND(Rallye!D108<>"",Rallye!D108<>"Section"),($Q13-L$10),) -> 07:25:00 | M13: =IF(AND(Rallye!D108<>"",Rallye!D108<>"Section"),($Q13-M$10),) -> 07:30:00 | N13: =IF(AND(Rallye!D108<>"",Rallye!D108<>"Section"),($Q13-N$10),) -> 07:40:00 | O13: =IF(AND(Rallye!D108<>"",Rallye!D108<>"Section"),($Q13-O$10),) -> 07:45:00 | P13: =Rallye!F107 -> 00:20:00 | Q13: =IF(P13>0,IF(OR(Rallye!D108<>"",Rallye!D108<>"Section"),Q12+P13,),Q12) -> 07:55:00 | R13: =IF(Q13>0,IF(AND(Rallye!D108<>"",Rallye!D108<>"Section"),Q13+T_Etp2_VHC+T_inf_Mod,),0) -> 07:59:00 | S13: =IF(Q13>0,IF(AND(Rallye!D108<>"",Rallye!D108<>"Section"),R13+T_0_Mod,),0) -> 08:04:00 | T13: =IF(P13>0,IF(AND(Rallye!D108<>"",Rallye!D108<>"Section"),T12+P13,),T12) -> 08:14:00 | U13: =IF(AND(Rallye!D108<>"",Rallye!D108<>"Section"),T13+$U$10,) -> 09:08:00 | V13: =IF(AND(Rallye!D108<>"",Rallye!D108<>"Section"),U13+$V$10,) -> 09:10:00
B14: =Rallye!B109 -> C.H. : | C14: =Rallye!C109 -> 7 | D14: =Rallye!D109 -> Avant Départ ES 7 | E14: =IF(AND(Rallye!D109<>"",Rallye!D109<>"Section"),($Q14-E$10),) -> 06:50:00 | F14: =IF(AND(Rallye!D109<>"",Rallye!D109<>"Section"),($Q14-F$10),) -> 07:05:00 | G14: =IF(AND(Rallye!D109<>"",Rallye!D109<>"Section"),($Q14-G$10),) -> 07:20:00 | H14: =IF(AND(Rallye!D109<>"",Rallye!D109<>"Section"),($Q14-H$10),) -> 07:40:00 | I14: =IF(AND(Rallye!D109<>"",Rallye!D109<>"Section"),($Q14-I$10),) -> 07:41:00 | J14: =IF(AND(Rallye!D109<>"",Rallye!D109<>"Section"),($Q14-J$10),) -> 07:42:00 | K14: =IF(AND(Rallye!D109<>"",Rallye!D109<>"Section"),($Q14-K$10),) -> 07:43:00 | L14: =IF(AND(Rallye!D109<>"",Rallye!D109<>"Section"),($Q14-L$10),) -> 07:50:00 | M14: =IF(AND(Rallye!D109<>"",Rallye!D109<>"Section"),($Q14-M$10),) -> 07:55:00 | N14: =IF(AND(Rallye!D109<>"",Rallye!D109<>"Section"),($Q14-N$10),) -> 08:05:00 | O14: =IF(AND(Rallye!D109<>"",Rallye!D109<>"Section"),($Q14-O$10),) -> 08:10:00 | P14: =Rallye!F108 -> 00:25:00 | Q14: =IF(P14>0,IF(OR(Rallye!D109<>"",Rallye!D109<>"Section"),Q13+P14,),Q13) -> 08:20:00 | R14: =IF(Q14>0,IF(AND(Rallye!D109<>"",Rallye!D109<>"Section"),Q14+T_Etp2_VHC+T_inf_Mod,),0) -> 08:24:00 | S14: =IF(Q14>0,IF(AND(Rallye!D109<>"",Rallye!D109<>"Section"),R14+T_0_Mod,),0) -> 08:29:00 | T14: =IF(P14>0,IF(AND(Rallye!D109<>"",Rallye!D109<>"Section"),T13+P14,),T13) -> 08:39:00 | U14: =IF(AND(Rallye!D109<>"",Rallye!D109<>"Section"),T14+$U$10,) -> 09:33:00 | V14: =IF(AND(Rallye!D109<>"",Rallye!D109<>"Section"),U14+$V$10,) -> 09:35:00
B15: =Rallye!B110 -> Départ E.S. : | C15: =Rallye!C110 -> 7 | D15: =Rallye!D110 -> La GABIE de la POULE 1 (9 Kms) | E15: =IF(AND(Rallye!D110<>"",Rallye!D110<>"Section"),($Q15-E$10),) -> 06:53:00 | F15: =IF(AND(Rallye!D110<>"",Rallye!D110<>"Section"),($Q15-F$10),) -> 07:08:00 | G15: =IF(AND(Rallye!D110<>"",Rallye!D110<>"Section"),($Q15-G$10),) -> 07:23:00 | H15: =IF(AND(Rallye!D110<>"",Rallye!D110<>"Section"),($Q15-H$10),) -> 07:43:00 | I15: =IF(AND(Rallye!D110<>"",Rallye!D110<>"Section"),($Q15-I$10),) -> 07:44:00 | J15: =IF(AND(Rallye!D110<>"",Rallye!D110<>"Section"),($Q15-J$10),) -> 07:45:00 | K15: =IF(AND(Rallye!D110<>"",Rallye!D110<>"Section"),($Q15-K$10),) -> 07:46:00 | L15: =IF(AND(Rallye!D110<>"",Rallye!D110<>"Section"),($Q15-L$10),) -> 07:53:00 | M15: =IF(AND(Rallye!D110<>"",Rallye!D110<>"Section"),($Q15-M$10),) -> 07:58:00 | N15: =IF(AND(Rallye!D110<>"",Rallye!D110<>"Section"),($Q15-N$10),) -> 08:08:00 | O15: =IF(AND(Rallye!D110<>"",Rallye!D110<>"Section"),($Q15-O$10),) -> 08:13:00 | P15: =Rallye!F109 -> 00:03:00 | Q15: =IF(P15>0,IF(OR(Rallye!D110<>"",Rallye!D110<>"Section"),Q14+P15,),Q14) -> 08:23:00 | R15: =IF(Q15>0,IF(AND(Rallye!D110<>"",Rallye!D110<>"Section"),Q15+T_Etp2_VHC+T_inf_Mod,),0) -> 08:27:00 | S15: =IF(Q15>0,IF(AND(Rallye!D110<>"",Rallye!D110<>"Section"),R15+T_0_Mod,),0) -> 08:32:00 | T15: =IF(P15>0,IF(AND(Rallye!D110<>"",Rallye!D110<>"Section"),T14+P15,),T14) -> 08:42:00 | U15: =IF(AND(Rallye!D110<>"",Rallye!D110<>"Section"),T15+$U$10,) -> 09:36:00 | V15: =IF(AND(Rallye!D110<>"",Rallye!D110<>"Section"),U15+$V$10,) -> 09:38:00
B16: =Rallye!B111 -> Arriv. E.S. : | C16: =Rallye!C111 -> 7 | D16: =Rallye!D111 -> 0 | E16: =IF(AND(Rallye!D111<>"",Rallye!D111<>"Section"),($Q16-E$10),) -> 00:00:00 | F16: =IF(AND(Rallye!D111<>"",Rallye!D111<>"Section"),($Q16-F$10),) -> 00:00:00 | G16: =IF(AND(Rallye!D111<>"",Rallye!D111<>"Section"),($Q16-G$10),) -> 00:00:00 | H16: =IF(AND(Rallye!D111<>"",Rallye!D111<>"Section"),($Q16-H$10),) -> 00:00:00 | I16: =IF(AND(Rallye!D111<>"",Rallye!D111<>"Section"),($Q16-I$10),) -> 00:00:00 | J16: =IF(AND(Rallye!D111<>"",Rallye!D111<>"Section"),($Q16-J$10),) -> 00:00:00 | K16: =IF(AND(Rallye!D111<>"",Rallye!D111<>"Section"),($Q16-K$10),) -> 00:00:00 | L16: =IF(AND(Rallye!D111<>"",Rallye!D111<>"Section"),($Q16-L$10),) -> 00:00:00 | M16: =IF(AND(Rallye!D111<>"",Rallye!D111<>"Section"),($Q16-M$10),) -> 00:00:00 | N16: =IF(AND(Rallye!D111<>"",Rallye!D111<>"Section"),($Q16-N$10),) -> 00:00:00 | O16: =IF(AND(Rallye!D111<>"",Rallye!D111<>"Section"),($Q16-O$10),) -> 00:00:00 | P16: =Rallye!F110 -> 00:00:00 | Q16: =IF(P16>0,IF(OR(Rallye!D111<>"",Rallye!D111<>"Section"),Q15+P16,),Q15) -> 08:23:00 | R16: =IF(Q16>0,IF(AND(Rallye!D111<>"",Rallye!D111<>"Section"),Q16+T_Etp2_VHC+T_inf_Mod,),0) -> 00:00:00 | S16: =IF(Q16>0,IF(AND(Rallye!D111<>"",Rallye!D111<>"Section"),R16+T_0_Mod,),0) -> 00:00:00 | T16: =IF(P16>0,IF(AND(Rallye!D111<>"",Rallye!D111<>"Section"),T15+P16,),T15) -> 08:42:00 | U16: =IF(AND(Rallye!D111<>"",Rallye!D111<>"Section"),T16+$U$10,) -> 00:00:00 | V16: =IF(AND(Rallye!D111<>"",Rallye!D111<>"Section"),U16+$V$10,) -> 00:00:00
B17: =Rallye!B112 -> C.H. : | C17: =Rallye!C112 -> 8 | D17: =Rallye!D112 -> Avant Départ ES 8 | E17: =IF(AND(Rallye!D112<>"",Rallye!D112<>"Section"),($Q17-E$10),) -> 07:13:00 | F17: =IF(AND(Rallye!D112<>"",Rallye!D112<>"Section"),($Q17-F$10),) -> 07:28:00 | G17: =IF(AND(Rallye!D112<>"",Rallye!D112<>"Section"),($Q17-G$10),) -> 07:43:00 | H17: =IF(AND(Rallye!D112<>"",Rallye!D112<>"Section"),($Q17-H$10),) -> 08:03:00 | I17: =IF(AND(Rallye!D112<>"",Rallye!D112<>"Section"),($Q17-I$10),) -> 08:04:00 | J17: =IF(AND(Rallye!D112<>"",Rallye!D112<>"Section"),($Q17-J$10),) -> 08:05:00 | K17: =IF(AND(Rallye!D112<>"",Rallye!D112<>"Section"),($Q17-K$10),) -> 08:06:00 | L17: =IF(AND(Rallye!D112<>"",Rallye!D112<>"Section"),($Q17-L$10),) -> 08:13:00 | M17: =IF(AND(Rallye!D112<>"",Rallye!D112<>"Section"),($Q17-M$10),) -> 08:18:00 | N17: =IF(AND(Rallye!D112<>"",Rallye!D112<>"Section"),($Q17-N$10),) -> 08:28:00 | O17: =IF(AND(Rallye!D112<>"",Rallye!D112<>"Section"),($Q17-O$10),) -> 08:33:00 | P17: =Rallye!F111 -> 00:20:00 | Q17: =IF(P17>0,IF(OR(Rallye!D112<>"",Rallye!D112<>"Section"),Q16+P17,),Q16) -> 08:43:00 | R17: =IF(Q17>0,IF(AND(Rallye!D112<>"",Rallye!D112<>"Section"),Q17+T_Etp2_VHC+T_inf_Mod,),0) -> 08:47:00 | S17: =IF(Q17>0,IF(AND(Rallye!D112<>"",Rallye!D112<>"Section"),R17+T_0_Mod,),0) -> 08:52:00 | T17: =IF(P17>0,IF(AND(Rallye!D112<>"",Rallye!D112<>"Section"),T16+P17,),T16) -> 09:02:00 | U17: =IF(AND(Rallye!D112<>"",Rallye!D112<>"Section"),T17+$U$10,) -> 09:56:00 | V17: =IF(AND(Rallye!D112<>"",Rallye!D112<>"Section"),U17+$V$10,) -> 09:58:00
B18: =Rallye!B113 -> Départ E.S. : | C18: =Rallye!C113 -> 8 | D18: =Rallye!D113 -> GLANDON 1 (17,810 Kms) | E18: =IF(AND(Rallye!D113<>"",Rallye!D113<>"Section"),($Q18-E$10),) -> 07:16:00 | F18: =IF(AND(Rallye!D113<>"",Rallye!D113<>"Section"),($Q18-F$10),) -> 07:31:00 | G18: =IF(AND(Rallye!D113<>"",Rallye!D113<>"Section"),($Q18-G$10),) -> 07:46:00 | H18: =IF(AND(Rallye!D113<>"",Rallye!D113<>"Section"),($Q18-H$10),) -> 08:06:00 | I18: =IF(AND(Rallye!D113<>"",Rallye!D113<>"Section"),($Q18-I$10),) -> 08:07:00 | J18: =IF(AND(Rallye!D113<>"",Rallye!D113<>"Section"),($Q18-J$10),) -> 08:08:00 | K18: =IF(AND(Rallye!D113<>"",Rallye!D113<>"Section"),($Q18-K$10),) -> 08:09:00 | L18: =IF(AND(Rallye!D113<>"",Rallye!D113<>"Section"),($Q18-L$10),) -> 08:16:00 | M18: =IF(AND(Rallye!D113<>"",Rallye!D113<>"Section"),($Q18-M$10),) -> 08:21:00 | N18: =IF(AND(Rallye!D113<>"",Rallye!D113<>"Section"),($Q18-N$10),) -> 08:31:00 | O18: =IF(AND(Rallye!D113<>"",Rallye!D113<>"Section"),($Q18-O$10),) -> 08:36:00 | P18: =Rallye!F112 -> 00:03:00 | Q18: =IF(P18>0,IF(OR(Rallye!D113<>"",Rallye!D113<>"Section"),Q17+P18,),Q17) -> 08:46:00 | R18: =IF(Q18>0,IF(AND(Rallye!D113<>"",Rallye!D113<>"Section"),Q18+T_Etp2_VHC+T_inf_Mod,),0) -> 08:50:00 | S18: =IF(Q18>0,IF(AND(Rallye!D113<>"",Rallye!D113<>"Section"),R18+T_0_Mod,),0) -> 08:55:00 | T18: =IF(P18>0,IF(AND(Rallye!D113<>"",Rallye!D113<>"Section"),T17+P18,),T17) -> 09:05:00 | U18: =IF(AND(Rallye!D113<>"",Rallye!D113<>"Section"),T18+$U$10,) -> 09:59:00 | V18: =IF(AND(Rallye!D113<>"",Rallye!D113<>"Section"),U18+$V$10,) -> 10:01:00
B19: =Rallye!B114 -> Arriv. E.S. : | C19: =Rallye!C114 -> 8 | D19: =Rallye!D114 -> 0 | E19: =IF(AND(Rallye!D114<>"",Rallye!D114<>"Section"),($Q19-E$10),) -> 00:00:00 | F19: =IF(AND(Rallye!D114<>"",Rallye!D114<>"Section"),($Q19-F$10),) -> 00:00:00 | G19: =IF(AND(Rallye!D114<>"",Rallye!D114<>"Section"),($Q19-G$10),) -> 00:00:00 | H19: =IF(AND(Rallye!D114<>"",Rallye!D114<>"Section"),($Q19-H$10),) -> 00:00:00 | I19: =IF(AND(Rallye!D114<>"",Rallye!D114<>"Section"),($Q19-I$10),) -> 00:00:00 | J19: =IF(AND(Rallye!D114<>"",Rallye!D114<>"Section"),($Q19-J$10),) -> 00:00:00 | K19: =IF(AND(Rallye!D114<>"",Rallye!D114<>"Section"),($Q19-K$10),) -> 00:00:00 | L19: =IF(AND(Rallye!D114<>"",Rallye!D114<>"Section"),($Q19-L$10),) -> 00:00:00 | M19: =IF(AND(Rallye!D114<>"",Rallye!D114<>"Section"),($Q19-M$10),) -> 00:00:00 | N19: =IF(AND(Rallye!D114<>"",Rallye!D114<>"Section"),($Q19-N$10),) -> 00:00:00 | O19: =IF(AND(Rallye!D114<>"",Rallye!D114<>"Section"),($Q19-O$10),) -> 00:00:00 | P19: =Rallye!F113 -> 00:00:00 | Q19: =IF(P19>0,IF(OR(Rallye!D114<>"",Rallye!D114<>"Section"),Q18+P19,),Q18) -> 08:46:00 | R19: =IF(Q19>0,IF(AND(Rallye!D114<>"",Rallye!D114<>"Section"),Q19+T_Etp2_VHC+T_inf_Mod,),0) -> 00:00:00 | S19: =IF(Q19>0,IF(AND(Rallye!D114<>"",Rallye!D114<>"Section"),R19+T_0_Mod,),0) -> 00:00:00 | T19: =IF(P19>0,IF(AND(Rallye!D114<>"",Rallye!D114<>"Section"),T18+P19,),T18) -> 09:05:00 | U19: =IF(AND(Rallye!D114<>"",Rallye!D114<>"Section"),T19+$U$10,) -> 00:00:00 | V19: =IF(AND(Rallye!D114<>"",Rallye!D114<>"Section"),U19+$V$10,) -> 00:00:00
B20: =Rallye!B115 -> C.H. : | C20: =Rallye!C115 -> 8A | D20: =Rallye!D115 -> Entrée Parc Regroup | E20: =IF(AND(Rallye!D115<>"",Rallye!D115<>"Section"),($Q20-E$10),) -> 07:51:00 | F20: =IF(AND(Rallye!D115<>"",Rallye!D115<>"Section"),($Q20-F$10),) -> 08:06:00 | G20: =IF(AND(Rallye!D115<>"",Rallye!D115<>"Section"),($Q20-G$10),) -> 08:21:00 | H20: =IF(AND(Rallye!D115<>"",Rallye!D115<>"Section"),($Q20-H$10),) -> 08:41:00 | I20: =IF(AND(Rallye!D115<>"",Rallye!D115<>"Section"),($Q20-I$10),) -> 08:42:00 | J20: =IF(AND(Rallye!D115<>"",Rallye!D115<>"Section"),($Q20-J$10),) -> 08:43:00 | K20: =IF(AND(Rallye!D115<>"",Rallye!D115<>"Section"),($Q20-K$10),) -> 08:44:00 | L20: =IF(AND(Rallye!D115<>"",Rallye!D115<>"Section"),($Q20-L$10),) -> 08:51:00 | M20: =IF(AND(Rallye!D115<>"",Rallye!D115<>"Section"),($Q20-M$10),) -> 08:56:00 | N20: =IF(AND(Rallye!D115<>"",Rallye!D115<>"Section"),($Q20-N$10),) -> 09:06:00 | O20: =IF(AND(Rallye!D115<>"",Rallye!D115<>"Section"),($Q20-O$10),) -> 09:11:00 | P20: =Rallye!F114 -> 00:35:00 | Q20: =IF(P20>0,IF(OR(Rallye!D115<>"",Rallye!D115<>"Section"),Q19+P20,),Q19) -> 09:21:00 | R20: =IF(Q20>0,IF(AND(Rallye!D115<>"",Rallye!D115<>"Section"),Q20+T_Etp2_VHC+T_inf_Mod,),0) -> 09:25:00 | S20: =IF(Q20>0,IF(AND(Rallye!D115<>"",Rallye!D115<>"Section"),R20+T_0_Mod,),0) -> 09:30:00 | T20: =IF(P20>0,IF(AND(Rallye!D115<>"",Rallye!D115<>"Section"),T19+P20,),T19) -> 09:40:00 | U20: =IF(AND(Rallye!D115<>"",Rallye!D115<>"Section"),T20+$U$10,) -> 10:34:00 | V20: =IF(AND(Rallye!D115<>"",Rallye!D115<>"Section"),U20+$V$10,) -> 10:36:00
B21: =Rallye!B116 -> 0 | C21: =Rallye!C116 -> 4ème | D21: =Rallye!D116 -> Section | E21: =IF(AND(Rallye!D116<>"",Rallye!D116<>"Section"),($Q21-E$10),) -> 00:00:00 | F21: =IF(AND(Rallye!D116<>"",Rallye!D116<>"Section"),($Q21-F$10),) -> 00:00:00 | G21: =IF(AND(Rallye!D116<>"",Rallye!D116<>"Section"),($Q21-G$10),) -> 00:00:00 | H21: =IF(AND(Rallye!D116<>"",Rallye!D116<>"Section"),($Q21-H$10),) -> 00:00:00 | I21: =IF(AND(Rallye!D116<>"",Rallye!D116<>"Section"),($Q21-I$10),) -> 00:00:00 | J21: =IF(AND(Rallye!D116<>"",Rallye!D116<>"Section"),($Q21-J$10),) -> 00:00:00 | K21: =IF(AND(Rallye!D116<>"",Rallye!D116<>"Section"),($Q21-K$10),) -> 00:00:00 | L21: =IF(AND(Rallye!D116<>"",Rallye!D116<>"Section"),($Q21-L$10),) -> 00:00:00 | M21: =IF(AND(Rallye!D116<>"",Rallye!D116<>"Section"),($Q21-M$10),) -> 00:00:00 | N21: =IF(AND(Rallye!D116<>"",Rallye!D116<>"Section"),($Q21-N$10),) -> 00:00:00 | O21: =IF(AND(Rallye!D116<>"",Rallye!D116<>"Section"),($Q21-O$10),) -> 00:00:00 | P21: =Rallye!F115 -> 00:00:00 | Q21: =IF(P21>0,IF(OR(Rallye!D116<>"",Rallye!D116<>"Section"),Q20+P21,),Q20) -> 09:21:00 | R21: =IF(Q21>0,IF(AND(Rallye!D116<>"",Rallye!D116<>"Section"),Q21+T_Etp2_VHC+T_inf_Mod,),0) -> 00:00:00 | S21: =IF(Q21>0,IF(AND(Rallye!D116<>"",Rallye!D116<>"Section"),R21+T_0_Mod,),0) -> 00:00:00 | T21: =IF(P21>0,IF(AND(Rallye!D116<>"",Rallye!D116<>"Section"),T20+P21,),T20) -> 09:40:00 | U21: =IF(AND(Rallye!D116<>"",Rallye!D116<>"Section"),T21+$U$10,) -> 00:00:00 | V21: =IF(AND(Rallye!D116<>"",Rallye!D116<>"Section"),U21+$V$10,) -> 00:00:00
B22: =Rallye!B117 -> C.H. : | C22: =Rallye!C117 -> 8B | D22: =Rallye!D117 -> Sortie Parc Regroup | E22: =IF(AND(Rallye!D117<>"",Rallye!D117<>"Section"),($Q22-E$10),) -> 08:36:00 | F22: =IF(AND(Rallye!D117<>"",Rallye!D117<>"Section"),($Q22-F$10),) -> 08:51:00 | G22: =IF(AND(Rallye!D117<>"",Rallye!D117<>"Section"),($Q22-G$10),) -> 09:06:00 | H22: =IF(AND(Rallye!D117<>"",Rallye!D117<>"Section"),($Q22-H$10),) -> 09:26:00 | I22: =IF(AND(Rallye!D117<>"",Rallye!D117<>"Section"),($Q22-I$10),) -> 09:27:00 | J22: =IF(AND(Rallye!D117<>"",Rallye!D117<>"Section"),($Q22-J$10),) -> 09:28:00 | K22: =IF(AND(Rallye!D117<>"",Rallye!D117<>"Section"),($Q22-K$10),) -> 09:29:00 | L22: =IF(AND(Rallye!D117<>"",Rallye!D117<>"Section"),($Q22-L$10),) -> 09:36:00 | M22: =IF(AND(Rallye!D117<>"",Rallye!D117<>"Section"),($Q22-M$10),) -> 09:41:00 | N22: =IF(AND(Rallye!D117<>"",Rallye!D117<>"Section"),($Q22-N$10),) -> 09:51:00 | O22: =IF(AND(Rallye!D117<>"",Rallye!D117<>"Section"),($Q22-O$10),) -> 09:56:00 | P22: =Rallye!F116 -> 00:45:00 | Q22: =IF(P22>0,IF(OR(Rallye!D117<>"",Rallye!D117<>"Section"),Q21+P22,),Q21) -> 10:06:00 | R22: =IF(Q22>0,IF(AND(Rallye!D117<>"",Rallye!D117<>"Section"),Q22+T_Etp2_VHC+T_inf_Mod,),0) -> 10:10:00 | S22: =IF(Q22>0,IF(AND(Rallye!D117<>"",Rallye!D117<>"Section"),R22+T_0_Mod,),0) -> 10:15:00 | T22: =IF(P22>0,IF(AND(Rallye!D117<>"",Rallye!D117<>"Section"),T21+P22,),T21) -> 10:25:00 | U22: =IF(AND(Rallye!D117<>"",Rallye!D117<>"Section"),T22+$U$10,) -> 11:19:00 | V22: =IF(AND(Rallye!D117<>"",Rallye!D117<>"Section"),U22+$V$10,) -> 11:21:00
B23: =Rallye!B118 -> C.H. : | C23: =Rallye!C118 -> 8C | D23: =Rallye!D118 -> Entrée Assist (Stade St Yriex) | E23: =IF(AND(Rallye!D118<>"",Rallye!D118<>"Section"),($Q23-E$10),) -> 08:41:00 | F23: =IF(AND(Rallye!D118<>"",Rallye!D118<>"Section"),($Q23-F$10),) -> 08:56:00 | G23: =IF(AND(Rallye!D118<>"",Rallye!D118<>"Section"),($Q23-G$10),) -> 09:11:00 | H23: =IF(AND(Rallye!D118<>"",Rallye!D118<>"Section"),($Q23-H$10),) -> 09:31:00 | I23: =IF(AND(Rallye!D118<>"",Rallye!D118<>"Section"),($Q23-I$10),) -> 09:32:00 | J23: =IF(AND(Rallye!D118<>"",Rallye!D118<>"Section"),($Q23-J$10),) -> 09:33:00 | K23: =IF(AND(Rallye!D118<>"",Rallye!D118<>"Section"),($Q23-K$10),) -> 09:34:00 | L23: =IF(AND(Rallye!D118<>"",Rallye!D118<>"Section"),($Q23-L$10),) -> 09:41:00 | M23: =IF(AND(Rallye!D118<>"",Rallye!D118<>"Section"),($Q23-M$10),) -> 09:46:00 | N23: =IF(AND(Rallye!D118<>"",Rallye!D118<>"Section"),($Q23-N$10),) -> 09:56:00 | O23: =IF(AND(Rallye!D118<>"",Rallye!D118<>"Section"),($Q23-O$10),) -> 10:01:00 | P23: =Rallye!F117 -> 00:05:00 | Q23: =IF(P23>0,IF(OR(Rallye!D118<>"",Rallye!D118<>"Section"),Q22+P23,),Q22) -> 10:11:00 | R23: =IF(Q23>0,IF(AND(Rallye!D118<>"",Rallye!D118<>"Section"),Q23+T_Etp2_VHC+T_inf_Mod,),0) -> 10:15:00 | S23: =IF(Q23>0,IF(AND(Rallye!D118<>"",Rallye!D118<>"Section"),R23+T_0_Mod,),0) -> 10:20:00 | T23: =IF(P23>0,IF(AND(Rallye!D118<>"",Rallye!D118<>"Section"),T22+P23,),T22) -> 10:30:00 | U23: =IF(AND(Rallye!D118<>"",Rallye!D118<>"Section"),T23+$U$10,) -> 11:24:00 | V23: =IF(AND(Rallye!D118<>"",Rallye!D118<>"Section"),U23+$V$10,) -> 11:26:00
B24: =Rallye!B119 -> C.H. : | C24: =Rallye!C119 -> 8D | D24: =Rallye!D119 -> Sortie Assistance | E24: =IF(AND(Rallye!D119<>"",Rallye!D119<>"Section"),($Q24-E$10),) -> 09:21:00 | F24: =IF(AND(Rallye!D119<>"",Rallye!D119<>"Section"),($Q24-F$10),) -> 09:36:00 | G24: =IF(AND(Rallye!D119<>"",Rallye!D119<>"Section"),($Q24-G$10),) -> 09:51:00 | H24: =IF(AND(Rallye!D119<>"",Rallye!D119<>"Section"),($Q24-H$10),) -> 10:11:00 | I24: =IF(AND(Rallye!D119<>"",Rallye!D119<>"Section"),($Q24-I$10),) -> 10:12:00 | J24: =IF(AND(Rallye!D119<>"",Rallye!D119<>"Section"),($Q24-J$10),) -> 10:13:00 | K24: =IF(AND(Rallye!D119<>"",Rallye!D119<>"Section"),($Q24-K$10),) -> 10:14:00 | L24: =IF(AND(Rallye!D119<>"",Rallye!D119<>"Section"),($Q24-L$10),) -> 10:21:00 | M24: =IF(AND(Rallye!D119<>"",Rallye!D119<>"Section"),($Q24-M$10),) -> 10:26:00 | N24: =IF(AND(Rallye!D119<>"",Rallye!D119<>"Section"),($Q24-N$10),) -> 10:36:00 | O24: =IF(AND(Rallye!D119<>"",Rallye!D119<>"Section"),($Q24-O$10),) -> 10:41:00 | P24: =Rallye!F118 -> 00:40:00 | Q24: =IF(P24>0,IF(OR(Rallye!D119<>"",Rallye!D119<>"Section"),Q23+P24,),Q23) -> 10:51:00 | R24: =IF(Q24>0,IF(AND(Rallye!D119<>"",Rallye!D119<>"Section"),Q24+T_Etp2_VHC+T_inf_Mod,),0) -> 10:55:00 | S24: =IF(Q24>0,IF(AND(Rallye!D119<>"",Rallye!D119<>"Section"),R24+T_0_Mod,),0) -> 11:00:00 | T24: =IF(P24>0,IF(AND(Rallye!D119<>"",Rallye!D119<>"Section"),T23+P24,),T23) -> 11:10:00 | U24: =IF(AND(Rallye!D119<>"",Rallye!D119<>"Section"),T24+$U$10,) -> 12:04:00 | V24: =IF(AND(Rallye!D119<>"",Rallye!D119<>"Section"),U24+$V$10,) -> 12:06:00
B25: =Rallye!B120 -> C.H. : | C25: =Rallye!C120 -> 9 | D25: =Rallye!D120 -> Avant Départ ES 9 | E25: =IF(AND(Rallye!D120<>"",Rallye!D120<>"Section"),($Q25-E$10),) -> 09:46:00 | F25: =IF(AND(Rallye!D120<>"",Rallye!D120<>"Section"),($Q25-F$10),) -> 10:01:00 | G25: =IF(AND(Rallye!D120<>"",Rallye!D120<>"Section"),($Q25-G$10),) -> 10:16:00 | H25: =IF(AND(Rallye!D120<>"",Rallye!D120<>"Section"),($Q25-H$10),) -> 10:36:00 | I25: =IF(AND(Rallye!D120<>"",Rallye!D120<>"Section"),($Q25-I$10),) -> 10:37:00 | J25: =IF(AND(Rallye!D120<>"",Rallye!D120<>"Section"),($Q25-J$10),) -> 10:38:00 | K25: =IF(AND(Rallye!D120<>"",Rallye!D120<>"Section"),($Q25-K$10),) -> 10:39:00 | L25: =IF(AND(Rallye!D120<>"",Rallye!D120<>"Section"),($Q25-L$10),) -> 10:46:00 | M25: =IF(AND(Rallye!D120<>"",Rallye!D120<>"Section"),($Q25-M$10),) -> 10:51:00 | N25: =IF(AND(Rallye!D120<>"",Rallye!D120<>"Section"),($Q25-N$10),) -> 11:01:00 | O25: =IF(AND(Rallye!D120<>"",Rallye!D120<>"Section"),($Q25-O$10),) -> 11:06:00 | P25: =Rallye!F119 -> 00:25:00 | Q25: =IF(P25>0,IF(OR(Rallye!D120<>"",Rallye!D120<>"Section"),Q24+P25,),Q24) -> 11:16:00 | R25: =IF(Q25>0,IF(AND(Rallye!D120<>"",Rallye!D120<>"Section"),Q25+T_Etp2_VHC+T_inf_Mod,),0) -> 11:20:00 | S25: =IF(Q25>0,IF(AND(Rallye!D120<>"",Rallye!D120<>"Section"),R25+T_0_Mod,),0) -> 11:25:00 | T25: =IF(P25>0,IF(AND(Rallye!D120<>"",Rallye!D120<>"Section"),T24+P25,),T24) -> 11:35:00 | U25: =IF(AND(Rallye!D120<>"",Rallye!D120<>"Section"),T25+$U$10,) -> 12:29:00 | V25: =IF(AND(Rallye!D120<>"",Rallye!D120<>"Section"),U25+$V$10,) -> 12:31:00
B26: =Rallye!B121 -> Départ E.S. : | C26: =Rallye!C121 -> 9 | D26: =Rallye!D121 -> La GABIE de la POULE 2 (9 Kms) | E26: =IF(AND(Rallye!D121<>"",Rallye!D121<>"Section"),($Q26-E$10),) -> 09:49:00 | F26: =IF(AND(Rallye!D121<>"",Rallye!D121<>"Section"),($Q26-F$10),) -> 10:04:00 | G26: =IF(AND(Rallye!D121<>"",Rallye!D121<>"Section"),($Q26-G$10),) -> 10:19:00 | H26: =IF(AND(Rallye!D121<>"",Rallye!D121<>"Section"),($Q26-H$10),) -> 10:39:00 | I26: =IF(AND(Rallye!D121<>"",Rallye!D121<>"Section"),($Q26-I$10),) -> 10:40:00 | J26: =IF(AND(Rallye!D121<>"",Rallye!D121<>"Section"),($Q26-J$10),) -> 10:41:00 | K26: =IF(AND(Rallye!D121<>"",Rallye!D121<>"Section"),($Q26-K$10),) -> 10:42:00 | L26: =IF(AND(Rallye!D121<>"",Rallye!D121<>"Section"),($Q26-L$10),) -> 10:49:00 | M26: =IF(AND(Rallye!D121<>"",Rallye!D121<>"Section"),($Q26-M$10),) -> 10:54:00 | N26: =IF(AND(Rallye!D121<>"",Rallye!D121<>"Section"),($Q26-N$10),) -> 11:04:00 | O26: =IF(AND(Rallye!D121<>"",Rallye!D121<>"Section"),($Q26-O$10),) -> 11:09:00 | P26: =Rallye!F120 -> 00:03:00 | Q26: =IF(P26>0,IF(OR(Rallye!D121<>"",Rallye!D121<>"Section"),Q25+P26,),Q25) -> 11:19:00 | R26: =IF(Q26>0,IF(AND(Rallye!D121<>"",Rallye!D121<>"Section"),Q26+T_Etp2_VHC+T_inf_Mod,),0) -> 11:23:00 | S26: =IF(Q26>0,IF(AND(Rallye!D121<>"",Rallye!D121<>"Section"),R26+T_0_Mod,),0) -> 11:28:00 | T26: =IF(P26>0,IF(AND(Rallye!D121<>"",Rallye!D121<>"Section"),T25+P26,),T25) -> 11:38:00 | U26: =IF(AND(Rallye!D121<>"",Rallye!D121<>"Section"),T26+$U$10,) -> 12:32:00 | V26: =IF(AND(Rallye!D121<>"",Rallye!D121<>"Section"),U26+$V$10,) -> 12:34:00
B27: =Rallye!B122 -> Arriv. E.S. : | C27: =Rallye!C122 -> 9 | D27: =Rallye!D122 -> 0 | E27: =IF(AND(Rallye!D122<>"",Rallye!D122<>"Section"),($Q27-E$10),) -> 00:00:00 | F27: =IF(AND(Rallye!D122<>"",Rallye!D122<>"Section"),($Q27-F$10),) -> 00:00:00 | G27: =IF(AND(Rallye!D122<>"",Rallye!D122<>"Section"),($Q27-G$10),) -> 00:00:00 | H27: =IF(AND(Rallye!D122<>"",Rallye!D122<>"Section"),($Q27-H$10),) -> 00:00:00 | I27: =IF(AND(Rallye!D122<>"",Rallye!D122<>"Section"),($Q27-I$10),) -> 00:00:00 | J27: =IF(AND(Rallye!D122<>"",Rallye!D122<>"Section"),($Q27-J$10),) -> 00:00:00 | K27: =IF(AND(Rallye!D122<>"",Rallye!D122<>"Section"),($Q27-K$10),) -> 00:00:00 | L27: =IF(AND(Rallye!D122<>"",Rallye!D122<>"Section"),($Q27-L$10),) -> 00:00:00 | M27: =IF(AND(Rallye!D122<>"",Rallye!D122<>"Section"),($Q27-M$10),) -> 00:00:00 | N27: =IF(AND(Rallye!D122<>"",Rallye!D122<>"Section"),($Q27-N$10),) -> 00:00:00 | O27: =IF(AND(Rallye!D122<>"",Rallye!D122<>"Section"),($Q27-O$10),) -> 00:00:00 | P27: =Rallye!F121 -> 00:00:00 | Q27: =IF(P27>0,IF(OR(Rallye!D122<>"",Rallye!D122<>"Section"),Q26+P27,),Q26) -> 11:19:00 | R27: =IF(Q27>0,IF(AND(Rallye!D122<>"",Rallye!D122<>"Section"),Q27+T_Etp2_VHC+T_inf_Mod,),0) -> 00:00:00 | S27: =IF(Q27>0,IF(AND(Rallye!D122<>"",Rallye!D122<>"Section"),R27+T_0_Mod,),0) -> 00:00:00 | T27: =IF(P27>0,IF(AND(Rallye!D122<>"",Rallye!D122<>"Section"),T26+P27,),T26) -> 11:38:00 | U27: =IF(AND(Rallye!D122<>"",Rallye!D122<>"Section"),T27+$U$10,) -> 00:00:00 | V27: =IF(AND(Rallye!D122<>"",Rallye!D122<>"Section"),U27+$V$10,) -> 00:00:00
B28: =Rallye!B123 -> C.H. : | C28: =Rallye!C123 -> 10 | D28: =Rallye!D123 -> Avant Départ ES 10 | E28: =IF(AND(Rallye!D123<>"",Rallye!D123<>"Section"),($Q28-E$10),) -> 10:09:00 | F28: =IF(AND(Rallye!D123<>"",Rallye!D123<>"Section"),($Q28-F$10),) -> 10:24:00 | G28: =IF(AND(Rallye!D123<>"",Rallye!D123<>"Section"),($Q28-G$10),) -> 10:39:00 | H28: =IF(AND(Rallye!D123<>"",Rallye!D123<>"Section"),($Q28-H$10),) -> 10:59:00 | I28: =IF(AND(Rallye!D123<>"",Rallye!D123<>"Section"),($Q28-I$10),) -> 11:00:00 | J28: =IF(AND(Rallye!D123<>"",Rallye!D123<>"Section"),($Q28-J$10),) -> 11:01:00 | K28: =IF(AND(Rallye!D123<>"",Rallye!D123<>"Section"),($Q28-K$10),) -> 11:02:00 | L28: =IF(AND(Rallye!D123<>"",Rallye!D123<>"Section"),($Q28-L$10),) -> 11:09:00 | M28: =IF(AND(Rallye!D123<>"",Rallye!D123<>"Section"),($Q28-M$10),) -> 11:14:00 | N28: =IF(AND(Rallye!D123<>"",Rallye!D123<>"Section"),($Q28-N$10),) -> 11:24:00 | O28: =IF(AND(Rallye!D123<>"",Rallye!D123<>"Section"),($Q28-O$10),) -> 11:29:00 | P28: =Rallye!F122 -> 00:20:00 | Q28: =IF(P28>0,IF(OR(Rallye!D123<>"",Rallye!D123<>"Section"),Q27+P28,),Q27) -> 11:39:00 | R28: =IF(Q28>0,IF(AND(Rallye!D123<>"",Rallye!D123<>"Section"),Q28+T_Etp2_VHC+T_inf_Mod,),0) -> 11:43:00 | S28: =IF(Q28>0,IF(AND(Rallye!D123<>"",Rallye!D123<>"Section"),R28+T_0_Mod,),0) -> 11:48:00 | T28: =IF(P28>0,IF(AND(Rallye!D123<>"",Rallye!D123<>"Section"),T27+P28,),T27) -> 11:58:00 | U28: =IF(AND(Rallye!D123<>"",Rallye!D123<>"Section"),T28+$U$10,) -> 12:52:00 | V28: =IF(AND(Rallye!D123<>"",Rallye!D123<>"Section"),U28+$V$10,) -> 12:54:00
B29: =Rallye!B124 -> Départ E.S. : | C29: =Rallye!C124 -> 10 | D29: =Rallye!D124 -> GLANDON 2 (17,810 Kms) | E29: =IF(AND(Rallye!D124<>"",Rallye!D124<>"Section"),($Q29-E$10),) -> 10:12:00 | F29: =IF(AND(Rallye!D124<>"",Rallye!D124<>"Section"),($Q29-F$10),) -> 10:27:00 | G29: =IF(AND(Rallye!D124<>"",Rallye!D124<>"Section"),($Q29-G$10),) -> 10:42:00 | H29: =IF(AND(Rallye!D124<>"",Rallye!D124<>"Section"),($Q29-H$10),) -> 11:02:00 | I29: =IF(AND(Rallye!D124<>"",Rallye!D124<>"Section"),($Q29-I$10),) -> 11:03:00 | J29: =IF(AND(Rallye!D124<>"",Rallye!D124<>"Section"),($Q29-J$10),) -> 11:04:00 | K29: =IF(AND(Rallye!D124<>"",Rallye!D124<>"Section"),($Q29-K$10),) -> 11:05:00 | L29: =IF(AND(Rallye!D124<>"",Rallye!D124<>"Section"),($Q29-L$10),) -> 11:12:00 | M29: =IF(AND(Rallye!D124<>"",Rallye!D124<>"Section"),($Q29-M$10),) -> 11:17:00 | N29: =IF(AND(Rallye!D124<>"",Rallye!D124<>"Section"),($Q29-N$10),) -> 11:27:00 | O29: =IF(AND(Rallye!D124<>"",Rallye!D124<>"Section"),($Q29-O$10),) -> 11:32:00 | P29: =Rallye!F123 -> 00:03:00 | Q29: =IF(P29>0,IF(OR(Rallye!D124<>"",Rallye!D124<>"Section"),Q28+P29,),Q28) -> 11:42:00 | R29: =IF(Q29>0,IF(AND(Rallye!D124<>"",Rallye!D124<>"Section"),Q29+T_Etp2_VHC+T_inf_Mod,),0) -> 11:46:00 | S29: =IF(Q29>0,IF(AND(Rallye!D124<>"",Rallye!D124<>"Section"),R29+T_0_Mod,),0) -> 11:51:00 | T29: =IF(P29>0,IF(AND(Rallye!D124<>"",Rallye!D124<>"Section"),T28+P29,),T28) -> 12:01:00 | U29: =IF(AND(Rallye!D124<>"",Rallye!D124<>"Section"),T29+$U$10,) -> 12:55:00 | V29: =IF(AND(Rallye!D124<>"",Rallye!D124<>"Section"),U29+$V$10,) -> 12:57:00
B30: =Rallye!B125 -> Arriv. E.S. : | C30: =Rallye!C125 -> 10 | D30: =Rallye!D125 -> 0 | E30: =IF(AND(Rallye!D125<>"",Rallye!D125<>"Section"),($Q30-E$10),) -> 00:00:00 | F30: =IF(AND(Rallye!D125<>"",Rallye!D125<>"Section"),($Q30-F$10),) -> 00:00:00 | G30: =IF(AND(Rallye!D125<>"",Rallye!D125<>"Section"),($Q30-G$10),) -> 00:00:00 | H30: =IF(AND(Rallye!D125<>"",Rallye!D125<>"Section"),($Q30-H$10),) -> 00:00:00 | I30: =IF(AND(Rallye!D125<>"",Rallye!D125<>"Section"),($Q30-I$10),) -> 00:00:00 | J30: =IF(AND(Rallye!D125<>"",Rallye!D125<>"Section"),($Q30-J$10),) -> 00:00:00 | K30: =IF(AND(Rallye!D125<>"",Rallye!D125<>"Section"),($Q30-K$10),) -> 00:00:00 | L30: =IF(AND(Rallye!D125<>"",Rallye!D125<>"Section"),($Q30-L$10),) -> 00:00:00 | M30: =IF(AND(Rallye!D125<>"",Rallye!D125<>"Section"),($Q30-M$10),) -> 00:00:00 | N30: =IF(AND(Rallye!D125<>"",Rallye!D125<>"Section"),($Q30-N$10),) -> 00:00:00 | O30: =IF(AND(Rallye!D125<>"",Rallye!D125<>"Section"),($Q30-O$10),) -> 00:00:00 | P30: =Rallye!F124 -> 00:00:00 | Q30: =IF(P30>0,IF(OR(Rallye!D125<>"",Rallye!D125<>"Section"),Q29+P30,),Q29) -> 11:42:00 | R30: =IF(Q30>0,IF(AND(Rallye!D125<>"",Rallye!D125<>"Section"),Q30+T_Etp2_VHC+T_inf_Mod,),0) -> 00:00:00 | S30: =IF(Q30>0,IF(AND(Rallye!D125<>"",Rallye!D125<>"Section"),R30+T_0_Mod,),0) -> 00:00:00 | T30: =IF(P30>0,IF(AND(Rallye!D125<>"",Rallye!D125<>"Section"),T29+P30,),T29) -> 12:01:00 | U30: =IF(AND(Rallye!D125<>"",Rallye!D125<>"Section"),T30+$U$10,) -> 00:00:00 | V30: =IF(AND(Rallye!D125<>"",Rallye!D125<>"Section"),U30+$V$10,) -> 00:00:00
B31: =Rallye!B126 -> C.H. : | C31: =Rallye!C126 -> 10A | D31: =Rallye!D126 -> Entrée Parc Regroup | E31: =IF(AND(Rallye!D126<>"",Rallye!D126<>"Section"),($Q31-E$10),) -> 10:47:00 | F31: =IF(AND(Rallye!D126<>"",Rallye!D126<>"Section"),($Q31-F$10),) -> 11:02:00 | G31: =IF(AND(Rallye!D126<>"",Rallye!D126<>"Section"),($Q31-G$10),) -> 11:17:00 | H31: =IF(AND(Rallye!D126<>"",Rallye!D126<>"Section"),($Q31-H$10),) -> 11:37:00 | I31: =IF(AND(Rallye!D126<>"",Rallye!D126<>"Section"),($Q31-I$10),) -> 11:38:00 | J31: =IF(AND(Rallye!D126<>"",Rallye!D126<>"Section"),($Q31-J$10),) -> 11:39:00 | K31: =IF(AND(Rallye!D126<>"",Rallye!D126<>"Section"),($Q31-K$10),) -> 11:40:00 | L31: =IF(AND(Rallye!D126<>"",Rallye!D126<>"Section"),($Q31-L$10),) -> 11:47:00 | M31: =IF(AND(Rallye!D126<>"",Rallye!D126<>"Section"),($Q31-M$10),) -> 11:52:00 | N31: =IF(AND(Rallye!D126<>"",Rallye!D126<>"Section"),($Q31-N$10),) -> 12:02:00 | O31: =IF(AND(Rallye!D126<>"",Rallye!D126<>"Section"),($Q31-O$10),) -> 12:07:00 | P31: =Rallye!F125 -> 00:35:00 | Q31: =IF(P31>0,IF(OR(Rallye!D126<>"",Rallye!D126<>"Section"),Q30+P31,),Q30) -> 12:17:00 | R31: =IF(Q31>0,IF(AND(Rallye!D126<>"",Rallye!D126<>"Section"),Q31+T_Etp2_VHC+T_inf_Mod,),0) -> 12:21:00 | S31: =IF(Q31>0,IF(AND(Rallye!D126<>"",Rallye!D126<>"Section"),R31+T_0_Mod,),0) -> 12:26:00 | T31: =IF(P31>0,IF(AND(Rallye!D126<>"",Rallye!D126<>"Section"),T30+P31,),T30) -> 12:36:00 | U31: =IF(AND(Rallye!D126<>"",Rallye!D126<>"Section"),T31+$U$10,) -> 13:30:00 | V31: =IF(AND(Rallye!D126<>"",Rallye!D126<>"Section"),U31+$V$10,) -> 13:32:00
B32: =Rallye!B127 -> 0 | C32: =Rallye!C127 -> 5ème | D32: =Rallye!D127 -> Section | E32: =IF(AND(Rallye!D127<>"",Rallye!D127<>"Section"),($Q32-E$10),) -> 00:00:00 | F32: =IF(AND(Rallye!D127<>"",Rallye!D127<>"Section"),($Q32-F$10),) -> 00:00:00 | G32: =IF(AND(Rallye!D127<>"",Rallye!D127<>"Section"),($Q32-G$10),) -> 00:00:00 | H32: =IF(AND(Rallye!D127<>"",Rallye!D127<>"Section"),($Q32-H$10),) -> 00:00:00 | I32: =IF(AND(Rallye!D127<>"",Rallye!D127<>"Section"),($Q32-I$10),) -> 00:00:00 | J32: =IF(AND(Rallye!D127<>"",Rallye!D127<>"Section"),($Q32-J$10),) -> 00:00:00 | K32: =IF(AND(Rallye!D127<>"",Rallye!D127<>"Section"),($Q32-K$10),) -> 00:00:00 | L32: =IF(AND(Rallye!D127<>"",Rallye!D127<>"Section"),($Q32-L$10),) -> 00:00:00 | M32: =IF(AND(Rallye!D127<>"",Rallye!D127<>"Section"),($Q32-M$10),) -> 00:00:00 | N32: =IF(AND(Rallye!D127<>"",Rallye!D127<>"Section"),($Q32-N$10),) -> 00:00:00 | O32: =IF(AND(Rallye!D127<>"",Rallye!D127<>"Section"),($Q32-O$10),) -> 00:00:00 | P32: =Rallye!F126 -> 00:00:00 | Q32: =IF(P32>0,IF(OR(Rallye!D127<>"",Rallye!D127<>"Section"),Q31+P32,),Q31) -> 12:17:00 | R32: =IF(Q32>0,IF(AND(Rallye!D127<>"",Rallye!D127<>"Section"),Q32+T_Etp2_VHC+T_inf_Mod,),0) -> 00:00:00 | S32: =IF(Q32>0,IF(AND(Rallye!D127<>"",Rallye!D127<>"Section"),R32+T_0_Mod,),0) -> 00:00:00 | T32: =IF(P32>0,IF(AND(Rallye!D127<>"",Rallye!D127<>"Section"),T31+P32,),T31) -> 12:36:00 | U32: =IF(AND(Rallye!D127<>"",Rallye!D127<>"Section"),T32+$U$10,) -> 00:00:00 | V32: =IF(AND(Rallye!D127<>"",Rallye!D127<>"Section"),U32+$V$10,) -> 00:00:00
B33: =Rallye!B128 -> C.H. : | C33: =Rallye!C128 -> 10B | D33: =Rallye!D128 -> Sortie Parc Regroup | E33: =IF(AND(Rallye!D128<>"",Rallye!D128<>"Section"),($Q33-E$10),) -> 11:32:00 | F33: =IF(AND(Rallye!D128<>"",Rallye!D128<>"Section"),($Q33-F$10),) -> 11:47:00 | G33: =IF(AND(Rallye!D128<>"",Rallye!D128<>"Section"),($Q33-G$10),) -> 12:02:00 | H33: =IF(AND(Rallye!D128<>"",Rallye!D128<>"Section"),($Q33-H$10),) -> 12:22:00 | I33: =IF(AND(Rallye!D128<>"",Rallye!D128<>"Section"),($Q33-I$10),) -> 12:23:00 | J33: =IF(AND(Rallye!D128<>"",Rallye!D128<>"Section"),($Q33-J$10),) -> 12:24:00 | K33: =IF(AND(Rallye!D128<>"",Rallye!D128<>"Section"),($Q33-K$10),) -> 12:25:00 | L33: =IF(AND(Rallye!D128<>"",Rallye!D128<>"Section"),($Q33-L$10),) -> 12:32:00 | M33: =IF(AND(Rallye!D128<>"",Rallye!D128<>"Section"),($Q33-M$10),) -> 12:37:00 | N33: =IF(AND(Rallye!D128<>"",Rallye!D128<>"Section"),($Q33-N$10),) -> 12:47:00 | O33: =IF(AND(Rallye!D128<>"",Rallye!D128<>"Section"),($Q33-O$10),) -> 12:52:00 | P33: =Rallye!F127 -> 00:45:00 | Q33: =IF(P33>0,IF(OR(Rallye!D128<>"",Rallye!D128<>"Section"),Q32+P33,),Q32) -> 13:02:00 | R33: =IF(Q33>0,IF(AND(Rallye!D128<>"",Rallye!D128<>"Section"),Q33+T_Etp2_VHC+T_inf_Mod,),0) -> 13:06:00 | S33: =IF(Q33>0,IF(AND(Rallye!D128<>"",Rallye!D128<>"Section"),R33+T_0_Mod,),0) -> 13:11:00 | T33: =IF(P33>0,IF(AND(Rallye!D128<>"",Rallye!D128<>"Section"),T32+P33,),T32) -> 13:21:00 | U33: =IF(AND(Rallye!D128<>"",Rallye!D128<>"Section"),T33+$U$10,) -> 14:15:00 | V33: =IF(AND(Rallye!D128<>"",Rallye!D128<>"Section"),U33+$V$10,) -> 14:17:00
B34: =Rallye!B129 -> C.H. : | C34: =Rallye!C129 -> 10C | D34: =Rallye!D129 -> Entrée Assist (Stade St Yriex) | E34: =IF(AND(Rallye!D129<>"",Rallye!D129<>"Section"),($Q34-E$10),) -> 11:37:00 | F34: =IF(AND(Rallye!D129<>"",Rallye!D129<>"Section"),($Q34-F$10),) -> 11:52:00 | G34: =IF(AND(Rallye!D129<>"",Rallye!D129<>"Section"),($Q34-G$10),) -> 12:07:00 | H34: =IF(AND(Rallye!D129<>"",Rallye!D129<>"Section"),($Q34-H$10),) -> 12:27:00 | I34: =IF(AND(Rallye!D129<>"",Rallye!D129<>"Section"),($Q34-I$10),) -> 12:28:00 | J34: =IF(AND(Rallye!D129<>"",Rallye!D129<>"Section"),($Q34-J$10),) -> 12:29:00 | K34: =IF(AND(Rallye!D129<>"",Rallye!D129<>"Section"),($Q34-K$10),) -> 12:30:00 | L34: =IF(AND(Rallye!D129<>"",Rallye!D129<>"Section"),($Q34-L$10),) -> 12:37:00 | M34: =IF(AND(Rallye!D129<>"",Rallye!D129<>"Section"),($Q34-M$10),) -> 12:42:00 | N34: =IF(AND(Rallye!D129<>"",Rallye!D129<>"Section"),($Q34-N$10),) -> 12:52:00 | O34: =IF(AND(Rallye!D129<>"",Rallye!D129<>"Section"),($Q34-O$10),) -> 12:57:00 | P34: =Rallye!F128 -> 00:05:00 | Q34: =IF(P34>0,IF(OR(Rallye!D129<>"",Rallye!D129<>"Section"),Q33+P34,),Q33) -> 13:07:00 | R34: =IF(Q34>0,IF(AND(Rallye!D129<>"",Rallye!D129<>"Section"),Q34+T_Etp2_VHC+T_inf_Mod,),0) -> 13:11:00 | S34: =IF(Q34>0,IF(AND(Rallye!D129<>"",Rallye!D129<>"Section"),R34+T_0_Mod,),0) -> 13:16:00 | T34: =IF(P34>0,IF(AND(Rallye!D129<>"",Rallye!D129<>"Section"),T33+P34,),T33) -> 13:26:00 | U34: =IF(AND(Rallye!D129<>"",Rallye!D129<>"Section"),T34+$U$10,) -> 14:20:00 | V34: =IF(AND(Rallye!D129<>"",Rallye!D129<>"Section"),U34+$V$10,) -> 14:22:00
B35: =Rallye!B130 -> C.H. : | C35: =Rallye!C130 -> 10 D | D35: =Rallye!D130 -> Sortie Assistance | E35: =IF(AND(Rallye!D130<>"",Rallye!D130<>"Section"),($Q35-E$10),) -> 12:17:00 | F35: =IF(AND(Rallye!D130<>"",Rallye!D130<>"Section"),($Q35-F$10),) -> 12:32:00 | G35: =IF(AND(Rallye!D130<>"",Rallye!D130<>"Section"),($Q35-G$10),) -> 12:47:00 | H35: =IF(AND(Rallye!D130<>"",Rallye!D130<>"Section"),($Q35-H$10),) -> 13:07:00 | I35: =IF(AND(Rallye!D130<>"",Rallye!D130<>"Section"),($Q35-I$10),) -> 13:08:00 | J35: =IF(AND(Rallye!D130<>"",Rallye!D130<>"Section"),($Q35-J$10),) -> 13:09:00 | K35: =IF(AND(Rallye!D130<>"",Rallye!D130<>"Section"),($Q35-K$10),) -> 13:10:00 | L35: =IF(AND(Rallye!D130<>"",Rallye!D130<>"Section"),($Q35-L$10),) -> 13:17:00 | M35: =IF(AND(Rallye!D130<>"",Rallye!D130<>"Section"),($Q35-M$10),) -> 13:22:00 | N35: =IF(AND(Rallye!D130<>"",Rallye!D130<>"Section"),($Q35-N$10),) -> 13:32:00 | O35: =IF(AND(Rallye!D130<>"",Rallye!D130<>"Section"),($Q35-O$10),) -> 13:37:00 | P35: =Rallye!F129 -> 00:40:00 | Q35: =IF(P35>0,IF(OR(Rallye!D130<>"",Rallye!D130<>"Section"),Q34+P35,),Q34) -> 13:47:00 | R35: =IF(Q35>0,IF(AND(Rallye!D130<>"",Rallye!D130<>"Section"),Q35+T_Etp2_VHC+T_inf_Mod,),0) -> 13:51:00 | S35: =IF(Q35>0,IF(AND(Rallye!D130<>"",Rallye!D130<>"Section"),R35+T_0_Mod,),0) -> 13:56:00 | T35: =IF(P35>0,IF(AND(Rallye!D130<>"",Rallye!D130<>"Section"),T34+P35,),T34) -> 14:06:00 | U35: =IF(AND(Rallye!D130<>"",Rallye!D130<>"Section"),T35+$U$10,) -> 15:00:00 | V35: =IF(AND(Rallye!D130<>"",Rallye!D130<>"Section"),U35+$V$10,) -> 15:02:00
B36: =Rallye!B131 -> C.H. : | C36: =Rallye!C131 -> 11 | D36: =Rallye!D131 -> Avant Départ ES 11 | E36: =IF(AND(Rallye!D131<>"",Rallye!D131<>"Section"),($Q36-E$10),) -> 12:42:00 | F36: =IF(AND(Rallye!D131<>"",Rallye!D131<>"Section"),($Q36-F$10),) -> 12:57:00 | G36: =IF(AND(Rallye!D131<>"",Rallye!D131<>"Section"),($Q36-G$10),) -> 13:12:00 | H36: =IF(AND(Rallye!D131<>"",Rallye!D131<>"Section"),($Q36-H$10),) -> 13:32:00 | I36: =IF(AND(Rallye!D131<>"",Rallye!D131<>"Section"),($Q36-I$10),) -> 13:33:00 | J36: =IF(AND(Rallye!D131<>"",Rallye!D131<>"Section"),($Q36-J$10),) -> 13:34:00 | K36: =IF(AND(Rallye!D131<>"",Rallye!D131<>"Section"),($Q36-K$10),) -> 13:35:00 | L36: =IF(AND(Rallye!D131<>"",Rallye!D131<>"Section"),($Q36-L$10),) -> 13:42:00 | M36: =IF(AND(Rallye!D131<>"",Rallye!D131<>"Section"),($Q36-M$10),) -> 13:47:00 | N36: =IF(AND(Rallye!D131<>"",Rallye!D131<>"Section"),($Q36-N$10),) -> 13:57:00 | O36: =IF(AND(Rallye!D131<>"",Rallye!D131<>"Section"),($Q36-O$10),) -> 14:02:00 | P36: =Rallye!F130 -> 00:25:00 | Q36: =IF(P36>0,IF(OR(Rallye!D131<>"",Rallye!D131<>"Section"),Q35+P36,),Q35) -> 14:12:00 | R36: =IF(Q36>0,IF(AND(Rallye!D131<>"",Rallye!D131<>"Section"),Q36+T_Etp2_VHC+T_inf_Mod,),0) -> 14:16:00 | S36: =IF(Q36>0,IF(AND(Rallye!D131<>"",Rallye!D131<>"Section"),R36+T_0_Mod,),0) -> 14:21:00 | T36: =IF(P36>0,IF(AND(Rallye!D131<>"",Rallye!D131<>"Section"),T35+P36,),T35) -> 14:31:00 | U36: =IF(AND(Rallye!D131<>"",Rallye!D131<>"Section"),T36+$U$10,) -> 15:25:00 | V36: =IF(AND(Rallye!D131<>"",Rallye!D131<>"Section"),U36+$V$10,) -> 15:27:00
B37: =Rallye!B132 -> Départ E.S. : | C37: =Rallye!C132 -> 11 | D37: =Rallye!D132 -> La GABIE de la POULE 3 (9 Kms) | E37: =IF(AND(Rallye!D132<>"",Rallye!D132<>"Section"),($Q37-E$10),) -> 12:45:00 | F37: =IF(AND(Rallye!D132<>"",Rallye!D132<>"Section"),($Q37-F$10),) -> 13:00:00 | G37: =IF(AND(Rallye!D132<>"",Rallye!D132<>"Section"),($Q37-G$10),) -> 13:15:00 | H37: =IF(AND(Rallye!D132<>"",Rallye!D132<>"Section"),($Q37-H$10),) -> 13:35:00 | I37: =IF(AND(Rallye!D132<>"",Rallye!D132<>"Section"),($Q37-I$10),) -> 13:36:00 | J37: =IF(AND(Rallye!D132<>"",Rallye!D132<>"Section"),($Q37-J$10),) -> 13:37:00 | K37: =IF(AND(Rallye!D132<>"",Rallye!D132<>"Section"),($Q37-K$10),) -> 13:38:00 | L37: =IF(AND(Rallye!D132<>"",Rallye!D132<>"Section"),($Q37-L$10),) -> 13:45:00 | M37: =IF(AND(Rallye!D132<>"",Rallye!D132<>"Section"),($Q37-M$10),) -> 13:50:00 | N37: =IF(AND(Rallye!D132<>"",Rallye!D132<>"Section"),($Q37-N$10),) -> 14:00:00 | O37: =IF(AND(Rallye!D132<>"",Rallye!D132<>"Section"),($Q37-O$10),) -> 14:05:00 | P37: =Rallye!F131 -> 00:03:00 | Q37: =IF(P37>0,IF(OR(Rallye!D132<>"",Rallye!D132<>"Section"),Q36+P37,),Q36) -> 14:15:00 | R37: =IF(Q37>0,IF(AND(Rallye!D132<>"",Rallye!D132<>"Section"),Q37+T_Etp2_VHC+T_inf_Mod,),0) -> 14:19:00 | S37: =IF(Q37>0,IF(AND(Rallye!D132<>"",Rallye!D132<>"Section"),R37+T_0_Mod,),0) -> 14:24:00 | T37: =IF(P37>0,IF(AND(Rallye!D132<>"",Rallye!D132<>"Section"),T36+P37,),T36) -> 14:34:00 | U37: =IF(AND(Rallye!D132<>"",Rallye!D132<>"Section"),T37+$U$10,) -> 15:28:00 | V37: =IF(AND(Rallye!D132<>"",Rallye!D132<>"Section"),U37+$V$10,) -> 15:30:00
B38: =Rallye!B133 -> Arriv. E.S. : | C38: =Rallye!C133 -> 11 | D38: =Rallye!D133 -> 0 | E38: =IF(AND(Rallye!D133<>"",Rallye!D133<>"Section"),($Q38-E$10),) -> 00:00:00 | F38: =IF(AND(Rallye!D133<>"",Rallye!D133<>"Section"),($Q38-F$10),) -> 00:00:00 | G38: =IF(AND(Rallye!D133<>"",Rallye!D133<>"Section"),($Q38-G$10),) -> 00:00:00 | H38: =IF(AND(Rallye!D133<>"",Rallye!D133<>"Section"),($Q38-H$10),) -> 00:00:00 | I38: =IF(AND(Rallye!D133<>"",Rallye!D133<>"Section"),($Q38-I$10),) -> 00:00:00 | J38: =IF(AND(Rallye!D133<>"",Rallye!D133<>"Section"),($Q38-J$10),) -> 00:00:00 | K38: =IF(AND(Rallye!D133<>"",Rallye!D133<>"Section"),($Q38-K$10),) -> 00:00:00 | L38: =IF(AND(Rallye!D133<>"",Rallye!D133<>"Section"),($Q38-L$10),) -> 00:00:00 | M38: =IF(AND(Rallye!D133<>"",Rallye!D133<>"Section"),($Q38-M$10),) -> 00:00:00 | N38: =IF(AND(Rallye!D133<>"",Rallye!D133<>"Section"),($Q38-N$10),) -> 00:00:00 | O38: =IF(AND(Rallye!D133<>"",Rallye!D133<>"Section"),($Q38-O$10),) -> 00:00:00 | P38: =Rallye!F132 -> 00:00:00 | Q38: =IF(P38>0,IF(OR(Rallye!D133<>"",Rallye!D133<>"Section"),Q37+P38,),Q37) -> 14:15:00 | R38: =IF(Q38>0,IF(AND(Rallye!D133<>"",Rallye!D133<>"Section"),Q38+T_Etp2_VHC+T_inf_Mod,),0) -> 00:00:00 | S38: =IF(Q38>0,IF(AND(Rallye!D133<>"",Rallye!D133<>"Section"),R38+T_0_Mod,),0) -> 00:00:00 | T38: =IF(P38>0,IF(AND(Rallye!D133<>"",Rallye!D133<>"Section"),T37+P38,),T37) -> 14:34:00 | U38: =IF(AND(Rallye!D133<>"",Rallye!D133<>"Section"),T38+$U$10,) -> 00:00:00 | V38: =IF(AND(Rallye!D133<>"",Rallye!D133<>"Section"),U38+$V$10,) -> 00:00:00
B39: =Rallye!B134 -> C.H. : | C39: =Rallye!C134 -> 12 | D39: =Rallye!D134 -> Avant Départ ES 12 | E39: =IF(AND(Rallye!D134<>"",Rallye!D134<>"Section"),($Q39-E$10),) -> 13:05:00 | F39: =IF(AND(Rallye!D134<>"",Rallye!D134<>"Section"),($Q39-F$10),) -> 13:20:00 | G39: =IF(AND(Rallye!D134<>"",Rallye!D134<>"Section"),($Q39-G$10),) -> 13:35:00 | H39: =IF(AND(Rallye!D134<>"",Rallye!D134<>"Section"),($Q39-H$10),) -> 13:55:00 | I39: =IF(AND(Rallye!D134<>"",Rallye!D134<>"Section"),($Q39-I$10),) -> 13:56:00 | J39: =IF(AND(Rallye!D134<>"",Rallye!D134<>"Section"),($Q39-J$10),) -> 13:57:00 | K39: =IF(AND(Rallye!D134<>"",Rallye!D134<>"Section"),($Q39-K$10),) -> 13:58:00 | L39: =IF(AND(Rallye!D134<>"",Rallye!D134<>"Section"),($Q39-L$10),) -> 14:05:00 | M39: =IF(AND(Rallye!D134<>"",Rallye!D134<>"Section"),($Q39-M$10),) -> 14:10:00 | N39: =IF(AND(Rallye!D134<>"",Rallye!D134<>"Section"),($Q39-N$10),) -> 14:20:00 | O39: =IF(AND(Rallye!D134<>"",Rallye!D134<>"Section"),($Q39-O$10),) -> 14:25:00 | P39: =Rallye!F133 -> 00:20:00 | Q39: =IF(P39>0,IF(OR(Rallye!D134<>"",Rallye!D134<>"Section"),Q38+P39,),Q38) -> 14:35:00 | R39: =IF(Q39>0,IF(AND(Rallye!D134<>"",Rallye!D134<>"Section"),Q39+T_Etp2_VHC+T_inf_Mod,),0) -> 14:39:00 | S39: =IF(Q39>0,IF(AND(Rallye!D134<>"",Rallye!D134<>"Section"),R39+T_0_Mod,),0) -> 14:44:00 | T39: =IF(P39>0,IF(AND(Rallye!D134<>"",Rallye!D134<>"Section"),T38+P39,),T38) -> 14:54:00 | U39: =IF(AND(Rallye!D134<>"",Rallye!D134<>"Section"),T39+$U$10,) -> 15:48:00 | V39: =IF(AND(Rallye!D134<>"",Rallye!D134<>"Section"),U39+$V$10,) -> 15:50:00
B40: =Rallye!B135 -> Départ E.S. : | C40: =Rallye!C135 -> 12 | D40: =Rallye!D135 -> GLANDON 3 (17,810 Kms) | E40: =IF(AND(Rallye!D135<>"",Rallye!D135<>"Section"),($Q40-E$10),) -> 13:08:00 | F40: =IF(AND(Rallye!D135<>"",Rallye!D135<>"Section"),($Q40-F$10),) -> 13:23:00 | G40: =IF(AND(Rallye!D135<>"",Rallye!D135<>"Section"),($Q40-G$10),) -> 13:38:00 | H40: =IF(AND(Rallye!D135<>"",Rallye!D135<>"Section"),($Q40-H$10),) -> 13:58:00 | I40: =IF(AND(Rallye!D135<>"",Rallye!D135<>"Section"),($Q40-I$10),) -> 13:59:00 | J40: =IF(AND(Rallye!D135<>"",Rallye!D135<>"Section"),($Q40-J$10),) -> 14:00:00 | K40: =IF(AND(Rallye!D135<>"",Rallye!D135<>"Section"),($Q40-K$10),) -> 14:01:00 | L40: =IF(AND(Rallye!D135<>"",Rallye!D135<>"Section"),($Q40-L$10),) -> 14:08:00 | M40: =IF(AND(Rallye!D135<>"",Rallye!D135<>"Section"),($Q40-M$10),) -> 14:13:00 | N40: =IF(AND(Rallye!D135<>"",Rallye!D135<>"Section"),($Q40-N$10),) -> 14:23:00 | O40: =IF(AND(Rallye!D135<>"",Rallye!D135<>"Section"),($Q40-O$10),) -> 14:28:00 | P40: =Rallye!F134 -> 00:03:00 | Q40: =IF(P40>0,IF(OR(Rallye!D135<>"",Rallye!D135<>"Section"),Q39+P40,),Q39) -> 14:38:00 | R40: =IF(Q40>0,IF(AND(Rallye!D135<>"",Rallye!D135<>"Section"),Q40+T_Etp2_VHC+T_inf_Mod,),0) -> 14:42:00 | S40: =IF(Q40>0,IF(AND(Rallye!D135<>"",Rallye!D135<>"Section"),R40+T_0_Mod,),0) -> 14:47:00 | T40: =IF(P40>0,IF(AND(Rallye!D135<>"",Rallye!D135<>"Section"),T39+P40,),T39) -> 14:57:00 | U40: =IF(AND(Rallye!D135<>"",Rallye!D135<>"Section"),T40+$U$10,) -> 15:51:00 | V40: =IF(AND(Rallye!D135<>"",Rallye!D135<>"Section"),U40+$V$10,) -> 15:53:00
B41: =Rallye!B136 -> Arriv. E.S. : | C41: =Rallye!C136 -> 12 | D41: =Rallye!D136 -> 0 | E41: =IF(AND(Rallye!D136<>"",Rallye!D136<>"Section"),($Q41-E$10),) -> 00:00:00 | F41: =IF(AND(Rallye!D136<>"",Rallye!D136<>"Section"),($Q41-F$10),) -> 00:00:00 | G41: =IF(AND(Rallye!D136<>"",Rallye!D136<>"Section"),($Q41-G$10),) -> 00:00:00 | H41: =IF(AND(Rallye!D136<>"",Rallye!D136<>"Section"),($Q41-H$10),) -> 00:00:00 | I41: =IF(AND(Rallye!D136<>"",Rallye!D136<>"Section"),($Q41-I$10),) -> 00:00:00 | J41: =IF(AND(Rallye!D136<>"",Rallye!D136<>"Section"),($Q41-J$10),) -> 00:00:00 | K41: =IF(AND(Rallye!D136<>"",Rallye!D136<>"Section"),($Q41-K$10),) -> 00:00:00 | L41: =IF(AND(Rallye!D136<>"",Rallye!D136<>"Section"),($Q41-L$10),) -> 00:00:00 | M41: =IF(AND(Rallye!D136<>"",Rallye!D136<>"Section"),($Q41-M$10),) -> 00:00:00 | N41: =IF(AND(Rallye!D136<>"",Rallye!D136<>"Section"),($Q41-N$10),) -> 00:00:00 | O41: =IF(AND(Rallye!D136<>"",Rallye!D136<>"Section"),($Q41-O$10),) -> 00:00:00 | P41: =Rallye!F135 -> 00:00:00 | Q41: =IF(P41>0,IF(OR(Rallye!D136<>"",Rallye!D136<>"Section"),Q40+P41,),Q40) -> 14:38:00 | R41: =IF(Q41>0,IF(AND(Rallye!D136<>"",Rallye!D136<>"Section"),Q41+T_Etp2_VHC+T_inf_Mod,),0) -> 00:00:00 | S41: =IF(Q41>0,IF(AND(Rallye!D136<>"",Rallye!D136<>"Section"),R41+T_0_Mod,),0) -> 00:00:00 | T41: =IF(P41>0,IF(AND(Rallye!D136<>"",Rallye!D136<>"Section"),T40+P41,),T40) -> 14:57:00 | U41: =IF(AND(Rallye!D136<>"",Rallye!D136<>"Section"),T41+$U$10,) -> 00:00:00 | V41: =IF(AND(Rallye!D136<>"",Rallye!D136<>"Section"),U41+$V$10,) -> 00:00:00
B42: =Rallye!B137 -> C.H. : | C42: =Rallye!C137 -> 12A | D42: =Rallye!D137 -> Entrée Assist (Stade St Yriex) | E42: =IF(AND(Rallye!D137<>"",Rallye!D137<>"Section"),($Q42-E$10),) -> 13:43:00 | F42: =IF(AND(Rallye!D137<>"",Rallye!D137<>"Section"),($Q42-F$10),) -> 13:58:00 | G42: =IF(AND(Rallye!D137<>"",Rallye!D137<>"Section"),($Q42-G$10),) -> 14:13:00 | H42: =IF(AND(Rallye!D137<>"",Rallye!D137<>"Section"),($Q42-H$10),) -> 14:33:00 | I42: =IF(AND(Rallye!D137<>"",Rallye!D137<>"Section"),($Q42-I$10),) -> 14:34:00 | J42: =IF(AND(Rallye!D137<>"",Rallye!D137<>"Section"),($Q42-J$10),) -> 14:35:00 | K42: =IF(AND(Rallye!D137<>"",Rallye!D137<>"Section"),($Q42-K$10),) -> 14:36:00 | L42: =IF(AND(Rallye!D137<>"",Rallye!D137<>"Section"),($Q42-L$10),) -> 14:43:00 | M42: =IF(AND(Rallye!D137<>"",Rallye!D137<>"Section"),($Q42-M$10),) -> 14:48:00 | N42: =IF(AND(Rallye!D137<>"",Rallye!D137<>"Section"),($Q42-N$10),) -> 14:58:00 | O42: =IF(AND(Rallye!D137<>"",Rallye!D137<>"Section"),($Q42-O$10),) -> 15:03:00 | P42: =Rallye!F136 -> 00:35:00 | Q42: =IF(P42>0,IF(OR(Rallye!D137<>"",Rallye!D137<>"Section"),Q41+P42,),Q41) -> 15:13:00 | R42: =IF(Q42>0,IF(AND(Rallye!D137<>"",Rallye!D137<>"Section"),Q42+T_Etp2_VHC+T_inf_Mod,),0) -> 15:17:00 | S42: =IF(Q42>0,IF(AND(Rallye!D137<>"",Rallye!D137<>"Section"),R42+T_0_Mod,),0) -> 15:22:00 | T42: =IF(P42>0,IF(AND(Rallye!D137<>"",Rallye!D137<>"Section"),T41+P42,),T41) -> 15:32:00 | U42: =IF(AND(Rallye!D137<>"",Rallye!D137<>"Section"),T42+$U$10,) -> 16:26:00 | V42: =IF(AND(Rallye!D137<>"",Rallye!D137<>"Section"),U42+$V$10,) -> 16:28:00
B43: =Rallye!B138 -> C.H. : | C43: =Rallye!C138 -> 12B | D43: =Rallye!D138 -> Sortie Assistance | E43: =IF(AND(Rallye!D138<>"",Rallye!D138<>"Section"),($Q43-E$10),) -> 13:53:00 | F43: =IF(AND(Rallye!D138<>"",Rallye!D138<>"Section"),($Q43-F$10),) -> 14:08:00 | G43: =IF(AND(Rallye!D138<>"",Rallye!D138<>"Section"),($Q43-G$10),) -> 14:23:00 | H43: =IF(AND(Rallye!D138<>"",Rallye!D138<>"Section"),($Q43-H$10),) -> 14:43:00 | I43: =IF(AND(Rallye!D138<>"",Rallye!D138<>"Section"),($Q43-I$10),) -> 14:44:00 | J43: =IF(AND(Rallye!D138<>"",Rallye!D138<>"Section"),($Q43-J$10),) -> 14:45:00 | K43: =IF(AND(Rallye!D138<>"",Rallye!D138<>"Section"),($Q43-K$10),) -> 14:46:00 | L43: =IF(AND(Rallye!D138<>"",Rallye!D138<>"Section"),($Q43-L$10),) -> 14:53:00 | M43: =IF(AND(Rallye!D138<>"",Rallye!D138<>"Section"),($Q43-M$10),) -> 14:58:00 | N43: =IF(AND(Rallye!D138<>"",Rallye!D138<>"Section"),($Q43-N$10),) -> 15:08:00 | O43: =IF(AND(Rallye!D138<>"",Rallye!D138<>"Section"),($Q43-O$10),) -> 15:13:00 | P43: =Rallye!F137 -> 00:10:00 | Q43: =IF(P43>0,IF(OR(Rallye!D138<>"",Rallye!D138<>"Section"),Q42+P43,),Q42) -> 15:23:00 | R43: =IF(Q43>0,IF(AND(Rallye!D138<>"",Rallye!D138<>"Section"),Q43+T_Etp2_VHC+T_inf_Mod,),0) -> 15:27:00 | S43: =IF(Q43>0,IF(AND(Rallye!D138<>"",Rallye!D138<>"Section"),R43+T_0_Mod,),0) -> 15:32:00 | T43: =IF(P43>0,IF(AND(Rallye!D138<>"",Rallye!D138<>"Section"),T42+P43,),T42) -> 15:42:00 | U43: =IF(AND(Rallye!D138<>"",Rallye!D138<>"Section"),T43+$U$10,) -> 16:36:00 | V43: =IF(AND(Rallye!D138<>"",Rallye!D138<>"Section"),U43+$V$10,) -> 16:38:00
B44: =Rallye!B139 -> C.H. : | C44: =Rallye!C139 -> 12C | D44: =Rallye!D139 -> Entrée Parc Fermé d'Arrivée | E44: =IF(AND(Rallye!D139<>"",Rallye!D139<>"Section"),($Q44-E$10),) -> 13:58:00 | F44: =IF(AND(Rallye!D139<>"",Rallye!D139<>"Section"),($Q44-F$10),) -> 14:13:00 | G44: =IF(AND(Rallye!D139<>"",Rallye!D139<>"Section"),($Q44-G$10),) -> 14:28:00 | H44: =IF(AND(Rallye!D139<>"",Rallye!D139<>"Section"),($Q44-H$10),) -> 14:48:00 | I44: =IF(AND(Rallye!D139<>"",Rallye!D139<>"Section"),($Q44-I$10),) -> 14:49:00 | J44: =IF(AND(Rallye!D139<>"",Rallye!D139<>"Section"),($Q44-J$10),) -> 14:50:00 | K44: =IF(AND(Rallye!D139<>"",Rallye!D139<>"Section"),($Q44-K$10),) -> 14:51:00 | L44: =IF(AND(Rallye!D139<>"",Rallye!D139<>"Section"),($Q44-L$10),) -> 14:58:00 | M44: =IF(AND(Rallye!D139<>"",Rallye!D139<>"Section"),($Q44-M$10),) -> 15:03:00 | N44: =IF(AND(Rallye!D139<>"",Rallye!D139<>"Section"),($Q44-N$10),) -> 15:13:00 | O44: =IF(AND(Rallye!D139<>"",Rallye!D139<>"Section"),($Q44-O$10),) -> 15:18:00 | P44: =Rallye!F138 -> 00:05:00 | Q44: =IF(P44>0,IF(OR(Rallye!D139<>"",Rallye!D139<>"Section"),Q43+P44,),Q43) -> 15:28:00 | R44: =IF(Q44>0,IF(AND(Rallye!D139<>"",Rallye!D139<>"Section"),Q44+T_Etp2_VHC+T_inf_Mod,),0) -> 15:32:00 | S44: =IF(Q44>0,IF(AND(Rallye!D139<>"",Rallye!D139<>"Section"),R44+T_0_Mod,),0) -> 15:37:00 | T44: =IF(P44>0,IF(AND(Rallye!D139<>"",Rallye!D139<>"Section"),T43+P44,),T43) -> 15:47:00 | U44: =IF(AND(Rallye!D139<>"",Rallye!D139<>"Section"),T44+$U$10,) -> 16:41:00 | V44: =IF(AND(Rallye!D139<>"",Rallye!D139<>"Section"),U44+$V$10,) -> 16:43:00
B45: =Rallye!B140 -> 0 | C45: =Rallye!C140 -> 0 | D45: =Rallye!D140 -> 0 | E45: =IF(AND(Rallye!D140<>"",Rallye!D140<>"Section"),($Q45-E$10),) -> 00:00:00 | F45: =IF(AND(Rallye!D140<>"",Rallye!D140<>"Section"),($Q45-F$10),) -> 00:00:00 | G45: =IF(AND(Rallye!D140<>"",Rallye!D140<>"Section"),($Q45-G$10),) -> 00:00:00 | H45: =IF(AND(Rallye!D140<>"",Rallye!D140<>"Section"),($Q45-H$10),) -> 00:00:00 | I45: =IF(AND(Rallye!D140<>"",Rallye!D140<>"Section"),($Q45-I$10),) -> 00:00:00 | J45: =IF(AND(Rallye!D140<>"",Rallye!D140<>"Section"),($Q45-J$10),) -> 00:00:00 | K45: =IF(AND(Rallye!D140<>"",Rallye!D140<>"Section"),($Q45-K$10),) -> 00:00:00 | L45: =IF(AND(Rallye!D140<>"",Rallye!D140<>"Section"),($Q45-L$10),) -> 00:00:00 | M45: =IF(AND(Rallye!D140<>"",Rallye!D140<>"Section"),($Q45-M$10),) -> 00:00:00 | N45: =IF(AND(Rallye!D140<>"",Rallye!D140<>"Section"),($Q45-N$10),) -> 00:00:00 | O45: =IF(AND(Rallye!D140<>"",Rallye!D140<>"Section"),($Q45-O$10),) -> 00:00:00 | P45: =Rallye!F139 -> 00:00:00 | Q45: =IF(P45>0,IF(OR(Rallye!D140<>"",Rallye!D140<>"Section"),Q44+P45,),Q44) -> 15:28:00 | R45: =IF(Q45>0,IF(AND(Rallye!D140<>"",Rallye!D140<>"Section"),Q45+T_Etp2_VHC+T_inf_Mod,),0) -> 00:00:00 | S45: =IF(Q45>0,IF(AND(Rallye!D140<>"",Rallye!D140<>"Section"),R45+T_0_Mod,),0) -> 00:00:00 | T45: =IF(P45>0,IF(AND(Rallye!D140<>"",Rallye!D140<>"Section"),T44+P45,),T44) -> 15:47:00 | U45: =IF(AND(Rallye!D140<>"",Rallye!D140<>"Section"),T45+$U$10,) -> 00:00:00 | V45: =IF(AND(Rallye!D140<>"",Rallye!D140<>"Section"),U45+$V$10,) -> 00:00:00
B46: =Rallye!B141 -> 0 | C46: =Rallye!C141 -> 0 | D46: =Rallye!D141 -> 0 | E46: =IF(AND(Rallye!D141<>"",Rallye!D141<>"Section"),($Q46-E$10),) -> 00:00:00 | F46: =IF(AND(Rallye!D141<>"",Rallye!D141<>"Section"),($Q46-F$10),) -> 00:00:00 | G46: =IF(AND(Rallye!D141<>"",Rallye!D141<>"Section"),($Q46-G$10),) -> 00:00:00 | H46: =IF(AND(Rallye!D141<>"",Rallye!D141<>"Section"),($Q46-H$10),) -> 00:00:00 | I46: =IF(AND(Rallye!D141<>"",Rallye!D141<>"Section"),($Q46-I$10),) -> 00:00:00 | J46: =IF(AND(Rallye!D141<>"",Rallye!D141<>"Section"),($Q46-J$10),) -> 00:00:00 | K46: =IF(AND(Rallye!D141<>"",Rallye!D141<>"Section"),($Q46-K$10),) -> 00:00:00 | L46: =IF(AND(Rallye!D141<>"",Rallye!D141<>"Section"),($Q46-L$10),) -> 00:00:00 | M46: =IF(AND(Rallye!D141<>"",Rallye!D141<>"Section"),($Q46-M$10),) -> 00:00:00 | N46: =IF(AND(Rallye!D141<>"",Rallye!D141<>"Section"),($Q46-N$10),) -> 00:00:00 | O46: =IF(AND(Rallye!D141<>"",Rallye!D141<>"Section"),($Q46-O$10),) -> 00:00:00 | P46: =Rallye!F140 -> 00:00:00 | Q46: =IF(P46>0,IF(OR(Rallye!D141<>"",Rallye!D141<>"Section"),Q45+P46,),Q45) -> 15:28:00 | R46: =IF(Q46>0,IF(AND(Rallye!D141<>"",Rallye!D141<>"Section"),Q46+T_Etp2_VHC+T_inf_Mod,),0) -> 00:00:00 | S46: =IF(Q46>0,IF(AND(Rallye!D141<>"",Rallye!D141<>"Section"),R46+T_0_Mod,),0) -> 00:00:00 | T46: =IF(P46>0,IF(AND(Rallye!D141<>"",Rallye!D141<>"Section"),T45+P46,),T45) -> 15:47:00 | U46: =IF(AND(Rallye!D141<>"",Rallye!D141<>"Section"),T46+$U$10,) -> 00:00:00 | V46: =IF(AND(Rallye!D141<>"",Rallye!D141<>"Section"),U46+$V$10,) -> 00:00:00
B47: =Rallye!B142 -> 0 | C47: =Rallye!C142 -> 0 | D47: =Rallye!D142 -> 0 | E47: =IF(AND(Rallye!D142<>"",Rallye!D142<>"Section"),($Q47-E$10),) -> 00:00:00 | F47: =IF(AND(Rallye!D142<>"",Rallye!D142<>"Section"),($Q47-F$10),) -> 00:00:00 | G47: =IF(AND(Rallye!D142<>"",Rallye!D142<>"Section"),($Q47-G$10),) -> 00:00:00 | H47: =IF(AND(Rallye!D142<>"",Rallye!D142<>"Section"),($Q47-H$10),) -> 00:00:00 | I47: =IF(AND(Rallye!D142<>"",Rallye!D142<>"Section"),($Q47-I$10),) -> 00:00:00 | J47: =IF(AND(Rallye!D142<>"",Rallye!D142<>"Section"),($Q47-J$10),) -> 00:00:00 | K47: =IF(AND(Rallye!D142<>"",Rallye!D142<>"Section"),($Q47-K$10),) -> 00:00:00 | L47: =IF(AND(Rallye!D142<>"",Rallye!D142<>"Section"),($Q47-L$10),) -> 00:00:00 | M47: =IF(AND(Rallye!D142<>"",Rallye!D142<>"Section"),($Q47-M$10),) -> 00:00:00 | N47: =IF(AND(Rallye!D142<>"",Rallye!D142<>"Section"),($Q47-N$10),) -> 00:00:00 | O47: =IF(AND(Rallye!D142<>"",Rallye!D142<>"Section"),($Q47-O$10),) -> 00:00:00 | P47: =Rallye!F141 -> 00:00:00 | Q47: =IF(P47>0,IF(OR(Rallye!D142<>"",Rallye!D142<>"Section"),Q46+P47,),Q46) -> 15:28:00 | R47: =IF(Q47>0,IF(AND(Rallye!D142<>"",Rallye!D142<>"Section"),Q47+T_Etp2_VHC+T_inf_Mod,),0) -> 00:00:00 | S47: =IF(Q47>0,IF(AND(Rallye!D142<>"",Rallye!D142<>"Section"),R47+T_0_Mod,),0) -> 00:00:00 | T47: =IF(P47>0,IF(AND(Rallye!D142<>"",Rallye!D142<>"Section"),T46+P47,),T46) -> 15:47:00 | U47: =IF(AND(Rallye!D142<>"",Rallye!D142<>"Section"),T47+$U$10,) -> 00:00:00 | V47: =IF(AND(Rallye!D142<>"",Rallye!D142<>"Section"),U47+$V$10,) -> 00:00:00
B48: =Rallye!B143 -> 0 | C48: =Rallye!C143 -> 0 | D48: =Rallye!D143 -> 0 | E48: =IF(AND(Rallye!D143<>"",Rallye!D143<>"Section"),($Q48-E$10),) -> 00:00:00 | F48: =IF(AND(Rallye!D143<>"",Rallye!D143<>"Section"),($Q48-F$10),) -> 00:00:00 | G48: =IF(AND(Rallye!D143<>"",Rallye!D143<>"Section"),($Q48-G$10),) -> 00:00:00 | H48: =IF(AND(Rallye!D143<>"",Rallye!D143<>"Section"),($Q48-H$10),) -> 00:00:00 | I48: =IF(AND(Rallye!D143<>"",Rallye!D143<>"Section"),($Q48-I$10),) -> 00:00:00 | J48: =IF(AND(Rallye!D143<>"",Rallye!D143<>"Section"),($Q48-J$10),) -> 00:00:00 | K48: =IF(AND(Rallye!D143<>"",Rallye!D143<>"Section"),($Q48-K$10),) -> 00:00:00 | L48: =IF(AND(Rallye!D143<>"",Rallye!D143<>"Section"),($Q48-L$10),) -> 00:00:00 | M48: =IF(AND(Rallye!D143<>"",Rallye!D143<>"Section"),($Q48-M$10),) -> 00:00:00 | N48: =IF(AND(Rallye!D143<>"",Rallye!D143<>"Section"),($Q48-N$10),) -> 00:00:00 | O48: =IF(AND(Rallye!D143<>"",Rallye!D143<>"Section"),($Q48-O$10),) -> 00:00:00 | P48: =Rallye!F142 -> 00:00:00 | Q48: =IF(P48>0,IF(OR(Rallye!D143<>"",Rallye!D143<>"Section"),Q47+P48,),Q47) -> 15:28:00 | R48: =IF(Q48>0,IF(AND(Rallye!D143<>"",Rallye!D143<>"Section"),Q48+T_Etp2_VHC+T_inf_Mod,),0) -> 00:00:00 | S48: =IF(Q48>0,IF(AND(Rallye!D143<>"",Rallye!D143<>"Section"),R48+T_0_Mod,),0) -> 00:00:00 | T48: =IF(P48>0,IF(AND(Rallye!D143<>"",Rallye!D143<>"Section"),T47+P48,),T47) -> 15:47:00 | U48: =IF(AND(Rallye!D143<>"",Rallye!D143<>"Section"),T48+$U$10,) -> 00:00:00 | V48: =IF(AND(Rallye!D143<>"",Rallye!D143<>"Section"),U48+$V$10,) -> 00:00:00
B49: =Rallye!B144 -> 0 | C49: =Rallye!C144 -> 0 | D49: =Rallye!D144 -> 0 | E49: =IF(AND(Rallye!D144<>"",Rallye!D144<>"Section"),($Q49-E$10),) -> 00:00:00 | F49: =IF(AND(Rallye!D144<>"",Rallye!D144<>"Section"),($Q49-F$10),) -> 00:00:00 | G49: =IF(AND(Rallye!D144<>"",Rallye!D144<>"Section"),($Q49-G$10),) -> 00:00:00 | H49: =IF(AND(Rallye!D144<>"",Rallye!D144<>"Section"),($Q49-H$10),) -> 00:00:00 | I49: =IF(AND(Rallye!D144<>"",Rallye!D144<>"Section"),($Q49-I$10),) -> 00:00:00 | J49: =IF(AND(Rallye!D144<>"",Rallye!D144<>"Section"),($Q49-J$10),) -> 00:00:00 | K49: =IF(AND(Rallye!D144<>"",Rallye!D144<>"Section"),($Q49-K$10),) -> 00:00:00 | L49: =IF(AND(Rallye!D144<>"",Rallye!D144<>"Section"),($Q49-L$10),) -> 00:00:00 | M49: =IF(AND(Rallye!D144<>"",Rallye!D144<>"Section"),($Q49-M$10),) -> 00:00:00 | N49: =IF(AND(Rallye!D144<>"",Rallye!D144<>"Section"),($Q49-N$10),) -> 00:00:00 | O49: =IF(AND(Rallye!D144<>"",Rallye!D144<>"Section"),($Q49-O$10),) -> 00:00:00 | P49: =Rallye!F143 -> 00:00:00 | Q49: =IF(P49>0,IF(OR(Rallye!D144<>"",Rallye!D144<>"Section"),Q48+P49,),Q48) -> 15:28:00 | R49: =IF(Q49>0,IF(AND(Rallye!D144<>"",Rallye!D144<>"Section"),Q49+T_Etp2_VHC+T_inf_Mod,),0) -> 00:00:00 | S49: =IF(Q49>0,IF(AND(Rallye!D144<>"",Rallye!D144<>"Section"),R49+T_0_Mod,),0) -> 00:00:00 | T49: =IF(P49>0,IF(AND(Rallye!D144<>"",Rallye!D144<>"Section"),T48+P49,),T48) -> 15:47:00 | U49: =IF(AND(Rallye!D144<>"",Rallye!D144<>"Section"),T49+$U$10,) -> 00:00:00 | V49: =IF(AND(Rallye!D144<>"",Rallye!D144<>"Section"),U49+$V$10,) -> 00:00:00
B50: =Rallye!B145 -> 0 | C50: =Rallye!C145 -> 0 | D50: =Rallye!D145 -> 0 | E50: =IF(AND(Rallye!D145<>"",Rallye!D145<>"Section"),($Q50-E$10),) -> 00:00:00 | F50: =IF(AND(Rallye!D145<>"",Rallye!D145<>"Section"),($Q50-F$10),) -> 00:00:00 | G50: =IF(AND(Rallye!D145<>"",Rallye!D145<>"Section"),($Q50-G$10),) -> 00:00:00 | H50: =IF(AND(Rallye!D145<>"",Rallye!D145<>"Section"),($Q50-H$10),) -> 00:00:00 | I50: =IF(AND(Rallye!D145<>"",Rallye!D145<>"Section"),($Q50-I$10),) -> 00:00:00 | J50: =IF(AND(Rallye!D145<>"",Rallye!D145<>"Section"),($Q50-J$10),) -> 00:00:00 | K50: =IF(AND(Rallye!D145<>"",Rallye!D145<>"Section"),($Q50-K$10),) -> 00:00:00 | L50: =IF(AND(Rallye!D145<>"",Rallye!D145<>"Section"),($Q50-L$10),) -> 00:00:00 | M50: =IF(AND(Rallye!D145<>"",Rallye!D145<>"Section"),($Q50-M$10),) -> 00:00:00 | N50: =IF(AND(Rallye!D145<>"",Rallye!D145<>"Section"),($Q50-N$10),) -> 00:00:00 | O50: =IF(AND(Rallye!D145<>"",Rallye!D145<>"Section"),($Q50-O$10),) -> 00:00:00 | P50: =Rallye!F144 -> 00:00:00 | Q50: =IF(P50>0,IF(OR(Rallye!D145<>"",Rallye!D145<>"Section"),Q49+P50,),Q49) -> 15:28:00 | R50: =IF(Q50>0,IF(AND(Rallye!D145<>"",Rallye!D145<>"Section"),Q50+T_Etp2_VHC+T_inf_Mod,),0) -> 00:00:00 | S50: =IF(Q50>0,IF(AND(Rallye!D145<>"",Rallye!D145<>"Section"),R50+T_0_Mod,),0) -> 00:00:00 | T50: =IF(P50>0,IF(AND(Rallye!D145<>"",Rallye!D145<>"Section"),T49+P50,),T49) -> 15:47:00 | U50: =IF(AND(Rallye!D145<>"",Rallye!D145<>"Section"),T50+$U$10,) -> 00:00:00 | V50: =IF(AND(Rallye!D145<>"",Rallye!D145<>"Section"),U50+$V$10,) -> 00:00:00
B51: =Rallye!B146 -> 0 | C51: =Rallye!C146 -> 0 | D51: =Rallye!D146 -> 0 | E51: =IF(AND(Rallye!D146<>"",Rallye!D146<>"Section"),($Q51-E$10),) -> 00:00:00 | F51: =IF(AND(Rallye!D146<>"",Rallye!D146<>"Section"),($Q51-F$10),) -> 00:00:00 | G51: =IF(AND(Rallye!D146<>"",Rallye!D146<>"Section"),($Q51-G$10),) -> 00:00:00 | H51: =IF(AND(Rallye!D146<>"",Rallye!D146<>"Section"),($Q51-H$10),) -> 00:00:00 | I51: =IF(AND(Rallye!D146<>"",Rallye!D146<>"Section"),($Q51-I$10),) -> 00:00:00 | J51: =IF(AND(Rallye!D146<>"",Rallye!D146<>"Section"),($Q51-J$10),) -> 00:00:00 | K51: =IF(AND(Rallye!D146<>"",Rallye!D146<>"Section"),($Q51-K$10),) -> 00:00:00 | L51: =IF(AND(Rallye!D146<>"",Rallye!D146<>"Section"),($Q51-L$10),) -> 00:00:00 | M51: =IF(AND(Rallye!D146<>"",Rallye!D146<>"Section"),($Q51-M$10),) -> 00:00:00 | N51: =IF(AND(Rallye!D146<>"",Rallye!D146<>"Section"),($Q51-N$10),) -> 00:00:00 | O51: =IF(AND(Rallye!D146<>"",Rallye!D146<>"Section"),($Q51-O$10),) -> 00:00:00 | P51: =Rallye!F145 -> 00:00:00 | Q51: =IF(P51>0,IF(OR(Rallye!D146<>"",Rallye!D146<>"Section"),Q50+P51,),Q50) -> 15:28:00 | R51: =IF(Q51>0,IF(AND(Rallye!D146<>"",Rallye!D146<>"Section"),Q51+T_Etp2_VHC+T_inf_Mod,),0) -> 00:00:00 | S51: =IF(Q51>0,IF(AND(Rallye!D146<>"",Rallye!D146<>"Section"),R51+T_0_Mod,),0) -> 00:00:00 | T51: =IF(P51>0,IF(AND(Rallye!D146<>"",Rallye!D146<>"Section"),T50+P51,),T50) -> 15:47:00 | U51: =IF(AND(Rallye!D146<>"",Rallye!D146<>"Section"),T51+$U$10,) -> 00:00:00 | V51: =IF(AND(Rallye!D146<>"",Rallye!D146<>"Section"),U51+$V$10,) -> 00:00:00
B52: =Rallye!B147 -> 0 | C52: =Rallye!C147 -> 0 | D52: =Rallye!D147 -> 0 | E52: =IF(AND(Rallye!D147<>"",Rallye!D147<>"Section"),($Q52-E$10),) -> 00:00:00 | F52: =IF(AND(Rallye!D147<>"",Rallye!D147<>"Section"),($Q52-F$10),) -> 00:00:00 | G52: =IF(AND(Rallye!D147<>"",Rallye!D147<>"Section"),($Q52-G$10),) -> 00:00:00 | H52: =IF(AND(Rallye!D147<>"",Rallye!D147<>"Section"),($Q52-H$10),) -> 00:00:00 | I52: =IF(AND(Rallye!D147<>"",Rallye!D147<>"Section"),($Q52-I$10),) -> 00:00:00 | J52: =IF(AND(Rallye!D147<>"",Rallye!D147<>"Section"),($Q52-J$10),) -> 00:00:00 | K52: =IF(AND(Rallye!D147<>"",Rallye!D147<>"Section"),($Q52-K$10),) -> 00:00:00 | L52: =IF(AND(Rallye!D147<>"",Rallye!D147<>"Section"),($Q52-L$10),) -> 00:00:00 | M52: =IF(AND(Rallye!D147<>"",Rallye!D147<>"Section"),($Q52-M$10),) -> 00:00:00 | N52: =IF(AND(Rallye!D147<>"",Rallye!D147<>"Section"),($Q52-N$10),) -> 00:00:00 | O52: =IF(AND(Rallye!D147<>"",Rallye!D147<>"Section"),($Q52-O$10),) -> 00:00:00 | P52: =Rallye!F146 -> 00:00:00 | Q52: =IF(P52>0,IF(OR(Rallye!D147<>"",Rallye!D147<>"Section"),Q51+P52,),Q51) -> 15:28:00 | R52: =IF(Q52>0,IF(AND(Rallye!D147<>"",Rallye!D147<>"Section"),Q52+T_Etp2_VHC+T_inf_Mod,),0) -> 00:00:00 | S52: =IF(Q52>0,IF(AND(Rallye!D147<>"",Rallye!D147<>"Section"),R52+T_0_Mod,),0) -> 00:00:00 | T52: =IF(P52>0,IF(AND(Rallye!D147<>"",Rallye!D147<>"Section"),T51+P52,),T51) -> 15:47:00 | U52: =IF(AND(Rallye!D147<>"",Rallye!D147<>"Section"),T52+$U$10,) -> 00:00:00 | V52: =IF(AND(Rallye!D147<>"",Rallye!D147<>"Section"),U52+$V$10,) -> 00:00:00
B53: =Rallye!B148 -> 0 | C53: =Rallye!C148 -> 0 | D53: =Rallye!D148 -> 0 | E53: =IF(AND(Rallye!D148<>"",Rallye!D148<>"Section"),($Q53-E$10),) -> 00:00:00 | F53: =IF(AND(Rallye!D148<>"",Rallye!D148<>"Section"),($Q53-F$10),) -> 00:00:00 | G53: =IF(AND(Rallye!D148<>"",Rallye!D148<>"Section"),($Q53-G$10),) -> 00:00:00 | H53: =IF(AND(Rallye!D148<>"",Rallye!D148<>"Section"),($Q53-H$10),) -> 00:00:00 | I53: =IF(AND(Rallye!D148<>"",Rallye!D148<>"Section"),($Q53-I$10),) -> 00:00:00 | J53: =IF(AND(Rallye!D148<>"",Rallye!D148<>"Section"),($Q53-J$10),) -> 00:00:00 | K53: =IF(AND(Rallye!D148<>"",Rallye!D148<>"Section"),($Q53-K$10),) -> 00:00:00 | L53: =IF(AND(Rallye!D148<>"",Rallye!D148<>"Section"),($Q53-L$10),) -> 00:00:00 | M53: =IF(AND(Rallye!D148<>"",Rallye!D148<>"Section"),($Q53-M$10),) -> 00:00:00 | N53: =IF(AND(Rallye!D148<>"",Rallye!D148<>"Section"),($Q53-N$10),) -> 00:00:00 | O53: =IF(AND(Rallye!D148<>"",Rallye!D148<>"Section"),($Q53-O$10),) -> 00:00:00 | P53: =Rallye!F147 -> 00:00:00 | Q53: =IF(P53>0,IF(OR(Rallye!D148<>"",Rallye!D148<>"Section"),Q52+P53,),Q52) -> 15:28:00 | R53: =IF(Q53>0,IF(AND(Rallye!D148<>"",Rallye!D148<>"Section"),Q53+T_Etp2_VHC+T_inf_Mod,),0) -> 00:00:00 | S53: =IF(Q53>0,IF(AND(Rallye!D148<>"",Rallye!D148<>"Section"),R53+T_0_Mod,),0) -> 00:00:00 | T53: =IF(P53>0,IF(AND(Rallye!D148<>"",Rallye!D148<>"Section"),T52+P53,),T52) -> 15:47:00 | U53: =IF(AND(Rallye!D148<>"",Rallye!D148<>"Section"),T53+$U$10,) -> 00:00:00 | V53: =IF(AND(Rallye!D148<>"",Rallye!D148<>"Section"),U53+$V$10,) -> 00:00:00
B54: =Rallye!B149 -> 0 | C54: =Rallye!C149 -> 0 | D54: =Rallye!D149 -> 0 | E54: =IF(AND(Rallye!D149<>"",Rallye!D149<>"Section"),($Q54-E$10),) -> 00:00:00 | F54: =IF(AND(Rallye!D149<>"",Rallye!D149<>"Section"),($Q54-F$10),) -> 00:00:00 | G54: =IF(AND(Rallye!D149<>"",Rallye!D149<>"Section"),($Q54-G$10),) -> 00:00:00 | H54: =IF(AND(Rallye!D149<>"",Rallye!D149<>"Section"),($Q54-H$10),) -> 00:00:00 | I54: =IF(AND(Rallye!D149<>"",Rallye!D149<>"Section"),($Q54-I$10),) -> 00:00:00 | J54: =IF(AND(Rallye!D149<>"",Rallye!D149<>"Section"),($Q54-J$10),) -> 00:00:00 | K54: =IF(AND(Rallye!D149<>"",Rallye!D149<>"Section"),($Q54-K$10),) -> 00:00:00 | L54: =IF(AND(Rallye!D149<>"",Rallye!D149<>"Section"),($Q54-L$10),) -> 00:00:00 | M54: =IF(AND(Rallye!D149<>"",Rallye!D149<>"Section"),($Q54-M$10),) -> 00:00:00 | N54: =IF(AND(Rallye!D149<>"",Rallye!D149<>"Section"),($Q54-N$10),) -> 00:00:00 | O54: =IF(AND(Rallye!D149<>"",Rallye!D149<>"Section"),($Q54-O$10),) -> 00:00:00 | P54: =Rallye!F148 -> 00:00:00 | Q54: =IF(P54>0,IF(OR(Rallye!D149<>"",Rallye!D149<>"Section"),Q53+P54,),Q53) -> 15:28:00 | R54: =IF(Q54>0,IF(AND(Rallye!D149<>"",Rallye!D149<>"Section"),Q54+T_Etp2_VHC+T_inf_Mod,),0) -> 00:00:00 | S54: =IF(Q54>0,IF(AND(Rallye!D149<>"",Rallye!D149<>"Section"),R54+T_0_Mod,),0) -> 00:00:00 | T54: =IF(P54>0,IF(AND(Rallye!D149<>"",Rallye!D149<>"Section"),T53+P54,),T53) -> 15:47:00 | U54: =IF(AND(Rallye!D149<>"",Rallye!D149<>"Section"),T54+$U$10,) -> 00:00:00 | V54: =IF(AND(Rallye!D149<>"",Rallye!D149<>"Section"),U54+$V$10,) -> 00:00:00
B55: =Rallye!B150 -> 0 | C55: =Rallye!C150 -> 0 | D55: =Rallye!D150 -> 0 | E55: =IF(AND(Rallye!D150<>"",Rallye!D150<>"Section"),($Q55-E$10),) -> 00:00:00 | F55: =IF(AND(Rallye!D150<>"",Rallye!D150<>"Section"),($Q55-F$10),) -> 00:00:00 | G55: =IF(AND(Rallye!D150<>"",Rallye!D150<>"Section"),($Q55-G$10),) -> 00:00:00 | H55: =IF(AND(Rallye!D150<>"",Rallye!D150<>"Section"),($Q55-H$10),) -> 00:00:00 | I55: =IF(AND(Rallye!D150<>"",Rallye!D150<>"Section"),($Q55-I$10),) -> 00:00:00 | J55: =IF(AND(Rallye!D150<>"",Rallye!D150<>"Section"),($Q55-J$10),) -> 00:00:00 | K55: =IF(AND(Rallye!D150<>"",Rallye!D150<>"Section"),($Q55-K$10),) -> 00:00:00 | L55: =IF(AND(Rallye!D150<>"",Rallye!D150<>"Section"),($Q55-L$10),) -> 00:00:00 | M55: =IF(AND(Rallye!D150<>"",Rallye!D150<>"Section"),($Q55-M$10),) -> 00:00:00 | N55: =IF(AND(Rallye!D150<>"",Rallye!D150<>"Section"),($Q55-N$10),) -> 00:00:00 | O55: =IF(AND(Rallye!D150<>"",Rallye!D150<>"Section"),($Q55-O$10),) -> 00:00:00 | P55: =Rallye!F149 -> 00:00:00 | Q55: =IF(P55>0,IF(OR(Rallye!D150<>"",Rallye!D150<>"Section"),Q54+P55,),Q54) -> 15:28:00 | R55: =IF(Q55>0,IF(AND(Rallye!D150<>"",Rallye!D150<>"Section"),Q55+T_Etp2_VHC+T_inf_Mod,),0) -> 00:00:00 | S55: =IF(Q55>0,IF(AND(Rallye!D150<>"",Rallye!D150<>"Section"),R55+T_0_Mod,),0) -> 00:00:00 | T55: =IF(P55>0,IF(AND(Rallye!D150<>"",Rallye!D150<>"Section"),T54+P55,),T54) -> 15:47:00 | U55: =IF(AND(Rallye!D150<>"",Rallye!D150<>"Section"),T55+$U$10,) -> 00:00:00 | V55: =IF(AND(Rallye!D150<>"",Rallye!D150<>"Section"),U55+$V$10,) -> 00:00:00
B56: =Rallye!B151 -> 0 | C56: =Rallye!C151 -> 0 | D56: =Rallye!D151 -> 0 | E56: =IF(AND(Rallye!D151<>"",Rallye!D151<>"Section"),($Q56-E$10),) -> 00:00:00 | F56: =IF(AND(Rallye!D151<>"",Rallye!D151<>"Section"),($Q56-F$10),) -> 00:00:00 | G56: =IF(AND(Rallye!D151<>"",Rallye!D151<>"Section"),($Q56-G$10),) -> 00:00:00 | H56: =IF(AND(Rallye!D151<>"",Rallye!D151<>"Section"),($Q56-H$10),) -> 00:00:00 | I56: =IF(AND(Rallye!D151<>"",Rallye!D151<>"Section"),($Q56-I$10),) -> 00:00:00 | J56: =IF(AND(Rallye!D151<>"",Rallye!D151<>"Section"),($Q56-J$10),) -> 00:00:00 | K56: =IF(AND(Rallye!D151<>"",Rallye!D151<>"Section"),($Q56-K$10),) -> 00:00:00 | L56: =IF(AND(Rallye!D151<>"",Rallye!D151<>"Section"),($Q56-L$10),) -> 00:00:00 | M56: =IF(AND(Rallye!D151<>"",Rallye!D151<>"Section"),($Q56-M$10),) -> 00:00:00 | N56: =IF(AND(Rallye!D151<>"",Rallye!D151<>"Section"),($Q56-N$10),) -> 00:00:00 | O56: =IF(AND(Rallye!D151<>"",Rallye!D151<>"Section"),($Q56-O$10),) -> 00:00:00 | P56: =Rallye!F150 -> 00:00:00 | Q56: =IF(P56>0,IF(OR(Rallye!D151<>"",Rallye!D151<>"Section"),Q55+P56,),Q55) -> 15:28:00 | R56: =IF(Q56>0,IF(AND(Rallye!D151<>"",Rallye!D151<>"Section"),Q56+T_Etp2_VHC+T_inf_Mod,),0) -> 00:00:00 | S56: =IF(Q56>0,IF(AND(Rallye!D151<>"",Rallye!D151<>"Section"),R56+T_0_Mod,),0) -> 00:00:00 | T56: =IF(P56>0,IF(AND(Rallye!D151<>"",Rallye!D151<>"Section"),T55+P56,),T55) -> 15:47:00 | U56: =IF(AND(Rallye!D151<>"",Rallye!D151<>"Section"),T56+$U$10,) -> 00:00:00 | V56: =IF(AND(Rallye!D151<>"",Rallye!D151<>"Section"),U56+$V$10,) -> 00:00:00
B57: =Rallye!B152 -> 0 | C57: =Rallye!C152 -> 0 | D57: =Rallye!D152 -> 0 | E57: =IF(AND(Rallye!D152<>"",Rallye!D152<>"Section"),($Q57-E$10),) -> 00:00:00 | F57: =IF(AND(Rallye!D152<>"",Rallye!D152<>"Section"),($Q57-F$10),) -> 00:00:00 | G57: =IF(AND(Rallye!D152<>"",Rallye!D152<>"Section"),($Q57-G$10),) -> 00:00:00 | H57: =IF(AND(Rallye!D152<>"",Rallye!D152<>"Section"),($Q57-H$10),) -> 00:00:00 | I57: =IF(AND(Rallye!D152<>"",Rallye!D152<>"Section"),($Q57-I$10),) -> 00:00:00 | J57: =IF(AND(Rallye!D152<>"",Rallye!D152<>"Section"),($Q57-J$10),) -> 00:00:00 | K57: =IF(AND(Rallye!D152<>"",Rallye!D152<>"Section"),($Q57-K$10),) -> 00:00:00 | L57: =IF(AND(Rallye!D152<>"",Rallye!D152<>"Section"),($Q57-L$10),) -> 00:00:00 | M57: =IF(AND(Rallye!D152<>"",Rallye!D152<>"Section"),($Q57-M$10),) -> 00:00:00 | N57: =IF(AND(Rallye!D152<>"",Rallye!D152<>"Section"),($Q57-N$10),) -> 00:00:00 | O57: =IF(AND(Rallye!D152<>"",Rallye!D152<>"Section"),($Q57-O$10),) -> 00:00:00 | P57: =Rallye!F151 -> 00:00:00 | Q57: =IF(P57>0,IF(OR(Rallye!D152<>"",Rallye!D152<>"Section"),Q56+P57,),Q56) -> 15:28:00 | R57: =IF(Q57>0,IF(AND(Rallye!D152<>"",Rallye!D152<>"Section"),Q57+T_Etp2_VHC+T_inf_Mod,),0) -> 00:00:00 | S57: =IF(Q57>0,IF(AND(Rallye!D152<>"",Rallye!D152<>"Section"),R57+T_0_Mod,),0) -> 00:00:00 | T57: =IF(P57>0,IF(AND(Rallye!D152<>"",Rallye!D152<>"Section"),T56+P57,),T56) -> 15:47:00 | U57: =IF(AND(Rallye!D152<>"",Rallye!D152<>"Section"),T57+$U$10,) -> 00:00:00 | V57: =IF(AND(Rallye!D152<>"",Rallye!D152<>"Section"),U57+$V$10,) -> 00:00:00
B58: =Rallye!B153 -> 0 | C58: =Rallye!C153 -> 0 | D58: =Rallye!D153 -> 0 | E58: =IF(AND(Rallye!D153<>"",Rallye!D153<>"Section"),($Q58-E$10),) -> 00:00:00 | F58: =IF(AND(Rallye!D153<>"",Rallye!D153<>"Section"),($Q58-F$10),) -> 00:00:00 | G58: =IF(AND(Rallye!D153<>"",Rallye!D153<>"Section"),($Q58-G$10),) -> 00:00:00 | H58: =IF(AND(Rallye!D153<>"",Rallye!D153<>"Section"),($Q58-H$10),) -> 00:00:00 | I58: =IF(AND(Rallye!D153<>"",Rallye!D153<>"Section"),($Q58-I$10),) -> 00:00:00 | J58: =IF(AND(Rallye!D153<>"",Rallye!D153<>"Section"),($Q58-J$10),) -> 00:00:00 | K58: =IF(AND(Rallye!D153<>"",Rallye!D153<>"Section"),($Q58-K$10),) -> 00:00:00 | L58: =IF(AND(Rallye!D153<>"",Rallye!D153<>"Section"),($Q58-L$10),) -> 00:00:00 | M58: =IF(AND(Rallye!D153<>"",Rallye!D153<>"Section"),($Q58-M$10),) -> 00:00:00 | N58: =IF(AND(Rallye!D153<>"",Rallye!D153<>"Section"),($Q58-N$10),) -> 00:00:00 | O58: =IF(AND(Rallye!D153<>"",Rallye!D153<>"Section"),($Q58-O$10),) -> 00:00:00 | P58: =Rallye!F152 -> 00:00:00 | Q58: =IF(P58>0,IF(OR(Rallye!D153<>"",Rallye!D153<>"Section"),Q57+P58,),Q57) -> 15:28:00 | R58: =IF(Q58>0,IF(AND(Rallye!D153<>"",Rallye!D153<>"Section"),Q58+T_Etp2_VHC+T_inf_Mod,),0) -> 00:00:00 | S58: =IF(Q58>0,IF(AND(Rallye!D153<>"",Rallye!D153<>"Section"),R58+T_0_Mod,),0) -> 00:00:00 | T58: =IF(P58>0,IF(AND(Rallye!D153<>"",Rallye!D153<>"Section"),T57+P58,),T57) -> 15:47:00 | U58: =IF(AND(Rallye!D153<>"",Rallye!D153<>"Section"),T58+$U$10,) -> 00:00:00 | V58: =IF(AND(Rallye!D153<>"",Rallye!D153<>"Section"),U58+$V$10,) -> 00:00:00

Sheet Horaires Etap3
B4: =Rallye!E10 -> 16ème Rallye du PAYS de St-YRIEX | P4: Durée Prévue Etape = | S4: =((SUM(P10:P58)+(TIME(0,ABS(S9+S6+Q6+(Q7*2)-1),0)))) -> 00:45:00
B5: =Rallye!E11 -> 3ème Rallye VHC du PAYS de St-YRIEX | H5: HORAIRES | K5: =Rallye!E156 -> 0 | P5: Réintégration = | S5: =Etap2!H65 -> 24
B6: =Rallye!E19 -> ASA Saint Martial | P6: En Course = | Q6: =Etap3!G62 -> 45 | R6: Tps ajouté = | S6: 0
B7: =Rallye!E14 -> LRSA Nouvelle Aquitaine Sud | H7: =Rallye!E158 -> 00:00:00 | P7: nb 2' = | Q7: 0 | R7: Durée E.S. = | S7: =TIME(0,ABS((Q6-1)+(Q7)),0) -> 00:44:00
E8: Orga | F8: Sécurité | G8: TRICO | H8: Promo 1 | I8: Promo 2 | J8: Promo 3 | K8: Observ | L8: Info-Sono | M8: 000 | N8: 00 | O8: 0 A | P8: TEMPS | Q8: 1ère Voiture | R8: Dern Voiture | S8: BALAI
E9: -100 | F9: -100 | G9: -90 | H9: -75 | I9: -60 | J9: -40 | K9: -35 | L9: -30 | M9: -25 | N9: -20 | O9: -10 | P9: Imparti | Q9: Modernes | R9: Théorique | S9: 1
B10: =Rallye!B162 -> 0 | C10: =Rallye!C162 -> 5ème | D10: =Rallye!D162 -> Section | E10: =TIME(0,ABS(E9),0) -> 01:40:00 | F10: 01:40:00 | G10: 01:30:00 | H10: 01:15:00 | I10: 01:00:00 | J10: 00:40:00 | K10: 00:35:00 | L10: 00:30:00 | M10: 00:25:00 | N10: 00:20:00 | O10: 00:10:00 | R10: =TIME(0,ABS((Q6-1)+(Q7)+(S6)),0) -> 00:44:00 | S10: =TIME(0,ABS(S9),0) -> 00:01:00
B11: =Rallye!B163 -> 0 | C11: =Rallye!C163 -> 0 | D11: =Rallye!D163 -> 0 | E11: =$Q11-E$10 -> -0.06944444444 | F11: =$Q11-F$10 -> -0.06944444444 | G11: =$Q11-G$10 -> -0.0625 | H11: =$Q11-H$10 -> -0.05208333333 | I11: =IF(AND(H11<>"",Q11>0),($Q11-I$10),) -> 00:00:00 | J11: =IF(AND(H11<>"",Q11>0),($Q11-J$10),) -> 00:00:00 | K11: =IF(AND(J11<>"",Q11>0),($Q11-K$10),) -> 00:00:00 | L11: =IF(AND(J11<>"",Q11>0),($Q11-L$10),) -> 00:00:00 | M11: =IF(AND(K11<>"",Q11>0),($Q11-M$10),) -> 00:00:00 | N11: =IF(AND(M11<>"",Q11>0),($Q11-N$10),) -> 00:00:00 | O11: =IF(AND(N11<>"",Q11>0),($Q11-O$10),) -> 00:00:00 | P11: =Rallye!F105 -> 00:00:00 | Q11: =Rallye!G158 -> 00:00:00 | R11: =IF(D11<>"",Q11+$R$10,) -> 00:44:00 | S11: =IF(D11>0,R11+$S$10,) -> 00:00:00
B12: =Rallye!B164 -> 0 | C12: =Rallye!C164 -> 0 | D12: =Rallye!D164 -> 0 | E12: =IF(AND(Rallye!D164<>"",Rallye!D164<>"Section"),($Q12-E$10),) -> 00:00:00 | F12: =IF(AND(Rallye!D164<>"",Rallye!D164<>"Section"),($Q12-F$10),) -> 00:00:00 | G12: =IF(AND(Rallye!D164<>"",Rallye!D164<>"Section"),($Q12-G$10),) -> 00:00:00 | H12: =IF(AND(Rallye!D164<>"",Rallye!D164<>"Section"),($Q12-H$10),) -> 00:00:00 | I12: =IF(AND(Rallye!D164<>"",Rallye!D164<>"Section"),($Q12-I$10),) -> 00:00:00 | J12: =IF(AND(Rallye!D164<>"",Rallye!D164<>"Section"),($Q12-J$10),) -> 00:00:00 | K12: =IF(AND(Rallye!D164<>"",Rallye!D164<>"Section"),($Q12-K$10),) -> 00:00:00 | L12: =IF(AND(Rallye!D164<>"",Rallye!D164<>"Section"),($Q12-L$10),) -> 00:00:00 | M12: =IF(AND(Rallye!D164<>"",Rallye!D164<>"Section"),($Q12-M$10),) -> 00:00:00 | N12: =IF(AND(Rallye!D164<>"",Rallye!D164<>"Section"),($Q12-N$10),) -> 00:00:00 | O12: =IF(AND(Rallye!D164<>"",Rallye!D164<>"Section"),($Q12-O$10),) -> 00:00:00 | P12: =Rallye!F163 -> 00:00:00 | Q12: =IF(P12>0,IF(OR(Rallye!D164<>"",Rallye!D164<>"Section"),Q11+P12,),Q11) -> 00:00:00 | R12: =IF(AND(Rallye!D164<>"",Rallye!D164<>"Section"),Q12+$R$10,) -> 00:00:00 | S12: =IF(AND(Rallye!D164<>"",Rallye!D164<>"Section"),R12+$S$10,) -> 00:00:00
B13: =Rallye!B165 -> 0 | C13: =Rallye!C165 -> 0 | D13: =Rallye!D165 -> 0 | E13: =IF(AND(Rallye!D165<>"",Rallye!D165<>"Section"),($Q13-E$10),) -> 00:00:00 | F13: =IF(AND(Rallye!D165<>"",Rallye!D165<>"Section"),($Q13-F$10),) -> 00:00:00 | G13: =IF(AND(Rallye!D165<>"",Rallye!D165<>"Section"),($Q13-G$10),) -> 00:00:00 | H13: =IF(AND(Rallye!D165<>"",Rallye!D165<>"Section"),($Q13-H$10),) -> 00:00:00 | I13: =IF(AND(Rallye!D165<>"",Rallye!D165<>"Section"),($Q13-I$10),) -> 00:00:00 | J13: =IF(AND(Rallye!D165<>"",Rallye!D165<>"Section"),($Q13-J$10),) -> 00:00:00 | K13: =IF(AND(Rallye!D165<>"",Rallye!D165<>"Section"),($Q13-K$10),) -> 00:00:00 | L13: =IF(AND(Rallye!D165<>"",Rallye!D165<>"Section"),($Q13-L$10),) -> 00:00:00 | M13: =IF(AND(Rallye!D165<>"",Rallye!D165<>"Section"),($Q13-M$10),) -> 00:00:00 | N13: =IF(AND(Rallye!D165<>"",Rallye!D165<>"Section"),($Q13-N$10),) -> 00:00:00 | O13: =IF(AND(Rallye!D165<>"",Rallye!D165<>"Section"),($Q13-O$10),) -> 00:00:00 | P13: =Rallye!F164 -> 00:00:00 | Q13: =IF(P13>0,IF(OR(Rallye!D165<>"",Rallye!D165<>"Section"),Q12+P13,),Q12) -> 00:00:00 | R13: =IF(AND(Rallye!D165<>"",Rallye!D165<>"Section"),Q13+$R$10,) -> 00:00:00 | S13: =IF(AND(Rallye!D165<>"",Rallye!D165<>"Section"),R13+$S$10,) -> 00:00:00
B14: =Rallye!B166 -> 0 | C14: =Rallye!C166 -> 0 | D14: =Rallye!D166 -> 0 | E14: =IF(AND(Rallye!D166<>"",Rallye!D166<>"Section"),($Q14-E$10),) -> 00:00:00 | F14: =IF(AND(Rallye!D166<>"",Rallye!D166<>"Section"),($Q14-F$10),) -> 00:00:00 | G14: =IF(AND(Rallye!D166<>"",Rallye!D166<>"Section"),($Q14-G$10),) -> 00:00:00 | H14: =IF(AND(Rallye!D166<>"",Rallye!D166<>"Section"),($Q14-H$10),) -> 00:00:00 | I14: =IF(AND(Rallye!D166<>"",Rallye!D166<>"Section"),($Q14-I$10),) -> 00:00:00 | J14: =IF(AND(Rallye!D166<>"",Rallye!D166<>"Section"),($Q14-J$10),) -> 00:00:00 | K14: =IF(AND(Rallye!D166<>"",Rallye!D166<>"Section"),($Q14-K$10),) -> 00:00:00 | L14: =IF(AND(Rallye!D166<>"",Rallye!D166<>"Section"),($Q14-L$10),) -> 00:00:00 | M14: =IF(AND(Rallye!D166<>"",Rallye!D166<>"Section"),($Q14-M$10),) -> 00:00:00 | N14: =IF(AND(Rallye!D166<>"",Rallye!D166<>"Section"),($Q14-N$10),) -> 00:00:00 | O14: =IF(AND(Rallye!D166<>"",Rallye!D166<>"Section"),($Q14-O$10),) -> 00:00:00 | P14: =Rallye!F165 -> 00:00:00 | Q14: =IF(P14>0,IF(OR(Rallye!D166<>"",Rallye!D166<>"Section"),Q13+P14,),Q13) -> 00:00:00 | R14: =IF(AND(Rallye!D166<>"",Rallye!D166<>"Section"),Q14+$R$10,) -> 00:00:00 | S14: =IF(AND(Rallye!D166<>"",Rallye!D166<>"Section"),R14+$S$10,) -> 00:00:00
B15: =Rallye!B167 -> 0 | C15: =Rallye!C167 -> 0 | D15: =Rallye!D167 -> 0 | E15: =IF(AND(Rallye!D167<>"",Rallye!D167<>"Section"),($Q15-E$10),) -> 00:00:00 | F15: =IF(AND(Rallye!D167<>"",Rallye!D167<>"Section"),($Q15-F$10),) -> 00:00:00 | G15: =IF(AND(Rallye!D167<>"",Rallye!D167<>"Section"),($Q15-G$10),) -> 00:00:00 | H15: =IF(AND(Rallye!D167<>"",Rallye!D167<>"Section"),($Q15-H$10),) -> 00:00:00 | I15: =IF(AND(Rallye!D167<>"",Rallye!D167<>"Section"),($Q15-I$10),) -> 00:00:00 | J15: =IF(AND(Rallye!D167<>"",Rallye!D167<>"Section"),($Q15-J$10),) -> 00:00:00 | K15: =IF(AND(Rallye!D167<>"",Rallye!D167<>"Section"),($Q15-K$10),) -> 00:00:00 | L15: =IF(AND(Rallye!D167<>"",Rallye!D167<>"Section"),($Q15-L$10),) -> 00:00:00 | M15: =IF(AND(Rallye!D167<>"",Rallye!D167<>"Section"),($Q15-M$10),) -> 00:00:00 | N15: =IF(AND(Rallye!D167<>"",Rallye!D167<>"Section"),($Q15-N$10),) -> 00:00:00 | O15: =IF(AND(Rallye!D167<>"",Rallye!D167<>"Section"),($Q15-O$10),) -> 00:00:00 | P15: =Rallye!F166 -> 00:00:00 | Q15: =IF(P15>0,IF(OR(Rallye!D167<>"",Rallye!D167<>"Section"),Q14+P15,),Q14) -> 00:00:00 | R15: =IF(AND(Rallye!D167<>"",Rallye!D167<>"Section"),Q15+$R$10,) -> 00:00:00 | S15: =IF(AND(Rallye!D167<>"",Rallye!D167<>"Section"),R15+$S$10,) -> 00:00:00
B16: =Rallye!B168 -> 0 | C16: =Rallye!C168 -> 0 | D16: =Rallye!D168 -> 0 | E16: =IF(AND(Rallye!D168<>"",Rallye!D168<>"Section"),($Q16-E$10),) -> 00:00:00 | F16: =IF(AND(Rallye!D168<>"",Rallye!D168<>"Section"),($Q16-F$10),) -> 00:00:00 | G16: =IF(AND(Rallye!D168<>"",Rallye!D168<>"Section"),($Q16-G$10),) -> 00:00:00 | H16: =IF(AND(Rallye!D168<>"",Rallye!D168<>"Section"),($Q16-H$10),) -> 00:00:00 | I16: =IF(AND(Rallye!D168<>"",Rallye!D168<>"Section"),($Q16-I$10),) -> 00:00:00 | J16: =IF(AND(Rallye!D168<>"",Rallye!D168<>"Section"),($Q16-J$10),) -> 00:00:00 | K16: =IF(AND(Rallye!D168<>"",Rallye!D168<>"Section"),($Q16-K$10),) -> 00:00:00 | L16: =IF(AND(Rallye!D168<>"",Rallye!D168<>"Section"),($Q16-L$10),) -> 00:00:00 | M16: =IF(AND(Rallye!D168<>"",Rallye!D168<>"Section"),($Q16-M$10),) -> 00:00:00 | N16: =IF(AND(Rallye!D168<>"",Rallye!D168<>"Section"),($Q16-N$10),) -> 00:00:00 | O16: =IF(AND(Rallye!D168<>"",Rallye!D168<>"Section"),($Q16-O$10),) -> 00:00:00 | P16: =Rallye!F167 -> 00:00:00 | Q16: =IF(P16>0,IF(OR(Rallye!D168<>"",Rallye!D168<>"Section"),Q15+P16,),Q15) -> 00:00:00 | R16: =IF(AND(Rallye!D168<>"",Rallye!D168<>"Section"),Q16+$R$10,) -> 00:00:00 | S16: =IF(AND(Rallye!D168<>"",Rallye!D168<>"Section"),R16+$S$10,) -> 00:00:00
B17: =Rallye!B169 -> 0 | C17: =Rallye!C169 -> 0 | D17: =Rallye!D169 -> 0 | E17: =IF(AND(Rallye!D169<>"",Rallye!D169<>"Section"),($Q17-E$10),) -> 00:00:00 | F17: =IF(AND(Rallye!D169<>"",Rallye!D169<>"Section"),($Q17-F$10),) -> 00:00:00 | G17: =IF(AND(Rallye!D169<>"",Rallye!D169<>"Section"),($Q17-G$10),) -> 00:00:00 | H17: =IF(AND(Rallye!D169<>"",Rallye!D169<>"Section"),($Q17-H$10),) -> 00:00:00 | I17: =IF(AND(Rallye!D169<>"",Rallye!D169<>"Section"),($Q17-I$10),) -> 00:00:00 | J17: =IF(AND(Rallye!D169<>"",Rallye!D169<>"Section"),($Q17-J$10),) -> 00:00:00 | K17: =IF(AND(Rallye!D169<>"",Rallye!D169<>"Section"),($Q17-K$10),) -> 00:00:00 | L17: =IF(AND(Rallye!D169<>"",Rallye!D169<>"Section"),($Q17-L$10),) -> 00:00:00 | M17: =IF(AND(Rallye!D169<>"",Rallye!D169<>"Section"),($Q17-M$10),) -> 00:00:00 | N17: =IF(AND(Rallye!D169<>"",Rallye!D169<>"Section"),($Q17-N$10),) -> 00:00:00 | O17: =IF(AND(Rallye!D169<>"",Rallye!D169<>"Section"),($Q17-O$10),) -> 00:00:00 | P17: =Rallye!F168 -> 00:00:00 | Q17: =IF(P17>0,IF(OR(Rallye!D169<>"",Rallye!D169<>"Section"),Q16+P17,),Q16) -> 00:00:00 | R17: =IF(AND(Rallye!D169<>"",Rallye!D169<>"Section"),Q17+$R$10,) -> 00:00:00 | S17: =IF(AND(Rallye!D169<>"",Rallye!D169<>"Section"),R17+$S$10,) -> 00:00:00
B18: =Rallye!B170 -> 0 | C18: =Rallye!C170 -> 0 | D18: =Rallye!D170 -> 0 | E18: =IF(AND(Rallye!D170<>"",Rallye!D170<>"Section"),($Q18-E$10),) -> 00:00:00 | F18: =IF(AND(Rallye!D170<>"",Rallye!D170<>"Section"),($Q18-F$10),) -> 00:00:00 | G18: =IF(AND(Rallye!D170<>"",Rallye!D170<>"Section"),($Q18-G$10),) -> 00:00:00 | H18: =IF(AND(Rallye!D170<>"",Rallye!D170<>"Section"),($Q18-H$10),) -> 00:00:00 | I18: =IF(AND(Rallye!D170<>"",Rallye!D170<>"Section"),($Q18-I$10),) -> 00:00:00 | J18: =IF(AND(Rallye!D170<>"",Rallye!D170<>"Section"),($Q18-J$10),) -> 00:00:00 | K18: =IF(AND(Rallye!D170<>"",Rallye!D170<>"Section"),($Q18-K$10),) -> 00:00:00 | L18: =IF(AND(Rallye!D170<>"",Rallye!D170<>"Section"),($Q18-L$10),) -> 00:00:00 | M18: =IF(AND(Rallye!D170<>"",Rallye!D170<>"Section"),($Q18-M$10),) -> 00:00:00 | N18: =IF(AND(Rallye!D170<>"",Rallye!D170<>"Section"),($Q18-N$10),) -> 00:00:00 | O18: =IF(AND(Rallye!D170<>"",Rallye!D170<>"Section"),($Q18-O$10),) -> 00:00:00 | P18: =Rallye!F169 -> 00:00:00 | Q18: =IF(P18>0,IF(OR(Rallye!D170<>"",Rallye!D170<>"Section"),Q17+P18,),Q17) -> 00:00:00 | R18: =IF(AND(Rallye!D170<>"",Rallye!D170<>"Section"),Q18+$R$10,) -> 00:00:00 | S18: =IF(AND(Rallye!D170<>"",Rallye!D170<>"Section"),R18+$S$10,) -> 00:00:00
B19: =Rallye!B171 -> 0 | C19: =Rallye!C171 -> 0 | D19: =Rallye!D171 -> 0 | E19: =IF(AND(Rallye!D171<>"",Rallye!D171<>"Section"),($Q19-E$10),) -> 00:00:00 | F19: =IF(AND(Rallye!D171<>"",Rallye!D171<>"Section"),($Q19-F$10),) -> 00:00:00 | G19: =IF(AND(Rallye!D171<>"",Rallye!D171<>"Section"),($Q19-G$10),) -> 00:00:00 | H19: =IF(AND(Rallye!D171<>"",Rallye!D171<>"Section"),($Q19-H$10),) -> 00:00:00 | I19: =IF(AND(Rallye!D171<>"",Rallye!D171<>"Section"),($Q19-I$10),) -> 00:00:00 | J19: =IF(AND(Rallye!D171<>"",Rallye!D171<>"Section"),($Q19-J$10),) -> 00:00:00 | K19: =IF(AND(Rallye!D171<>"",Rallye!D171<>"Section"),($Q19-K$10),) -> 00:00:00 | L19: =IF(AND(Rallye!D171<>"",Rallye!D171<>"Section"),($Q19-L$10),) -> 00:00:00 | M19: =IF(AND(Rallye!D171<>"",Rallye!D171<>"Section"),($Q19-M$10),) -> 00:00:00 | N19: =IF(AND(Rallye!D171<>"",Rallye!D171<>"Section"),($Q19-N$10),) -> 00:00:00 | O19: =IF(AND(Rallye!D171<>"",Rallye!D171<>"Section"),($Q19-O$10),) -> 00:00:00 | P19: =Rallye!F170 -> 00:00:00 | Q19: =IF(P19>0,IF(OR(Rallye!D171<>"",Rallye!D171<>"Section"),Q18+P19,),Q18) -> 00:00:00 | R19: =IF(AND(Rallye!D171<>"",Rallye!D171<>"Section"),Q19+$R$10,) -> 00:00:00 | S19: =IF(AND(Rallye!D171<>"",Rallye!D171<>"Section"),R19+$S$10,) -> 00:00:00
B20: =Rallye!B172 -> 0 | C20: =Rallye!C172 -> 0 | D20: =Rallye!D172 -> 0 | E20: =IF(AND(Rallye!D172<>"",Rallye!D172<>"Section"),($Q20-E$10),) -> 00:00:00 | F20: =IF(AND(Rallye!D172<>"",Rallye!D172<>"Section"),($Q20-F$10),) -> 00:00:00 | G20: =IF(AND(Rallye!D172<>"",Rallye!D172<>"Section"),($Q20-G$10),) -> 00:00:00 | H20: =IF(AND(Rallye!D172<>"",Rallye!D172<>"Section"),($Q20-H$10),) -> 00:00:00 | I20: =IF(AND(Rallye!D172<>"",Rallye!D172<>"Section"),($Q20-I$10),) -> 00:00:00 | J20: =IF(AND(Rallye!D172<>"",Rallye!D172<>"Section"),($Q20-J$10),) -> 00:00:00 | K20: =IF(AND(Rallye!D172<>"",Rallye!D172<>"Section"),($Q20-K$10),) -> 00:00:00 | L20: =IF(AND(Rallye!D172<>"",Rallye!D172<>"Section"),($Q20-L$10),) -> 00:00:00 | M20: =IF(AND(Rallye!D172<>"",Rallye!D172<>"Section"),($Q20-M$10),) -> 00:00:00 | N20: =IF(AND(Rallye!D172<>"",Rallye!D172<>"Section"),($Q20-N$10),) -> 00:00:00 | O20: =IF(AND(Rallye!D172<>"",Rallye!D172<>"Section"),($Q20-O$10),) -> 00:00:00 | P20: =Rallye!F171 -> 00:00:00 | Q20: =IF(P20>0,IF(OR(Rallye!D172<>"",Rallye!D172<>"Section"),Q19+P20,),Q19) -> 00:00:00 | R20: =IF(AND(Rallye!D172<>"",Rallye!D172<>"Section"),Q20+$R$10,) -> 00:00:00 | S20: =IF(AND(Rallye!D172<>"",Rallye!D172<>"Section"),R20+$S$10,) -> 00:00:00
B21: =Rallye!B173 -> 0 | C21: =Rallye!C173 -> 0 | D21: =Rallye!D173 -> 0 | E21: =IF(AND(Rallye!D173<>"",Rallye!D173<>"Section"),($Q21-E$10),) -> 00:00:00 | F21: =IF(AND(Rallye!D173<>"",Rallye!D173<>"Section"),($Q21-F$10),) -> 00:00:00 | G21: =IF(AND(Rallye!D173<>"",Rallye!D173<>"Section"),($Q21-G$10),) -> 00:00:00 | H21: =IF(AND(Rallye!D173<>"",Rallye!D173<>"Section"),($Q21-H$10),) -> 00:00:00 | I21: =IF(AND(Rallye!D173<>"",Rallye!D173<>"Section"),($Q21-I$10),) -> 00:00:00 | J21: =IF(AND(Rallye!D173<>"",Rallye!D173<>"Section"),($Q21-J$10),) -> 00:00:00 | K21: =IF(AND(Rallye!D173<>"",Rallye!D173<>"Section"),($Q21-K$10),) -> 00:00:00 | L21: =IF(AND(Rallye!D173<>"",Rallye!D173<>"Section"),($Q21-L$10),) -> 00:00:00 | M21: =IF(AND(Rallye!D173<>"",Rallye!D173<>"Section"),($Q21-M$10),) -> 00:00:00 | N21: =IF(AND(Rallye!D173<>"",Rallye!D173<>"Section"),($Q21-N$10),) -> 00:00:00 | O21: =IF(AND(Rallye!D173<>"",Rallye!D173<>"Section"),($Q21-O$10),) -> 00:00:00 | P21: =Rallye!F172 -> 00:00:00 | Q21: =IF(P21>0,IF(OR(Rallye!D173<>"",Rallye!D173<>"Section"),Q20+P21,),Q20) -> 00:00:00 | R21: =IF(AND(Rallye!D173<>"",Rallye!D173<>"Section"),Q21+$R$10,) -> 00:00:00 | S21: =IF(AND(Rallye!D173<>"",Rallye!D173<>"Section"),R21+$S$10,) -> 00:00:00
B22: =Rallye!B174 -> 0 | C22: =Rallye!C174 -> 0 | D22: =Rallye!D174 -> 0 | E22: =IF(AND(Rallye!D174<>"",Rallye!D174<>"Section"),($Q22-E$10),) -> 00:00:00 | F22: =IF(AND(Rallye!D174<>"",Rallye!D174<>"Section"),($Q22-F$10),) -> 00:00:00 | G22: =IF(AND(Rallye!D174<>"",Rallye!D174<>"Section"),($Q22-G$10),) -> 00:00:00 | H22: =IF(AND(Rallye!D174<>"",Rallye!D174<>"Section"),($Q22-H$10),) -> 00:00:00 | I22: =IF(AND(Rallye!D174<>"",Rallye!D174<>"Section"),($Q22-I$10),) -> 00:00:00 | J22: =IF(AND(Rallye!D174<>"",Rallye!D174<>"Section"),($Q22-J$10),) -> 00:00:00 | K22: =IF(AND(Rallye!D174<>"",Rallye!D174<>"Section"),($Q22-K$10),) -> 00:00:00 | L22: =IF(AND(Rallye!D174<>"",Rallye!D174<>"Section"),($Q22-L$10),) -> 00:00:00 | M22: =IF(AND(Rallye!D174<>"",Rallye!D174<>"Section"),($Q22-M$10),) -> 00:00:00 | N22: =IF(AND(Rallye!D174<>"",Rallye!D174<>"Section"),($Q22-N$10),) -> 00:00:00 | O22: =IF(AND(Rallye!D174<>"",Rallye!D174<>"Section"),($Q22-O$10),) -> 00:00:00 | P22: =Rallye!F173 -> 00:00:00 | Q22: =IF(P22>0,IF(OR(Rallye!D174<>"",Rallye!D174<>"Section"),Q21+P22,),Q21) -> 00:00:00 | R22: =IF(AND(Rallye!D174<>"",Rallye!D174<>"Section"),Q22+$R$10,) -> 00:00:00 | S22: =IF(AND(Rallye!D174<>"",Rallye!D174<>"Section"),R22+$S$10,) -> 00:00:00
B23: =Rallye!B175 -> 0 | C23: =Rallye!C175 -> 0 | D23: =Rallye!D175 -> 0 | E23: =IF(AND(Rallye!D175<>"",Rallye!D175<>"Section"),($Q23-E$10),) -> 00:00:00 | F23: =IF(AND(Rallye!D175<>"",Rallye!D175<>"Section"),($Q23-F$10),) -> 00:00:00 | G23: =IF(AND(Rallye!D175<>"",Rallye!D175<>"Section"),($Q23-G$10),) -> 00:00:00 | H23: =IF(AND(Rallye!D175<>"",Rallye!D175<>"Section"),($Q23-H$10),) -> 00:00:00 | I23: =IF(AND(Rallye!D175<>"",Rallye!D175<>"Section"),($Q23-I$10),) -> 00:00:00 | J23: =IF(AND(Rallye!D175<>"",Rallye!D175<>"Section"),($Q23-J$10),) -> 00:00:00 | K23: =IF(AND(Rallye!D175<>"",Rallye!D175<>"Section"),($Q23-K$10),) -> 00:00:00 | L23: =IF(AND(Rallye!D175<>"",Rallye!D175<>"Section"),($Q23-L$10),) -> 00:00:00 | M23: =IF(AND(Rallye!D175<>"",Rallye!D175<>"Section"),($Q23-M$10),) -> 00:00:00 | N23: =IF(AND(Rallye!D175<>"",Rallye!D175<>"Section"),($Q23-N$10),) -> 00:00:00 | O23: =IF(AND(Rallye!D175<>"",Rallye!D175<>"Section"),($Q23-O$10),) -> 00:00:00 | P23: =Rallye!F174 -> 00:00:00 | Q23: =IF(P23>0,IF(OR(Rallye!D175<>"",Rallye!D175<>"Section"),Q22+P23,),Q22) -> 00:00:00 | R23: =IF(AND(Rallye!D175<>"",Rallye!D175<>"Section"),Q23+$R$10,) -> 00:00:00 | S23: =IF(AND(Rallye!D175<>"",Rallye!D175<>"Section"),R23+$S$10,) -> 00:00:00
B24: =Rallye!B176 -> 0 | C24: =Rallye!C176 -> 0 | D24: =Rallye!D176 -> 0 | E24: =IF(AND(Rallye!D176<>"",Rallye!D176<>"Section"),($Q24-E$10),) -> 00:00:00 | F24: =IF(AND(Rallye!D176<>"",Rallye!D176<>"Section"),($Q24-F$10),) -> 00:00:00 | G24: =IF(AND(Rallye!D176<>"",Rallye!D176<>"Section"),($Q24-G$10),) -> 00:00:00 | H24: =IF(AND(Rallye!D176<>"",Rallye!D176<>"Section"),($Q24-H$10),) -> 00:00:00 | I24: =IF(AND(Rallye!D176<>"",Rallye!D176<>"Section"),($Q24-I$10),) -> 00:00:00 | J24: =IF(AND(Rallye!D176<>"",Rallye!D176<>"Section"),($Q24-J$10),) -> 00:00:00 | K24: =IF(AND(Rallye!D176<>"",Rallye!D176<>"Section"),($Q24-K$10),) -> 00:00:00 | L24: =IF(AND(Rallye!D176<>"",Rallye!D176<>"Section"),($Q24-L$10),) -> 00:00:00 | M24: =IF(AND(Rallye!D176<>"",Rallye!D176<>"Section"),($Q24-M$10),) -> 00:00:00 | N24: =IF(AND(Rallye!D176<>"",Rallye!D176<>"Section"),($Q24-N$10),) -> 00:00:00 | O24: =IF(AND(Rallye!D176<>"",Rallye!D176<>"Section"),($Q24-O$10),) -> 00:00:00 | P24: =Rallye!F175 -> 00:00:00 | Q24: =IF(P24>0,IF(OR(Rallye!D176<>"",Rallye!D176<>"Section"),Q23+P24,),Q23) -> 00:00:00 | R24: =IF(AND(Rallye!D176<>"",Rallye!D176<>"Section"),Q24+$R$10,) -> 00:00:00 | S24: =IF(AND(Rallye!D176<>"",Rallye!D176<>"Section"),R24+$S$10,) -> 00:00:00
B25: =Rallye!B177 -> 0 | C25: =Rallye!C177 -> 0 | D25: =Rallye!D177 -> 0 | E25: =IF(AND(Rallye!D177<>"",Rallye!D177<>"Section"),($Q25-E$10),) -> 00:00:00 | F25: =IF(AND(Rallye!D177<>"",Rallye!D177<>"Section"),($Q25-F$10),) -> 00:00:00 | G25: =IF(AND(Rallye!D177<>"",Rallye!D177<>"Section"),($Q25-G$10),) -> 00:00:00 | H25: =IF(AND(Rallye!D177<>"",Rallye!D177<>"Section"),($Q25-H$10),) -> 00:00:00 | I25: =IF(AND(Rallye!D177<>"",Rallye!D177<>"Section"),($Q25-I$10),) -> 00:00:00 | J25: =IF(AND(Rallye!D177<>"",Rallye!D177<>"Section"),($Q25-J$10),) -> 00:00:00 | K25: =IF(AND(Rallye!D177<>"",Rallye!D177<>"Section"),($Q25-K$10),) -> 00:00:00 | L25: =IF(AND(Rallye!D177<>"",Rallye!D177<>"Section"),($Q25-L$10),) -> 00:00:00 | M25: =IF(AND(Rallye!D177<>"",Rallye!D177<>"Section"),($Q25-M$10),) -> 00:00:00 | N25: =IF(AND(Rallye!D177<>"",Rallye!D177<>"Section"),($Q25-N$10),) -> 00:00:00 | O25: =IF(AND(Rallye!D177<>"",Rallye!D177<>"Section"),($Q25-O$10),) -> 00:00:00 | P25: =Rallye!F176 -> 00:00:00 | Q25: =IF(P25>0,IF(OR(Rallye!D177<>"",Rallye!D177<>"Section"),Q24+P25,),Q24) -> 00:00:00 | R25: =IF(AND(Rallye!D177<>"",Rallye!D177<>"Section"),Q25+$R$10,) -> 00:00:00 | S25: =IF(AND(Rallye!D177<>"",Rallye!D177<>"Section"),R25+$S$10,) -> 00:00:00
B26: =Rallye!B178 -> 0 | C26: =Rallye!C178 -> 0 | D26: =Rallye!D178 -> 0 | E26: =IF(AND(Rallye!D178<>"",Rallye!D178<>"Section"),($Q26-E$10),) -> 00:00:00 | F26: =IF(AND(Rallye!D178<>"",Rallye!D178<>"Section"),($Q26-F$10),) -> 00:00:00 | G26: =IF(AND(Rallye!D178<>"",Rallye!D178<>"Section"),($Q26-G$10),) -> 00:00:00 | H26: =IF(AND(Rallye!D178<>"",Rallye!D178<>"Section"),($Q26-H$10),) -> 00:00:00 | I26: =IF(AND(Rallye!D178<>"",Rallye!D178<>"Section"),($Q26-I$10),) -> 00:00:00 | J26: =IF(AND(Rallye!D178<>"",Rallye!D178<>"Section"),($Q26-J$10),) -> 00:00:00 | K26: =IF(AND(Rallye!D178<>"",Rallye!D178<>"Section"),($Q26-K$10),) -> 00:00:00 | L26: =IF(AND(Rallye!D178<>"",Rallye!D178<>"Section"),($Q26-L$10),) -> 00:00:00 | M26: =IF(AND(Rallye!D178<>"",Rallye!D178<>"Section"),($Q26-M$10),) -> 00:00:00 | N26: =IF(AND(Rallye!D178<>"",Rallye!D178<>"Section"),($Q26-N$10),) -> 00:00:00 | O26: =IF(AND(Rallye!D178<>"",Rallye!D178<>"Section"),($Q26-O$10),) -> 00:00:00 | P26: =Rallye!F177 -> 00:00:00 | Q26: =IF(P26>0,IF(OR(Rallye!D178<>"",Rallye!D178<>"Section"),Q25+P26,),Q25) -> 00:00:00 | R26: =IF(AND(Rallye!D178<>"",Rallye!D178<>"Section"),Q26+$R$10,) -> 00:00:00 | S26: =IF(AND(Rallye!D178<>"",Rallye!D178<>"Section"),R26+$S$10,) -> 00:00:00
B27: =Rallye!B179 -> 0 | C27: =Rallye!C179 -> 0 | D27: =Rallye!D179 -> 0 | E27: =IF(AND(Rallye!D179<>"",Rallye!D179<>"Section"),($Q27-E$10),) -> 00:00:00 | F27: =IF(AND(Rallye!D179<>"",Rallye!D179<>"Section"),($Q27-F$10),) -> 00:00:00 | G27: =IF(AND(Rallye!D179<>"",Rallye!D179<>"Section"),($Q27-G$10),) -> 00:00:00 | H27: =IF(AND(Rallye!D179<>"",Rallye!D179<>"Section"),($Q27-H$10),) -> 00:00:00 | I27: =IF(AND(Rallye!D179<>"",Rallye!D179<>"Section"),($Q27-I$10),) -> 00:00:00 | J27: =IF(AND(Rallye!D179<>"",Rallye!D179<>"Section"),($Q27-J$10),) -> 00:00:00 | K27: =IF(AND(Rallye!D179<>"",Rallye!D179<>"Section"),($Q27-K$10),) -> 00:00:00 | L27: =IF(AND(Rallye!D179<>"",Rallye!D179<>"Section"),($Q27-L$10),) -> 00:00:00 | M27: =IF(AND(Rallye!D179<>"",Rallye!D179<>"Section"),($Q27-M$10),) -> 00:00:00 | N27: =IF(AND(Rallye!D179<>"",Rallye!D179<>"Section"),($Q27-N$10),) -> 00:00:00 | O27: =IF(AND(Rallye!D179<>"",Rallye!D179<>"Section"),($Q27-O$10),) -> 00:00:00 | P27: =Rallye!F178 -> 00:00:00 | Q27: =IF(P27>0,IF(OR(Rallye!D179<>"",Rallye!D179<>"Section"),Q26+P27,),Q26) -> 00:00:00 | R27: =IF(AND(Rallye!D179<>"",Rallye!D179<>"Section"),Q27+$R$10,) -> 00:00:00 | S27: =IF(AND(Rallye!D179<>"",Rallye!D179<>"Section"),R27+$S$10,) -> 00:00:00
B28: =Rallye!B180 -> 0 | C28: =Rallye!C180 -> 0 | D28: =Rallye!D180 -> 0 | E28: =IF(AND(Rallye!D180<>"",Rallye!D180<>"Section"),($Q28-E$10),) -> 00:00:00 | F28: =IF(AND(Rallye!D180<>"",Rallye!D180<>"Section"),($Q28-F$10),) -> 00:00:00 | G28: =IF(AND(Rallye!D180<>"",Rallye!D180<>"Section"),($Q28-G$10),) -> 00:00:00 | H28: =IF(AND(Rallye!D180<>"",Rallye!D180<>"Section"),($Q28-H$10),) -> 00:00:00 | I28: =IF(AND(Rallye!D180<>"",Rallye!D180<>"Section"),($Q28-I$10),) -> 00:00:00 | J28: =IF(AND(Rallye!D180<>"",Rallye!D180<>"Section"),($Q28-J$10),) -> 00:00:00 | K28: =IF(AND(Rallye!D180<>"",Rallye!D180<>"Section"),($Q28-K$10),) -> 00:00:00 | L28: =IF(AND(Rallye!D180<>"",Rallye!D180<>"Section"),($Q28-L$10),) -> 00:00:00 | M28: =IF(AND(Rallye!D180<>"",Rallye!D180<>"Section"),($Q28-M$10),) -> 00:00:00 | N28: =IF(AND(Rallye!D180<>"",Rallye!D180<>"Section"),($Q28-N$10),) -> 00:00:00 | O28: =IF(AND(Rallye!D180<>"",Rallye!D180<>"Section"),($Q28-O$10),) -> 00:00:00 | P28: =Rallye!F179 -> 00:00:00 | Q28: =IF(P28>0,IF(OR(Rallye!D180<>"",Rallye!D180<>"Section"),Q27+P28,),Q27) -> 00:00:00 | R28: =IF(AND(Rallye!D180<>"",Rallye!D180<>"Section"),Q28+$R$10,) -> 00:00:00 | S28: =IF(AND(Rallye!D180<>"",Rallye!D180<>"Section"),R28+$S$10,) -> 00:00:00
B29: =Rallye!B181 -> 0 | C29: =Rallye!C181 -> 0 | D29: =Rallye!D181 -> 0 | E29: =IF(AND(Rallye!D181<>"",Rallye!D181<>"Section"),($Q29-E$10),) -> 00:00:00 | F29: =IF(AND(Rallye!D181<>"",Rallye!D181<>"Section"),($Q29-F$10),) -> 00:00:00 | G29: =IF(AND(Rallye!D181<>"",Rallye!D181<>"Section"),($Q29-G$10),) -> 00:00:00 | H29: =IF(AND(Rallye!D181<>"",Rallye!D181<>"Section"),($Q29-H$10),) -> 00:00:00 | I29: =IF(AND(Rallye!D181<>"",Rallye!D181<>"Section"),($Q29-I$10),) -> 00:00:00 | J29: =IF(AND(Rallye!D181<>"",Rallye!D181<>"Section"),($Q29-J$10),) -> 00:00:00 | K29: =IF(AND(Rallye!D181<>"",Rallye!D181<>"Section"),($Q29-K$10),) -> 00:00:00 | L29: =IF(AND(Rallye!D181<>"",Rallye!D181<>"Section"),($Q29-L$10),) -> 00:00:00 | M29: =IF(AND(Rallye!D181<>"",Rallye!D181<>"Section"),($Q29-M$10),) -> 00:00:00 | N29: =IF(AND(Rallye!D181<>"",Rallye!D181<>"Section"),($Q29-N$10),) -> 00:00:00 | O29: =IF(AND(Rallye!D181<>"",Rallye!D181<>"Section"),($Q29-O$10),) -> 00:00:00 | P29: =Rallye!F180 -> 00:00:00 | Q29: =IF(P29>0,IF(OR(Rallye!D181<>"",Rallye!D181<>"Section"),Q28+P29,),Q28) -> 00:00:00 | R29: =IF(AND(Rallye!D181<>"",Rallye!D181<>"Section"),Q29+$R$10,) -> 00:00:00 | S29: =IF(AND(Rallye!D181<>"",Rallye!D181<>"Section"),R29+$S$10,) -> 00:00:00
B30: =Rallye!B182 -> 0 | C30: =Rallye!C182 -> 0 | D30: =Rallye!D182 -> 0 | E30: =IF(AND(Rallye!D182<>"",Rallye!D182<>"Section"),($Q30-E$10),) -> 00:00:00 | F30: =IF(AND(Rallye!D182<>"",Rallye!D182<>"Section"),($Q30-F$10),) -> 00:00:00 | G30: =IF(AND(Rallye!D182<>"",Rallye!D182<>"Section"),($Q30-G$10),) -> 00:00:00 | H30: =IF(AND(Rallye!D182<>"",Rallye!D182<>"Section"),($Q30-H$10),) -> 00:00:00 | I30: =IF(AND(Rallye!D182<>"",Rallye!D182<>"Section"),($Q30-I$10),) -> 00:00:00 | J30: =IF(AND(Rallye!D182<>"",Rallye!D182<>"Section"),($Q30-J$10),) -> 00:00:00 | K30: =IF(AND(Rallye!D182<>"",Rallye!D182<>"Section"),($Q30-K$10),) -> 00:00:00 | L30: =IF(AND(Rallye!D182<>"",Rallye!D182<>"Section"),($Q30-L$10),) -> 00:00:00 | M30: =IF(AND(Rallye!D182<>"",Rallye!D182<>"Section"),($Q30-M$10),) -> 00:00:00 | N30: =IF(AND(Rallye!D182<>"",Rallye!D182<>"Section"),($Q30-N$10),) -> 00:00:00 | O30: =IF(AND(Rallye!D182<>"",Rallye!D182<>"Section"),($Q30-O$10),) -> 00:00:00 | P30: =Rallye!F181 -> 00:00:00 | Q30: =IF(P30>0,IF(OR(Rallye!D182<>"",Rallye!D182<>"Section"),Q29+P30,),Q29) -> 00:00:00 | R30: =IF(AND(Rallye!D182<>"",Rallye!D182<>"Section"),Q30+$R$10,) -> 00:00:00 | S30: =IF(AND(Rallye!D182<>"",Rallye!D182<>"Section"),R30+$S$10,) -> 00:00:00
B31: =Rallye!B183 -> 0 | C31: =Rallye!C183 -> 0 | D31: =Rallye!D183 -> 0 | E31: =IF(AND(Rallye!D183<>"",Rallye!D183<>"Section"),($Q31-E$10),) -> 00:00:00 | F31: =IF(AND(Rallye!D183<>"",Rallye!D183<>"Section"),($Q31-F$10),) -> 00:00:00 | G31: =IF(AND(Rallye!D183<>"",Rallye!D183<>"Section"),($Q31-G$10),) -> 00:00:00 | H31: =IF(AND(Rallye!D183<>"",Rallye!D183<>"Section"),($Q31-H$10),) -> 00:00:00 | I31: =IF(AND(Rallye!D183<>"",Rallye!D183<>"Section"),($Q31-I$10),) -> 00:00:00 | J31: =IF(AND(Rallye!D183<>"",Rallye!D183<>"Section"),($Q31-J$10),) -> 00:00:00 | K31: =IF(AND(Rallye!D183<>"",Rallye!D183<>"Section"),($Q31-K$10),) -> 00:00:00 | L31: =IF(AND(Rallye!D183<>"",Rallye!D183<>"Section"),($Q31-L$10),) -> 00:00:00 | M31: =IF(AND(Rallye!D183<>"",Rallye!D183<>"Section"),($Q31-M$10),) -> 00:00:00 | N31: =IF(AND(Rallye!D183<>"",Rallye!D183<>"Section"),($Q31-N$10),) -> 00:00:00 | O31: =IF(AND(Rallye!D183<>"",Rallye!D183<>"Section"),($Q31-O$10),) -> 00:00:00 | P31: =Rallye!F182 -> 00:00:00 | Q31: =IF(P31>0,IF(OR(Rallye!D183<>"",Rallye!D183<>"Section"),Q30+P31,),Q30) -> 00:00:00 | R31: =IF(AND(Rallye!D183<>"",Rallye!D183<>"Section"),Q31+$R$10,) -> 00:00:00 | S31: =IF(AND(Rallye!D183<>"",Rallye!D183<>"Section"),R31+$S$10,) -> 00:00:00
B32: =Rallye!B184 -> 0 | C32: =Rallye!C184 -> 0 | D32: =Rallye!D184 -> 0 | E32: =IF(AND(Rallye!D184<>"",Rallye!D184<>"Section"),($Q32-E$10),) -> 00:00:00 | F32: =IF(AND(Rallye!D184<>"",Rallye!D184<>"Section"),($Q32-F$10),) -> 00:00:00 | G32: =IF(AND(Rallye!D184<>"",Rallye!D184<>"Section"),($Q32-G$10),) -> 00:00:00 | H32: =IF(AND(Rallye!D184<>"",Rallye!D184<>"Section"),($Q32-H$10),) -> 00:00:00 | I32: =IF(AND(Rallye!D184<>"",Rallye!D184<>"Section"),($Q32-I$10),) -> 00:00:00 | J32: =IF(AND(Rallye!D184<>"",Rallye!D184<>"Section"),($Q32-J$10),) -> 00:00:00 | K32: =IF(AND(Rallye!D184<>"",Rallye!D184<>"Section"),($Q32-K$10),) -> 00:00:00 | L32: =IF(AND(Rallye!D184<>"",Rallye!D184<>"Section"),($Q32-L$10),) -> 00:00:00 | M32: =IF(AND(Rallye!D184<>"",Rallye!D184<>"Section"),($Q32-M$10),) -> 00:00:00 | N32: =IF(AND(Rallye!D184<>"",Rallye!D184<>"Section"),($Q32-N$10),) -> 00:00:00 | O32: =IF(AND(Rallye!D184<>"",Rallye!D184<>"Section"),($Q32-O$10),) -> 00:00:00 | P32: =Rallye!F183 -> 00:00:00 | Q32: =IF(P32>0,IF(OR(Rallye!D184<>"",Rallye!D184<>"Section"),Q31+P32,),Q31) -> 00:00:00 | R32: =IF(AND(Rallye!D184<>"",Rallye!D184<>"Section"),Q32+$R$10,) -> 00:00:00 | S32: =IF(AND(Rallye!D184<>"",Rallye!D184<>"Section"),R32+$S$10,) -> 00:00:00
B33: =Rallye!B185 -> 0 | C33: =Rallye!C185 -> 0 | D33: =Rallye!D185 -> 0 | E33: =IF(AND(Rallye!D185<>"",Rallye!D185<>"Section"),($Q33-E$10),) -> 00:00:00 | F33: =IF(AND(Rallye!D185<>"",Rallye!D185<>"Section"),($Q33-F$10),) -> 00:00:00 | G33: =IF(AND(Rallye!D185<>"",Rallye!D185<>"Section"),($Q33-G$10),) -> 00:00:00 | H33: =IF(AND(Rallye!D185<>"",Rallye!D185<>"Section"),($Q33-H$10),) -> 00:00:00 | I33: =IF(AND(Rallye!D185<>"",Rallye!D185<>"Section"),($Q33-I$10),) -> 00:00:00 | J33: =IF(AND(Rallye!D185<>"",Rallye!D185<>"Section"),($Q33-J$10),) -> 00:00:00 | K33: =IF(AND(Rallye!D185<>"",Rallye!D185<>"Section"),($Q33-K$10),) -> 00:00:00 | L33: =IF(AND(Rallye!D185<>"",Rallye!D185<>"Section"),($Q33-L$10),) -> 00:00:00 | M33: =IF(AND(Rallye!D185<>"",Rallye!D185<>"Section"),($Q33-M$10),) -> 00:00:00 | N33: =IF(AND(Rallye!D185<>"",Rallye!D185<>"Section"),($Q33-N$10),) -> 00:00:00 | O33: =IF(AND(Rallye!D185<>"",Rallye!D185<>"Section"),($Q33-O$10),) -> 00:00:00 | P33: =Rallye!F184 -> 00:00:00 | Q33: =IF(P33>0,IF(OR(Rallye!D185<>"",Rallye!D185<>"Section"),Q32+P33,),Q32) -> 00:00:00 | R33: =IF(AND(Rallye!D185<>"",Rallye!D185<>"Section"),Q33+$R$10,) -> 00:00:00 | S33: =IF(AND(Rallye!D185<>"",Rallye!D185<>"Section"),R33+$S$10,) -> 00:00:00
B34: =Rallye!B186 -> 0 | C34: =Rallye!C186 -> 0 | D34: =Rallye!D186 -> 0 | E34: =IF(AND(Rallye!D186<>"",Rallye!D186<>"Section"),($Q34-E$10),) -> 00:00:00 | F34: =IF(AND(Rallye!D186<>"",Rallye!D186<>"Section"),($Q34-F$10),) -> 00:00:00 | G34: =IF(AND(Rallye!D186<>"",Rallye!D186<>"Section"),($Q34-G$10),) -> 00:00:00 | H34: =IF(AND(Rallye!D186<>"",Rallye!D186<>"Section"),($Q34-H$10),) -> 00:00:00 | I34: =IF(AND(Rallye!D186<>"",Rallye!D186<>"Section"),($Q34-I$10),) -> 00:00:00 | J34: =IF(AND(Rallye!D186<>"",Rallye!D186<>"Section"),($Q34-J$10),) -> 00:00:00 | K34: =IF(AND(Rallye!D186<>"",Rallye!D186<>"Section"),($Q34-K$10),) -> 00:00:00 | L34: =IF(AND(Rallye!D186<>"",Rallye!D186<>"Section"),($Q34-L$10),) -> 00:00:00 | M34: =IF(AND(Rallye!D186<>"",Rallye!D186<>"Section"),($Q34-M$10),) -> 00:00:00 | N34: =IF(AND(Rallye!D186<>"",Rallye!D186<>"Section"),($Q34-N$10),) -> 00:00:00 | O34: =IF(AND(Rallye!D186<>"",Rallye!D186<>"Section"),($Q34-O$10),) -> 00:00:00 | P34: =Rallye!F185 -> 00:00:00 | Q34: =IF(P34>0,IF(OR(Rallye!D186<>"",Rallye!D186<>"Section"),Q33+P34,),Q33) -> 00:00:00 | R34: =IF(AND(Rallye!D186<>"",Rallye!D186<>"Section"),Q34+$R$10,) -> 00:00:00 | S34: =IF(AND(Rallye!D186<>"",Rallye!D186<>"Section"),R34+$S$10,) -> 00:00:00
B35: =Rallye!B187 -> 0 | C35: =Rallye!C187 -> 0 | D35: =Rallye!D187 -> 0 | E35: =IF(AND(Rallye!D187<>"",Rallye!D187<>"Section"),($Q35-E$10),) -> 00:00:00 | F35: =IF(AND(Rallye!D187<>"",Rallye!D187<>"Section"),($Q35-F$10),) -> 00:00:00 | G35: =IF(AND(Rallye!D187<>"",Rallye!D187<>"Section"),($Q35-G$10),) -> 00:00:00 | H35: =IF(AND(Rallye!D187<>"",Rallye!D187<>"Section"),($Q35-H$10),) -> 00:00:00 | I35: =IF(AND(Rallye!D187<>"",Rallye!D187<>"Section"),($Q35-I$10),) -> 00:00:00 | J35: =IF(AND(Rallye!D187<>"",Rallye!D187<>"Section"),($Q35-J$10),) -> 00:00:00 | K35: =IF(AND(Rallye!D187<>"",Rallye!D187<>"Section"),($Q35-K$10),) -> 00:00:00 | L35: =IF(AND(Rallye!D187<>"",Rallye!D187<>"Section"),($Q35-L$10),) -> 00:00:00 | M35: =IF(AND(Rallye!D187<>"",Rallye!D187<>"Section"),($Q35-M$10),) -> 00:00:00 | N35: =IF(AND(Rallye!D187<>"",Rallye!D187<>"Section"),($Q35-N$10),) -> 00:00:00 | O35: =IF(AND(Rallye!D187<>"",Rallye!D187<>"Section"),($Q35-O$10),) -> 00:00:00 | P35: =Rallye!F186 -> 00:00:00 | Q35: =IF(P35>0,IF(OR(Rallye!D187<>"",Rallye!D187<>"Section"),Q34+P35,),Q34) -> 00:00:00 | R35: =IF(AND(Rallye!D187<>"",Rallye!D187<>"Section"),Q35+$R$10,) -> 00:00:00 | S35: =IF(AND(Rallye!D187<>"",Rallye!D187<>"Section"),R35+$S$10,) -> 00:00:00
B36: =Rallye!B188 -> 0 | C36: =Rallye!C188 -> 0 | D36: =Rallye!D188 -> 0 | E36: =IF(AND(Rallye!D188<>"",Rallye!D188<>"Section"),($Q36-E$10),) -> 00:00:00 | F36: =IF(AND(Rallye!D188<>"",Rallye!D188<>"Section"),($Q36-F$10),) -> 00:00:00 | G36: =IF(AND(Rallye!D188<>"",Rallye!D188<>"Section"),($Q36-G$10),) -> 00:00:00 | H36: =IF(AND(Rallye!D188<>"",Rallye!D188<>"Section"),($Q36-H$10),) -> 00:00:00 | I36: =IF(AND(Rallye!D188<>"",Rallye!D188<>"Section"),($Q36-I$10),) -> 00:00:00 | J36: =IF(AND(Rallye!D188<>"",Rallye!D188<>"Section"),($Q36-J$10),) -> 00:00:00 | K36: =IF(AND(Rallye!D188<>"",Rallye!D188<>"Section"),($Q36-K$10),) -> 00:00:00 | L36: =IF(AND(Rallye!D188<>"",Rallye!D188<>"Section"),($Q36-L$10),) -> 00:00:00 | M36: =IF(AND(Rallye!D188<>"",Rallye!D188<>"Section"),($Q36-M$10),) -> 00:00:00 | N36: =IF(AND(Rallye!D188<>"",Rallye!D188<>"Section"),($Q36-N$10),) -> 00:00:00 | O36: =IF(AND(Rallye!D188<>"",Rallye!D188<>"Section"),($Q36-O$10),) -> 00:00:00 | P36: =Rallye!F187 -> 00:00:00 | Q36: =IF(P36>0,IF(OR(Rallye!D188<>"",Rallye!D188<>"Section"),Q35+P36,),Q35) -> 00:00:00 | R36: =IF(AND(Rallye!D188<>"",Rallye!D188<>"Section"),Q36+$R$10,) -> 00:00:00 | S36: =IF(AND(Rallye!D188<>"",Rallye!D188<>"Section"),R36+$S$10,) -> 00:00:00
B37: =Rallye!B189 -> 0 | C37: =Rallye!C189 -> 0 | D37: =Rallye!D189 -> 0 | E37: =IF(AND(Rallye!D189<>"",Rallye!D189<>"Section"),($Q37-E$10),) -> 00:00:00 | F37: =IF(AND(Rallye!D189<>"",Rallye!D189<>"Section"),($Q37-F$10),) -> 00:00:00 | G37: =IF(AND(Rallye!D189<>"",Rallye!D189<>"Section"),($Q37-G$10),) -> 00:00:00 | H37: =IF(AND(Rallye!D189<>"",Rallye!D189<>"Section"),($Q37-H$10),) -> 00:00:00 | I37: =IF(AND(Rallye!D189<>"",Rallye!D189<>"Section"),($Q37-I$10),) -> 00:00:00 | J37: =IF(AND(Rallye!D189<>"",Rallye!D189<>"Section"),($Q37-J$10),) -> 00:00:00 | K37: =IF(AND(Rallye!D189<>"",Rallye!D189<>"Section"),($Q37-K$10),) -> 00:00:00 | L37: =IF(AND(Rallye!D189<>"",Rallye!D189<>"Section"),($Q37-L$10),) -> 00:00:00 | M37: =IF(AND(Rallye!D189<>"",Rallye!D189<>"Section"),($Q37-M$10),) -> 00:00:00 | N37: =IF(AND(Rallye!D189<>"",Rallye!D189<>"Section"),($Q37-N$10),) -> 00:00:00 | O37: =IF(AND(Rallye!D189<>"",Rallye!D189<>"Section"),($Q37-O$10),) -> 00:00:00 | P37: =Rallye!F188 -> 00:00:00 | Q37: =IF(P37>0,IF(OR(Rallye!D189<>"",Rallye!D189<>"Section"),Q36+P37,),Q36) -> 00:00:00 | R37: =IF(AND(Rallye!D189<>"",Rallye!D189<>"Section"),Q37+$R$10,) -> 00:00:00 | S37: =IF(AND(Rallye!D189<>"",Rallye!D189<>"Section"),R37+$S$10,) -> 00:00:00
B38: =Rallye!B190 -> 0 | C38: =Rallye!C190 -> 0 | D38: =Rallye!D190 -> 0 | E38: =IF(AND(Rallye!D190<>"",Rallye!D190<>"Section"),($Q38-E$10),) -> 00:00:00 | F38: =IF(AND(Rallye!D190<>"",Rallye!D190<>"Section"),($Q38-F$10),) -> 00:00:00 | G38: =IF(AND(Rallye!D190<>"",Rallye!D190<>"Section"),($Q38-G$10),) -> 00:00:00 | H38: =IF(AND(Rallye!D190<>"",Rallye!D190<>"Section"),($Q38-H$10),) -> 00:00:00 | I38: =IF(AND(Rallye!D190<>"",Rallye!D190<>"Section"),($Q38-I$10),) -> 00:00:00 | J38: =IF(AND(Rallye!D190<>"",Rallye!D190<>"Section"),($Q38-J$10),) -> 00:00:00 | K38: =IF(AND(Rallye!D190<>"",Rallye!D190<>"Section"),($Q38-K$10),) -> 00:00:00 | L38: =IF(AND(Rallye!D190<>"",Rallye!D190<>"Section"),($Q38-L$10),) -> 00:00:00 | M38: =IF(AND(Rallye!D190<>"",Rallye!D190<>"Section"),($Q38-M$10),) -> 00:00:00 | N38: =IF(AND(Rallye!D190<>"",Rallye!D190<>"Section"),($Q38-N$10),) -> 00:00:00 | O38: =IF(AND(Rallye!D190<>"",Rallye!D190<>"Section"),($Q38-O$10),) -> 00:00:00 | P38: =Rallye!F189 -> 00:00:00 | Q38: =IF(P38>0,IF(OR(Rallye!D190<>"",Rallye!D190<>"Section"),Q37+P38,),Q37) -> 00:00:00 | R38: =IF(AND(Rallye!D190<>"",Rallye!D190<>"Section"),Q38+$R$10,) -> 00:00:00 | S38: =IF(AND(Rallye!D190<>"",Rallye!D190<>"Section"),R38+$S$10,) -> 00:00:00
B39: =Rallye!B191 -> 0 | C39: =Rallye!C191 -> 0 | D39: =Rallye!D191 -> 0 | E39: =IF(AND(Rallye!D191<>"",Rallye!D191<>"Section"),($Q39-E$10),) -> 00:00:00 | F39: =IF(AND(Rallye!D191<>"",Rallye!D191<>"Section"),($Q39-F$10),) -> 00:00:00 | G39: =IF(AND(Rallye!D191<>"",Rallye!D191<>"Section"),($Q39-G$10),) -> 00:00:00 | H39: =IF(AND(Rallye!D191<>"",Rallye!D191<>"Section"),($Q39-H$10),) -> 00:00:00 | I39: =IF(AND(Rallye!D191<>"",Rallye!D191<>"Section"),($Q39-I$10),) -> 00:00:00 | J39: =IF(AND(Rallye!D191<>"",Rallye!D191<>"Section"),($Q39-J$10),) -> 00:00:00 | K39: =IF(AND(Rallye!D191<>"",Rallye!D191<>"Section"),($Q39-K$10),) -> 00:00:00 | L39: =IF(AND(Rallye!D191<>"",Rallye!D191<>"Section"),($Q39-L$10),) -> 00:00:00 | M39: =IF(AND(Rallye!D191<>"",Rallye!D191<>"Section"),($Q39-M$10),) -> 00:00:00 | N39: =IF(AND(Rallye!D191<>"",Rallye!D191<>"Section"),($Q39-N$10),) -> 00:00:00 | O39: =IF(AND(Rallye!D191<>"",Rallye!D191<>"Section"),($Q39-O$10),) -> 00:00:00 | P39: =Rallye!F190 -> 00:00:00 | Q39: =IF(P39>0,IF(OR(Rallye!D191<>"",Rallye!D191<>"Section"),Q38+P39,),Q38) -> 00:00:00 | R39: =IF(AND(Rallye!D191<>"",Rallye!D191<>"Section"),Q39+$R$10,) -> 00:00:00 | S39: =IF(AND(Rallye!D191<>"",Rallye!D191<>"Section"),R39+$S$10,) -> 00:00:00
B40: =Rallye!B192 -> 0 | C40: =Rallye!C192 -> 0 | D40: =Rallye!D192 -> 0 | E40: =IF(AND(Rallye!D192<>"",Rallye!D192<>"Section"),($Q40-E$10),) -> 00:00:00 | F40: =IF(AND(Rallye!D192<>"",Rallye!D192<>"Section"),($Q40-F$10),) -> 00:00:00 | G40: =IF(AND(Rallye!D192<>"",Rallye!D192<>"Section"),($Q40-G$10),) -> 00:00:00 | H40: =IF(AND(Rallye!D192<>"",Rallye!D192<>"Section"),($Q40-H$10),) -> 00:00:00 | I40: =IF(AND(Rallye!D192<>"",Rallye!D192<>"Section"),($Q40-I$10),) -> 00:00:00 | J40: =IF(AND(Rallye!D192<>"",Rallye!D192<>"Section"),($Q40-J$10),) -> 00:00:00 | K40: =IF(AND(Rallye!D192<>"",Rallye!D192<>"Section"),($Q40-K$10),) -> 00:00:00 | L40: =IF(AND(Rallye!D192<>"",Rallye!D192<>"Section"),($Q40-L$10),) -> 00:00:00 | M40: =IF(AND(Rallye!D192<>"",Rallye!D192<>"Section"),($Q40-M$10),) -> 00:00:00 | N40: =IF(AND(Rallye!D192<>"",Rallye!D192<>"Section"),($Q40-N$10),) -> 00:00:00 | O40: =IF(AND(Rallye!D192<>"",Rallye!D192<>"Section"),($Q40-O$10),) -> 00:00:00 | P40: =Rallye!F191 -> 00:00:00 | Q40: =IF(P40>0,IF(OR(Rallye!D192<>"",Rallye!D192<>"Section"),Q39+P40,),Q39) -> 00:00:00 | R40: =IF(AND(Rallye!D192<>"",Rallye!D192<>"Section"),Q40+$R$10,) -> 00:00:00 | S40: =IF(AND(Rallye!D192<>"",Rallye!D192<>"Section"),R40+$S$10,) -> 00:00:00
B41: =Rallye!B193 -> 0 | C41: =Rallye!C193 -> 0 | D41: =Rallye!D193 -> 0 | E41: =IF(AND(Rallye!D193<>"",Rallye!D193<>"Section"),($Q41-E$10),) -> 00:00:00 | F41: =IF(AND(Rallye!D193<>"",Rallye!D193<>"Section"),($Q41-F$10),) -> 00:00:00 | G41: =IF(AND(Rallye!D193<>"",Rallye!D193<>"Section"),($Q41-G$10),) -> 00:00:00 | H41: =IF(AND(Rallye!D193<>"",Rallye!D193<>"Section"),($Q41-H$10),) -> 00:00:00 | I41: =IF(AND(Rallye!D193<>"",Rallye!D193<>"Section"),($Q41-I$10),) -> 00:00:00 | J41: =IF(AND(Rallye!D193<>"",Rallye!D193<>"Section"),($Q41-J$10),) -> 00:00:00 | K41: =IF(AND(Rallye!D193<>"",Rallye!D193<>"Section"),($Q41-K$10),) -> 00:00:00 | L41: =IF(AND(Rallye!D193<>"",Rallye!D193<>"Section"),($Q41-L$10),) -> 00:00:00 | M41: =IF(AND(Rallye!D193<>"",Rallye!D193<>"Section"),($Q41-M$10),) -> 00:00:00 | N41: =IF(AND(Rallye!D193<>"",Rallye!D193<>"Section"),($Q41-N$10),) -> 00:00:00 | O41: =IF(AND(Rallye!D193<>"",Rallye!D193<>"Section"),($Q41-O$10),) -> 00:00:00 | P41: =Rallye!F192 -> 00:00:00 | Q41: =IF(P41>0,IF(OR(Rallye!D193<>"",Rallye!D193<>"Section"),Q40+P41,),Q40) -> 00:00:00 | R41: =IF(AND(Rallye!D193<>"",Rallye!D193<>"Section"),Q41+$R$10,) -> 00:00:00 | S41: =IF(AND(Rallye!D193<>"",Rallye!D193<>"Section"),R41+$S$10,) -> 00:00:00
B42: =Rallye!B194 -> 0 | C42: =Rallye!C194 -> 0 | D42: =Rallye!D194 -> 0 | E42: =IF(AND(Rallye!D194<>"",Rallye!D194<>"Section"),($Q42-E$10),) -> 00:00:00 | F42: =IF(AND(Rallye!D194<>"",Rallye!D194<>"Section"),($Q42-F$10),) -> 00:00:00 | G42: =IF(AND(Rallye!D194<>"",Rallye!D194<>"Section"),($Q42-G$10),) -> 00:00:00 | H42: =IF(AND(Rallye!D194<>"",Rallye!D194<>"Section"),($Q42-H$10),) -> 00:00:00 | I42: =IF(AND(Rallye!D194<>"",Rallye!D194<>"Section"),($Q42-I$10),) -> 00:00:00 | J42: =IF(AND(Rallye!D194<>"",Rallye!D194<>"Section"),($Q42-J$10),) -> 00:00:00 | K42: =IF(AND(Rallye!D194<>"",Rallye!D194<>"Section"),($Q42-K$10),) -> 00:00:00 | L42: =IF(AND(Rallye!D194<>"",Rallye!D194<>"Section"),($Q42-L$10),) -> 00:00:00 | M42: =IF(AND(Rallye!D194<>"",Rallye!D194<>"Section"),($Q42-M$10),) -> 00:00:00 | N42: =IF(AND(Rallye!D194<>"",Rallye!D194<>"Section"),($Q42-N$10),) -> 00:00:00 | O42: =IF(AND(Rallye!D194<>"",Rallye!D194<>"Section"),($Q42-O$10),) -> 00:00:00 | P42: =Rallye!F193 -> 00:00:00 | Q42: =IF(P42>0,IF(OR(Rallye!D194<>"",Rallye!D194<>"Section"),Q41+P42,),Q41) -> 00:00:00 | R42: =IF(AND(Rallye!D194<>"",Rallye!D194<>"Section"),Q42+$R$10,) -> 00:00:00 | S42: =IF(AND(Rallye!D194<>"",Rallye!D194<>"Section"),R42+$S$10,) -> 00:00:00
B43: =Rallye!B195 -> 0 | C43: =Rallye!C195 -> 0 | D43: =Rallye!D195 -> 0 | E43: =IF(AND(Rallye!D195<>"",Rallye!D195<>"Section"),($Q43-E$10),) -> 00:00:00 | F43: =IF(AND(Rallye!D195<>"",Rallye!D195<>"Section"),($Q43-F$10),) -> 00:00:00 | G43: =IF(AND(Rallye!D195<>"",Rallye!D195<>"Section"),($Q43-G$10),) -> 00:00:00 | H43: =IF(AND(Rallye!D195<>"",Rallye!D195<>"Section"),($Q43-H$10),) -> 00:00:00 | I43: =IF(AND(Rallye!D195<>"",Rallye!D195<>"Section"),($Q43-I$10),) -> 00:00:00 | J43: =IF(AND(Rallye!D195<>"",Rallye!D195<>"Section"),($Q43-J$10),) -> 00:00:00 | K43: =IF(AND(Rallye!D195<>"",Rallye!D195<>"Section"),($Q43-K$10),) -> 00:00:00 | L43: =IF(AND(Rallye!D195<>"",Rallye!D195<>"Section"),($Q43-L$10),) -> 00:00:00 | M43: =IF(AND(Rallye!D195<>"",Rallye!D195<>"Section"),($Q43-M$10),) -> 00:00:00 | N43: =IF(AND(Rallye!D195<>"",Rallye!D195<>"Section"),($Q43-N$10),) -> 00:00:00 | O43: =IF(AND(Rallye!D195<>"",Rallye!D195<>"Section"),($Q43-O$10),) -> 00:00:00 | P43: =Rallye!F194 -> 00:00:00 | Q43: =IF(P43>0,IF(OR(Rallye!D195<>"",Rallye!D195<>"Section"),Q42+P43,),Q42) -> 00:00:00 | R43: =IF(AND(Rallye!D195<>"",Rallye!D195<>"Section"),Q43+$R$10,) -> 00:00:00 | S43: =IF(AND(Rallye!D195<>"",Rallye!D195<>"Section"),R43+$S$10,) -> 00:00:00
B44: =Rallye!B196 -> 0 | C44: =Rallye!C196 -> 0 | D44: =Rallye!D196 -> 0 | E44: =IF(AND(Rallye!D196<>"",Rallye!D196<>"Section"),($Q44-E$10),) -> 00:00:00 | F44: =IF(AND(Rallye!D196<>"",Rallye!D196<>"Section"),($Q44-F$10),) -> 00:00:00 | G44: =IF(AND(Rallye!D196<>"",Rallye!D196<>"Section"),($Q44-G$10),) -> 00:00:00 | H44: =IF(AND(Rallye!D196<>"",Rallye!D196<>"Section"),($Q44-H$10),) -> 00:00:00 | I44: =IF(AND(Rallye!D196<>"",Rallye!D196<>"Section"),($Q44-I$10),) -> 00:00:00 | J44: =IF(AND(Rallye!D196<>"",Rallye!D196<>"Section"),($Q44-J$10),) -> 00:00:00 | K44: =IF(AND(Rallye!D196<>"",Rallye!D196<>"Section"),($Q44-K$10),) -> 00:00:00 | L44: =IF(AND(Rallye!D196<>"",Rallye!D196<>"Section"),($Q44-L$10),) -> 00:00:00 | M44: =IF(AND(Rallye!D196<>"",Rallye!D196<>"Section"),($Q44-M$10),) -> 00:00:00 | N44: =IF(AND(Rallye!D196<>"",Rallye!D196<>"Section"),($Q44-N$10),) -> 00:00:00 | O44: =IF(AND(Rallye!D196<>"",Rallye!D196<>"Section"),($Q44-O$10),) -> 00:00:00 | P44: =Rallye!F195 -> 00:00:00 | Q44: =IF(P44>0,IF(OR(Rallye!D196<>"",Rallye!D196<>"Section"),Q43+P44,),Q43) -> 00:00:00 | R44: =IF(AND(Rallye!D196<>"",Rallye!D196<>"Section"),Q44+$R$10,) -> 00:00:00 | S44: =IF(AND(Rallye!D196<>"",Rallye!D196<>"Section"),R44+$S$10,) -> 00:00:00
B45: =Rallye!B197 -> 0 | C45: =Rallye!C197 -> 0 | D45: =Rallye!D197 -> 0 | E45: =IF(AND(Rallye!D197<>"",Rallye!D197<>"Section"),($Q45-E$10),) -> 00:00:00 | F45: =IF(AND(Rallye!D197<>"",Rallye!D197<>"Section"),($Q45-F$10),) -> 00:00:00 | G45: =IF(AND(Rallye!D197<>"",Rallye!D197<>"Section"),($Q45-G$10),) -> 00:00:00 | H45: =IF(AND(Rallye!D197<>"",Rallye!D197<>"Section"),($Q45-H$10),) -> 00:00:00 | I45: =IF(AND(Rallye!D197<>"",Rallye!D197<>"Section"),($Q45-I$10),) -> 00:00:00 | J45: =IF(AND(Rallye!D197<>"",Rallye!D197<>"Section"),($Q45-J$10),) -> 00:00:00 | K45: =IF(AND(Rallye!D197<>"",Rallye!D197<>"Section"),($Q45-K$10),) -> 00:00:00 | L45: =IF(AND(Rallye!D197<>"",Rallye!D197<>"Section"),($Q45-L$10),) -> 00:00:00 | M45: =IF(AND(Rallye!D197<>"",Rallye!D197<>"Section"),($Q45-M$10),) -> 00:00:00 | N45: =IF(AND(Rallye!D197<>"",Rallye!D197<>"Section"),($Q45-N$10),) -> 00:00:00 | O45: =IF(AND(Rallye!D197<>"",Rallye!D197<>"Section"),($Q45-O$10),) -> 00:00:00 | P45: =Rallye!F196 -> 00:00:00 | Q45: =IF(P45>0,IF(OR(Rallye!D197<>"",Rallye!D197<>"Section"),Q44+P45,),Q44) -> 00:00:00 | R45: =IF(AND(Rallye!D197<>"",Rallye!D197<>"Section"),Q45+$R$10,) -> 00:00:00 | S45: =IF(AND(Rallye!D197<>"",Rallye!D197<>"Section"),R45+$S$10,) -> 00:00:00
B46: =Rallye!B198 -> 0 | C46: =Rallye!C198 -> 0 | D46: =Rallye!D198 -> 0 | E46: =IF(AND(Rallye!D198<>"",Rallye!D198<>"Section"),($Q46-E$10),) -> 00:00:00 | F46: =IF(AND(Rallye!D198<>"",Rallye!D198<>"Section"),($Q46-F$10),) -> 00:00:00 | G46: =IF(AND(Rallye!D198<>"",Rallye!D198<>"Section"),($Q46-G$10),) -> 00:00:00 | H46: =IF(AND(Rallye!D198<>"",Rallye!D198<>"Section"),($Q46-H$10),) -> 00:00:00 | I46: =IF(AND(Rallye!D198<>"",Rallye!D198<>"Section"),($Q46-I$10),) -> 00:00:00 | J46: =IF(AND(Rallye!D198<>"",Rallye!D198<>"Section"),($Q46-J$10),) -> 00:00:00 | K46: =IF(AND(Rallye!D198<>"",Rallye!D198<>"Section"),($Q46-K$10),) -> 00:00:00 | L46: =IF(AND(Rallye!D198<>"",Rallye!D198<>"Section"),($Q46-L$10),) -> 00:00:00 | M46: =IF(AND(Rallye!D198<>"",Rallye!D198<>"Section"),($Q46-M$10),) -> 00:00:00 | N46: =IF(AND(Rallye!D198<>"",Rallye!D198<>"Section"),($Q46-N$10),) -> 00:00:00 | O46: =IF(AND(Rallye!D198<>"",Rallye!D198<>"Section"),($Q46-O$10),) -> 00:00:00 | P46: =Rallye!F197 -> 00:00:00 | Q46: =IF(P46>0,IF(OR(Rallye!D198<>"",Rallye!D198<>"Section"),Q45+P46,),Q45) -> 00:00:00 | R46: =IF(AND(Rallye!D198<>"",Rallye!D198<>"Section"),Q46+$R$10,) -> 00:00:00 | S46: =IF(AND(Rallye!D198<>"",Rallye!D198<>"Section"),R46+$S$10,) -> 00:00:00
B47: =Rallye!B199 -> 0 | C47: =Rallye!C199 -> 0 | D47: =Rallye!D199 -> 0 | E47: =IF(AND(Rallye!D199<>"",Rallye!D199<>"Section"),($Q47-E$10),) -> 00:00:00 | F47: =IF(AND(Rallye!D199<>"",Rallye!D199<>"Section"),($Q47-F$10),) -> 00:00:00 | G47: =IF(AND(Rallye!D199<>"",Rallye!D199<>"Section"),($Q47-G$10),) -> 00:00:00 | H47: =IF(AND(Rallye!D199<>"",Rallye!D199<>"Section"),($Q47-H$10),) -> 00:00:00 | I47: =IF(AND(Rallye!D199<>"",Rallye!D199<>"Section"),($Q47-I$10),) -> 00:00:00 | J47: =IF(AND(Rallye!D199<>"",Rallye!D199<>"Section"),($Q47-J$10),) -> 00:00:00 | K47: =IF(AND(Rallye!D199<>"",Rallye!D199<>"Section"),($Q47-K$10),) -> 00:00:00 | L47: =IF(AND(Rallye!D199<>"",Rallye!D199<>"Section"),($Q47-L$10),) -> 00:00:00 | M47: =IF(AND(Rallye!D199<>"",Rallye!D199<>"Section"),($Q47-M$10),) -> 00:00:00 | N47: =IF(AND(Rallye!D199<>"",Rallye!D199<>"Section"),($Q47-N$10),) -> 00:00:00 | O47: =IF(AND(Rallye!D199<>"",Rallye!D199<>"Section"),($Q47-O$10),) -> 00:00:00 | P47: =Rallye!F198 -> 00:00:00 | Q47: =IF(P47>0,IF(OR(Rallye!D199<>"",Rallye!D199<>"Section"),Q46+P47,),Q46) -> 00:00:00 | R47: =IF(AND(Rallye!D199<>"",Rallye!D199<>"Section"),Q47+$R$10,) -> 00:00:00 | S47: =IF(AND(Rallye!D199<>"",Rallye!D199<>"Section"),R47+$S$10,) -> 00:00:00
B48: =Rallye!B200 -> 0 | C48: =Rallye!C200 -> 0 | D48: =Rallye!D200 -> 0 | E48: =IF(AND(Rallye!D200<>"",Rallye!D200<>"Section"),($Q48-E$10),) -> 00:00:00 | F48: =IF(AND(Rallye!D200<>"",Rallye!D200<>"Section"),($Q48-F$10),) -> 00:00:00 | G48: =IF(AND(Rallye!D200<>"",Rallye!D200<>"Section"),($Q48-G$10),) -> 00:00:00 | H48: =IF(AND(Rallye!D200<>"",Rallye!D200<>"Section"),($Q48-H$10),) -> 00:00:00 | I48: =IF(AND(Rallye!D200<>"",Rallye!D200<>"Section"),($Q48-I$10),) -> 00:00:00 | J48: =IF(AND(Rallye!D200<>"",Rallye!D200<>"Section"),($Q48-J$10),) -> 00:00:00 | K48: =IF(AND(Rallye!D200<>"",Rallye!D200<>"Section"),($Q48-K$10),) -> 00:00:00 | L48: =IF(AND(Rallye!D200<>"",Rallye!D200<>"Section"),($Q48-L$10),) -> 00:00:00 | M48: =IF(AND(Rallye!D200<>"",Rallye!D200<>"Section"),($Q48-M$10),) -> 00:00:00 | N48: =IF(AND(Rallye!D200<>"",Rallye!D200<>"Section"),($Q48-N$10),) -> 00:00:00 | O48: =IF(AND(Rallye!D200<>"",Rallye!D200<>"Section"),($Q48-O$10),) -> 00:00:00 | P48: =Rallye!F199 -> 00:00:00 | Q48: =IF(P48>0,IF(OR(Rallye!D200<>"",Rallye!D200<>"Section"),Q47+P48,),Q47) -> 00:00:00 | R48: =IF(AND(Rallye!D200<>"",Rallye!D200<>"Section"),Q48+$R$10,) -> 00:00:00 | S48: =IF(AND(Rallye!D200<>"",Rallye!D200<>"Section"),R48+$S$10,) -> 00:00:00
B49: =Rallye!B201 -> 0 | C49: =Rallye!C201 -> 0 | D49: =Rallye!D201 -> 0 | E49: =IF(AND(Rallye!D201<>"",Rallye!D201<>"Section"),($Q49-E$10),) -> 00:00:00 | F49: =IF(AND(Rallye!D201<>"",Rallye!D201<>"Section"),($Q49-F$10),) -> 00:00:00 | G49: =IF(AND(Rallye!D201<>"",Rallye!D201<>"Section"),($Q49-G$10),) -> 00:00:00 | H49: =IF(AND(Rallye!D201<>"",Rallye!D201<>"Section"),($Q49-H$10),) -> 00:00:00 | I49: =IF(AND(Rallye!D201<>"",Rallye!D201<>"Section"),($Q49-I$10),) -> 00:00:00 | J49: =IF(AND(Rallye!D201<>"",Rallye!D201<>"Section"),($Q49-J$10),) -> 00:00:00 | K49: =IF(AND(Rallye!D201<>"",Rallye!D201<>"Section"),($Q49-K$10),) -> 00:00:00 | L49: =IF(AND(Rallye!D201<>"",Rallye!D201<>"Section"),($Q49-L$10),) -> 00:00:00 | M49: =IF(AND(Rallye!D201<>"",Rallye!D201<>"Section"),($Q49-M$10),) -> 00:00:00 | N49: =IF(AND(Rallye!D201<>"",Rallye!D201<>"Section"),($Q49-N$10),) -> 00:00:00 | O49: =IF(AND(Rallye!D201<>"",Rallye!D201<>"Section"),($Q49-O$10),) -> 00:00:00 | P49: =Rallye!F200 -> 00:00:00 | Q49: =IF(P49>0,IF(OR(Rallye!D201<>"",Rallye!D201<>"Section"),Q48+P49,),Q48) -> 00:00:00 | R49: =IF(AND(Rallye!D201<>"",Rallye!D201<>"Section"),Q49+$R$10,) -> 00:00:00 | S49: =IF(AND(Rallye!D201<>"",Rallye!D201<>"Section"),R49+$S$10,) -> 00:00:00
B50: =Rallye!B202 -> 0 | C50: =Rallye!C202 -> 0 | D50: =Rallye!D202 -> 0 | E50: =IF(AND(Rallye!D202<>"",Rallye!D202<>"Section"),($Q50-E$10),) -> 00:00:00 | F50: =IF(AND(Rallye!D202<>"",Rallye!D202<>"Section"),($Q50-F$10),) -> 00:00:00 | G50: =IF(AND(Rallye!D202<>"",Rallye!D202<>"Section"),($Q50-G$10),) -> 00:00:00 | H50: =IF(AND(Rallye!D202<>"",Rallye!D202<>"Section"),($Q50-H$10),) -> 00:00:00 | I50: =IF(AND(Rallye!D202<>"",Rallye!D202<>"Section"),($Q50-I$10),) -> 00:00:00 | J50: =IF(AND(Rallye!D202<>"",Rallye!D202<>"Section"),($Q50-J$10),) -> 00:00:00 | K50: =IF(AND(Rallye!D202<>"",Rallye!D202<>"Section"),($Q50-K$10),) -> 00:00:00 | L50: =IF(AND(Rallye!D202<>"",Rallye!D202<>"Section"),($Q50-L$10),) -> 00:00:00 | M50: =IF(AND(Rallye!D202<>"",Rallye!D202<>"Section"),($Q50-M$10),) -> 00:00:00 | N50: =IF(AND(Rallye!D202<>"",Rallye!D202<>"Section"),($Q50-N$10),) -> 00:00:00 | O50: =IF(AND(Rallye!D202<>"",Rallye!D202<>"Section"),($Q50-O$10),) -> 00:00:00 | P50: =Rallye!F201 -> 00:00:00 | Q50: =IF(P50>0,IF(OR(Rallye!D202<>"",Rallye!D202<>"Section"),Q49+P50,),Q49) -> 00:00:00 | R50: =IF(AND(Rallye!D202<>"",Rallye!D202<>"Section"),Q50+$R$10,) -> 00:00:00 | S50: =IF(AND(Rallye!D202<>"",Rallye!D202<>"Section"),R50+$S$10,) -> 00:00:00
B51: =Rallye!B203 -> 0 | C51: =Rallye!C203 -> 0 | D51: =Rallye!D203 -> 0 | E51: =IF(AND(Rallye!D203<>"",Rallye!D203<>"Section"),($Q51-E$10),) -> 00:00:00 | F51: =IF(AND(Rallye!D203<>"",Rallye!D203<>"Section"),($Q51-F$10),) -> 00:00:00 | G51: =IF(AND(Rallye!D203<>"",Rallye!D203<>"Section"),($Q51-G$10),) -> 00:00:00 | H51: =IF(AND(Rallye!D203<>"",Rallye!D203<>"Section"),($Q51-H$10),) -> 00:00:00 | I51: =IF(AND(Rallye!D203<>"",Rallye!D203<>"Section"),($Q51-I$10),) -> 00:00:00 | J51: =IF(AND(Rallye!D203<>"",Rallye!D203<>"Section"),($Q51-J$10),) -> 00:00:00 | K51: =IF(AND(Rallye!D203<>"",Rallye!D203<>"Section"),($Q51-K$10),) -> 00:00:00 | L51: =IF(AND(Rallye!D203<>"",Rallye!D203<>"Section"),($Q51-L$10),) -> 00:00:00 | M51: =IF(AND(Rallye!D203<>"",Rallye!D203<>"Section"),($Q51-M$10),) -> 00:00:00 | N51: =IF(AND(Rallye!D203<>"",Rallye!D203<>"Section"),($Q51-N$10),) -> 00:00:00 | O51: =IF(AND(Rallye!D203<>"",Rallye!D203<>"Section"),($Q51-O$10),) -> 00:00:00 | P51: =Rallye!F202 -> 00:00:00 | Q51: =IF(P51>0,IF(OR(Rallye!D203<>"",Rallye!D203<>"Section"),Q50+P51,),Q50) -> 00:00:00 | R51: =IF(AND(Rallye!D203<>"",Rallye!D203<>"Section"),Q51+$R$10,) -> 00:00:00 | S51: =IF(AND(Rallye!D203<>"",Rallye!D203<>"Section"),R51+$S$10,) -> 00:00:00
B52: =Rallye!B204 -> 0 | C52: =Rallye!C204 -> 0 | D52: =Rallye!D204 -> 0 | E52: =IF(AND(Rallye!D204<>"",Rallye!D204<>"Section"),($Q52-E$10),) -> 00:00:00 | F52: =IF(AND(Rallye!D204<>"",Rallye!D204<>"Section"),($Q52-F$10),) -> 00:00:00 | G52: =IF(AND(Rallye!D204<>"",Rallye!D204<>"Section"),($Q52-G$10),) -> 00:00:00 | H52: =IF(AND(Rallye!D204<>"",Rallye!D204<>"Section"),($Q52-H$10),) -> 00:00:00 | I52: =IF(AND(Rallye!D204<>"",Rallye!D204<>"Section"),($Q52-I$10),) -> 00:00:00 | J52: =IF(AND(Rallye!D204<>"",Rallye!D204<>"Section"),($Q52-J$10),) -> 00:00:00 | K52: =IF(AND(Rallye!D204<>"",Rallye!D204<>"Section"),($Q52-K$10),) -> 00:00:00 | L52: =IF(AND(Rallye!D204<>"",Rallye!D204<>"Section"),($Q52-L$10),) -> 00:00:00 | M52: =IF(AND(Rallye!D204<>"",Rallye!D204<>"Section"),($Q52-M$10),) -> 00:00:00 | N52: =IF(AND(Rallye!D204<>"",Rallye!D204<>"Section"),($Q52-N$10),) -> 00:00:00 | O52: =IF(AND(Rallye!D204<>"",Rallye!D204<>"Section"),($Q52-O$10),) -> 00:00:00 | P52: =Rallye!F203 -> 00:00:00 | Q52: =IF(P52>0,IF(OR(Rallye!D204<>"",Rallye!D204<>"Section"),Q51+P52,),Q51) -> 00:00:00 | R52: =IF(AND(Rallye!D204<>"",Rallye!D204<>"Section"),Q52+$R$10,) -> 00:00:00 | S52: =IF(AND(Rallye!D204<>"",Rallye!D204<>"Section"),R52+$S$10,) -> 00:00:00
B53: =Rallye!B205 -> 0 | C53: =Rallye!C205 -> 0 | D53: =Rallye!D205 -> 0 | E53: =IF(AND(Rallye!D205<>"",Rallye!D205<>"Section"),($Q53-E$10),) -> 00:00:00 | F53: =IF(AND(Rallye!D205<>"",Rallye!D205<>"Section"),($Q53-F$10),) -> 00:00:00 | G53: =IF(AND(Rallye!D205<>"",Rallye!D205<>"Section"),($Q53-G$10),) -> 00:00:00 | H53: =IF(AND(Rallye!D205<>"",Rallye!D205<>"Section"),($Q53-H$10),) -> 00:00:00 | I53: =IF(AND(Rallye!D205<>"",Rallye!D205<>"Section"),($Q53-I$10),) -> 00:00:00 | J53: =IF(AND(Rallye!D205<>"",Rallye!D205<>"Section"),($Q53-J$10),) -> 00:00:00 | K53: =IF(AND(Rallye!D205<>"",Rallye!D205<>"Section"),($Q53-K$10),) -> 00:00:00 | L53: =IF(AND(Rallye!D205<>"",Rallye!D205<>"Section"),($Q53-L$10),) -> 00:00:00 | M53: =IF(AND(Rallye!D205<>"",Rallye!D205<>"Section"),($Q53-M$10),) -> 00:00:00 | N53: =IF(AND(Rallye!D205<>"",Rallye!D205<>"Section"),($Q53-N$10),) -> 00:00:00 | O53: =IF(AND(Rallye!D205<>"",Rallye!D205<>"Section"),($Q53-O$10),) -> 00:00:00 | P53: =Rallye!F204 -> 00:00:00 | Q53: =IF(P53>0,IF(OR(Rallye!D205<>"",Rallye!D205<>"Section"),Q52+P53,),Q52) -> 00:00:00 | R53: =IF(AND(Rallye!D205<>"",Rallye!D205<>"Section"),Q53+$R$10,) -> 00:00:00 | S53: =IF(AND(Rallye!D205<>"",Rallye!D205<>"Section"),R53+$S$10,) -> 00:00:00
B54: =Rallye!B206 -> 0 | C54: =Rallye!C206 -> 0 | D54: =Rallye!D206 -> 0 | E54: =IF(AND(Rallye!D206<>"",Rallye!D206<>"Section"),($Q54-E$10),) -> 00:00:00 | F54: =IF(AND(Rallye!D206<>"",Rallye!D206<>"Section"),($Q54-F$10),) -> 00:00:00 | G54: =IF(AND(Rallye!D206<>"",Rallye!D206<>"Section"),($Q54-G$10),) -> 00:00:00 | H54: =IF(AND(Rallye!D206<>"",Rallye!D206<>"Section"),($Q54-H$10),) -> 00:00:00 | I54: =IF(AND(Rallye!D206<>"",Rallye!D206<>"Section"),($Q54-I$10),) -> 00:00:00 | J54: =IF(AND(Rallye!D206<>"",Rallye!D206<>"Section"),($Q54-J$10),) -> 00:00:00 | K54: =IF(AND(Rallye!D206<>"",Rallye!D206<>"Section"),($Q54-K$10),) -> 00:00:00 | L54: =IF(AND(Rallye!D206<>"",Rallye!D206<>"Section"),($Q54-L$10),) -> 00:00:00 | M54: =IF(AND(Rallye!D206<>"",Rallye!D206<>"Section"),($Q54-M$10),) -> 00:00:00 | N54: =IF(AND(Rallye!D206<>"",Rallye!D206<>"Section"),($Q54-N$10),) -> 00:00:00 | O54: =IF(AND(Rallye!D206<>"",Rallye!D206<>"Section"),($Q54-O$10),) -> 00:00:00 | P54: =Rallye!F205 -> 00:00:00 | Q54: =IF(P54>0,IF(OR(Rallye!D206<>"",Rallye!D206<>"Section"),Q53+P54,),Q53) -> 00:00:00 | R54: =IF(AND(Rallye!D206<>"",Rallye!D206<>"Section"),Q54+$R$10,) -> 00:00:00 | S54: =IF(AND(Rallye!D206<>"",Rallye!D206<>"Section"),R54+$S$10,) -> 00:00:00
B55: =Rallye!B207 -> 0 | C55: =Rallye!C207 -> 0 | D55: =Rallye!D207 -> 0 | E55: =IF(AND(Rallye!D207<>"",Rallye!D207<>"Section"),($Q55-E$10),) -> 00:00:00 | F55: =IF(AND(Rallye!D207<>"",Rallye!D207<>"Section"),($Q55-F$10),) -> 00:00:00 | G55: =IF(AND(Rallye!D207<>"",Rallye!D207<>"Section"),($Q55-G$10),) -> 00:00:00 | H55: =IF(AND(Rallye!D207<>"",Rallye!D207<>"Section"),($Q55-H$10),) -> 00:00:00 | I55: =IF(AND(Rallye!D207<>"",Rallye!D207<>"Section"),($Q55-I$10),) -> 00:00:00 | J55: =IF(AND(Rallye!D207<>"",Rallye!D207<>"Section"),($Q55-J$10),) -> 00:00:00 | K55: =IF(AND(Rallye!D207<>"",Rallye!D207<>"Section"),($Q55-K$10),) -> 00:00:00 | L55: =IF(AND(Rallye!D207<>"",Rallye!D207<>"Section"),($Q55-L$10),) -> 00:00:00 | M55: =IF(AND(Rallye!D207<>"",Rallye!D207<>"Section"),($Q55-M$10),) -> 00:00:00 | N55: =IF(AND(Rallye!D207<>"",Rallye!D207<>"Section"),($Q55-N$10),) -> 00:00:00 | O55: =IF(AND(Rallye!D207<>"",Rallye!D207<>"Section"),($Q55-O$10),) -> 00:00:00 | P55: =Rallye!F206 -> 00:00:00 | Q55: =IF(P55>0,IF(OR(Rallye!D207<>"",Rallye!D207<>"Section"),Q54+P55,),Q54) -> 00:00:00 | R55: =IF(AND(Rallye!D207<>"",Rallye!D207<>"Section"),Q55+$R$10,) -> 00:00:00 | S55: =IF(AND(Rallye!D207<>"",Rallye!D207<>"Section"),R55+$S$10,) -> 00:00:00
B56: =Rallye!B208 -> 0 | C56: =Rallye!C208 -> 0 | D56: =Rallye!D208 -> 0 | E56: =IF(AND(Rallye!D208<>"",Rallye!D208<>"Section"),($Q56-E$10),) -> 00:00:00 | F56: =IF(AND(Rallye!D208<>"",Rallye!D208<>"Section"),($Q56-F$10),) -> 00:00:00 | G56: =IF(AND(Rallye!D208<>"",Rallye!D208<>"Section"),($Q56-G$10),) -> 00:00:00 | H56: =IF(AND(Rallye!D208<>"",Rallye!D208<>"Section"),($Q56-H$10),) -> 00:00:00 | I56: =IF(AND(Rallye!D208<>"",Rallye!D208<>"Section"),($Q56-I$10),) -> 00:00:00 | J56: =IF(AND(Rallye!D208<>"",Rallye!D208<>"Section"),($Q56-J$10),) -> 00:00:00 | K56: =IF(AND(Rallye!D208<>"",Rallye!D208<>"Section"),($Q56-K$10),) -> 00:00:00 | L56: =IF(AND(Rallye!D208<>"",Rallye!D208<>"Section"),($Q56-L$10),) -> 00:00:00 | M56: =IF(AND(Rallye!D208<>"",Rallye!D208<>"Section"),($Q56-M$10),) -> 00:00:00 | N56: =IF(AND(Rallye!D208<>"",Rallye!D208<>"Section"),($Q56-N$10),) -> 00:00:00 | O56: =IF(AND(Rallye!D208<>"",Rallye!D208<>"Section"),($Q56-O$10),) -> 00:00:00 | P56: =Rallye!F207 -> 00:00:00 | Q56: =IF(P56>0,IF(OR(Rallye!D208<>"",Rallye!D208<>"Section"),Q55+P56,),Q55) -> 00:00:00 | R56: =IF(AND(Rallye!D208<>"",Rallye!D208<>"Section"),Q56+$R$10,) -> 00:00:00 | S56: =IF(AND(Rallye!D208<>"",Rallye!D208<>"Section"),R56+$S$10,) -> 00:00:00
B57: =Rallye!B209 -> 0 | C57: =Rallye!C209 -> 0 | D57: =Rallye!D209 -> 0 | E57: =IF(AND(Rallye!D209<>"",Rallye!D209<>"Section"),($Q57-E$10),) -> 00:00:00 | F57: =IF(AND(Rallye!D209<>"",Rallye!D209<>"Section"),($Q57-F$10),) -> 00:00:00 | G57: =IF(AND(Rallye!D209<>"",Rallye!D209<>"Section"),($Q57-G$10),) -> 00:00:00 | H57: =IF(AND(Rallye!D209<>"",Rallye!D209<>"Section"),($Q57-H$10),) -> 00:00:00 | I57: =IF(AND(Rallye!D209<>"",Rallye!D209<>"Section"),($Q57-I$10),) -> 00:00:00 | J57: =IF(AND(Rallye!D209<>"",Rallye!D209<>"Section"),($Q57-J$10),) -> 00:00:00 | K57: =IF(AND(Rallye!D209<>"",Rallye!D209<>"Section"),($Q57-K$10),) -> 00:00:00 | L57: =IF(AND(Rallye!D209<>"",Rallye!D209<>"Section"),($Q57-L$10),) -> 00:00:00 | M57: =IF(AND(Rallye!D209<>"",Rallye!D209<>"Section"),($Q57-M$10),) -> 00:00:00 | N57: =IF(AND(Rallye!D209<>"",Rallye!D209<>"Section"),($Q57-N$10),) -> 00:00:00 | O57: =IF(AND(Rallye!D209<>"",Rallye!D209<>"Section"),($Q57-O$10),) -> 00:00:00 | P57: =Rallye!F208 -> 00:00:00 | Q57: =IF(P57>0,IF(OR(Rallye!D209<>"",Rallye!D209<>"Section"),Q56+P57,),Q56) -> 00:00:00 | R57: =IF(AND(Rallye!D209<>"",Rallye!D209<>"Section"),Q57+$R$10,) -> 00:00:00 | S57: =IF(AND(Rallye!D209<>"",Rallye!D209<>"Section"),R57+$S$10,) -> 00:00:00
B58: =Rallye!B210 -> 0 | C58: =Rallye!C210 -> 0 | D58: =Rallye!D210 -> 0 | E58: =IF(AND(Rallye!D210<>"",Rallye!D210<>"Section"),($Q58-E$10),) -> 00:00:00 | F58: =IF(AND(Rallye!D210<>"",Rallye!D210<>"Section"),($Q58-F$10),) -> 00:00:00 | G58: =IF(AND(Rallye!D210<>"",Rallye!D210<>"Section"),($Q58-G$10),) -> 00:00:00 | H58: =IF(AND(Rallye!D210<>"",Rallye!D210<>"Section"),($Q58-H$10),) -> 00:00:00 | I58: =IF(AND(Rallye!D210<>"",Rallye!D210<>"Section"),($Q58-I$10),) -> 00:00:00 | J58: =IF(AND(Rallye!D210<>"",Rallye!D210<>"Section"),($Q58-J$10),) -> 00:00:00 | K58: =IF(AND(Rallye!D210<>"",Rallye!D210<>"Section"),($Q58-K$10),) -> 00:00:00 | L58: =IF(AND(Rallye!D210<>"",Rallye!D210<>"Section"),($Q58-L$10),) -> 00:00:00 | M58: =IF(AND(Rallye!D210<>"",Rallye!D210<>"Section"),($Q58-M$10),) -> 00:00:00 | N58: =IF(AND(Rallye!D210<>"",Rallye!D210<>"Section"),($Q58-N$10),) -> 00:00:00 | O58: =IF(AND(Rallye!D210<>"",Rallye!D210<>"Section"),($Q58-O$10),) -> 00:00:00 | P58: =Rallye!F209 -> 00:00:00 | Q58: =IF(P58>0,IF(OR(Rallye!D210<>"",Rallye!D210<>"Section"),Q57+P58,),Q57) -> 00:00:00 | R58: =IF(AND(Rallye!D210<>"",Rallye!D210<>"Section"),Q58+$R$10,) -> 00:00:00 | S58: =IF(AND(Rallye!D210<>"",Rallye!D210<>"Section"),R58+$S$10,) -> 00:00:00

Sheet Etap1
H2: Document n° :
A4: =Rallye!E10 -> 16ème Rallye du PAYS de St-YRIEX
A5: =Rallye!E50 -> 2018-09-15 | D5: RAPPORT DE LA DIRECTION DE COURSE | O5: =Intro!K3 -> 43450.39398
A6: =Rallye!E14 -> LRSA Nouvelle Aquitaine Sud
A7: =Rallye!E19 -> ASA Saint Martial | D7: =Rallye!E48 -> 1ère Etape Sections 1 - 2
A8: =Rallye!E21 -> Championnat de France 2ème Div | O8: Durée Estimée E.S. = | T8: =TIME(0,ABS(G57),0) -> 00:57:00
A9: POSTE | D9: 1ère voiture | G9: En course | H9: Nbre | I9: Abandons
A10: DE | C10: Lieu | D10: Heure | E10: Heure | F10: Retard 1er | G10: =Verifs_mod!K71+Verifs_VHC!I38+Verifs_TT!K49 -> 69 | I10: Mécanique | O10: Sortie de Route | S10: H.C. | U10: R.P. | W10: Heure Dernier
A11: CONTROLE | D11: théorique | E11: réelle
A12: Décalage du aux VHCs | D12: 00:19:00
B13: =Rallye!C54 -> 1ère | C13: =Rallye!D54 -> Section
A14: =Rallye!B55 -> C.H. : | B14: =Rallye!C55 -> 0 | C14: =Rallye!D55 -> Sortie Parc Départ | D14: =Rallye!E55+$D$12 -> 14:59:00 | E14: 14:59:00 | F14: =IF(AND(E14<>"XXX",E14<>"X",E14>0,E14>D14),E14-D14,) -> 00:00:00 | G14: =IF(E14="",0,G10-H14) -> 69 | H14: =COUNT(I14:V14) -> 0 | W14: =IF(AND(E14<>"X",E14<>"XXX",E14<>""),(E14+(TIME(0,ABS(G14)-1,0)+TAJT_Etp_1)),0) -> 17:31:00
A15: =Rallye!B56 -> C.H. : | B15: =Rallye!C56 -> 0A | C15: =Rallye!D56 -> Entrée Assist (Stade St Yriex) | D15: =Rallye!E56+$D$12 -> 15:04:00 | E15: 15:04:00 | F15: =IF(AND(E15<>"XXX",E15<>"X",E15>0,E15>D15),E15-D15,) -> 00:00:00 | G15: =IF(E15="",0,G14-H15) -> 69 | H15: =COUNT(I15:V15) -> 0 | W15: 17:36:00
A16: =Rallye!B57 -> C.H. : | B16: =Rallye!C57 -> 0B | C16: =Rallye!D57 -> Sortie Assistance | D16: =Rallye!E57+$D$12 -> 15:19:00 | E16: 15:19:00 | F16: 00:00:00 | G16: 68 | H16: 1 | I16: 65 | W16: 17:50:00
A17: =Rallye!B58 -> C.H. : | B17: =Rallye!C58 -> 1 | C17: =Rallye!D58 -> Avant Départ ES 1 | D17: =Rallye!E58+$D$12 -> 15:31:00 | E17: 15:31:00 | F17: 00:00:00 | G17: 68 | H17: 0 | W17: 18:02:00
A18: =Rallye!B59 -> Départ E.S. : | B18: =Rallye!C59 -> 1 | C18: =Rallye!D59 -> Le BOCAGE 1 (11,5 Kms) | D18: =Rallye!E59+$D$12 -> 15:34:00 | E18: 15:34:00 | F18: 00:00:00 | G18: 68 | H18: 0 | W18: 18:05:00
A19: =Rallye!B60 -> Arriv. E.S. : | B19: =Rallye!C60 -> 1 | C19: =Rallye!D60 -> 0 | D19: =Rallye!E60+$D$12 -> 15:34:00 | E19: XXX | F19: 00:00:00 | G19: 67 | H19: 1 | O19: 6 | W19: 00:00:00
A20: =Rallye!B61 -> C.H. : | B20: =Rallye!C61 -> 2 | C20: =Rallye!D61 -> Avant Départ ES 2 | D20: =Rallye!E61+$D$12 -> 16:14:00 | E20: 16:14:00 | F20: 00:00:00 | G20: 67 | H20: 0 | W20: 18:44:00
A21: =Rallye!B62 -> Départ E.S. : | B21: =Rallye!C62 -> 2 | C21: =Rallye!D62 -> Le TINDEIX 1 (8,75 Kms) | D21: =Rallye!E62+$D$12 -> 16:17:00 | E21: 16:17:00 | F21: 00:00:00 | G21: 67 | H21: 0 | W21: 18:47:00
A22: =Rallye!B63 -> Arriv. E.S. : | B22: =Rallye!C63 -> 2 | C22: =Rallye!D63 -> 0 | D22: =Rallye!E63+$D$12 -> 16:17:00 | E22: XXX | F22: 00:00:00 | G22: 64 | H22: 3 | I22: 32 | O22: 40 | P22: 64 | W22: 00:00:00
A23: =Rallye!B64 -> C.H. : | B23: =Rallye!C64 -> 3 | C23: =Rallye!D64 -> Avant Départ ES 3 | D23: =Rallye!E64+$D$12 -> 16:57:00 | E23: 16:57:00 | F23: 00:00:00 | G23: 63 | H23: 1 | I23: 50 | W23: 19:23:00
A24: =Rallye!B65 -> Départ E.S. : | B24: =Rallye!C65 -> 3 | C24: =Rallye!D65 -> Les PALLOUX 1 (10,80 Kms) | D24: =Rallye!E65+$D$12 -> 17:00:00 | E24: 17:50:00 | F24: 00:50:00 | G24: 63 | H24: 0 | W24: 20:16:00
A25: =Rallye!B66 -> Arriv. E.S. : | B25: =Rallye!C66 -> 3 | C25: =Rallye!D66 -> 0 | D25: =Rallye!E66+$D$12 -> 17:00:00 | E25: XXX | F25: 00:00:00 | G25: 62 | H25: 1 | O25: 68 | W25: 00:00:00
A26: =Rallye!B67 -> C.H. : | B26: =Rallye!C67 -> 3A | C26: =Rallye!D67 -> Entrée Parc Regroup | D26: =Rallye!E67+$D$12 -> 17:30:00 | E26: 18:20:00 | F26: =IF(AND(E26<>"XXX",E26<>"X",E26>0,E26>D26),E26-D26,) -> 00:50:00 | G26: 62 | H26: 0 | W26: 20:45:00
A27: =Rallye!B68 -> 0 | B27: =Rallye!C68 -> 2ème | C27: =Rallye!D68 -> Section | D27: =Rallye!E68+$D$12 -> 17:30:00 | E27: XXX | F27: 00:00:00 | G27: 62 | H27: 0 | W27: 00:00:00
A28: =Rallye!B69 -> C.H. : | B28: =Rallye!C69 -> 3B | C28: =Rallye!D69 -> Sortie Parc Regroup | D28: =Rallye!E69+$D$12 -> 18:40:00 | E28: 18:40:00 | F28: 00:00:00 | G28: 62 | H28: 0 | W28: 21:05:00
A29: =Rallye!B70 -> C.H. : | B29: =Rallye!C70 -> 3C | C29: =Rallye!D70 -> Entrée Assist (Stade St Yriex) | D29: =Rallye!E70+$D$12 -> 18:45:00 | E29: 18:45:00 | F29: 00:00:00 | G29: 61 | H29: 1 | I29: 53 | W29: 21:09:00
A30: =Rallye!B71 -> C.H. : | B30: =Rallye!C71 -> 3D | C30: =Rallye!D71 -> Sortie Assistance | D30: =Rallye!E71+$D$12 -> 19:15:00 | E30: 19:15:00 | F30: 00:00:00 | G30: 60 | H30: 1 | I30: 23 | W30: 21:38:00
A31: =Rallye!B72 -> C.H. : | B31: =Rallye!C72 -> 4 | C31: =Rallye!D72 -> Avant Départ ES 4 | D31: =Rallye!E72+$D$12 -> 19:27:00 | E31: 19:27:00 | F31: 00:00:00 | G31: 60 | H31: 0 | W31: 21:50:00
A32: =Rallye!B73 -> Départ E.S. : | B32: =Rallye!C73 -> 4 | C32: =Rallye!D73 -> Le BOCAGE 2 (11,5 Kms) | D32: =Rallye!E73+$D$12 -> 19:30:00 | E32: 19:30:00 | F32: 00:00:00 | G32: 60 | H32: 0 | W32: 21:53:00
A33: =Rallye!B74 -> Arriv. E.S. : | B33: =Rallye!C74 -> 4 | C33: =Rallye!D74 -> 0 | D33: =Rallye!E74+$D$12 -> 19:30:00 | E33: XXX | F33: 00:00:00 | G33: 59 | H33: 1 | I33: 48 | W33: 00:00:00
A34: =Rallye!B75 -> C.H. : | B34: =Rallye!C75 -> 5 | C34: =Rallye!D75 -> Avant Départ ES 5 | D34: =Rallye!E75+$D$12 -> 20:10:00 | E34: 20:10:00 | F34: 00:00:00 | G34: 58 | H34: 1 | I34: 57 | W34: 22:31:00
A35: =Rallye!B76 -> Départ E.S. : | B35: =Rallye!C76 -> 5 | C35: =Rallye!D76 -> Le TINDEIX 2 (8,75 Kms) | D35: =Rallye!E76+$D$12 -> 20:13:00 | E35: 20:13:00 | F35: 00:00:00 | G35: 58 | H35: 0 | W35: 22:34:00
A36: =Rallye!B77 -> Arriv. E.S. : | B36: =Rallye!C77 -> 5 | C36: =Rallye!D77 -> 0 | D36: =Rallye!E77+$D$12 -> 20:13:00 | E36: XXX | F36: 00:00:00 | G36: 57 | H36: 1 | I36: 51 | W36: 00:00:00
A37: =Rallye!B78 -> C.H. : | B37: =Rallye!C78 -> 6 | C37: =Rallye!D78 -> Avant Départ ES 6 | D37: =Rallye!E78+$D$12 -> 20:53:00 | E37: 20:53:00 | F37: 00:00:00 | G37: =IF(E37="",0,G36-H37) -> 57 | H37: 0 | W37: 23:13:00
A38: =Rallye!B79 -> Départ E.S. : | B38: =Rallye!C79 -> 6 | C38: =Rallye!D79 -> Les PALLOUX 2 (10,80 Kms) | D38: =Rallye!E79+$D$12 -> 20:56:00 | E38: 20:56:00 | F38: 00:00:00 | G38: =IF(E38="",0,G37-H38) -> 57 | H38: 0 | W38: 23:16:00
A39: =Rallye!B80 -> Arriv. E.S. : | B39: =Rallye!C80 -> 6 | C39: =Rallye!D80 -> 0 | D39: =Rallye!E80+$D$12 -> 20:56:00 | E39: XXX | F39: 00:00:00 | G39: 57 | H39: 0 | W39: 00:00:00
A40: =Rallye!B81 -> C.H. : | B40: =Rallye!C81 -> 6A | C40: =Rallye!D81 -> Entrée Parc Fermé Fin Etape | D40: =Rallye!E81+$D$12 -> 21:26:00 | E40: 21:26:00 | F40: 00:00:00 | G40: 57 | H40: 0 | W40: 23:46:00
A41: =Rallye!B82 -> 0 | B41: =Rallye!C82 -> 0 | C41: =Rallye!D82 -> 0 | D41: =Rallye!E82+$D$12 -> 21:26:00 | F41: 00:00:00 | G41: 0 | H41: 0 | W41: 00:00:00
A42: =Rallye!B83 -> 0 | B42: =Rallye!C83 -> 0 | C42: =Rallye!D83 -> 0 | D42: =Rallye!E83+$D$12 -> 21:26:00 | F42: 00:00:00 | G42: 0 | H42: 0 | W42: 00:00:00
A43: =Rallye!B84 -> 0 | B43: =Rallye!C84 -> 0 | C43: =Rallye!D84 -> 0 | D43: =Rallye!E84+$D$12 -> 21:26:00 | F43: 00:00:00 | G43: 0 | H43: 0 | W43: 00:00:00
A44: =Rallye!B85 -> 0 | B44: =Rallye!C85 -> 0 | C44: =Rallye!D85 -> 0 | D44: =Rallye!E85+$D$12 -> 21:26:00 | F44: 00:00:00 | G44: 0 | H44: 0 | W44: 00:00:00
A45: =Rallye!B86 -> 0 | B45: =Rallye!C86 -> 0 | C45: =Rallye!D86 -> 0 | D45: =Rallye!E86+$D$12 -> 21:26:00 | F45: 00:00:00 | G45: 0 | H45: 0 | W45: 00:00:00
A46: =Rallye!B87 -> 0 | B46: =Rallye!C87 -> 0 | C46: =Rallye!D87 -> 0 | D46: =Rallye!E87+$D$12 -> 21:26:00 | F46: 00:00:00 | G46: 0 | H46: 0 | W46: 00:00:00
A47: =Rallye!B88 -> 0 | B47: =Rallye!C88 -> 0 | C47: =Rallye!D88 -> 0 | D47: =Rallye!E88+$D$12 -> 21:26:00 | F47: 00:00:00 | G47: 0 | H47: 0 | W47: 00:00:00
A48: =Rallye!B89 -> 0 | B48: =Rallye!C89 -> 0 | C48: =Rallye!D89 -> 0 | D48: =Rallye!E89+$D$12 -> 21:26:00 | F48: 00:00:00 | G48: 0 | H48: 0 | W48: 00:00:00
A49: =Rallye!B90 -> 0 | B49: =Rallye!C90 -> 0 | C49: =Rallye!D90 -> 0 | D49: =Rallye!E90+$D$12 -> 21:26:00 | F49: 00:00:00 | G49: 0 | H49: 0 | W49: 00:00:00
A50: =Rallye!B91 -> 0 | B50: =Rallye!C91 -> 0 | C50: =Rallye!D91 -> 0 | D50: =Rallye!E91+$D$12 -> 21:26:00 | F50: 00:00:00 | G50: 0 | H50: 0 | W50: 00:00:00
A51: =Rallye!B92 -> 0 | B51: =Rallye!C92 -> 0 | C51: =Rallye!D92 -> 0 | D51: =Rallye!E92+$D$12 -> 21:26:00 | F51: 00:00:00 | G51: 0 | H51: 0 | W51: 00:00:00
A52: =Rallye!B93 -> 0 | B52: =Rallye!C93 -> 0 | C52: =Rallye!D93 -> 0 | D52: =Rallye!E93+$D$12 -> 21:26:00 | F52: 00:00:00 | G52: 0 | H52: 0 | W52: 00:00:00
A53: =Rallye!B94 -> 0 | B53: =Rallye!C94 -> 0 | C53: =Rallye!D94 -> 0 | D53: =Rallye!E94+$D$12 -> 21:26:00 | F53: 00:00:00 | G53: 0 | H53: 0 | W53: 00:00:00
A54: =Rallye!B95 -> 0 | B54: =Rallye!C95 -> 0 | C54: =Rallye!D95 -> 0 | D54: =Rallye!E95+$D$12 -> 21:26:00 | F54: 00:00:00 | G54: 0 | H54: 0 | W54: 00:00:00
A55: =Rallye!B96 -> 0 | B55: =Rallye!C96 -> 0 | C55: =Rallye!D96 -> 0 | D55: =Rallye!E96+$D$12 -> 21:26:00 | F55: 00:00:00 | G55: 0 | H55: 0 | W55: 00:00:00
A56: =Rallye!B97 -> 0 | B56: =Rallye!C97 -> 0 | C56: =Rallye!D97 -> 0 | D56: =Rallye!E97+$D$12 -> 21:26:00 | F56: 00:00:00 | G56: 0 | H56: 0 | W56: 00:00:00
D57: En Course | G57: =G10-H58 -> 57 | W57: =IF(AND(E57<>"X",E57<>"XXX",E57<>""),(E57+X57+(TIME(0,ABS(G57),0)+TAJT_Etp_1)),0) -> 00:00:00
C58: =CONCATENATE("Abandons ",Rallye!E48) -> Abandons 1ère Etape Sections 1 - 2 | H58: =SUM(H14:H56) -> 12 | I58: Mécanique : | M58: =COUNT(I13:N56) -> 8 | O58: S.R. : | R58: =COUNT(O13:R56) -> 4 | S58: H.C. | T58: =COUNT(S14:T56) -> 0 | U58: R.P. | V58: =COUNT(U13:V57) -> 0
D59: Demandes de Rallye 2 : | H59: =M59+R59+T59+V59 -> 6 | I59: Mécanique : | M59: 5 | O59: S.R. : | R59: 1 | S59: H.C. | U59: R.P.
D60: Reste en Course pour Etape Suivante : | H60: =G57+H59 -> 63
A61: Observations :
A65: =Rallye!E17 -> 87500 St-YRIEX La PERCHE | K65: Le Directeur de Course
A66: le: | C66: =Rallye!E50 -> 2018-09-15
A67: à : | C67: =NOW() -> 43450.39398 | I67: =Officiels!K15 -> LORRE Joseph
I68: Lic : | J68: =Officiels!E15 -> 10395

Sheet REtap1
F2: Document n° :
B5: =Rallye!E10 -> 16ème Rallye du PAYS de St-YRIEX
B6: =Rallye!E12 -> 15 et 16 Septembre 2018 | F6: RAPPORT DE LA DIRECTION DE COURSE
B7: =Rallye!E19 -> ASA Saint Martial
B8: =Rallye!E14 -> LRSA Nouvelle Aquitaine Sud | F8: =Rallye!E48 -> 1ère Etape Sections 1 - 2
C9: Permis d'Organisation : | D9: =Rallye!E15 -> N 511 du 3/07/2018 | F9: =Rallye!E50 -> 2018-09-15
B11: w Nombre de concurrents admis au départ | G11: =Verifs_mod!K71+Verifs_VHC!I38+Verifs_TT!K49 -> 69
B13: w Premier départ (sortie parc fermé) le | G13: =Rallye!E50 -> 2018-09-15 | H13: à : | I13: =Etap1!D14 -> 14:59:00
B15: w N° du 1er concurrent à prendre le départ | G15: 1
B17: w Nombre de concurrents ayant pris le départ | G17: =Etap1!G14 -> 69
B19: w Premier concurrent entré en parc --- | F19: n° | G19: 1 | H19: à : | I19: 21:12:00
B21: w Dernier concurrent entré en parc --- | F21: n° | G21: 75 | H21: à : | I21: 22:33:00
B23: w Nombre de concurrents en parc | G23: =Etap1!G57 -> 57
B25: w Nombre de concurrents classés | G25: =Etap1!G57 -> 57
B27: w Date et Heure d'affichage du classement | E27: de l'Etape 1 | F27: le : | G27: 2018-09-16 | H27: à : | I27: 1
C28: et Ordres et Heures de Départ Etape 2
D29: pour valeur le : | G29: 2018-09-16 | H29: à : | I29: 1
C31: Ø Nombre d’Abandons / Hors Course (Liste Jointe) | G31: =Etap1!H58 -> 12 | H31: Soit : | I31: =(G31/G11) -> 0.1739130435
D32: Dont : | E32: Mécanique | G32: =Etap1!M58 -> 8
D33: Sortie de Route | G33: =Etap1!R58 -> 4
C34: Hors Course / Hors Temps imparti | G34: =Etap1!T58 -> 0
E35: Divers | G35: =Etap1!V58 -> 0
C37: Ø Demande(s) de Rallye 2 (Liste Jointe) | G37: =Etap1!H59 -> 6
C38: N° : 65 - 32 - 64 - 36 - 48 - 57
C39: Ø Nombre de Pénalités en Temps (Liste jointe)
C41: Ø Arrêts de Course : | E41: 1 | F41: Durée : | G41: 00:28:00
C43: Ø Annulations / Neutralisations : | E43: 1 | F43: E.S. : | G43: 1
C45: Ø Vérifications techniques en cours d'étape : | F45: Concurrents conformes sur les points controlés
B47: Documents Joints :
C48: Liste des Pénalisations et Abandons
C49: Ordres et Heures de Départ Etape 2
C50: Classement provisoire de l'Etape : 1
C51: Rapport Commissaire
B58: =CONCATENATE("Commentaires sur le déroulement de : ",Rallye!E48) -> Commentaires sur le déroulement de : 1ère Etape Sections 1 - 2
B60: ES 1 : Suite SR du n°6, Co-pilote : ANDRIEUX Yannick (255744) évacué sur Hôpital de St Yriex pour contrôles. Génés: 7-8-9-10-11-12-15,
B61: Co-Pilote ressorti de l'hôpital sans séquelles,
B69: Fait à : | C69: =Rallye!E17 -> 87500 St-YRIEX La PERCHE | D69: le : | E69: =NOW() -> 2018-12-16T09:27:20.020 | G69: Le Directeur de Course
D70: à : | E70: =NOW() -> 43450.39398 | G70: =Officiels!K15 -> LORRE Joseph
F71: Lic : | G71: =Officiels!E15 -> 10395

Sheet Etap2
H1: Document n° :
A3: =Rallye!E10 -> 16ème Rallye du PAYS de St-YRIEX
A4: =Rallye!E101 -> 2018-09-16 | E4: RAPPORT DE LA DIRECTION DE COURSE | Q4: =Intro!K3 -> 43450.39398
A5: =Rallye!E14 -> LRSA Nouvelle Aquitaine Sud
A6: =Rallye!E19 -> ASA Saint Martial | E6: =Rallye!E99 -> 2ème Etape Sections 3 - 4 - 5
A7: =Rallye!E21 -> Championnat de France 2ème Div | N7: Durée Estimée E.S. = | S7: =TIME(0,ABS(G62),0) -> 00:45:00
A8: POSTE | D8: 1ère voiture | G8: En course | H8: Nbre | I8: Abandons
A9: DE | C9: Lieu | D9: Heure | E9: Heure | F9: Retard/1er | G9: report | H9: report | I9: Mécanique | O9: Sortie de Route | S9: H.C. | U9: R.P. | W9: Heure Dernier
A10: CONTROLE | D10: théorique | E10: réelle | G10: =Etap1!G57+Etap1!H59 -> 63 | H10: =Etap1!H58-Etap1!H59 -> 6
C11: Décalage du aux VHCs | D11: 00:18:00
A12: =Rallye!B105 -> 0 | B12: =Rallye!C105 -> 3ème | C12: =Rallye!D105 -> Section | D12: =Rallye!E105 -> 00:00:00 | H12: =COUNT(I12:Q12) -> 0
A13: =Rallye!B106 -> C.H. : | B13: =Rallye!C106 -> 6B | C13: =Rallye!D106 -> Sortie Parc Départ | D13: =Rallye!E106+$D$11 -> 07:48:00 | E13: 07:48:00 | F13: =IF(AND(E13<>"XXX",E13<>"X",E13>0,E13>D13),E13-D13,) -> 00:00:00 | G13: =IF(E13="",0,G10-H13) -> 57 | H13: =COUNT(I13:V13) -> 6 | I13: 64 | J13: 65 | K13: 32 | L13: 36 | M13: 48 | N13: 57 | W13: =IF(AND(E13<>"X",E13<>"XXX",E13<>""),(E13+(TIME(0,ABS(G13)-1,0)+TATJ_Etp_2)),0) -> 09:38:00
A14: =Rallye!B107 -> C.H. : | B14: =Rallye!C107 -> 6C | C14: =Rallye!D107 -> Entrée Assist (Stade St Yriex) | D14: =Rallye!E107+$D$11 -> 07:53:00 | E14: 07:53:00 | F14: =IF(AND(E14<>"XXX",E14<>"X",E14>0,E14>D14),E14-D14,) -> 00:00:00 | G14: =IF(E14="",0,G13-H14) -> 57 | H14: =COUNT(I14:V14) -> 0 | W14: 09:43:00
A15: =Rallye!B108 -> C.H. : | B15: =Rallye!C108 -> 6D | C15: =Rallye!D108 -> Sortie Assistance | D15: =Rallye!E108+$D$11 -> 08:13:00 | E15: 08:13:00 | F15: 00:00:00 | G15: 57 | H15: 0 | W15: 10:03:00
A16: =Rallye!B109 -> C.H. : | B16: =Rallye!C109 -> 7 | C16: =Rallye!D109 -> Avant Départ ES 7 | D16: =Rallye!E109+$D$11 -> 08:38:00 | E16: 08:38:00 | F16: 00:00:00 | G16: 57 | H16: 0 | W16: 10:28:00
A17: =Rallye!B110 -> Départ E.S. : | B17: =Rallye!C110 -> 7 | C17: =Rallye!D110 -> La GABIE de la POULE 1 (9 Kms) | D17: =Rallye!E110+$D$11 -> 08:41:00 | E17: 08:41:00 | F17: 00:00:00 | G17: 57 | H17: 0 | W17: 10:31:00
A18: =Rallye!B111 -> Arriv. E.S. : | B18: =Rallye!C111 -> 7 | C18: =Rallye!D111 -> 0 | D18: =Rallye!E111+$D$11 -> 08:41:00 | E18: XXX | F18: 00:00:00 | G18: 55 | H18: 2 | I18: 17 | J18: 39 | W18: 00:00:00
A19: =Rallye!B112 -> C.H. : | B19: =Rallye!C112 -> 8 | C19: =Rallye!D112 -> Avant Départ ES 8 | D19: =Rallye!E112+$D$11 -> 09:01:00 | E19: 09:01:00 | F19: 00:00:00 | G19: 55 | H19: 0 | W19: 10:49:00
A20: =Rallye!B113 -> Départ E.S. : | B20: =Rallye!C113 -> 8 | C20: =Rallye!D113 -> GLANDON 1 (17,810 Kms) | D20: =Rallye!E113+$D$11 -> 09:04:00 | E20: 09:04:00 | F20: 00:00:00 | G20: 55 | H20: 0 | W20: 10:52:00
A21: =Rallye!B114 -> Arriv. E.S. : | B21: =Rallye!C114 -> 8 | C21: =Rallye!D114 -> 0 | D21: =Rallye!E114+$D$11 -> 09:04:00 | E21: XXX | F21: 00:00:00 | G21: 54 | H21: 1 | O21: 33 | W21: 00:00:00
A22: =Rallye!B115 -> C.H. : | B22: =Rallye!C115 -> 8A | C22: =Rallye!D115 -> Entrée Parc Regroup | D22: =Rallye!E115+$D$11 -> 09:39:00 | E22: 09:39:00 | F22: 00:00:00 | G22: 53 | H22: 1 | U22: 8 | W22: 11:25:00
A23: =Rallye!B116 -> 0 | B23: =Rallye!C116 -> 4ème | C23: =Rallye!D116 -> Section | D23: =Rallye!E116+$D$11 -> 09:39:00 | E23: XXX | F23: 00:00:00 | G23: 53 | H23: 0 | W23: 00:00:00
A24: =Rallye!B117 -> C.H. : | B24: =Rallye!C117 -> 8B | C24: =Rallye!D117 -> Sortie Parc Regroup | D24: =Rallye!E117+$D$11 -> 10:24:00 | E24: 10:24:00 | F24: 00:00:00 | G24: 53 | H24: 0 | W24: 12:10:00
A25: =Rallye!B118 -> C.H. : | B25: =Rallye!C118 -> 8C | C25: =Rallye!D118 -> Entrée Assist (Stade St Yriex) | D25: =Rallye!E118+$D$11 -> 10:29:00 | E25: 10:29:00 | F25: 00:00:00 | G25: 53 | H25: 0 | W25: 12:15:00
A26: =Rallye!B119 -> C.H. : | B26: =Rallye!C119 -> 8D | C26: =Rallye!D119 -> Sortie Assistance | D26: =Rallye!E119+$D$11 -> 11:09:00 | E26: 11:09:00 | F26: 00:00:00 | G26: 52 | H26: 1 | I26: 19 | W26: 12:54:00
A27: =Rallye!B120 -> C.H. : | B27: =Rallye!C120 -> 9 | C27: =Rallye!D120 -> Avant Départ ES 9 | D27: =Rallye!E120+$D$11 -> 11:34:00 | E27: 11:34:00 | F27: 00:00:00 | G27: 52 | H27: 0 | W27: 13:19:00
A28: =Rallye!B121 -> Départ E.S. : | B28: =Rallye!C121 -> 9 | C28: =Rallye!D121 -> La GABIE de la POULE 2 (9 Kms) | D28: =Rallye!E121+$D$11 -> 11:37:00 | E28: 11:37:00 | F28: 00:00:00 | G28: 52 | H28: 0 | W28: 13:22:00
A29: =Rallye!B122 -> Arriv. E.S. : | B29: =Rallye!C122 -> 9 | C29: =Rallye!D122 -> 0 | D29: =Rallye!E122+$D$11 -> 11:37:00 | E29: XXX | F29: 00:00:00 | G29: 51 | H29: 1 | I29: 44 | W29: 00:00:00
A30: =Rallye!B123 -> C.H. : | B30: =Rallye!C123 -> 10 | C30: =Rallye!D123 -> Avant Départ ES 10 | D30: =Rallye!E123+$D$11 -> 11:57:00 | E30: 11:57:00 | F30: 00:00:00 | G30: 50 | H30: 1 | I30: 51 | W30: 13:40:00
A31: =Rallye!B124 -> Départ E.S. : | B31: =Rallye!C124 -> 10 | C31: =Rallye!D124 -> GLANDON 2 (17,810 Kms) | D31: =Rallye!E124+$D$11 -> 12:00:00 | E31: 12:00:00 | F31: 00:00:00 | G31: 50 | H31: 0 | W31: 13:43:00
A32: =Rallye!B125 -> Arriv. E.S. : | B32: =Rallye!C125 -> 10 | C32: =Rallye!D125 -> 0 | D32: =Rallye!E125+$D$11 -> 12:00:00 | E32: XXX | F32: 00:00:00 | G32: 48 | H32: 2 | I32: 29 | J32: 41 | W32: 00:00:00
A33: =Rallye!B126 -> C.H. : | B33: =Rallye!C126 -> 10A | C33: =Rallye!D126 -> Entrée Parc Regroup | D33: =Rallye!E126+$D$11 -> 12:35:00 | E33: 12:35:00 | F33: 00:00:00 | G33: 47 | H33: 1 | I33: 12 | W33: 14:15:00
A34: =Rallye!B127 -> 0 | B34: =Rallye!C127 -> 5ème | C34: =Rallye!D127 -> Section | D34: =Rallye!E127+$D$11 -> 12:35:00 | E34: XXX | F34: 00:00:00 | G34: 47 | H34: 0 | W34: 00:00:00
A35: =Rallye!B128 -> C.H. : | B35: =Rallye!C128 -> 10B | C35: =Rallye!D128 -> Sortie Parc Regroup | D35: =Rallye!E128+$D$11 -> 13:20:00 | E35: 13:20:00 | F35: 00:00:00 | G35: 46 | H35: 1 | S35: 63 | W35: 14:59:00
A36: =Rallye!B129 -> C.H. : | B36: =Rallye!C129 -> 10C | C36: =Rallye!D129 -> Entrée Assist (Stade St Yriex) | D36: =Rallye!E129+$D$11 -> 13:25:00 | E36: 13:25:00 | F36: 00:00:00 | G36: 46 | H36: 0 | W36: 15:04:00
A37: =Rallye!B130 -> C.H. : | B37: =Rallye!C130 -> 10 D | C37: =Rallye!D130 -> Sortie Assistance | D37: =Rallye!E130+$D$11 -> 14:05:00 | E37: 14:05:00 | F37: 00:00:00 | G37: 46 | H37: 0 | W37: 15:44:00
A38: =Rallye!B131 -> C.H. : | B38: =Rallye!C131 -> 11 | C38: =Rallye!D131 -> Avant Départ ES 11 | D38: =Rallye!E131+$D$11 -> 14:30:00 | E38: 14:30:00 | F38: 00:00:00 | G38: 46 | H38: 0 | W38: 16:09:00
A39: =Rallye!B132 -> Départ E.S. : | B39: =Rallye!C132 -> 11 | C39: =Rallye!D132 -> La GABIE de la POULE 3 (9 Kms) | D39: =Rallye!E132+$D$11 -> 14:33:00 | E39: 14:33:00 | F39: 00:00:00 | G39: 46 | H39: 0 | W39: 16:12:00
A40: =Rallye!B133 -> Arriv. E.S. : | B40: =Rallye!C133 -> 11 | C40: =Rallye!D133 -> 0 | D40: =Rallye!E133+$D$11 -> 14:33:00 | E40: XXX | F40: 00:00:00 | G40: 46 | H40: 0 | W40: 00:00:00
A41: =Rallye!B134 -> C.H. : | B41: =Rallye!C134 -> 12 | C41: =Rallye!D134 -> Avant Départ ES 12 | D41: =Rallye!E134+$D$11 -> 14:53:00 | E41: 14:53:00 | F41: 00:00:00 | G41: 46 | H41: 0 | W41: 16:32:00
A42: =Rallye!B135 -> Départ E.S. : | B42: =Rallye!C135 -> 12 | C42: =Rallye!D135 -> GLANDON 3 (17,810 Kms) | D42: =Rallye!E135+$D$11 -> 14:56:00 | E42: 14:56:00 | F42: 00:00:00 | G42: 46 | H42: 0 | W42: 16:35:00
A43: =Rallye!B136 -> Arriv. E.S. : | B43: =Rallye!C136 -> 12 | C43: =Rallye!D136 -> 0 | D43: =Rallye!E136+$D$11 -> 14:56:00 | E43: XXX | F43: 00:00:00 | G43: 45 | H43: 1 | I43: 38 | W43: 00:00:00
A44: =Rallye!B137 -> C.H. : | B44: =Rallye!C137 -> 12A | C44: =Rallye!D137 -> Entrée Assist (Stade St Yriex) | D44: =Rallye!E137+$D$11 -> 15:31:00 | E44: 15:31:00 | F44: 00:00:00 | G44: 45 | H44: 0 | W44: 17:09:00
A45: =Rallye!B138 -> C.H. : | B45: =Rallye!C138 -> 12B | C45: =Rallye!D138 -> Sortie Assistance | D45: =Rallye!E138+$D$11 -> 15:41:00 | E45: 15:41:00 | F45: 00:00:00 | G45: 45 | H45: 0 | W45: =IF(AND(E45<>"X",E45<>"XXX",E45<>""),(E45+(TIME(0,ABS(G45)-1,0)+TATJ_Etp_2)),0) -> 17:19:00
A46: =Rallye!B139 -> C.H. : | B46: =Rallye!C139 -> 12C | C46: =Rallye!D139 -> Entrée Parc Fermé d'Arrivée | D46: =Rallye!E139+$D$11 -> 15:46:00 | E46: 15:46:00 | F46: 00:00:00 | G46: 45 | H46: 0 | W46: 17:24:00
A47: =Rallye!B140 -> 0 | B47: =Rallye!C140 -> 0 | C47: =Rallye!D140 -> 0 | D47: =Rallye!E140+$D$11 -> 15:46:00 | F47: 00:00:00 | G47: 0 | H47: 0 | W47: 00:00:00
A48: =Rallye!B141 -> 0 | B48: =Rallye!C141 -> 0 | C48: =Rallye!D141 -> 0 | D48: =Rallye!E141+$D$11 -> 15:46:00 | F48: 00:00:00 | G48: 0 | H48: 0 | W48: 00:00:00
A49: =Rallye!B142 -> 0 | B49: =Rallye!C142 -> 0 | C49: =Rallye!D142 -> 0 | D49: =Rallye!E142+$D$11 -> 15:46:00 | F49: 00:00:00 | G49: 0 | H49: 0 | W49: 00:00:00
A50: =Rallye!B143 -> 0 | B50: =Rallye!C143 -> 0 | C50: =Rallye!D143 -> 0 | D50: =Rallye!E143+$D$11 -> 15:46:00 | F50: 00:00:00 | G50: 0 | H50: 0 | W50: 00:00:00
A51: =Rallye!B144 -> 0 | B51: =Rallye!C144 -> 0 | C51: =Rallye!D144 -> 0 | D51: =Rallye!E144+$D$11 -> 15:46:00 | F51: 00:00:00 | G51: 0 | H51: 0 | W51: 00:00:00
A52: =Rallye!B145 -> 0 | B52: =Rallye!C145 -> 0 | C52: =Rallye!D145 -> 0 | D52: =Rallye!E145+$D$11 -> 15:46:00 | F52: 00:00:00 | G52: 0 | H52: 0 | W52: 00:00:00
A53: =Rallye!B146 -> 0 | B53: =Rallye!C146 -> 0 | C53: =Rallye!D146 -> 0 | D53: =Rallye!E146+$D$11 -> 15:46:00 | F53: 00:00:00 | G53: 0 | H53: 0 | W53: 00:00:00
A54: =Rallye!B147 -> 0 | B54: =Rallye!C147 -> 0 | C54: =Rallye!D147 -> 0 | D54: =Rallye!E147+$D$11 -> 15:46:00 | F54: 00:00:00 | G54: 0 | H54: 0 | W54: 00:00:00
A55: =Rallye!B148 -> 0 | B55: =Rallye!C148 -> 0 | C55: =Rallye!D148 -> 0 | D55: =Rallye!E148+$D$11 -> 15:46:00 | F55: 00:00:00 | G55: 0 | H55: 0 | W55: 00:00:00
A56: =Rallye!B149 -> 0 | B56: =Rallye!C149 -> 0 | C56: =Rallye!D149 -> 0 | D56: =Rallye!E149+$D$11 -> 15:46:00 | F56: 00:00:00 | G56: 0 | H56: 0 | W56: 00:00:00
A57: =Rallye!B150 -> 0 | B57: =Rallye!C150 -> 0 | C57: =Rallye!D150 -> 0 | D57: =Rallye!E150+$D$11 -> 15:46:00 | F57: 00:00:00 | G57: 0 | H57: 0 | W57: 00:00:00
A58: =Rallye!B151 -> 0 | B58: =Rallye!C151 -> 0 | C58: =Rallye!D151 -> 0 | D58: =Rallye!E151+$D$11 -> 15:46:00 | F58: 00:00:00 | G58: 0 | H58: 0 | W58: 00:00:00
A59: =Rallye!B152 -> 0 | B59: =Rallye!C152 -> 0 | C59: =Rallye!D152 -> 0 | D59: =Rallye!E152+$D$11 -> 15:46:00 | F59: 00:00:00 | G59: 0 | H59: 0 | W59: 00:00:00
A60: =Rallye!B153 -> 0 | B60: =Rallye!C153 -> 0 | C60: =Rallye!D153 -> 0 | D60: =Rallye!E153+$D$11 -> 15:46:00 | F60: 00:00:00 | G60: 0 | H60: 0 | W60: 00:00:00
A61: =Rallye!B154 -> 0 | B61: =Rallye!C154 -> 0 | C61: =Rallye!D154 -> 0 | D61: =Rallye!E154+$D$11 -> 15:46:00 | F61: 00:00:00 | G61: 0 | H61: 0 | W61: 00:00:00
D62: En Course : | G62: =G10-H63 -> 45
C63: =CONCATENATE("Abandons ",Rallye!E99) -> Abandons 2ème Etape Sections 3 - 4 - 5 | H63: =SUM(H12:H61) -> 18 | I63: Mécanique : | M63: =COUNT(I12:N61) -> 15 | O63: S.R. : | R63: =COUNT(O12:R61) -> 1 | S63: H.C. | T63: =COUNT(S13:T61) -> 1 | U63: R.P. | V63: =COUNTA(U12:V61) -> 1
D64: Demandes de Rallye 2 : | I64: Mécanique : | O64: S.R. : | S64: H.C. | U64: R.P.
D65: Cumul abandons Rallye : | H65: =(H63+Etap1!H58)-Etap1!H59 -> 24
D66: Reste en Course pour Etape suivante : | H66: =G62+H64 -> 45
A68: Observations :
A72: Fait à : | C72: =Rallye!E17 -> 87500 St-YRIEX La PERCHE | J72: Le Directeur de Course
A73: le : | C73: =Rallye!E33 -> 2018-09-16
A74: à : | C74: =NOW() -> 43450.39398 | J74: =Officiels!K15 -> LORRE Joseph
J75: Lic : | K75: =Officiels!E15 -> 10395

Sheet REtap2
G2: Document n° :
A5: =Rallye!E10 -> 16ème Rallye du PAYS de St-YRIEX
A6: =Rallye!E12 -> 15 et 16 Septembre 2018 | E6: RAPPORT DE LA DIRECTION DE COURSE
A7: =Rallye!E14 -> LRSA Nouvelle Aquitaine Sud
A8: =Rallye!E19 -> ASA Saint Martial | E8: =Rallye!E99 -> 2ème Etape Sections 3 - 4 - 5
A9: Permis d'Organisation : | C9: =Rallye!E15 -> N 511 du 3/07/2018 | E9: =Rallye!E101 -> 2018-09-16
B11: w Nombre de concurrents admis au départ | G11: =Etap1!G57+Etap1!H59 -> 63
B13: w Premier départ (sortie parc fermé) le | G13: =Rallye!E101 -> 2018-09-16 | H13: à : | I13: =Etap2!D13 -> 07:48:00
B15: w N° du 1er concurrent à prendre le départ | G15: 1
B17: w Nombre de concurrents ayant pris le départ | G17: =Etap2!G13 -> 57
B19: w Premier concurrent entré en parc fermé --- | F19: n° | G19: 1 | H19: à : | I19: 15:45:00
B21: w Dernier concurrent entré en parc fermé --- | F21: n° | G21: 47 | H21: à : | I21: 16:29:00
B23: w Nombre de concurrents en parc fermé | G23: =Etap2!G62 -> 45
B25: w Nombre de concurrents classés | G25: =Etap2!G62 -> 45
B27: w Date et Heure d'affichage du classement | E27: de l'Etape | F27: le : | H27: à :
C28: et Ordres et Heures de Départ Etape 3
E29: Pour valeur le : | H29: à :
C31: Ø Nombre d’Abandons / Hors Course (Liste Jointe) | G31: =Etap2!H63 -> 18 | H31: Soit : | I31: =(G31/G11) -> 0.2857142857
D32: Dont : | E32: Mécanique | G32: =Etap2!M63 -> 15
D33: Sortie de Route | G33: =Etap2!R63 -> 1
C34: Hors Course / Hors Temps Imparti | G34: =Etap2!T63 -> 1
E35: Divers | G35: =Etap2!V63 -> 1
G37: =Etap2!H64 -> 0
C39: Ø Nombre de Pénalités en Temps (Liste jointe)
E41: Arrêts de Course : | H41: Durée :
E43: Annulations / Neutralisations : | H43: E.S. :
C45: Ø Vérifications techniques en cours d'étape :
B47: Documents Joints :
B58: =CONCATENATE("Commentaires sur le déroulement de : ",Rallye!E99) -> Commentaires sur le déroulement de : 2ème Etape Sections 3 - 4 - 5
B61: Suite à rapport juge de fait (Article 6.4.7) pénalisation d'une minute pour le concurrent n°75
B70: Fait à : | C70: =Rallye!E17 -> 87500 St-YRIEX La PERCHE | D70: le : | E70: =NOW() -> 2018-12-16T09:27:20.020 | G70: Le Directeur de Course
D71: à : | E71: =NOW() -> 43450.39398
G72: =Officiels!K15 -> LORRE Joseph
F73: Lic : | G73: =Officiels!E15 -> 10395

Sheet Etap3
H1: Document n° : | K1: DC #
A3: =Rallye!E10 -> 16ème Rallye du PAYS de St-YRIEX
A4: =Rallye!E158 -> 00:00:00 | E4: RAPPORT DE LA DIRECTION DE COURSE | Q4: =Intro!K3 -> 43450.39398
A5: =Rallye!E14 -> LRSA Nouvelle Aquitaine Sud
A6: =Rallye!E19 -> ASA Saint Martial | E6: =Rallye!E156 -> 0
A7: =Rallye!E21 -> Championnat de France 2ème Div | N7: Durée Estimée E.S. = | S7: =TIME(0,ABS(G62),0) -> 00:45:00
A8: POSTE | D8: 1ère voiture | G8: En course | H8: Nbre | I8: Abandons
A9: DE | C9: Lieu | D9: Heure | E9: Heure | F9: Retard/1er | G9: report | H9: report | I9: Mécanique | O9: Sortie de Route | S9: H.C. | U9: R.P. | W9: Heure Dernier | X9: Retd Cumulé
A10: CONTROLE | D10: théorique | E10: réelle | G10: =Etap2!H66 -> 45 | H10: =Etap2!H64 -> 0
C11: Décalage du aux VHCs
A12: =Rallye!B162 -> 0 | B12: =Rallye!C162 -> 5ème | C12: =Rallye!D162 -> Section | H12: =COUNT(I12:Q12) -> 0
A13: =Rallye!B163 -> 0 | B13: =Rallye!C163 -> 0 | C13: =Rallye!D163 -> 0 | D13: =Rallye!E163+$D$11 -> 00:00:00 | F13: =IF(AND(E13>0,E13<>"XXX",E13<>"X",E13>D13),E13-D13,) -> 00:00:00 | G13: =IF(E13="",0,G10-H13) -> 0 | H13: =COUNT(I13:V13) -> 0 | W13: =IF(AND(E13<>"X",E13<>"XXX"),(E13+X13+(TIME(0,ABS(G13),0))),0) -> 00:00:00
A14: =Rallye!B164 -> 0 | B14: =Rallye!C164 -> 0 | C14: =Rallye!D164 -> 0 | D14: =Rallye!E164+$D$11 -> 00:00:00 | F14: =IF(AND(E14>0,E14<>"XXX",E14<>"X",E14>D14),E14-D14,) -> 00:00:00 | G14: =IF(E14="",0,G13-H14) -> 0 | H14: =COUNT(I14:V14) -> 0 | W14: =IF(AND(E14<>"X",E14<>"XXX"),(E14+X14+(TIME(0,ABS(G14),0))),0) -> 00:00:00
A15: =Rallye!B165 -> 0 | B15: =Rallye!C165 -> 0 | C15: =Rallye!D165 -> 0 | D15: =Rallye!E165+$D$11 -> 00:00:00 | F15: 00:00:00 | G15: 0 | H15: 0 | W15: 00:00:00
A16: =Rallye!B166 -> 0 | B16: =Rallye!C166 -> 0 | C16: =Rallye!D166 -> 0 | D16: =Rallye!E166+$D$11 -> 00:00:00 | F16: 00:00:00 | G16: 0 | H16: 0 | W16: 00:00:00
A17: =Rallye!B167 -> 0 | B17: =Rallye!C167 -> 0 | C17: =Rallye!D167 -> 0 | D17: =Rallye!E167+$D$11 -> 00:00:00 | F17: 00:00:00 | G17: 0 | H17: 0 | W17: 00:00:00
A18: =Rallye!B168 -> 0 | B18: =Rallye!C168 -> 0 | C18: =Rallye!D168 -> 0 | D18: =Rallye!E168+$D$11 -> 00:00:00 | F18: 00:00:00 | G18: 0 | H18: 0 | W18: 00:00:00
A19: =Rallye!B169 -> 0 | B19: =Rallye!C169 -> 0 | C19: =Rallye!D169 -> 0 | D19: =Rallye!E169+$D$11 -> 00:00:00 | F19: 00:00:00 | G19: 0 | H19: 0 | W19: 00:00:00
A20: =Rallye!B170 -> 0 | B20: =Rallye!C170 -> 0 | C20: =Rallye!D170 -> 0 | D20: =Rallye!E170+$D$11 -> 00:00:00 | F20: 00:00:00 | G20: 0 | H20: 0 | W20: 00:00:00
A21: =Rallye!B171 -> 0 | B21: =Rallye!C171 -> 0 | C21: =Rallye!D171 -> 0 | D21: =Rallye!E171+$D$11 -> 00:00:00 | F21: 00:00:00 | G21: 0 | H21: 0 | W21: 00:00:00
A22: =Rallye!B172 -> 0 | B22: =Rallye!C172 -> 0 | C22: =Rallye!D172 -> 0 | D22: =Rallye!E172+$D$11 -> 00:00:00 | F22: 00:00:00 | G22: 0 | H22: 0 | W22: 00:00:00
A23: =Rallye!B173 -> 0 | B23: =Rallye!C173 -> 0 | C23: =Rallye!D173 -> 0 | D23: =Rallye!E173+$D$11 -> 00:00:00 | F23: 00:00:00 | G23: 0 | H23: 0 | W23: 00:00:00
A24: =Rallye!B174 -> 0 | B24: =Rallye!C174 -> 0 | C24: =Rallye!D174 -> 0 | D24: =Rallye!E174+$D$11 -> 00:00:00 | F24: 00:00:00 | G24: 0 | H24: 0 | W24: 00:00:00
A25: =Rallye!B175 -> 0 | B25: =Rallye!C175 -> 0 | C25: =Rallye!D175 -> 0 | D25: =Rallye!E175+$D$11 -> 00:00:00 | F25: 00:00:00 | G25: 0 | H25: 0 | W25: 00:00:00
A26: =Rallye!B176 -> 0 | B26: =Rallye!C176 -> 0 | C26: =Rallye!D176 -> 0 | D26: =Rallye!E176+$D$11 -> 00:00:00 | F26: 00:00:00 | G26: 0 | H26: 0 | W26: 00:00:00
A27: =Rallye!B177 -> 0 | B27: =Rallye!C177 -> 0 | C27: =Rallye!D177 -> 0 | D27: =Rallye!E177+$D$11 -> 00:00:00 | F27: 00:00:00 | G27: 0 | H27: 0 | W27: 00:00:00
A28: =Rallye!B178 -> 0 | B28: =Rallye!C178 -> 0 | C28: =Rallye!D178 -> 0 | D28: =Rallye!E178+$D$11 -> 00:00:00 | F28: 00:00:00 | G28: 0 | H28: 0 | W28: 00:00:00
A29: =Rallye!B179 -> 0 | B29: =Rallye!C179 -> 0 | C29: =Rallye!D179 -> 0 | D29: =Rallye!E179+$D$11 -> 00:00:00 | F29: 00:00:00 | G29: 0 | H29: 0 | W29: 00:00:00
A30: =Rallye!B180 -> 0 | B30: =Rallye!C180 -> 0 | C30: =Rallye!D180 -> 0 | D30: =Rallye!E180+$D$11 -> 00:00:00 | F30: 00:00:00 | G30: 0 | H30: 0 | W30: 00:00:00
A31: =Rallye!B181 -> 0 | B31: =Rallye!C181 -> 0 | C31: =Rallye!D181 -> 0 | D31: =Rallye!E181+$D$11 -> 00:00:00 | F31: 00:00:00 | G31: 0 | H31: 0 | W31: 00:00:00
A32: =Rallye!B182 -> 0 | B32: =Rallye!C182 -> 0 | C32: =Rallye!D182 -> 0 | D32: =Rallye!E182+$D$11 -> 00:00:00 | F32: 00:00:00 | G32: 0 | H32: 0 | W32: 00:00:00
A33: =Rallye!B183 -> 0 | B33: =Rallye!C183 -> 0 | C33: =Rallye!D183 -> 0 | D33: =Rallye!E183+$D$11 -> 00:00:00 | F33: 00:00:00 | G33: 0 | H33: 0 | W33: 00:00:00
A34: =Rallye!B184 -> 0 | B34: =Rallye!C184 -> 0 | C34: =Rallye!D184 -> 0 | D34: =Rallye!E184+$D$11 -> 00:00:00 | F34: 00:00:00 | G34: 0 | H34: 0 | W34: 00:00:00
A35: =Rallye!B185 -> 0 | B35: =Rallye!C185 -> 0 | C35: =Rallye!D185 -> 0 | D35: =Rallye!E185+$D$11 -> 00:00:00 | F35: 00:00:00 | G35: 0 | H35: 0 | W35: 00:00:00
A36: =Rallye!B186 -> 0 | B36: =Rallye!C186 -> 0 | C36: =Rallye!D186 -> 0 | D36: =Rallye!E186+$D$11 -> 00:00:00 | F36: 00:00:00 | G36: 0 | H36: 0 | W36: 00:00:00
A37: =Rallye!B187 -> 0 | B37: =Rallye!C187 -> 0 | C37: =Rallye!D187 -> 0 | D37: =Rallye!E187+$D$11 -> 00:00:00 | F37: 00:00:00 | G37: 0 | H37: 0 | W37: 00:00:00
A38: =Rallye!B188 -> 0 | B38: =Rallye!C188 -> 0 | C38: =Rallye!D188 -> 0 | D38: =Rallye!E188+$D$11 -> 00:00:00 | F38: 00:00:00 | G38: 0 | H38: 0 | W38: 00:00:00
A39: =Rallye!B189 -> 0 | B39: =Rallye!C189 -> 0 | C39: =Rallye!D189 -> 0 | D39: =Rallye!E189+$D$11 -> 00:00:00 | F39: 00:00:00 | G39: 0 | H39: 0 | W39: 00:00:00
A40: =Rallye!B190 -> 0 | B40: =Rallye!C190 -> 0 | C40: =Rallye!D190 -> 0 | D40: =Rallye!E190+$D$11 -> 00:00:00 | F40: 00:00:00 | G40: 0 | H40: 0 | W40: 00:00:00
A41: =Rallye!B191 -> 0 | B41: =Rallye!C191 -> 0 | C41: =Rallye!D191 -> 0 | D41: =Rallye!E191+$D$11 -> 00:00:00 | F41: 00:00:00 | G41: 0 | H41: 0 | W41: 00:00:00
A42: =Rallye!B192 -> 0 | B42: =Rallye!C192 -> 0 | C42: =Rallye!D192 -> 0 | D42: =Rallye!E192+$D$11 -> 00:00:00 | F42: 00:00:00 | G42: 0 | H42: 0 | W42: 00:00:00
A43: =Rallye!B193 -> 0 | B43: =Rallye!C193 -> 0 | C43: =Rallye!D193 -> 0 | D43: =Rallye!E193+$D$11 -> 00:00:00 | F43: 00:00:00 | G43: 0 | H43: 0 | W43: 00:00:00
A44: =Rallye!B194 -> 0 | B44: =Rallye!C194 -> 0 | C44: =Rallye!D194 -> 0 | D44: =Rallye!E194+$D$11 -> 00:00:00 | F44: 00:00:00 | G44: 0 | H44: 0 | W44: 00:00:00
A45: =Rallye!B195 -> 0 | B45: =Rallye!C195 -> 0 | C45: =Rallye!D195 -> 0 | D45: =Rallye!E195+$D$11 -> 00:00:00 | F45: 00:00:00 | G45: 0 | H45: 0 | W45: 00:00:00
A46: =Rallye!B196 -> 0 | B46: =Rallye!C196 -> 0 | C46: =Rallye!D196 -> 0 | D46: =Rallye!E196+$D$11 -> 00:00:00 | F46: 00:00:00 | G46: 0 | H46: 0 | W46: 00:00:00
A47: =Rallye!B197 -> 0 | B47: =Rallye!C197 -> 0 | C47: =Rallye!D197 -> 0 | D47: =Rallye!E197+$D$11 -> 00:00:00 | F47: 00:00:00 | G47: 0 | H47: 0 | W47: 00:00:00
A48: =Rallye!B198 -> 0 | B48: =Rallye!C198 -> 0 | C48: =Rallye!D198 -> 0 | D48: =Rallye!E198+$D$11 -> 00:00:00 | F48: 00:00:00 | G48: 0 | H48: 0 | W48: 00:00:00
A49: =Rallye!B199 -> 0 | B49: =Rallye!C199 -> 0 | C49: =Rallye!D199 -> 0 | D49: =Rallye!E199+$D$11 -> 00:00:00 | F49: 00:00:00 | G49: 0 | H49: 0 | W49: 00:00:00
A50: =Rallye!B200 -> 0 | B50: =Rallye!C200 -> 0 | C50: =Rallye!D200 -> 0 | D50: =Rallye!E200+$D$11 -> 00:00:00 | F50: 00:00:00 | G50: 0 | H50: 0 | W50: 00:00:00
A51: =Rallye!B201 -> 0 | B51: =Rallye!C201 -> 0 | C51: =Rallye!D201 -> 0 | D51: =Rallye!E201+$D$11 -> 00:00:00 | F51: 00:00:00 | G51: 0 | H51: 0 | W51: 00:00:00
A52: =Rallye!B202 -> 0 | B52: =Rallye!C202 -> 0 | C52: =Rallye!D202 -> 0 | D52: =Rallye!E202+$D$11 -> 00:00:00 | F52: 00:00:00 | G52: 0 | H52: 0 | W52: 00:00:00
A53: =Rallye!B203 -> 0 | B53: =Rallye!C203 -> 0 | C53: =Rallye!D203 -> 0 | D53: =Rallye!E203+$D$11 -> 00:00:00 | F53: 00:00:00 | G53: 0 | H53: 0 | W53: 00:00:00
A54: =Rallye!B204 -> 0 | B54: =Rallye!C204 -> 0 | C54: =Rallye!D204 -> 0 | D54: =Rallye!E204+$D$11 -> 00:00:00 | F54: 00:00:00 | G54: 0 | H54: 0 | W54: 00:00:00
A55: =Rallye!B205 -> 0 | B55: =Rallye!C205 -> 0 | C55: =Rallye!D205 -> 0 | D55: =Rallye!E205+$D$11 -> 00:00:00 | F55: 00:00:00 | G55: 0 | H55: 0 | W55: 00:00:00
A56: =Rallye!B206 -> 0 | B56: =Rallye!C206 -> 0 | C56: =Rallye!D206 -> 0 | D56: =Rallye!E206+$D$11 -> 00:00:00 | F56: 00:00:00 | G56: 0 | H56: 0 | W56: 00:00:00
A57: =Rallye!B207 -> 0 | B57: =Rallye!C207 -> 0 | C57: =Rallye!D207 -> 0 | D57: =Rallye!E207+$D$11 -> 00:00:00 | F57: 00:00:00 | G57: 0 | H57: 0 | W57: 00:00:00
A58: =Rallye!B208 -> 0 | B58: =Rallye!C208 -> 0 | C58: =Rallye!D208 -> 0 | D58: =Rallye!E208+$D$11 -> 00:00:00 | F58: 00:00:00 | G58: 0 | H58: 0 | W58: 00:00:00
A59: =Rallye!B209 -> 0 | B59: =Rallye!C209 -> 0 | C59: =Rallye!D209 -> 0 | D59: =Rallye!E209+$D$11 -> 00:00:00 | F59: 00:00:00 | G59: 0 | H59: 0 | W59: 00:00:00
A60: =Rallye!B210 -> 0 | B60: =Rallye!C210 -> 0 | C60: =Rallye!D210 -> 0 | D60: =Rallye!E210+$D$11 -> 00:00:00 | F60: 00:00:00 | G60: 0 | H60: 0 | W60: 00:00:00
A61: =Rallye!B211 -> 0 | B61: =Rallye!C211 -> 0 | C61: =Rallye!D211 -> 0 | D61: =Rallye!E211+$D$11 -> 00:00:00 | F61: 00:00:00 | G61: 0 | H61: 0 | W61: 00:00:00
D62: En Course : | G62: =G10-H63 -> 45
C63: =CONCATENATE("Abandons ",Rallye!E156) -> Abandons | H63: =SUM(H12:H61) -> 0 | I63: Mécanique : | M63: =COUNT(I12:N61) -> 0 | O63: S.R. : | R63: =COUNT(O12:R61) -> 0 | S63: H.C. | T63: =COUNT(S13:T61) -> 0 | U63: R.P. | V63: =COUNTA(U12:V61) -> 0
D64: Cumul abandons Rallye | H64: =(Etap1!H58-Etap1!H59)+(Etap2!H63-Etap2!H64)+H63 -> 24
A66: Observations :
A72: Fait à : | C72: =Rallye!E17 -> 87500 St-YRIEX La PERCHE | J72: Le Directeur de Course
A73: le : | C73: =Rallye!E33 -> 2018-09-16
A74: à : | C74: =NOW() -> 43450.39398 | J74: =Officiels!K15 -> LORRE Joseph
J75: Lic : | K75: =Officiels!E15 -> 10395

Sheet Retap3
G2: Document n° :
A5: =Rallye!E10 -> 16ème Rallye du PAYS de St-YRIEX
A6: =Rallye!E12 -> 15 et 16 Septembre 2018 | E6: RAPPORT DE LA DIRECTION DE COURSE
A7: =Rallye!E14 -> LRSA Nouvelle Aquitaine Sud
A8: =Rallye!E19 -> ASA Saint Martial | E8: =Rallye!E156 -> 0
B9: Permis d'Organisation : | C9: =Rallye!E15 -> N 511 du 3/07/2018 | E9: =Rallye!E158 -> 00:00:00
B11: w Nombre de concurrents admis au départ | G11: =Etap2!H66 -> 45
B13: w Premier départ (sortie parc fermé) le | G13: =Rallye!E158 -> 00:00:00 | H13: à : | I13: =Etap3!D13 -> 00:00:00
B15: w N° du 1er concurrent à prendre le départ
B17: w Nombre de concurrents ayant pris le départ | G17: =Etap3!G13 -> 0
B19: w Premier concurrent entré en parc fermé --- | F19: n° | H19: à :
B21: w Dernier concurrent entré en parc fermé --- | F21: n° | H21: à :
B23: w Nombre de concurrents en parc fermé | G23: =Etap3!G62 -> 45
B25: w Nombre de concurrents classés | G25: =Etap3!G62 -> 45
B27: w Date et Heure d'affichage du classement | E27: du Rallye | F27: le : | H27: à :
E29: Pour valeur le : | G29: =Rallye!E159 -> 00:00:00 | H29: à : | I29: 14:41:00
C31: Ø Nombre d’Abandons / Hors Course (Liste Jointe) | G31: =Etap3!H63 -> 0 | H31: Soit : | I31: =(G31/G11) -> 0
D32: Dont : | E32: Mécanique | G32: =Etap3!M63 -> 0
D33: Sortie de Route | G33: =Etap3!R63 -> 0
D34: Hors Course / Hors Temps imparti | G34: =Etap3!T63 -> 0
E35: Divers | G35: =Etap3!V63 -> 0
C38: Ø Nombre de Pénalités ( Temps ) | H38: liste jointe
E40: Arrêts de Course : | H40: Durée :
E42: Annulations / Neutralisations : | H42: E.S. :
B44: Documents Joints :
B55: =CONCATENATE("Commentaires sur le déroulement de : ",Rallye!E156) -> Commentaires sur le déroulement de :
B67: Fait à : | C67: =Rallye!E17 -> 87500 St-YRIEX La PERCHE | D67: le : | E67: =Rallye!E158 -> 00:00:00 | G67: Le Directeur de Course
D68: à : | E68: =NOW() -> 43450.39398
G69: =Officiels!K15 -> LORRE Joseph
F70: Lic : | G70: =Officiels!E15 -> 10395

Sheet Final
H2: Document n° :
A5: =Rallye!E10 -> 16ème Rallye du PAYS de St-YRIEX
A6: =Rallye!E12 -> 15 et 16 Septembre 2018
A7: =Rallye!E19 -> ASA Saint Martial | F7: RAPPORT DE LA DIRECTION DE COURSE
A8: =Rallye!E14 -> LRSA Nouvelle Aquitaine Sud
A9: =Rallye!E21 -> Championnat de France 2ème Div | F9: RAPPORT FINAL DU RALLYE
C10: Permis d'Organisation : | D10: =Rallye!E15 -> N 511 du 3/07/2018
B12: w Nombre de concurrents admis au départ | G12: =Verifs_mod!K71+Verifs_VHC!I38+Verifs_TT!K49 -> 69
B14: w Premier départ (sortie parc Départ ) le : | G14: =Rallye!E50 -> 2018-09-15 | H14: à : | I14: =Etap1!E14 -> 14:59:00
B16: w N° du 1er concurrent à prendre le départ | G16: 1
B18: w Nombre de concurrents ayant pris le départ | G18: =Etap1!G14 -> 69
B20: w Premier concurrent entré en parc fermé Final --- | F20: n° | G20: 1 | H20: à | I20: 15:45:00 | J20: le : | K20: 2018-09-16
B22: w Dernier concurrent entré en parc fermé Final --- | F22: n° | G22: 47 | H22: à | I22: 16:29:00 | J22: le : | K22: 2018-09-16
B24: w Nombre de concurrents en parc fermé Final | G24: =Etap3!G62 -> 45
B26: w Nombre de concurrents classés à l'issue du Rallye | G26: =Etap3!G62 -> 45
B28: w Date et Heure d'affichage du classement | F28: le : | G28: 2018-09-19 | H28: à : | I28: 16:45:00
E29: Pour Valeur le : | G29: =Rallye!E42 -> 2018-09-16 | I29: 16:45:00
C31: Ø Nombre d’Abandons (Liste Jointe), | G31: =(REtap1!G31-REtap1!G37)+(REtap2!G31-REtap2!G37)+Retap3!G31 -> 24 | H31: Soit : | I31: =(G31/G12) -> 0.347826087
C33: Voir Détails sur Rapports Etapes
C37: Ø Nombre de Pénalités en Temps (Liste jointe) : | G37: 9
C41: Ø Vérifications finales n° | E41: 1 - 2 - 5
D42: Tous les concurrents sont conformes sur les points contrôlés
B44: Documents Joints :
C45: Rapport Vérifications Techniques en cours d'épreuve
C46: Liste des Pénalisations et Abandons
C47: Rapport Commissaire
C48: Main courante DC
C49: Rapport juges de faits
C50: Classement Final Provisoire sous réserves
C51: Rapport Vérifications Techniques Finales
C52: Rapport Médical
B54: Commentaires sur le Déroulement du Rallye :
B68: Fait à : | C68: =Rallye!E17 -> 87500 St-YRIEX La PERCHE | D68: le : | E68: =TODAY() -> 2018-12-16 | G68: Le Directeur de Course
D69: à : | E69: =NOW() -> 43450.39398
G70: =Officiels!K15 -> LORRE Joseph
F71: Lic : | G71: =Officiels!E15 -> 10395

Sheet Main-Courante
B2: =Rallye!E10 -> 16ème Rallye du PAYS de St-YRIEX | E2: E.S. :
B3: =Rallye!E12 -> 15 et 16 Septembre 2018 | E3: SUIVI DOCUMENTS P.C.
B5: MAIN COURANTE
B7: Heure | C7: N° | D7: LIEU - DEST | E7: Observations

Sheet Suivi-ES
A1: =Rallye!E10 -> 16ème Rallye du PAYS de St-YRIEX
E2: SUIVI E.S
A3: ES N° : | K3: Km
A5: DC Délégué ES : | I5: Date :
A7: HORAIRES | C7: M.E.P | D7: TRICO | E7: INFO | F7: OOO | G7: OO | H7: O | I7: 1° Voit | J7: Dernier | K7: Balai
A8: Théoriques | C8: h | D8: h | E8: h | F8: h | G8: h | H8: h | I8: h
A9: Réels | C9: h | D9: h | E9: h | F9: h | G9: h | H9: h | I9: h | J9: h | K9: h
A11: Nombre de concurrents avant ES :
A13: Abandons avant le départ de l' ES | F13: N°
A16: 1 | L16: 10
A18: 11 | L18: 20
A20: 21 | L20: 30
A22: 31 | L22: 40
A24: 41 | L24: 50
A26: 51 | L26: 60
A28: 61 | L28: 70
A30: 71 | L30: 80
A32: 81 | L32: 90
A34: 91 | L34: 100
A36: 101 | L36: 110
A38: 111 | L38: 120
A40: 121 | L40: 130
A42: 131 | L42: 140
B44: ARRET DE COURSE | G44: Suivi d'épreuve | I44: Nombre | J44: N° abandons
B45: N° | C45: Heure | D45: ARRET | E45: Heure | F45: N°
G46: DEPART ES
G47: ABANDONS
G48: ARRIVEE ES
G49: DC Délégué PC :

Sheet Péna Etp 1
I2: Document n° :
B4: =Rallye!E10 -> 16ème Rallye du PAYS de St-YRIEX
B5: =Rallye!E50 -> 2018-09-15
B6: =Rallye!E19 -> ASA Saint Martial | G6: Pénalités
B7: =Rallye!E14 -> LRSA Nouvelle Aquitaine Sud
B8: =Rallye!E21 -> Championnat de France 2ème Div | G8: =Rallye!E48 -> 1ère Etape Sections 1 - 2
D11: CH | E11: DEP | G11: MISE | H11: 15' par secteur entre 2 CH ou Parc Départ
C12: Avance | D12: =Rallye!E44 -> 1 mnt | G12: HORS | H12: 20' par section
C13: Retard | D13: =Rallye!E45 -> 10 s | E13: =Rallye!G44 -> 10 s | G13: COURSE | H13: 30' pour l'ensemble du rallye
B14: N° Concurrent :
B15: Point de Contrôle | D15: Motif | E15: Pénalité | F15: Motif | G15: Pénalité | H15: Motif | I15: Pénalité | J15: Motif | K15: Pénalité | L15: Motif | M15: Pénalité | N15: Motif | O15: Pénalité | P15: Motif | Q15: Pénalité | R15: Motif | S15: Pénalité | T15: Motif | U15: Pénalité | V15: Motif | W15: Pénalité
B16: =Rallye!B55 -> C.H. : | C16: =Rallye!C55 -> 0
B17: =Rallye!B56 -> C.H. : | C17: =Rallye!C56 -> 0A
B18: =Rallye!B57 -> C.H. : | C18: =Rallye!C57 -> 0B
B19: =Rallye!B58 -> C.H. : | C19: =Rallye!C58 -> 1
B20: =Rallye!B59 -> Départ E.S. : | C20: =Rallye!C59 -> 1
B21: =Rallye!B60 -> Arriv. E.S. : | C21: =Rallye!C60 -> 1
B22: =Rallye!B61 -> C.H. : | C22: =Rallye!C61 -> 2
B23: =Rallye!B62 -> Départ E.S. : | C23: =Rallye!C62 -> 2
B24: =Rallye!B63 -> Arriv. E.S. : | C24: =Rallye!C63 -> 2
B25: =Rallye!B64 -> C.H. : | C25: =Rallye!C64 -> 3
B26: =Rallye!B65 -> Départ E.S. : | C26: =Rallye!C65 -> 3
B27: =Rallye!B66 -> Arriv. E.S. : | C27: =Rallye!C66 -> 3
B28: =Rallye!B67 -> C.H. : | C28: =Rallye!C67 -> 3A
B29: =Rallye!B68 -> 0 | C29: =Rallye!C68 -> 2ème
B30: =Rallye!B69 -> C.H. : | C30: =Rallye!C69 -> 3B
B31: =Rallye!B70 -> C.H. : | C31: =Rallye!C70 -> 3C
B32: =Rallye!B71 -> C.H. : | C32: =Rallye!C71 -> 3D
B33: =Rallye!B72 -> C.H. : | C33: =Rallye!C72 -> 4
B34: =Rallye!B73 -> Départ E.S. : | C34: =Rallye!C73 -> 4
B35: =Rallye!B74 -> Arriv. E.S. : | C35: =Rallye!C74 -> 4
B36: =Rallye!B75 -> C.H. : | C36: =Rallye!C75 -> 5
B37: =Rallye!B76 -> Départ E.S. : | C37: =Rallye!C76 -> 5
B38: =Rallye!B77 -> Arriv. E.S. : | C38: =Rallye!C77 -> 5
B39: =Rallye!B78 -> C.H. : | C39: =Rallye!C78 -> 6
B40: =Rallye!B79 -> Départ E.S. : | C40: =Rallye!C79 -> 6
B41: =Rallye!B80 -> Arriv. E.S. : | C41: =Rallye!C80 -> 6
B42: =Rallye!B81 -> C.H. : | C42: =Rallye!C81 -> 6A
B43: =Rallye!B82 -> 0 | C43: =Rallye!C82 -> 0
B44: =Rallye!B83 -> 0 | C44: =Rallye!C83 -> 0
B45: =Rallye!B84 -> 0 | C45: =Rallye!C84 -> 0
B46: =Rallye!B85 -> 0 | C46: =Rallye!C85 -> 0
B47: =Rallye!B86 -> 0 | C47: =Rallye!C86 -> 0
B48: =Rallye!B87 -> 0 | C48: =Rallye!C87 -> 0
B49: =Rallye!B88 -> 0 | C49: =Rallye!C88 -> 0
B50: =Rallye!B89 -> 0 | C50: =Rallye!C89 -> 0
B51: =Rallye!B90 -> 0 | C51: =Rallye!C90 -> 0
B52: =Rallye!B91 -> 0 | C52: =Rallye!C91 -> 0
B53: =Rallye!B92 -> 0 | C53: =Rallye!C92 -> 0
B54: =Rallye!B93 -> 0 | C54: =Rallye!C93 -> 0
B55: =Rallye!B94 -> 0 | C55: =Rallye!C94 -> 0
B56: =Rallye!B95 -> 0 | C56: =Rallye!C95 -> 0
B57: =Rallye!B96 -> 0 | C57: =Rallye!C96 -> 0
B58: =Rallye!B97 -> 0 | C58: =Rallye!C97 -> 0
C59: =Rallye!C98 -> 0
B60: N° Concurrent : | D60: =D14 -> 0 | F60: =F14 -> 0 | H60: =H14 -> 0 | J60: =J14 -> 0 | L60: =L14 -> 0 | N60: =N14 -> 0 | P60: =P14 -> 0 | R60: =R14 -> 0 | T60: =T14 -> 0 | V60: =V14 -> 0
B61: Total Pénalités : | D61: =SUM( E16:E59)/(24*3600) -> 00:00:00 | F61: =SUM(G16:G59)/(24*3600) -> 00:00:00 | H61: =SUM(I16:I59)/(24*3600) -> 00:00:00 | J61: =SUM(K16:K59)/(24*3600) -> 00:00:00 | L61: =SUM(M16:M59)/(24*3600) -> 00:00:00 | N61: =SUM(O16:O59)/(24*3600) -> 00:00:00 | P61: =SUM(Q16:Q59)/(24*3600) -> 00:00:00 | R61: =SUM(S16:S59)/(24*3600) -> 00:00:00 | T61: =SUM(U16:U59)/(24*3600) -> 00:00:00 | V61: =SUM(W16:W59)/(24*3600) -> 00:00:00

Sheet Péna Etp 2
J2: Document n° :
B4: =Rallye!E10 -> 16ème Rallye du PAYS de St-YRIEX
B5: =Rallye!E101 -> 2018-09-16 | H5: Pénalités
B6: =Rallye!E19 -> ASA Saint Martial
B7: =Rallye!E14 -> LRSA Nouvelle Aquitaine Sud | H7: =Rallye!E99 -> 2ème Etape Sections 3 - 4 - 5
B8: =Rallye!E21 -> Championnat de France 2ème Div
D10: CH | E10: DEP | G10: MISE | H10: 15' par secteur entre 2 CH ou Parc Départ
C11: Avance | D11: =Rallye!E44 -> 1 mnt | G11: HORS | H11: 20' par section
C12: Retard | D12: =Rallye!E45 -> 10 s | E12: =Rallye!G44 -> 10 s | G12: COURSE | H12: 30' pour l'ensemble du rallye
B13: N° Concurrent : | D13: 67
B14: Point de Contrôle | D14: Motif | E14: Pénalité | F14: Motif | G14: Pénalité | H14: Motif | I14: Pénalité | J14: Motif | K14: Pénalité | L14: Motif | M14: Pénalité | N14: Motif | O14: Pénalité | P14: Motif | Q14: Pénalité | R14: Motif | S14: Pénalité | T14: Motif | U14: Pénalité | V14: Motif | W14: Pénalité
B15: =Rallye!B106 -> C.H. : | C15: =Rallye!C106 -> 6B
B16: =Rallye!B107 -> C.H. : | C16: =Rallye!C107 -> 6C
B17: =Rallye!B108 -> C.H. : | C17: =Rallye!C108 -> 6D | D17: 7 mnt Retd | E17: 70
B18: =Rallye!B109 -> C.H. : | C18: =Rallye!C109 -> 7
B19: =Rallye!B110 -> Départ E.S. : | C19: =Rallye!C110 -> 7
B20: =Rallye!B111 -> Arriv. E.S. : | C20: =Rallye!C111 -> 7
B21: =Rallye!B112 -> C.H. : | C21: =Rallye!C112 -> 8
B22: =Rallye!B113 -> Départ E.S. : | C22: =Rallye!C113 -> 8
B23: =Rallye!B114 -> Arriv. E.S. : | C23: =Rallye!C114 -> 8
B24: =Rallye!B115 -> C.H. : | C24: =Rallye!C115 -> 8A
B25: =Rallye!B116 -> 0 | C25: =Rallye!C116 -> 4ème
B26: =Rallye!B117 -> C.H. : | C26: =Rallye!C117 -> 8B
B27: =Rallye!B118 -> C.H. : | C27: =Rallye!C118 -> 8C
B28: =Rallye!B119 -> C.H. : | C28: =Rallye!C119 -> 8D
B29: =Rallye!B120 -> C.H. : | C29: =Rallye!C120 -> 9
B30: =Rallye!B121 -> Départ E.S. : | C30: =Rallye!C121 -> 9
B31: =Rallye!B122 -> Arriv. E.S. : | C31: =Rallye!C122 -> 9
B32: =Rallye!B123 -> C.H. : | C32: =Rallye!C123 -> 10
B33: =Rallye!B124 -> Départ E.S. : | C33: =Rallye!C124 -> 10
B34: =Rallye!B125 -> Arriv. E.S. : | C34: =Rallye!C125 -> 10
B35: =Rallye!B126 -> C.H. : | C35: =Rallye!C126 -> 10A
B36: =Rallye!B127 -> 0 | C36: =Rallye!C127 -> 5ème
B37: =Rallye!B128 -> C.H. : | C37: =Rallye!C128 -> 10B
B38: =Rallye!B129 -> C.H. : | C38: =Rallye!C129 -> 10C
B39: =Rallye!B130 -> C.H. : | C39: =Rallye!C130 -> 10 D
B40: =Rallye!B131 -> C.H. : | C40: =Rallye!C131 -> 11
B41: =Rallye!B132 -> Départ E.S. : | C41: =Rallye!C132 -> 11
B42: =Rallye!B133 -> Arriv. E.S. : | C42: =Rallye!C133 -> 11
B43: =Rallye!B134 -> C.H. : | C43: =Rallye!C134 -> 12
B44: =Rallye!B135 -> Départ E.S. : | C44: =Rallye!C135 -> 12
B45: =Rallye!B136 -> Arriv. E.S. : | C45: =Rallye!C136 -> 12
B46: =Rallye!B137 -> C.H. : | C46: =Rallye!C137 -> 12A
B47: =Rallye!B138 -> C.H. : | C47: =Rallye!C138 -> 12B
B48: =Rallye!B139 -> C.H. : | C48: =Rallye!C139 -> 12C
B49: =Rallye!B140 -> 0 | C49: =Rallye!C140 -> 0
B50: =Rallye!B141 -> 0 | C50: =Rallye!C141 -> 0
B51: =Rallye!B142 -> 0 | C51: =Rallye!C142 -> 0
B52: =Rallye!B143 -> 0 | C52: =Rallye!C143 -> 0
B53: =Rallye!B144 -> 0 | C53: =Rallye!C144 -> 0
B54: =Rallye!B145 -> 0 | C54: =Rallye!C145 -> 0
B55: =Rallye!B146 -> 0 | C55: =Rallye!C146 -> 0
B56: =Rallye!B147 -> 0 | C56: =Rallye!C147 -> 0
B57: =Rallye!B148 -> 0 | C57: =Rallye!C148 -> 0
B58: =Rallye!B149 -> 0 | C58: =Rallye!C149 -> 0
B59: =Rallye!B150 -> 0 | C59: =Rallye!C150 -> 0
B60: =Rallye!B151 -> 0 | C60: =Rallye!C151 -> 0
B61: =Rallye!B152 -> 0 | C61: =Rallye!C152 -> 0
B62: =Rallye!B153 -> 0 | C62: =Rallye!C153 -> 0
B63: =Rallye!B154 -> 0 | C63: =Rallye!C154 -> 0
B64: N° Concurrent : | D64: =D13 -> 67 | F64: =F13 -> 0 | H64: =H13 -> 0 | J64: =J13 -> 0 | L64: =L13 -> 0 | N64: =N13 -> 0 | P64: =P13 -> 0 | R64: =R13 -> 0 | T64: =T13 -> 0 | V64: =V13 -> 0
B65: Total Pénalités : | D65: =SUM( E15:E63)/(24*3600) -> 00:01:10 | F65: =SUM(G15:G63)/(24*3600) -> 00:00:00 | H65: =SUM(I15:I63)/(24*3600) -> 00:00:00 | J65: =SUM(K15:K63)/(24*3600) -> 00:00:00 | L65: =SUM(M15:M63)/(24*3600) -> 00:00:00 | N65: =SUM(O15:O63)/(24*3600) -> 00:00:00 | P65: =SUM(Q15:Q63)/(24*3600) -> 00:00:00 | R65: =SUM(S15:S63)/(24*3600) -> 00:00:00 | T65: =SUM(U15:U63)/(24*3600) -> 00:00:00 | V65: =SUM(W15:W63)/(24*3600) -> 00:00:00

Sheet Péna Etp 3
J2: Document n° :
B4: =Rallye!E10 -> 16ème Rallye du PAYS de St-YRIEX
B5: =Rallye!E158 -> 00:00:00 | H5: Pénalités
B6: =Rallye!E19 -> ASA Saint Martial
B7: =Rallye!E14 -> LRSA Nouvelle Aquitaine Sud | H7: =Rallye!E156 -> 0
B8: =Rallye!E21 -> Championnat de France 2ème Div
D10: CH | E10: DEP | G10: MISE | H10: 15' par secteur entre 2 CH ou Parc Départ
C11: Avance | D11: =Rallye!E44 -> 1 mnt | G11: HORS | H11: 20' par section
C12: Retard | D12: =Rallye!E45 -> 10 s | E12: =Rallye!G44 -> 10 s | G12: COURSE | H12: 30' pour l'ensemble du rallye
B13: N° Concurrent :
B14: Point de Contrôle | D14: Motif | E14: Pénalité | F14: Motif | G14: Pénalité | H14: Motif | I14: Pénalité | J14: Motif | K14: Pénalité | L14: Motif | M14: Pénalité | N14: Motif | O14: Pénalité | P14: Motif | Q14: Pénalité | R14: Motif | S14: Pénalité | T14: Motif | U14: Pénalité | V14: Motif | W14: Pénalité
B15: =Rallye!B163 -> 0 | C15: =Rallye!C163 -> 0
B16: =Rallye!B164 -> 0 | C16: =Rallye!C164 -> 0
B17: =Rallye!B165 -> 0 | C17: =Rallye!C165 -> 0
B18: =Rallye!B166 -> 0 | C18: =Rallye!C166 -> 0
B19: =Rallye!B167 -> 0 | C19: =Rallye!C167 -> 0
B20: =Rallye!B168 -> 0 | C20: =Rallye!C168 -> 0
B21: =Rallye!B169 -> 0 | C21: =Rallye!C169 -> 0
B22: =Rallye!B170 -> 0 | C22: =Rallye!C170 -> 0
B23: =Rallye!B171 -> 0 | C23: =Rallye!C171 -> 0
B24: =Rallye!B172 -> 0 | C24: =Rallye!C172 -> 0
B25: =Rallye!B173 -> 0 | C25: =Rallye!C173 -> 0
B26: =Rallye!B174 -> 0 | C26: =Rallye!C174 -> 0
B27: =Rallye!B175 -> 0 | C27: =Rallye!C175 -> 0
B28: =Rallye!B176 -> 0 | C28: =Rallye!C176 -> 0
B29: =Rallye!B177 -> 0 | C29: =Rallye!C177 -> 0
B30: =Rallye!B178 -> 0 | C30: =Rallye!C178 -> 0
B31: =Rallye!B179 -> 0 | C31: =Rallye!C179 -> 0
B32: =Rallye!B180 -> 0 | C32: =Rallye!C180 -> 0
B33: =Rallye!B181 -> 0 | C33: =Rallye!C181 -> 0
B34: =Rallye!B182 -> 0 | C34: =Rallye!C182 -> 0
B35: =Rallye!B183 -> 0 | C35: =Rallye!C183 -> 0
B36: =Rallye!B184 -> 0 | C36: =Rallye!C184 -> 0
B37: =Rallye!B185 -> 0 | C37: =Rallye!C185 -> 0
B38: =Rallye!B186 -> 0 | C38: =Rallye!C186 -> 0
B39: =Rallye!B187 -> 0 | C39: =Rallye!C187 -> 0
B40: =Rallye!B188 -> 0 | C40: =Rallye!C188 -> 0
B41: =Rallye!B189 -> 0 | C41: =Rallye!C189 -> 0
B42: =Rallye!B190 -> 0 | C42: =Rallye!C190 -> 0
B43: =Rallye!B191 -> 0 | C43: =Rallye!C191 -> 0
B44: =Rallye!B192 -> 0 | C44: =Rallye!C192 -> 0
B45: =Rallye!B193 -> 0 | C45: =Rallye!C193 -> 0
B46: =Rallye!B194 -> 0 | C46: =Rallye!C194 -> 0
B47: =Rallye!B195 -> 0 | C47: =Rallye!C195 -> 0
B48: =Rallye!B196 -> 0 | C48: =Rallye!C196 -> 0
B49: =Rallye!B197 -> 0 | C49: =Rallye!C197 -> 0
B50: =Rallye!B198 -> 0 | C50: =Rallye!C198 -> 0
B51: =Rallye!B199 -> 0 | C51: =Rallye!C199 -> 0
B52: =Rallye!B200 -> 0 | C52: =Rallye!C200 -> 0
B53: =Rallye!B201 -> 0 | C53: =Rallye!C201 -> 0
B54: =Rallye!B202 -> 0 | C54: =Rallye!C202 -> 0
B55: =Rallye!B203 -> 0 | C55: =Rallye!C203 -> 0
B56: =Rallye!B204 -> 0 | C56: =Rallye!C204 -> 0
B57: =Rallye!B205 -> 0 | C57: =Rallye!C205 -> 0
B58: =Rallye!B206 -> 0 | C58: =Rallye!C206 -> 0
B59: =Rallye!B207 -> 0 | C59: =Rallye!C207 -> 0
B60: =Rallye!B208 -> 0 | C60: =Rallye!C208 -> 0
B61: =Rallye!B209 -> 0 | C61: =Rallye!C209 -> 0
B62: =Rallye!B210 -> 0 | C62: =Rallye!C210 -> 0
B63: =Rallye!B211 -> 0 | C63: =Rallye!C211 -> 0
B64: N° Concurrent : | D64: =D13 -> 0 | F64: =F13 -> 0 | H64: =H13 -> 0 | J64: =J13 -> 0 | L64: =L13 -> 0 | N64: =N13 -> 0 | P64: =P13 -> 0 | R64: =R13 -> 0 | T64: =T13 -> 0 | V64: =V13 -> 0
B65: Total Pénalités : | D65: =SUM( E15:E63)/(24*3600) -> 00:00:00 | F65: =SUM(G15:G63)/(24*3600) -> 00:00:00 | H65: =SUM(I15:I63)/(24*3600) -> 00:00:00 | J65: =SUM(K15:K63)/(24*3600) -> 00:00:00 | L65: =SUM(M15:M63)/(24*3600) -> 00:00:00 | N65: =SUM(O15:O63)/(24*3600) -> 00:00:00 | P65: =SUM(Q15:Q63)/(24*3600) -> 00:00:00 | R65: =SUM(S15:S63)/(24*3600) -> 00:00:00 | T65: =SUM(U15:U63)/(24*3600) -> 00:00:00 | V65: =SUM(W15:W63)/(24*3600) -> 00:00:00

Sheet Fic_Abd
C1: =Rallye!E10 -> 16ème Rallye du PAYS de St-YRIEX
C2: =Rallye!E11 -> 3ème Rallye VHC du PAYS de St-YRIEX
E3: =Rallye!E12 -> 15 et 16 Septembre 2018 | H3: =Rallye!E14 -> LRSA Nouvelle Aquitaine Sud
A4: =Rallye!E19 -> ASA Saint Martial | E4: A B A N D O N
B7: VEHICULE | C7: N° | H7: HEURE
H9: H
A13: LIEU : | B13: C.H. N° | D13: E.S. | E13: N° | F13: POSTE N° | H13: AUTRE
C15: ou | G15: ou
A18: MOTIF : | B18: Mécanique | D18: Sortie de Route | H18: Autre
D19: Sans Gravité
C20: ou | F20: ou
E23: OUI | F23: ou | G23: NON
A24: CARNET DE BORD RECUPERE :
C30: =Rallye!E10 -> 16ème Rallye du PAYS de St-YRIEX
C31: =Rallye!E11 -> 3ème Rallye VHC du PAYS de St-YRIEX
E32: =Rallye!E12 -> 15 et 16 Septembre 2018 | G32: =Rallye!E14 -> LRSA Nouvelle Aquitaine Sud
A33: =Rallye!E19 -> ASA Saint Martial | E33: A B A N D O N
B36: VEHICULE | C36: N° | H36: HEURE
H38: H
A42: LIEU : | B42: C.H. N° | D42: E.S. | E42: N° | F42: POSTE N° | H42: AUTRE
C44: ou | G44: ou
A47: MOTIF : | B47: Mécanique | D47: Sortie de Route | H47: Autre
D48: Sans Gravité
C49: ou | F49: ou
E52: OUI | F52: ou | G52: NON
A53: CARNET DE BORD RECUPERE :
C62: =Rallye!E10 -> 16ème Rallye du PAYS de St-YRIEX
C63: =Rallye!E11 -> 3ème Rallye VHC du PAYS de St-YRIEX
C64: =Rallye!E12 -> 15 et 16 Septembre 2018 | G64: =Rallye!E14 -> LRSA Nouvelle Aquitaine Sud
A66: FICHE de PENALITE
B69: VEHICULE | C69: N° | G69: Lieu
B76: PENALITE :
B79: MOTIF :
B81: ARTICLE N° : | E81: =IF(ISERROR(VLOOKUP(D81,PENALITES,2,FALSE)),,(VLOOKUP(D81,PENALITES,2,FALSE))) -> 0
B83: Du Règlement Standard des Rallyes
B86: Visa DC : | G86: Visa Classements :
C93: =Rallye!E10 -> 16ème Rallye du PAYS de St-YRIEX
C94: =Rallye!E11 -> 3ème Rallye VHC du PAYS de St-YRIEX
C95: =Rallye!E12 -> 15 et 16 Septembre 2018 | G95: =Rallye!E14 -> LRSA Nouvelle Aquitaine Sud
A97: FICHE de PENALITE
B100: VEHICULE | C100: N° | G100: Lieu
B107: PENALITE :
B110: MOTIF :
B113: ARTICLE N° :
B114: Du Règlement Standard des Rallyes
B117: Visa DC : | G117: Visa Classements :

Sheet Abandons
G2: =NOW() -> 43450.39398 | J2: Document n°
B4: =Rallye!E10 -> 16ème Rallye du PAYS de St-YRIEX | G4: A B A N D O N S
B5: =Rallye!E12 -> 15 et 16 Septembre 2018
B6: =Rallye!E19 -> ASA Saint Martial | G6: Etape : | J6: 1
B7: =Rallye!E14 -> LRSA Nouvelle Aquitaine Sud | G7: Reste en Course : | I7: =Etap3!G62 -> 45
B8: n°ord | C8: N° | D8: Date | E8: Heure | F8: Lieu | G8: Poste | H8: Cause
B9: =IF(C9="",0,1) -> 0
B10: =IF(C10="","",B9+1) -> 
B11: =IF(C11="","",B10+1) -> 
B68: Mécanique : | E68: =COUNTIF(H9:H67,"Mécanique") -> 0
B69: Sortie de Route avec Blessé : | E69: =COUNTIF(H9:H67,"Sortie de Route avec équipage Blessé") -> 0
B70: Sortie de Route sans Gravité : | E70: =COUNTIF(H9:H67,"Sortie de Route sans Gravité") -> 0
C71: Divers / Raison Personnelle : | E71: =(COUNTIF(H9:H67,"Raison Personnelle"))+((COUNTIF(H9:H67,"Absent du Parc Fermé Départ"))) -> 0
B72: Mise Hors Course : | E72: =(COUNTIF(H11:H69,"Mise Hors Course par D.C."))+(COUNTIF(H11:H69,"Mise Hors Course par Collège")) -> 0 | F72: n° :
C73: TOTAL : | E73: =COUNT(C9:C66) -> 0

Sheet Notif-DC
F2: Document n° :
A4: =Rallye!E10 -> 16ème Rallye du PAYS de St-YRIEX
A5: =Rallye!E12 -> 15 et 16 Septembre 2018
A6: =Rallye!E19 -> ASA Saint Martial
A7: Permis d'Organisation : | C7: =Rallye!E15 -> N 511 du 3/07/2018
A9: NOTIFICATION n° | C9: 1 | D9: DE LA DIRECTION DE COURSE
B11: A L'EQUIPAGE n° | E11: 75
B13: CONCURRENT | C13: PORTEFAIX Lucas | F13: 1er CONDUCTEUR | G13: =C13 -> PORTEFAIX Lucas
B14: LICENCE N° | C14: 252373/1017 | F14: LICENCE N° | G14: =C14 -> 252373/1017
B16: DECISION :
B20: 1 minute de pénalité
B25: MOTIF :
B27: Entrée Agglomération de Coussac Bonneval
B29: Mouvement anormal de la voiture (1ère infraction)
B31: Application Article : 6.4.7 Page 23 France Auto Rallye 2018.
B34: NOTIFIE AU CONCURRENT | G34: Le Directeur de Course
B36: =Rallye!E17 -> 87500 St-YRIEX La PERCHE | C36: Le : | D36: =TODAY() -> 2018-12-16 | E36: =Officiels!K15 -> LORRE Joseph
C37: à : | F37: Licence : | G37: =Officiels!E15 -> 10395
B41: ACCUSE DE RECEPTION :
B42: Le soussigné certifie avoir été informé, au lieu, à la date
B43: et à l'heure indiqué ci-dessus, des décisions prises,
B44: ainsi que des motifs les justifiants.
B45: Il certifie avoir été informé, des voies de recours.
B49: Date : | F49: Heure :
B51: Le Concurrent | F51: Le 1er Conducteur

Sheet Not-DC-Final
H2: Document n° :
B4: =Rallye!E10 -> 16ème Rallye du PAYS de St-YRIEX
B5: =Rallye!E12 -> 15 et 16 Septembre 2018
B6: =Rallye!E19 -> ASA Saint Martial
B7: =Rallye!E14 -> LRSA Nouvelle Aquitaine Sud
B8: Permis d'Organisation : | E8: =Rallye!E15 -> N 511 du 3/07/2018
B10: NOTIFICATION n° | E10: 1 | F10: DE LA DIRECTION DE COURSE
C13: Le Directeur de Course, conformément aux instructions reçues des Commissaires Sportifs,
C14: informe les concurrents suivants qu’ils devront mettre leur voiture à disposition des
C15: Commissaires Techniques pour le contrôle final
C16: conformément à l’article | E16: 1.3.12 | F16: de la réglementation générale des rallyes | I16: 2018
C18: Ils devront aussi informer immédiatement leurs mécaniciens (2 maxi) de se rendre à :
D22: =Rallye!E37 -> Garage VERSAVEAU
D23: =Rallye!E38 -> Avenue de Coussac
D24: =Rallye!E39 -> 87500 St-YRIEX La PERCHE
D25: =Rallye!E40 -> Se munir de moyens pour vider les réservoirs
B27: Notifié aux Concurents à : | E27: =Rallye!E17 -> 87500 St-YRIEX La PERCHE | I27: Le Directeur de Course
D28: le : | E28: =TODAY() -> 2018-12-16 | I28: =Officiels!K15 -> LORRE Joseph
D29: à : | H29: Lic : | I29: =Officiels!E15 -> 10395
D31: ACCUSES DE RECEPTION
C33: N° | D33: Concurrents | G33: Emargements | J33: Heure
C34: 2 | D34: VAILLANT Benoit
C36: 1 | D36: BEAUBELIQUE J-Charles
C38: 5 | D38: LONGEPE Bruno
C50: L'équipe peut également assiter à ces contrôles ainsi qu'un responsable technique,
C51: LE DEPLACEMENT S'EFFECTUERA SOUS REGIME DU PARC FERME.

Sheet Not-Tech
G2: Document n° :
A4: =Rallye!E10 -> 16ème Rallye du PAYS de St-YRIEX
A5: =Rallye!E12 -> 15 et 16 Septembre 2018
A6: =Rallye!E19 -> ASA Saint Martial
A7: =Rallye!E14 -> LRSA Nouvelle Aquitaine Sud
B9: NOTIFICATION n° | E9: 1 | F9: DE LA DIRECTION DE COURSE
B10: AUX COMMISSAIRES TECHNIQUES
E12: La Direction de Course vous demande d'effectuer les vérifications techniques suivantes :
A14: En cours d'Epreuve :
A21: Fin Epreuve :
B22: Tous Groupes sur classement à l'issue de l'ES 11
B23: Pesée à vide des 3 premiers scratch (réservoirs vides)
B24: Présence catalyseurs des 3 premiers scratch
C27: Ces vérifications devront être effectuées
B29: En cours d'épreuve | G29: A l ' arrivée de l ' épreuve
B31: C.H. N° | G31: Au Parc fermé
B33: STOP E.S. N° | G33: Au garage
B35: Parc de regroupement C.H.
B37: Fait à | C37: =Rallye!E17 -> 87500 St-YRIEX La PERCHE | E37: le : | F37: =TODAY() -> 2018-12-16 | H37: à | I37: H
H39: Le Directeur de Course
B41: Accusé de réception | H41: =Officiels!K15 -> LORRE Joseph
A42: du Commissaire Technique Responsable | G42: Licence N° | H42: =Officiels!E15 -> 10395
A44: M. | B44: =Officiels!K49 -> PHELIPEAU Jean-Luc | C44: Licence N° | D44: =Officiels!E49 -> 9060
A46: le | C46: à H
B50: !!! ATTENTION ce Document est CONFIDENTIEL

Sheet Médical
B3: RAPPORT MEDICAL D'EPREUVE FFSA
B5: NUMERO DE VISA : | E5: =Rallye!E15 -> N 511 du 3/07/2018 | H5: LIGUE : | K5: CODE ASA :
B6: NOM DE L'EPREUVE : | E6: =Rallye!E10 -> 16ème Rallye du PAYS de St-YRIEX
B8: DISCIPLINE : | D8: Circuit Rallye Course de Côte Karting Autre | K8: COURSE ESSAI
B11: ES N° : | C11: PK : | E11: PC N° : | I11: DATE : Heure :
B13: Concurrent N° : | E13: Pilote/Copilote/ Officiel | H13: Spectateur/Autre (préciser) :
B14: Nom : | F14: Prénom : | K14: N° de Licence :
B15: Né(e) le : | F15: Nationalité : | K15: Tél. :
B16: ADRESSE :
B18: TM CONDITION(S) : | E18: Collision | G18: Problème mécanique | J18: Evitement d'un obstacle
B19: Collision personne | E19: Tonneau | G19: Choc (arbre-mur-poteau)
B20: Choc dans protections souples (Pneus - Tecpro - Mousse - Paille) | J20: Choc latéral - 3/4 - frontal - arrière
B21: BILAN HEMODYNAMIQUE | G21: BILAN RESPIRATOIRE | K21: NEURO
B23: TA : | G23: FREQUENCE : | K23: TC : non oui durée :
B24: POULS : | G24: COLORATION : | K24: PCI :
B25: AUTRE : | G25: LESIONS COSTALES : | K25: GLASGOW :
G26: SAO2 : | K26: AUTRE :
B28: § LOCALISATION(S) APPARENTE(S), TYPE(S) DE BLESSURE(S) ET CAT :
B29: INDIQUER PAR UNE LETTRE LE TYPE DE BLESSURE DANS LA CASE OU LES CASES CORRESPONDANTES :
B30: (C : CONTUSION) (D : DERMABRASION) (E : ENTORSE) ( F : FRACTURE) ( H : HEMATOME) ( L : LUXATION) ( P : PLAIE) (B : BRULURE)
B32: MBRE SUP | C32: D | D32: G | E32: MBRE INF | F32: D | G32: G | H32: RACHIS | K32: NEURO (cocher la case)
B33: Clavicule | E33: Hanche | H33: Cervical | K33: TC
B34: Epaule | E34: Fémur | H34: Dorsal | K34: PCI
B35: Humérus | E35: Genou | H35: Lombaire | K35: Trouble conscience
B36: Coude | E36: Rotule | H36: Bassin | K36: Anomalie neurologique
B37: Radius | E37: Tibia | H37: AUTRES | K37: CAT (cocher la case)
B38: Cubitus | E38: Péroné | H38: Abdomen | K38: Ttt sur place
B39: Poignet | E39: Cheville | H39: Thorax / Côtes | K39: Evacuation Urgente
B40: Scaphoïde | E40: Pied | H40: Face / Crâne | K40: Evacuation non urgente
B41: Main / Doigts | E41: Orteils | H41: Œil | K41: Imagerie
B43: SOINS SUR PLACE : | F43: CENTRE MEDICAL : | I43: EVACUATION :
I45: Ambulance / VSAB :
B46: GESTES FAITS : | F46: PERFUSIONS :
B48: DESINCARCERATION : | D48: oui / non | F48: VENTILATION : | I48: Médicalisation : oui / non
B50: EXTRACTION : | C50: non oui | F50: IMAGERIE : | I50: SMUR | K50: HELICO
B51: Rapide semi rapide Ked Autre
B53: Hôpital / Clinique de destination : | K53: Téléphone :
B55: DIAGNOSTIC(S) EVOQUE(S) :
B58: TRAITEMENT(S) :
B60: CLASSIFICATION 1 | F60: 2 3 | H60: 3 | I60: 4
B62: 1 : pas d'hospitalisation 2 : contrôle hospitalier 3 : intervention ou soins de plus de 21 jours à prévoir 4 décès
B63: INAPTE COMPETITION : OUI | G63: NON APTE | I63: A REPRENDRE (Pas de rétention de licence)
B65: (Rétention de licence)
B67: Nom du Médecin(s) Chef : | H67: Nom, adresse, téléphone et signature du Médecin intervenant.
B69: N° de licence : | H69: N° inscription Conseil de l'Ordre :
B70: Version du 16/12/2015 | E70: Rapport médical à envoyer au Service Médical sous pli confidentiel.

Sheet Moyenne
C2: =Rallye!E10 -> 16ème Rallye du PAYS de St-YRIEX
C3: =Rallye!E12 -> 15 et 16 Septembre 2018
C5: Calcul de Moyenne sur une Spéciale
B7: Es n° : 2 | C7: Longueur Spéciale en Métres | F7: 13500 | G7: métres
C11: Num | D11: Temps Spéciale | E11: Temps en secondes | F11: Moyenne Calculée
C12: 2 | D12: 00:07:13 | E12: =( MINUTE(D12)*60)+SECOND(D12) -> 433 | F12: =(((F7/E12)*3600)/1000) -> 112.2401848
C13: 3 | D13: 00:07:18 | E13: =( MINUTE(D13)*60)+SECOND(D13) -> 438 | F13: =(((F7/E13)*3600)/1000) -> 110.9589041
E14: 0 | F14: =(((F7/E14)*3600)/1000) -> 
E15: 0 | F15: =(((F7/E15)*3600)/1000) -> 
E16: 0 | F16: =(((F7/E16)*3600)/1000) -> 
E17: 0 | F17: =(((F7/E17)*3600)/1000) -> 
E18: 0 | F18: =(((F7/E18)*3600)/1000) -> 
E19: 0 | F19: =(((F7/E19)*3600)/1000) -> 
E20: 0 | F20: =(((F7/E20)*3600)/1000) -> 
E21: 0 | F21: =(((F7/E21)*3600)/1000) -> 
D22: 00:00:00 | E22: 0 | F22: =(((F7/E22)*3600)/1000) -> 
D23: 00:00:00 | E23: 0 | F23: =(((F7/E23)*3600)/1000) -> 
D24: 00:00:00 | E24: 0 | F24: =(((F7/E24)*3600)/1000) -> 
D25: 00:00:00 | E25: 0 | F25: =(((F7/E25)*3600)/1000) -> 
D26: 00:00:00 | E26: 0 | F26: =(((F7/E26)*3600)/1000) -> 
D27: 00:00:00 | E27: 0 | F27: =(((F7/E27)*3600)/1000) -> 
D28: 00:00:00 | E28: 0 | F28: =(((F7/E28)*3600)/1000) -> 
D29: 00:00:00 | E29: 0 | F29: =(((F7/E29)*3600)/1000) -> 
D30: 00:00:00 | E30: 0 | F30: =(((F7/E30)*3600)/1000) -> 

Sheet Recos
A5: =Rallye!E10 -> 16ème Rallye du PAYS de St-YRIEX
A6: =Rallye!E11 -> 3ème Rallye VHC du PAYS de St-YRIEX
